Workbook

Sheet Introduction
C4: Joint Monitoring Programme for Water Supply, Sanitation and Hygiene
C6: Estimates on household water, sanitation and hygiene by wealth quintile and sub-national region in
C7: =+Water!B5 -> Peru
C9: Updated May 2021
C11: Follow the links below to find the following information:
C13: JMP Estimates
C14: WASH status and trends by wealth quintile (customized quintiles made without water and sanitation assets)
C15: Water
C16: Sanitation
C17: Hygiene
C19: Data inputs
C20: customized wealth quintiles and subnational data:
C21: =IF(INDIRECT(CONCATENATE("Water","!B105"))=0,"",INDIRECT(CONCATENATE("Water","!B105"))) -> DHS00
C22: =IF(INDIRECT(CONCATENATE("Water","!B106"))=0,"",INDIRECT(CONCATENATE("Water","!B106"))) -> DHS06
C23: =IF(INDIRECT(CONCATENATE("Water","!B107"))=0,"",INDIRECT(CONCATENATE("Water","!B107"))) -> DHS08
C24: =IF(INDIRECT(CONCATENATE("Water","!B108"))=0,"",INDIRECT(CONCATENATE("Water","!B108"))) -> DHS09
C25: =IF(INDIRECT(CONCATENATE("Water","!B109"))=0,"",INDIRECT(CONCATENATE("Water","!B109"))) -> DHS10
C26: =IF(INDIRECT(CONCATENATE("Water","!B110"))=0,"",INDIRECT(CONCATENATE("Water","!B110"))) -> DHS11
C27: =IF(INDIRECT(CONCATENATE("Water","!B111"))=0,"",INDIRECT(CONCATENATE("Water","!B111"))) -> DHS12
C28: =IF(INDIRECT(CONCATENATE("Water","!B112"))=0,"",INDIRECT(CONCATENATE("Water","!B112"))) -> ENDES16
C29: =IF(INDIRECT(CONCATENATE("Water","!B113"))=0,"",INDIRECT(CONCATENATE("Water","!B113"))) -> 
C30: =IF(INDIRECT(CONCATENATE("Water","!B114"))=0,"",INDIRECT(CONCATENATE("Water","!B114"))) -> 
C31: =IF(INDIRECT(CONCATENATE("Water","!B115"))=0,"",INDIRECT(CONCATENATE("Water","!B115"))) -> 
C32: =IF(INDIRECT(CONCATENATE("Water","!B116"))=0,"",INDIRECT(CONCATENATE("Water","!B116"))) -> 
L55: =+IF(ISNUMBER(M48), "", "Insufficient data to estimate safely managed sanitation services at national level") -> Insufficient data to estimate safely managed sanitation services at national level

Sheet Water
A1: BGD
B4: Summary of trends in use of drinking water by wealth quintile (%)
B5: =IF(ISERROR(INDIRECT(CONCATENATE($B105,"!A2"))),"",INDIRECT(CONCATENATE($B105,"!A2"))) -> Peru
B7: =B118 -> National use of drinking water sources, 2000–2020 | J7: =B218 -> Urban use of drinking water sources, 2000–2020 | R7: =B318 -> Rural use of drinking water sources, 2000–2018
B31: =IF(ISERROR(INDIRECT(CONCATENATE($B105,"!A2"))),"",INDIRECT(CONCATENATE($B105,"!A2"))) -> Peru | F31: Poorest | J31: Poor | N31: Middle | R31: Rich | V31: Richest
F32: Basic | G32: Limited | H32: Unimproved | I32: Surface water | J32: Basic | K32: Limited | L32: Unimproved | M32: Surface water | N32: Basic | O32: Limited | P32: Unimproved | Q32: Surface water | R32: Basic | S32: Limited | T32: Unimproved | U32: Surface water | V32: Basic | W32: Limited | X32: Unimproved | Y32: Surface water
B33: NATIONAL | D33: Estimate | E33: =C99 -> 2000 | F33: =E99 -> 59.60439378 | G33: =F99 -> 1.337706537 | H33: 22.71344458 | I33: 16.34445511 | J33: =J99 -> 66.06500229 | K33: =K99 -> 1.707989206 | L33: 18.23979463 | M33: 13.98721388 | N33: =O99 -> 86.12919975 | O33: =P99 -> 1.515898985 | P33: 10.44074706 | Q33: 1.914154206 | R33: =T99 -> 95.49976805 | S33: =U99 -> 0.5113036658 | T33: 3.794522793 | U33: 0.1944054895 | V33: =Y99 -> 99.05394896 | W33: =Z99 -> 0.07678683452 | X33: 0.8437081297 | Y33: 0.0255560737
E34: =C100 -> 2020 | F34: =E100 -> 78.02343757 | G34: 1.751086722 | H34: 10.80610216 | I34: 9.419373552 | J34: =J100 -> 88.63301158 | K34: 2.291443606 | L34: 8.351453372 | M34: 0.7240914439 | N34: =O100 -> 94.13694042 | O34: 1.656837551 | P34: 3.947430411 | Q34: 0.2587916209 | R34: =T100 -> 97.74470322 | S34: 0.5233229995 | T34: 1.475973331 | U34: 0.256000452 | V34: =Y100 -> 99.52190829 | W34: 0.0771495976 | X34: 0.2555653931 | Y34: 0.1453767181
B36: URBAN | D36: Estimate | E36: =C199 -> 2000 | F36: =E199 -> 80.2486598 | G36: =F199 -> 2.259227238 | H36: 15.71055432 | I36: 1.78155864 | J36: =J199 -> 89.77508275 | K36: =K199 -> 1.409657643 | L36: 8.535313241 | M36: 0.2799463611 | N36: =O199 -> 95.45570035 | O36: =P199 -> 0.6438356937 | P36: 3.793630221 | Q36: 0.1068337323 | R36: =T199 -> 98.0146749 | S36: =U199 -> 0.2319320384 | T36: 1.742561137 | U36: 0.01083192403 | V36: =Y199 -> 99.45669265 | W36: =Z199 -> 0.05267062627 | X36: 0.4906367221 | Y36: 0
E37: =C200 -> 2020 | F37: =E200 -> 86.58434874 | G37: 2.43759484 | H37: 10.40428522 | I37: 0.5737711977 | J37: =J200 -> 93.73795899 | K37: 1.471883136 | L37: 4.593163885 | M37: 0.1969939922 | N37: =O200 -> 96.94717837 | O37: 0.6538955097 | P37: 2.324150357 | Q37: 0.07477576011 | R37: =T200 -> 98.88596082 | S37: 0.2339937616 | T37: 0.8506497188 | U37: 0.02939569795 | V37: =Y200 -> 99.70942365 | W37: 0.05280446845 | X37: 0.2377718768 | Y37: 0
B39: RURAL | D39: Estimate | E39: =C299 -> 2000 | F39: =E299 -> 61.26401074 | G39: =F299 -> 1.399912544 | H39: 23.87370562 | I39: 13.46237109 | J39: =J299 -> 59.1622392 | K39: =K299 -> 1.210314569 | L39: 21.45157218 | M39: 18.17587406 | N39: =O299 -> 58.33500877 | O39: =P299 -> 1.383040783 | P39: 21.57597607 | Q39: 18.70597438 | R39: =T299 -> 60.23444665 | S39: =U299 -> 1.465114031 | T39: 17.99184285 | U39: 20.30859648 | V39: =Y299 -> 72.88461579 | W39: =Z299 -> 1.414054754 | X39: 13.60946605 | Y39: 12.09186341
E40: =C300 -> 2018 | F40: =E300 -> 64.20810149 | G40: 1.467186454 | H40: 14.9487517 | I40: 19.37596036 | J40: =J300 -> 75.53799823 | K40: 1.545322506 | L40: 12.60451024 | M40: 10.31216902 | N40: =O300 -> 78.87718008 | O40: 1.870066692 | P40: 11.70517479 | Q40: 7.547578441 | R40: =T300 -> 78.38031465 | S40: 1.906485494 | T40: 11.70141564 | U40: 8.011784215 | V40: =Y300 -> 81.81037787 | W40: 1.587225953 | X40: 9.97763954 | Y40: 6.624756633
A97: NATIONAL | D97: Poorest | I97: Poor | N97: Middle | S97: Rich | X97: Richest
D98: Improved | E98: Basic | F98: Limited | G98: Unimproved | H98: Surface water | I98: Improved | J98: Basic | K98: Limited | L98: Unimproved | M98: Surface water | N98: Improved | O98: Basic | P98: Limited | Q98: Unimproved | R98: Surface water | S98: Improved | T98: Basic | U98: Limited | V98: Unimproved | W98: Surface water | X98: Improved | Y98: Basic | Z98: Limited | AA98: Unimproved | AB98: Surface water
A99: Forecast period: | C99: 2000 | D99: =IF((D101+H101)>100,D101*100/(D101+H101),D101) -> 60.94210032 | E99: =D99*AVERAGEIF(E105:E116,">0")/100 -> 59.60439378 | F99: =D99*(100-AVERAGEIF(E105:E116,">0"))/100 -> 1.337706537 | G99: =100-(E99+F99+H99) -> 22.71344458 | H99: =IF((D101+H101)>100,H101*100/(D101+H101),H101) -> 16.34445511 | I99: =IF((I101+M101)>100,I101*100/(I101+M101),I101) -> 67.7729915 | J99: =I99*AVERAGEIF(J105:J116,">0")/100 -> 66.06500229 | K99: =I99*(100-AVERAGEIF(J105:J116,">0"))/100 -> 1.707989206 | L99: =100-(J99+K99+M99) -> 18.23979463 | M99: =IF((I101+M101)>100,M101*100/(I101+M101),M101) -> 13.98721388 | N99: =IF((N101+R101)>100,N101*100/(N101+R101),N101) -> 87.64509874 | O99: =N99*AVERAGEIF(O105:O116,">0")/100 -> 86.12919975 | P99: =N99*(100-AVERAGEIF(O105:O116,">0"))/100 -> 1.515898985 | Q99: =100-(O99+P99+R99) -> 10.44074706 | R99: =IF((N101+R101)>100,R101*100/(N101+R101),R101) -> 1.914154206 | S99: =IF((S101+W101)>100,S101*100/(S101+W101),S101) -> 96.01107172 | T99: =S99*AVERAGEIF(T105:T116,">0")/100 -> 95.49976805 | U99: =S99*(100-AVERAGEIF(T105:T116,">0"))/100 -> 0.5113036658 | V99: =100-(T99+U99+W99) -> 3.794522793 | W99: =IF((S101+W101)>100,W101*100/(S101+W101),W101) -> 0.1944054895 | X99: =IF((X101+AB101)>100,X101*100/(X101+AB101),X101) -> 99.1307358 | Y99: =X99*AVERAGEIF(Y105:Y116,">0")/100 -> 99.05394896 | Z99: =X99*(100-AVERAGEIF(Y105:Y116,">0"))/100 -> 0.07678683452 | AA99: =100-(Y99+Z99+AB99) -> 0.8437081297 | AB99: =IF((X101+AB101)>100,AB101*100/(X101+AB101),AB101) -> 0.0255560737
C100: 2020 | D100: =IF((D102+H102)>100,D102*100/(D102+H102),D102) -> 79.77452429 | E100: =D100*AVERAGEIF(E105:E116,">0")/100 -> 78.02343757 | F100: =D100*(100-AVERAGEIF(E105:E116,">0"))/100 -> 1.751086722 | G100: =100-(E100+F100+H100) -> 10.80610216 | H100: =IF((D102+H102)>100,H102*100/(D102+H102),H102) -> 9.419373552 | I100: =IF((I102+M102)>100,I102*100/(I102+M102),I102) -> 90.92445518 | J100: =I100*AVERAGEIF(J105:J116,">0")/100 -> 88.63301158 | K100: =I100*(100-AVERAGEIF(J105:J116,">0"))/100 -> 2.291443606 | L100: =100-(J100+K100+M100) -> 8.351453372 | M100: =IF((I102+M102)>100,M102*100/(I102+M102),M102) -> 0.7240914439 | N100: =IF((N102+R102)>100,N102*100/(N102+R102),N102) -> 95.79377797 | O100: =N100*AVERAGEIF(O105:O116,">0")/100 -> 94.13694042 | P100: =N100*(100-AVERAGEIF(O105:O116,">0"))/100 -> 1.656837551 | Q100: =100-(O100+P100+R100) -> 3.947430411 | R100: =IF((N102+R102)>100,R102*100/(N102+R102),R102) -> 0.2587916209 | S100: =IF((S102+W102)>100,S102*100/(S102+W102),S102) -> 98.26802622 | T100: =S100*AVERAGEIF(T105:T116,">0")/100 -> 97.74470322 | U100: =S100*(100-AVERAGEIF(T105:T116,">0"))/100 -> 0.5233229995 | V100: =100-(T100+U100+W100) -> 1.475973331 | W100: =IF((S102+W102)>100,W102*100/(S102+W102),W102) -> 0.256000452 | X100: =IF((X102+AB102)>100,X102*100/(X102+AB102),X102) -> 99.59905789 | Y100: =X100*AVERAGEIF(Y105:Y116,">0")/100 -> 99.52190829 | Z100: =X100*(100-AVERAGEIF(Y105:Y116,">0"))/100 -> 0.0771495976 | AA100: =100-(Y100+Z100+AB100) -> 0.2555653931 | AB100: =IF((X102+AB102)>100,AB102*100/(X102+AB102),AB102) -> 0.1453767181
A101: Regression period: | C101: =MinRegYear(C99,C105:C116) -> 2000 | D101: =IF(MAX(C105:C116)-MIN(C105:C116)<5,AVERAGEIF(C105:C116,">0",D105:D116), IF(FORECAST($C101,D$105:D$116,$C$105:$C$116)<0,0, IF(FORECAST($C101,D$105:D$116,$C$105:$C$116)>100,100, FORECAST($C101,D$105:D$116,$C$105:$C$116)))) -> 60.94210032 | H101: =IF(MAX(C105:C116)-MIN(C105:C116)<5,AVERAGEIF(C105:C116,">0",H105:H116), IF(FORECAST($C101,H$105:H$116,$C$105:$C$116)<0,0, IF(FORECAST($C101,H$105:H$116,$C$105:$C$116)>100,100, FORECAST($C101,H$105:H$116,$C$105:$C$116)))) -> 16.34445511 | I101: =IF(MAX(C105:C116)-MIN(C105:C116)<5,AVERAGEIF(C105:C116,">0",I105:I116), IF(FORECAST($C101,I$105:I$116,$C$105:$C$116)<0,0, IF(FORECAST($C101,I$105:I$116,$C$105:$C$116)>100,100, FORECAST($C101,I$105:I$116,$C$105:$C$116)))) -> 67.7729915 | M101: =IF(MAX(C105:C116)-MIN(C105:C116)<5,AVERAGEIF(C105:C116,">0",M105:M116), IF(FORECAST($C101,M$105:M$116,$C$105:$C$116)<0,0, IF(FORECAST($C101,M$105:M$116,$C$105:$C$116)>100,100, FORECAST($C101,M$105:M$116,$C$105:$C$116)))) -> 13.98721388 | N101: =IF(MAX(C105:C116)-MIN(C105:C116)<5,AVERAGEIF(C105:C116,">0",N105:N116), IF(FORECAST($C101,N$105:N$116,$C$105:$C$116)<0,0, IF(FORECAST($C101,N$105:N$116,$C$105:$C$116)>100,100, FORECAST($C101,N$105:N$116,$C$105:$C$116)))) -> 87.64509874 | R101: =IF(MAX(C105:C116)-MIN(C105:C116)<5,AVERAGEIF(C105:C116,">0",R105:R116), IF(FORECAST($C101,R$105:R$116,$C$105:$C$116)<0,0, IF(FORECAST($C101,R$105:R$116,$C$105:$C$116)>100,100, FORECAST($C101,R$105:R$116,$C$105:$C$116)))) -> 1.914154206 | S101: =IF(MAX(C105:C116)-MIN(C105:C116)<5,AVERAGEIF(C105:C116,">0",S105:S116), IF(FORECAST($C101,S$105:S$116,$C$105:$C$116)<0,0, IF(FORECAST($C101,S$105:S$116,$C$105:$C$116)>100,100, FORECAST($C101,S$105:S$116,$C$105:$C$116)))) -> 96.01107172 | W101: =IF(MAX(C105:C116)-MIN(C105:C116)<5,AVERAGEIF(C105:C116,">0",W105:W116), IF(FORECAST($C101,W$105:W$116,$C$105:$C$116)<0,0, IF(FORECAST($C101,W$105:W$116,$C$105:$C$116)>100,100, FORECAST($C101,W$105:W$116,$C$105:$C$116)))) -> 0.1944054895 | X101: =IF(MAX(C105:C116)-MIN(C105:C116)<5,AVERAGEIF(C105:C116,">0",X105:X116), IF(FORECAST($C101,X$105:X$116,$C$105:$C$116)<0,0, IF(FORECAST($C101,X$105:X$116,$C$105:$C$116)>100,100, FORECAST($C101,X$105:X$116,$C$105:$C$116)))) -> 99.1307358 | AB101: =IF(MAX(C105:C116)-MIN(C105:C116)<5,AVERAGEIF(C105:C116,">0",AB105:AB116), IF(FORECAST($C101,AB$105:AB$116,$C$105:$C$116)<0,0, IF(FORECAST($C101,AB$105:AB$116,$C$105:$C$116)>100,100, FORECAST($C101,AB$105:AB$116,$C$105:$C$116)))) -> 0.0255560737
C102: =MaxRegYear(C100,C105:C116) -> 2018 | D102: =IF(MAX(C105:C116)-MIN(C105:C116)<5,AVERAGEIF(C105:C116,">0",D105:D116), IF(FORECAST($C102,D$105:D$116,$C$105:$C$116)<0,0, IF(FORECAST($C102,D$105:D$116,$C$105:$C$116)>100,100, FORECAST($C102,D$105:D$116,$C$105:$C$116)))) -> 79.77452429 | H102: =IF(MAX(C105:C116)-MIN(C105:C116)<5,AVERAGEIF(C105:C116,">0",H105:H116), IF(FORECAST($C102,H$105:H$116,$C$105:$C$116)<0,0, IF(FORECAST($C102,H$105:H$116,$C$105:$C$116)>100,100, FORECAST($C102,H$105:H$116,$C$105:$C$116)))) -> 9.419373552 | I102: =IF(MAX(C105:C116)-MIN(C105:C116)<5,AVERAGEIF(C105:C116,">0",I105:I116), IF(FORECAST($C102,I$105:I$116,$C$105:$C$116)<0,0, IF(FORECAST($C102,I$105:I$116,$C$105:$C$116)>100,100, FORECAST($C102,I$105:I$116,$C$105:$C$116)))) -> 90.92445518 | M102: =IF(MAX(C105:C116)-MIN(C105:C116)<5,AVERAGEIF(C105:C116,">0",M105:M116), IF(FORECAST($C102,M$105:M$116,$C$105:$C$116)<0,0, IF(FORECAST($C102,M$105:M$116,$C$105:$C$116)>100,100, FORECAST($C102,M$105:M$116,$C$105:$C$116)))) -> 0.7240914439 | N102: =IF(MAX(C105:C116)-MIN(C105:C116)<5,AVERAGEIF(C105:C116,">0",N105:N116), IF(FORECAST($C102,N$105:N$116,$C$105:$C$116)<0,0, IF(FORECAST($C102,N$105:N$116,$C$105:$C$116)>100,100, FORECAST($C102,N$105:N$116,$C$105:$C$116)))) -> 95.79377797 | R102: =IF(MAX(C105:C116)-MIN(C105:C116)<5,AVERAGEIF(C105:C116,">0",R105:R116), IF(FORECAST($C102,R$105:R$116,$C$105:$C$116)<0,0, IF(FORECAST($C102,R$105:R$116,$C$105:$C$116)>100,100, FORECAST($C102,R$105:R$116,$C$105:$C$116)))) -> 0.2587916209 | S102: =IF(MAX(C105:C116)-MIN(C105:C116)<5,AVERAGEIF(C105:C116,">0",S105:S116), IF(FORECAST($C102,S$105:S$116,$C$105:$C$116)<0,0, IF(FORECAST($C102,S$105:S$116,$C$105:$C$116)>100,100, FORECAST($C102,S$105:S$116,$C$105:$C$116)))) -> 98.26802622 | W102: =IF(MAX(C105:C116)-MIN(C105:C116)<5,AVERAGEIF(C105:C116,">0",W105:W116), IF(FORECAST($C102,W$105:W$116,$C$105:$C$116)<0,0, IF(FORECAST($C102,W$105:W$116,$C$105:$C$116)>100,100, FORECAST($C102,W$105:W$116,$C$105:$C$116)))) -> 0.256000452 | X102: =IF(MAX(C105:C116)-MIN(C105:C116)<5,AVERAGEIF(C105:C116,">0",X105:X116), IF(FORECAST($C102,X$105:X$116,$C$105:$C$116)<0,0, IF(FORECAST($C102,X$105:X$116,$C$105:$C$116)>100,100, FORECAST($C102,X$105:X$116,$C$105:$C$116)))) -> 99.59905789 | AB102: =IF(MAX(C105:C116)-MIN(C105:C116)<5,AVERAGEIF(C105:C116,">0",AB105:AB116), IF(FORECAST($C102,AB$105:AB$116,$C$105:$C$116)<0,0, IF(FORECAST($C102,AB$105:AB$116,$C$105:$C$116)>100,100, FORECAST($C102,AB$105:AB$116,$C$105:$C$116)))) -> 0.1453767181
B104: Survey | C104: Year | D104: Improved | E104: % Improved < = 30min | H104: Surface water | I104: Improved | J104: % Improved < = 30min | M104: Surface water | N104: Improved | O104: % Improved < = 30min | R104: Surface water | S104: Improved | T104: % Improved < = 30min | W104: Surface water | X104: Improved | Y104: % Improved < = 30min | AB104: Surface water
B105: DHS00 | C105: 2000 | D105: =IF(ISERROR(INDIRECT(CONCATENATE($B105,"!C16"))),"",INDIRECT(CONCATENATE($B105,"!C16"))) -> 60.26376252 | E105: =IF(ISERROR(INDIRECT(CONCATENATE($B105,"!C23"))),"",INDIRECT(CONCATENATE($B105,"!C23"))) -> 97.64738473 | H105: =IF(ISERROR(INDIRECT(CONCATENATE($B105,"!C21"))),"",INDIRECT(CONCATENATE($B105,"!C21"))) -> 18.02616343 | I105: =IF(ISERROR(INDIRECT(CONCATENATE($B105,"!D16"))),"",INDIRECT(CONCATENATE($B105,"!D16"))) -> 72.94755797 | J105: =IF(ISERROR(INDIRECT(CONCATENATE($B105,"!D23"))),"",INDIRECT(CONCATENATE($B105,"!D23"))) -> 97.16649017 | M105: =IF(ISERROR(INDIRECT(CONCATENATE($B105,"!D21"))),"",INDIRECT(CONCATENATE($B105,"!D21"))) -> 10.67733796 | N105: =IF(ISERROR(INDIRECT(CONCATENATE($B105,"!E16"))),"",INDIRECT(CONCATENATE($B105,"!E16"))) -> 89.73136502 | O105: =IF(ISERROR(INDIRECT(CONCATENATE($B105,"!E23"))),"",INDIRECT(CONCATENATE($B105,"!E23"))) -> 98.26466089 | R105: =IF(ISERROR(INDIRECT(CONCATENATE($B105,"!E21"))),"",INDIRECT(CONCATENATE($B105,"!E21"))) -> 1.841398753 | S105: =IF(ISERROR(INDIRECT(CONCATENATE($B105,"!F16"))),"",INDIRECT(CONCATENATE($B105,"!F16"))) -> 96.82061852 | T105: =IF(ISERROR(INDIRECT(CONCATENATE($B105,"!F23"))),"",INDIRECT(CONCATENATE($B105,"!F23"))) -> 99.09706067 | W105: =IF(ISERROR(INDIRECT(CONCATENATE($B105,"!F21"))),"",INDIRECT(CONCATENATE($B105,"!F21"))) -> 0.1899282618 | X105: =IF(ISERROR(INDIRECT(CONCATENATE($B105,"!G16"))),"",INDIRECT(CONCATENATE($B105,"!G16"))) -> 99.21687262 | Y105: =IF(ISERROR(INDIRECT(CONCATENATE($B105,"!G23"))),"",INDIRECT(CONCATENATE($B105,"!G23"))) -> 99.80053538 | AB105: =IF(ISERROR(INDIRECT(CONCATENATE($B105,"!G221"))),"",INDIRECT(CONCATENATE($B105,"!G21"))) -> 0.00683174228
B106: DHS06 | C106: 2006 | D106: 70.67252787 | E106: 97.6446677 | H106: 9.869003084 | I106: 69.96657646 | J106: 97.59607184 | M106: 14.30127207 | N106: 89.05708508 | O106: 98.63175041 | R106: 1.245794512 | S106: 96.11202999 | T106: 99.55110742 | W106: 0.1090719458 | X106: 99.35116138 | Y106: 99.96909374 | AB106: 0
B107: DHS08 | C107: 2008 | D107: 70.082587 | E107: 97.49461867 | H107: 10.70665134 | I107: 70.59457536 | J107: 97.72308164 | M107: 13.4937981 | N107: 89.5397049 | O107: 98.58102777 | R107: 1.011208526 | S107: 96.67176265 | T107: 99.61066045 | W107: 0.06975511751 | X107: 99.27690929 | Y107: 99.98095474 | AB107: 0
B108: DHS09 | C108: 2009 | D108: 66.29748336 | E108: 98.04753861 | H108: 16.22296481 | I108: 81.40404029 | J108: 97.62263202 | M108: 5.352525327 | N108: 91.70752002 | O108: 98.00325645 | R108: 1.182980983 | S108: 97.33628862 | T108: 99.47415357 | W108: 0.1973496826 | X108: 99.52812232 | Y108: 100 | AB108: 0.002730437319
B109: DHS10 | C109: 2010 | D109: 71.82131834 | E109: 97.85707259 | H109: 13.29603304 | I109: 81.00282521 | J109: 96.7348447 | M109: 5.266447512 | N109: 90.98133864 | O109: 97.27103011 | R109: 1.643615359 | S109: 96.79012701 | T109: 99.13230668 | W109: 0.5848025878 | X109: 99.22553852 | Y109: 99.87783219 | AB109: 0.2617201148
B110: DHS11 | C110: 2011 | D110: 71.98205702 | E110: 98.3 | H110: 13.9488172 | I110: 83.9931715 | J110: 97.2 | M110: 4.378401022 | N110: 92.80530497 | O110: 98.8 | R110: 0.908457204 | S110: 96.78310626 | T110: 99.7 | W110: 0.4327190662 | X110: 98.89233303 | Y110: 99.9 | AB110: 0.4124488729
B111: DHS12 | C111: 2012 | D111: =IF(ISERROR(INDIRECT(CONCATENATE($B111,"!C16"))),"",INDIRECT(CONCATENATE($B111,"!C16"))) -> 73.10422144 | E111: =IF(ISERROR(INDIRECT(CONCATENATE($B111,"!C23"))),"",INDIRECT(CONCATENATE($B111,"!C23"))) -> 97.2 | H111: =IF(ISERROR(INDIRECT(CONCATENATE($B111,"!C21"))),"",INDIRECT(CONCATENATE($B111,"!C21"))) -> 11.19805701 | I111: =IF(ISERROR(INDIRECT(CONCATENATE($B111,"!D16"))),"",INDIRECT(CONCATENATE($B111,"!D16"))) -> 84.51512188 | J111: =IF(ISERROR(INDIRECT(CONCATENATE($B111,"!D23"))),"",INDIRECT(CONCATENATE($B111,"!D23"))) -> 97.2 | M111: =IF(ISERROR(INDIRECT(CONCATENATE($B111,"!D21"))),"",INDIRECT(CONCATENATE($B111,"!D21"))) -> 3.157762388 | N111: =IF(ISERROR(INDIRECT(CONCATENATE($B111,"!E16"))),"",INDIRECT(CONCATENATE($B111,"!E16"))) -> 93.02863569 | O111: =IF(ISERROR(INDIRECT(CONCATENATE($B111,"!E23"))),"",INDIRECT(CONCATENATE($B111,"!E23"))) -> 97.5 | R111: =IF(ISERROR(INDIRECT(CONCATENATE($B111,"!E21"))),"",INDIRECT(CONCATENATE($B111,"!E21"))) -> 0.5775478158 | S111: =IF(ISERROR(INDIRECT(CONCATENATE($B111,"!F16"))),"",INDIRECT(CONCATENATE($B111,"!F16"))) -> 97.71765787 | T111: =IF(ISERROR(INDIRECT(CONCATENATE($B111,"!F23"))),"",INDIRECT(CONCATENATE($B111,"!F23"))) -> 99.4 | W111: =IF(ISERROR(INDIRECT(CONCATENATE($B111,"!F21"))),"",INDIRECT(CONCATENATE($B111,"!F21"))) -> 0.08572900416 | X111: =IF(ISERROR(INDIRECT(CONCATENATE($B111,"!G16"))),"",INDIRECT(CONCATENATE($B111,"!G16"))) -> 99.67971623 | Y111: =IF(ISERROR(INDIRECT(CONCATENATE($B111,"!G23"))),"",INDIRECT(CONCATENATE($B111,"!G23"))) -> 100 | AB111: =IF(ISERROR(INDIRECT(CONCATENATE($B111,"!G221"))),"",INDIRECT(CONCATENATE($B111,"!G21"))) -> 0
B112: ENDES16 | C112: 2016 | D112: =IF(ISERROR(INDIRECT(CONCATENATE($B112,"!C16"))),"",INDIRECT(CONCATENATE($B112,"!C16"))) -> 78.64254088 | E112: =IF(ISERROR(INDIRECT(CONCATENATE($B112,"!C23"))),"",INDIRECT(CONCATENATE($B112,"!C23"))) -> 98.24835756 | H112: =IF(ISERROR(INDIRECT(CONCATENATE($B112,"!C21"))),"",INDIRECT(CONCATENATE($B112,"!C21"))) -> 9.787624717 | I112: =IF(ISERROR(INDIRECT(CONCATENATE($B112,"!D16"))),"",INDIRECT(CONCATENATE($B112,"!D16"))) -> 90.36591805 | J112: =IF(ISERROR(INDIRECT(CONCATENATE($B112,"!D23"))),"",INDIRECT(CONCATENATE($B112,"!D23"))) -> 98.5955833 | M112: =IF(ISERROR(INDIRECT(CONCATENATE($B112,"!D21"))),"",INDIRECT(CONCATENATE($B112,"!D21"))) -> 2.217676912 | N112: =IF(ISERROR(INDIRECT(CONCATENATE($B112,"!E16"))),"",INDIRECT(CONCATENATE($B112,"!E16"))) -> 96.9045525 | O112: =IF(ISERROR(INDIRECT(CONCATENATE($B112,"!E23"))),"",INDIRECT(CONCATENATE($B112,"!E23"))) -> 99.11157151 | R112: =IF(ISERROR(INDIRECT(CONCATENATE($B112,"!E21"))),"",INDIRECT(CONCATENATE($B112,"!E21"))) -> 0.280780152 | S112: =IF(ISERROR(INDIRECT(CONCATENATE($B112,"!F16"))),"",INDIRECT(CONCATENATE($B112,"!F16"))) -> 98.88480082 | T112: =IF(ISERROR(INDIRECT(CONCATENATE($B112,"!F23"))),"",INDIRECT(CONCATENATE($B112,"!F23"))) -> 99.77433867 | W112: =IF(ISERROR(INDIRECT(CONCATENATE($B112,"!F21"))),"",INDIRECT(CONCATENATE($B112,"!F21"))) -> 0.1322681003 | X112: =IF(ISERROR(INDIRECT(CONCATENATE($B112,"!G16"))),"",INDIRECT(CONCATENATE($B112,"!G16"))) -> 99.74852135 | Y112: =IF(ISERROR(INDIRECT(CONCATENATE($B112,"!G23"))),"",INDIRECT(CONCATENATE($B112,"!G23"))) -> 99.85190261 | AB112: =IF(ISERROR(INDIRECT(CONCATENATE($B112,"!G221"))),"",INDIRECT(CONCATENATE($B112,"!G21"))) -> 0
B118: =CONCATENATE("National use of drinking water sources, ",C99,"–",C100) -> National use of drinking water sources, 2000–2020 | S118: Data points used for regression
E153: =IF(ISERROR(INDIRECT(CONCATENATE($B153,"!M18"))),"",INDIRECT(CONCATENATE($B153,"!M18"))) ->  | F153: =IF(ISERROR(INDIRECT(CONCATENATE($B153,"!M19"))),"",INDIRECT(CONCATENATE($B153,"!M19"))) ->  | G153: =IF(ISERROR(INDIRECT(CONCATENATE($B153,"!M20"))),"",INDIRECT(CONCATENATE($B153,"!M20"))) ->  | H153: =IF(ISERROR(INDIRECT(CONCATENATE($B153,"!M21"))),"",INDIRECT(CONCATENATE($B153,"!M21"))) ->  | J153: =IF(ISERROR(INDIRECT(CONCATENATE($B153,"!N18"))),"",INDIRECT(CONCATENATE($B153,"!N18"))) ->  | K153: =IF(ISERROR(INDIRECT(CONCATENATE($B153,"!N19"))),"",INDIRECT(CONCATENATE($B153,"!N19"))) ->  | L153: =IF(ISERROR(INDIRECT(CONCATENATE($B153,"!N20"))),"",INDIRECT(CONCATENATE($B153,"!N20"))) ->  | M153: =IF(ISERROR(INDIRECT(CONCATENATE($B153,"!N21"))),"",INDIRECT(CONCATENATE($B153,"!N21"))) ->  | O153: =IF(ISERROR(INDIRECT(CONCATENATE($B153,"!O18"))),"",INDIRECT(CONCATENATE($B153,"!O18"))) ->  | P153: =IF(ISERROR(INDIRECT(CONCATENATE($B153,"!O19"))),"",INDIRECT(CONCATENATE($B153,"!O19"))) ->  | Q153: =IF(ISERROR(INDIRECT(CONCATENATE($B153,"!O20"))),"",INDIRECT(CONCATENATE($B153,"!O20"))) ->  | R153: =IF(ISERROR(INDIRECT(CONCATENATE($B153,"!O21"))),"",INDIRECT(CONCATENATE($B153,"!O21"))) ->  | T153: =IF(ISERROR(INDIRECT(CONCATENATE($B153,"!P18"))),"",INDIRECT(CONCATENATE($B153,"!P18"))) ->  | U153: =IF(ISERROR(INDIRECT(CONCATENATE($B153,"!P19"))),"",INDIRECT(CONCATENATE($B153,"!P19"))) ->  | V153: =IF(ISERROR(INDIRECT(CONCATENATE($B153,"!P20"))),"",INDIRECT(CONCATENATE($B153,"!P20"))) ->  | W153: =IF(ISERROR(INDIRECT(CONCATENATE($B153,"!P21"))),"",INDIRECT(CONCATENATE($B153,"!P21"))) ->  | Y153: =IF(ISERROR(INDIRECT(CONCATENATE($B153,"!Q18"))),"",INDIRECT(CONCATENATE($B153,"!Q18"))) ->  | Z153: =IF(ISERROR(INDIRECT(CONCATENATE($B153,"!Q19"))),"",INDIRECT(CONCATENATE($B153,"!Q19"))) ->  | AA153: =IF(ISERROR(INDIRECT(CONCATENATE($B153,"!Q20"))),"",INDIRECT(CONCATENATE($B153,"!Q20"))) ->  | AB153: =IF(ISERROR(INDIRECT(CONCATENATE($B153,"!Q21"))),"",INDIRECT(CONCATENATE($B153,"!Q1"))) -> 
A197: URBAN | D197: Poorest | I197: Poor | N197: Middle | S197: Rich | X197: Richest
D198: Improved | E198: Basic | F198: Limited | G198: Unimproved | H198: Surface water | I198: Improved | J198: Basic | K198: Limited | L198: Unimproved | M198: Surface water | N198: Improved | O198: Basic | P198: Limited | Q198: Unimproved | R198: Surface water | S198: Improved | T198: Basic | U198: Limited | V198: Unimproved | W198: Surface water | X198: Improved | Y198: Basic | Z198: Limited | AA198: Unimproved | AB198: Surface water
A199: Forecast period: | C199: 2000 | D199: =IF((D201+H201)>100,D201*100/(D201+H201),D201) -> 82.50788704 | E199: =D199*AVERAGEIF(E205:E216,">0")/100 -> 80.2486598 | F199: =D199*(100-AVERAGEIF(E205:E216,">0"))/100 -> 2.259227238 | G199: =100-(E199+F199+H199) -> 15.71055432 | H199: =IF((D201+H201)>100,H201*100/(D201+H201),H201) -> 1.78155864 | I199: =IF((I201+M201)>100,I201*100/(I201+M201),I201) -> 91.1847404 | J199: =I199*AVERAGEIF(J205:J216,">0")/100 -> 89.77508275 | K199: =I199*(100-AVERAGEIF(J205:J216,">0"))/100 -> 1.409657643 | L199: =100-(J199+K199+M199) -> 8.535313241 | M199: =IF((I201+M201)>100,M201*100/(I201+M201),M201) -> 0.2799463611 | N199: =IF((N201+R201)>100,N201*100/(N201+R201),N201) -> 96.09953605 | O199: =N199*AVERAGEIF(O205:O216,">0")/100 -> 95.45570035 | P199: =N199*(100-AVERAGEIF(O205:O216,">0"))/100 -> 0.6438356937 | Q199: =100-(O199+P199+R199) -> 3.793630221 | R199: =IF((N201+R201)>100,R201*100/(N201+R201),R201) -> 0.1068337323 | S199: =IF((S201+W201)>100,S201*100/(S201+W201),S201) -> 98.24660694 | T199: =S199*AVERAGEIF(T205:T216,">0")/100 -> 98.0146749 | U199: =S199*(100-AVERAGEIF(T205:T216,">0"))/100 -> 0.2319320384 | V199: =100-(T199+U199+W199) -> 1.742561137 | W199: =IF((S201+W201)>100,W201*100/(S201+W201),W201) -> 0.01083192403 | X199: =IF((X201+AB201)>100,X201*100/(X201+AB201),X201) -> 99.50936328 | Y199: =X199*AVERAGEIF(Y205:Y216,">0")/100 -> 99.45669265 | Z199: =X199*(100-AVERAGEIF(Y205:Y216,">0"))/100 -> 0.05267062627 | AA199: =100-(Y199+Z199+AB199) -> 0.4906367221 | AB199: =IF((X201+AB201)>100,AB201*100/(X201+AB201),AB201) -> 0
C200: 2020 | D200: =IF((D202+H202)>100,D202*100/(D202+H202),D202) -> 89.02194358 | E200: =D200*AVERAGEIF(E205:E216,">0")/100 -> 86.58434874 | F200: =D200*(100-AVERAGEIF(E205:E216,">0"))/100 -> 2.43759484 | G200: =100-(E200+F200+H200) -> 10.40428522 | H200: =IF((D202+H202)>100,H202*100/(D202+H202),H202) -> 0.5737711977 | I200: =IF((I202+M202)>100,I202*100/(I202+M202),I202) -> 95.20984212 | J200: =I200*AVERAGEIF(J205:J216,">0")/100 -> 93.73795899 | K200: =I200*(100-AVERAGEIF(J205:J216,">0"))/100 -> 1.471883136 | L200: =100-(J200+K200+M200) -> 4.593163885 | M200: =IF((I202+M202)>100,M202*100/(I202+M202),M202) -> 0.1969939922 | N200: =IF((N202+R202)>100,N202*100/(N202+R202),N202) -> 97.60107388 | O200: =N200*AVERAGEIF(O205:O216,">0")/100 -> 96.94717837 | P200: =N200*(100-AVERAGEIF(O205:O216,">0"))/100 -> 0.6538955097 | Q200: =100-(O200+P200+R200) -> 2.324150357 | R200: =IF((N202+R202)>100,R202*100/(N202+R202),R202) -> 0.07477576011 | S200: =IF((S202+W202)>100,S202*100/(S202+W202),S202) -> 99.11995458 | T200: =S200*AVERAGEIF(T205:T216,">0")/100 -> 98.88596082 | U200: =S200*(100-AVERAGEIF(T205:T216,">0"))/100 -> 0.2339937616 | V200: =100-(T200+U200+W200) -> 0.8506497188 | W200: =IF((S202+W202)>100,W202*100/(S202+W202),W202) -> 0.02939569795 | X200: =IF((X202+AB202)>100,X202*100/(X202+AB202),X202) -> 99.76222812 | Y200: =X200*AVERAGEIF(Y205:Y216,">0")/100 -> 99.70942365 | Z200: =X200*(100-AVERAGEIF(Y205:Y216,">0"))/100 -> 0.05280446845 | AA200: =100-(Y200+Z200+AB200) -> 0.2377718768 | AB200: =IF((X202+AB202)>100,AB202*100/(X202+AB202),AB202) -> 0
A201: Regression period: | C201: =MinRegYear(C199,C205:C216) -> 2000 | D201: =IF(MAX(C205:C216)-MIN(C205:C216)<5,AVERAGEIF(C205:C216,">0",D205:D216), IF(FORECAST($C201,D$205:D$216,$C$205:$C$216)<0,0, IF(FORECAST($C201,D$205:D$216,$C$205:$C$216)>100,100, FORECAST($C201,D$205:D$216,$C$205:$C$216)))) -> 82.50788704 | H201: =IF(MAX(C205:C216)-MIN(C205:C216)<5,AVERAGEIF(C205:C216,">0",H205:H216), IF(FORECAST($C201,H$205:H$216,$C$205:$C$216)<0,0, IF(FORECAST($C201,H$205:H$216,$C$205:$C$216)>100,100, FORECAST($C201,H$205:H$216,$C$205:$C$216)))) -> 1.78155864 | I201: =IF(MAX(C205:C216)-MIN(C205:C216)<5,AVERAGEIF(C205:C216,">0",I205:I216), IF(FORECAST($C201,I$205:I$216,$C$205:$C$216)<0,0, IF(FORECAST($C201,I$205:I$216,$C$205:$C$216)>100,100, FORECAST($C201,I$205:I$216,$C$205:$C$216)))) -> 91.1847404 | M201: =IF(MAX(C205:C216)-MIN(C205:C216)<5,AVERAGEIF(C205:C216,">0",M205:M216), IF(FORECAST($C201,M$205:M$216,$C$205:$C$216)<0,0, IF(FORECAST($C201,M$205:M$216,$C$205:$C$216)>100,100, FORECAST($C201,M$205:M$216,$C$205:$C$216)))) -> 0.2799463611 | N201: =IF(MAX(C205:C216)-MIN(C205:C216)<5,AVERAGEIF(C205:C216,">0",N205:N216), IF(FORECAST($C201,N$205:N$216,$C$205:$C$216)<0,0, IF(FORECAST($C201,N$205:N$216,$C$205:$C$216)>100,100, FORECAST($C201,N$205:N$216,$C$205:$C$216)))) -> 96.09953605 | R201: =IF(MAX(C205:C216)-MIN(C205:C216)<5,AVERAGEIF(C205:C216,">0",R205:R216), IF(FORECAST($C201,R$205:R$216,$C$205:$C$216)<0,0, IF(FORECAST($C201,R$205:R$216,$C$205:$C$216)>100,100, FORECAST($C201,R$205:R$216,$C$205:$C$216)))) -> 0.1068337323 | S201: =IF(MAX(C205:C216)-MIN(C205:C216)<5,AVERAGEIF(C205:C216,">0",S205:S216), IF(FORECAST($C201,S$205:S$216,$C$205:$C$216)<0,0, IF(FORECAST($C201,S$205:S$216,$C$205:$C$216)>100,100, FORECAST($C201,S$205:S$216,$C$205:$C$216)))) -> 98.24660694 | W201: =IF(MAX(C205:C216)-MIN(C205:C216)<5,AVERAGEIF(C205:C216,">0",W205:W216), IF(FORECAST($C201,W$205:W$216,$C$205:$C$216)<0,0, IF(FORECAST($C201,W$205:W$216,$C$205:$C$216)>100,100, FORECAST($C201,W$205:W$216,$C$205:$C$216)))) -> 0.01083192403 | X201: =IF(MAX(C205:C216)-MIN(C205:C216)<5,AVERAGEIF(C205:C216,">0",X205:X216), IF(FORECAST($C201,X$205:X$216,$C$205:$C$216)<0,0, IF(FORECAST($C201,X$205:X$216,$C$205:$C$216)>100,100, FORECAST($C201,X$205:X$216,$C$205:$C$216)))) -> 99.50936328 | AB201: =IF(MAX(C205:C216)-MIN(C205:C216)<5,AVERAGEIF(C205:C216,">0",AB205:AB216), IF(FORECAST($C201,AB$205:AB$216,$C$205:$C$216)<0,0, IF(FORECAST($C201,AB$205:AB$216,$C$205:$C$216)>100,100, FORECAST($C201,AB$205:AB$216,$C$205:$C$216)))) -> 0
C202: =MaxRegYear(C200,C205:C216) -> 2018 | D202: =IF(MAX(C205:C216)-MIN(C205:C216)<5,AVERAGEIF(C205:C216,">0",D205:D216), IF(FORECAST($C202,D$205:D$216,$C$205:$C$216)<0,0, IF(FORECAST($C202,D$205:D$216,$C$205:$C$216)>100,100, FORECAST($C202,D$205:D$216,$C$205:$C$216)))) -> 89.02194358 | H202: =IF(MAX(C205:C216)-MIN(C205:C216)<5,AVERAGEIF(C205:C216,">0",H205:H216), IF(FORECAST($C202,H$205:H$216,$C$205:$C$216)<0,0, IF(FORECAST($C202,H$205:H$216,$C$205:$C$216)>100,100, FORECAST($C202,H$205:H$216,$C$205:$C$216)))) -> 0.5737711977 | I202: =IF(MAX(C205:C216)-MIN(C205:C216)<5,AVERAGEIF(C205:C216,">0",I205:I216), IF(FORECAST($C202,I$205:I$216,$C$205:$C$216)<0,0, IF(FORECAST($C202,I$205:I$216,$C$205:$C$216)>100,100, FORECAST($C202,I$205:I$216,$C$205:$C$216)))) -> 95.20984212 | M202: =IF(MAX(C205:C216)-MIN(C205:C216)<5,AVERAGEIF(C205:C216,">0",M205:M216), IF(FORECAST($C202,M$205:M$216,$C$205:$C$216)<0,0, IF(FORECAST($C202,M$205:M$216,$C$205:$C$216)>100,100, FORECAST($C202,M$205:M$216,$C$205:$C$216)))) -> 0.1969939922 | N202: =IF(MAX(C205:C216)-MIN(C205:C216)<5,AVERAGEIF(C205:C216,">0",N205:N216), IF(FORECAST($C202,N$205:N$216,$C$205:$C$216)<0,0, IF(FORECAST($C202,N$205:N$216,$C$205:$C$216)>100,100, FORECAST($C202,N$205:N$216,$C$205:$C$216)))) -> 97.60107388 | R202: =IF(MAX(C205:C216)-MIN(C205:C216)<5,AVERAGEIF(C205:C216,">0",R205:R216), IF(FORECAST($C202,R$205:R$216,$C$205:$C$216)<0,0, IF(FORECAST($C202,R$205:R$216,$C$205:$C$216)>100,100, FORECAST($C202,R$205:R$216,$C$205:$C$216)))) -> 0.07477576011 | S202: =IF(MAX(C205:C216)-MIN(C205:C216)<5,AVERAGEIF(C205:C216,">0",S205:S216), IF(FORECAST($C202,S$205:S$216,$C$205:$C$216)<0,0, IF(FORECAST($C202,S$205:S$216,$C$205:$C$216)>100,100, FORECAST($C202,S$205:S$216,$C$205:$C$216)))) -> 99.11995458 | W202: =IF(MAX(C205:C216)-MIN(C205:C216)<5,AVERAGEIF(C205:C216,">0",W205:W216), IF(FORECAST($C202,W$205:W$216,$C$205:$C$216)<0,0, IF(FORECAST($C202,W$205:W$216,$C$205:$C$216)>100,100, FORECAST($C202,W$205:W$216,$C$205:$C$216)))) -> 0.02939569795 | X202: =IF(MAX(C205:C216)-MIN(C205:C216)<5,AVERAGEIF(C205:C216,">0",X205:X216), IF(FORECAST($C202,X$205:X$216,$C$205:$C$216)<0,0, IF(FORECAST($C202,X$205:X$216,$C$205:$C$216)>100,100, FORECAST($C202,X$205:X$216,$C$205:$C$216)))) -> 99.76222812 | AB202: =IF(MAX(C205:C216)-MIN(C205:C216)<5,AVERAGEIF(C205:C216,">0",AB205:AB216), IF(FORECAST($C202,AB$205:AB$216,$C$205:$C$216)<0,0, IF(FORECAST($C202,AB$205:AB$216,$C$205:$C$216)>100,100, FORECAST($C202,AB$205:AB$216,$C$205:$C$216)))) -> 0
B204: Survey | C204: Year | D204: Improved | E204: % Improved < = 30min | H204: Surface water | I204: Improved | J204: % Improved < = 30min | M204: Surface water | N204: Improved | O204: % Improved < = 30min | R204: Surface water | S204: Improved | T204: % Improved < = 30min | W204: Surface water | X204: Improved | Y204: % Improved < = 30min | AB204: Surface water
B205: DHS00 | C205: 2000 | D205: =IF(ISERROR(INDIRECT(CONCATENATE($B205,"!H16"))),"",INDIRECT(CONCATENATE($B205,"!H16"))) -> 85.49772755 | E205: =IF(ISERROR(INDIRECT(CONCATENATE($B205,"!H23"))),"",INDIRECT(CONCATENATE($B205,"!H23"))) -> 96.95694385 | H205: =IF(ISERROR(INDIRECT(CONCATENATE($B205,"!H21"))),"",INDIRECT(CONCATENATE($B205,"!H21"))) -> 1.775590701 | I205: =IF(ISERROR(INDIRECT(CONCATENATE($B205,"!I16"))),"",INDIRECT(CONCATENATE($B205,"!I16"))) -> 92.90028208 | J205: =IF(ISERROR(INDIRECT(CONCATENATE($B205,"!I23"))),"",INDIRECT(CONCATENATE($B205,"!I23"))) -> 98.60305949 | M205: =IF(ISERROR(INDIRECT(CONCATENATE($B205,"!I21"))),"",INDIRECT(CONCATENATE($B205,"!I21"))) -> 0.32399786 | N205: =IF(ISERROR(INDIRECT(CONCATENATE($B205,"!J16"))),"",INDIRECT(CONCATENATE($B205,"!J16"))) -> 97.11324185 | O205: =IF(ISERROR(INDIRECT(CONCATENATE($B205,"!J23"))),"",INDIRECT(CONCATENATE($B205,"!J23"))) -> 98.90460375 | R205: =IF(ISERROR(INDIRECT(CONCATENATE($B205,"!J21"))),"",INDIRECT(CONCATENATE($B205,"!J21"))) -> 0.1159425221 | S205: =IF(ISERROR(INDIRECT(CONCATENATE($B205,"!K16"))),"",INDIRECT(CONCATENATE($B205,"!K16"))) -> 98.64561731 | T205: =IF(ISERROR(INDIRECT(CONCATENATE($B205,"!K23"))),"",INDIRECT(CONCATENATE($B205,"!K23"))) -> 99.61061588 | W205: =IF(ISERROR(INDIRECT(CONCATENATE($B205,"!K21"))),"",INDIRECT(CONCATENATE($B205,"!K21"))) -> 0 | X205: =IF(ISERROR(INDIRECT(CONCATENATE($B205,"!L16"))),"",INDIRECT(CONCATENATE($B205,"!L16"))) -> 99.6234548 | Y205: =IF(ISERROR(INDIRECT(CONCATENATE($B205,"!L23"))),"",INDIRECT(CONCATENATE($B205,"!L23"))) -> 99.89671991 | AB205: =IF(ISERROR(INDIRECT(CONCATENATE($B205,"!L221"))),"",INDIRECT(CONCATENATE($B205,"!L21"))) -> 0
B206: DHS06 | C206: 2006 | D206: 83.61718178 | E206: 97.61680038 | H206: 1.150927158 | I206: 91.26381044 | J206: 98.90870294 | M206: 0.03042655409 | N206: 95.74672867 | O206: 99.56953495 | R206: 0 | S206: 98.45745476 | T206: 99.74754469 | W206: 0.006936978884 | X206: 99.45880939 | Y206: 99.98746798 | AB206: 0
B207: DHS08 | C207: 2008 | D207: 83.53454672 | E207: 97.51585688 | H207: 1.11534154 | I207: 92.13901739 | J207: 98.94193925 | M207: 0.0149471311 | N207: 96.10321188 | O207: 99.46975124 | R207: 0.008827915551 | S207: 98.39992923 | T207: 99.91419008 | W207: 0 | X207: 99.59532102 | Y207: 99.98742211 | AB207: 0
B208: DHS09 | C208: 2009 | D208: 84.2348491 | E208: 96.83929486 | H208: 0.7784889966 | I208: 93.08836606 | J208: 98.18231799 | M208: 0.2141262067 | N208: 96.96781965 | O208: 99.15745696 | R208: 0.00716232657 | S208: 98.81338847 | T208: 99.89728734 | W208: 0.009405155193 | X208: 99.65534864 | Y208: 100 | AB208: 0
B209: DHS10 | C209: 2010 | D209: 84.4329943 | E209: 96.72520378 | H209: 1.969420234 | I209: 92.02809572 | J209: 97.36774961 | M209: 0.5582480768 | N209: 96.64051946 | O209: 99.02537104 | R209: 0.4523646187 | S209: 98.48770552 | T209: 99.48704949 | W209: 0.1270353629 | X209: 99.57359505 | Y209: 99.8767803 | AB209: 0
B210: DHS11 | C210: 2011 | D210: 86.66036719 | E210: 97.6 | H210: 1.321244415 | I210: 94.04529876 | J210: 99.1 | M210: 0.5967831965 | N210: 96.917363 | O210: 99.7 | R210: 0.1007495277 | S210: 98.09007178 | T210: 99.8 | W210: 0 | X210: 99.44993493 | Y210: 100 | AB210: 0
B211: DHS12 | C211: 2012 | D211: 86.28707676 | E211: 96.3 | H211: 0.8922266089 | I211: 93.61073544 | J211: 97.5 | M211: 0.1559843136 | N211: 96.86526676 | O211: 99.2 | R211: 0.04139105918 | S211: 98.90439465 | T211: 99.7 | W211: 0.01753299095 | X211: 99.9591339 | Y211: 100 | AB211: 0
B212: ENDES16 | C212: 2016 | D212: 91.8545791 | E212: 98.54033637 | H212: 0.4180796965 | I212: 96.50272419 | J212: 99.02874347 | M212: 0.0132480746 | N212: 98.44828845 | O212: 99.61354178 | R212: 0 | S212: 99.66768437 | T212: 99.95474216 | W212: 0 | X212: 99.77076786 | Y212: 99.82816712 | AB212: 0
B218: =CONCATENATE("Urban use of drinking water sources, ",C199,"–",C200) -> Urban use of drinking water sources, 2000–2020 | S218: Data points used for regression
E253: =IF(ISERROR(INDIRECT(CONCATENATE($B253,"!M18"))),"",INDIRECT(CONCATENATE($B253,"!M18"))) ->  | F253: =IF(ISERROR(INDIRECT(CONCATENATE($B253,"!M19"))),"",INDIRECT(CONCATENATE($B253,"!M19"))) ->  | G253: =IF(ISERROR(INDIRECT(CONCATENATE($B253,"!M20"))),"",INDIRECT(CONCATENATE($B253,"!M20"))) ->  | H253: =IF(ISERROR(INDIRECT(CONCATENATE($B253,"!M21"))),"",INDIRECT(CONCATENATE($B253,"!M21"))) ->  | J253: =IF(ISERROR(INDIRECT(CONCATENATE($B253,"!N18"))),"",INDIRECT(CONCATENATE($B253,"!N18"))) ->  | K253: =IF(ISERROR(INDIRECT(CONCATENATE($B253,"!N19"))),"",INDIRECT(CONCATENATE($B253,"!N19"))) ->  | L253: =IF(ISERROR(INDIRECT(CONCATENATE($B253,"!N20"))),"",INDIRECT(CONCATENATE($B253,"!N20"))) ->  | M253: =IF(ISERROR(INDIRECT(CONCATENATE($B253,"!N21"))),"",INDIRECT(CONCATENATE($B253,"!N21"))) ->  | O253: =IF(ISERROR(INDIRECT(CONCATENATE($B253,"!O18"))),"",INDIRECT(CONCATENATE($B253,"!O18"))) ->  | P253: =IF(ISERROR(INDIRECT(CONCATENATE($B253,"!O19"))),"",INDIRECT(CONCATENATE($B253,"!O19"))) ->  | Q253: =IF(ISERROR(INDIRECT(CONCATENATE($B253,"!O20"))),"",INDIRECT(CONCATENATE($B253,"!O20"))) ->  | R253: =IF(ISERROR(INDIRECT(CONCATENATE($B253,"!O21"))),"",INDIRECT(CONCATENATE($B253,"!O21"))) ->  | T253: =IF(ISERROR(INDIRECT(CONCATENATE($B253,"!P18"))),"",INDIRECT(CONCATENATE($B253,"!P18"))) ->  | U253: =IF(ISERROR(INDIRECT(CONCATENATE($B253,"!P19"))),"",INDIRECT(CONCATENATE($B253,"!P19"))) ->  | V253: =IF(ISERROR(INDIRECT(CONCATENATE($B253,"!P20"))),"",INDIRECT(CONCATENATE($B253,"!P20"))) ->  | W253: =IF(ISERROR(INDIRECT(CONCATENATE($B253,"!P21"))),"",INDIRECT(CONCATENATE($B253,"!P21"))) ->  | Y253: =IF(ISERROR(INDIRECT(CONCATENATE($B253,"!Q18"))),"",INDIRECT(CONCATENATE($B253,"!Q18"))) ->  | Z253: =IF(ISERROR(INDIRECT(CONCATENATE($B253,"!Q19"))),"",INDIRECT(CONCATENATE($B253,"!Q19"))) ->  | AA253: =IF(ISERROR(INDIRECT(CONCATENATE($B253,"!Q20"))),"",INDIRECT(CONCATENATE($B253,"!Q20"))) ->  | AB253: =IF(ISERROR(INDIRECT(CONCATENATE($B253,"!Q21"))),"",INDIRECT(CONCATENATE($B253,"!Q1"))) -> 
E254: =IF(ISERROR(INDIRECT(CONCATENATE($B254,"!M18"))),"",INDIRECT(CONCATENATE($B254,"!M18"))) ->  | F254: =IF(ISERROR(INDIRECT(CONCATENATE($B254,"!M19"))),"",INDIRECT(CONCATENATE($B254,"!M19"))) ->  | G254: =IF(ISERROR(INDIRECT(CONCATENATE($B254,"!M20"))),"",INDIRECT(CONCATENATE($B254,"!M20"))) ->  | H254: =IF(ISERROR(INDIRECT(CONCATENATE($B254,"!M21"))),"",INDIRECT(CONCATENATE($B254,"!M21"))) ->  | J254: =IF(ISERROR(INDIRECT(CONCATENATE($B254,"!N18"))),"",INDIRECT(CONCATENATE($B254,"!N18"))) ->  | K254: =IF(ISERROR(INDIRECT(CONCATENATE($B254,"!N19"))),"",INDIRECT(CONCATENATE($B254,"!N19"))) ->  | L254: =IF(ISERROR(INDIRECT(CONCATENATE($B254,"!N20"))),"",INDIRECT(CONCATENATE($B254,"!N20"))) ->  | M254: =IF(ISERROR(INDIRECT(CONCATENATE($B254,"!N21"))),"",INDIRECT(CONCATENATE($B254,"!N21"))) ->  | O254: =IF(ISERROR(INDIRECT(CONCATENATE($B254,"!O18"))),"",INDIRECT(CONCATENATE($B254,"!O18"))) ->  | P254: =IF(ISERROR(INDIRECT(CONCATENATE($B254,"!O19"))),"",INDIRECT(CONCATENATE($B254,"!O19"))) ->  | Q254: =IF(ISERROR(INDIRECT(CONCATENATE($B254,"!O20"))),"",INDIRECT(CONCATENATE($B254,"!O20"))) ->  | R254: =IF(ISERROR(INDIRECT(CONCATENATE($B254,"!O21"))),"",INDIRECT(CONCATENATE($B254,"!O21"))) ->  | T254: =IF(ISERROR(INDIRECT(CONCATENATE($B254,"!P18"))),"",INDIRECT(CONCATENATE($B254,"!P18"))) ->  | U254: =IF(ISERROR(INDIRECT(CONCATENATE($B254,"!P19"))),"",INDIRECT(CONCATENATE($B254,"!P19"))) ->  | V254: =IF(ISERROR(INDIRECT(CONCATENATE($B254,"!P20"))),"",INDIRECT(CONCATENATE($B254,"!P20"))) ->  | W254: =IF(ISERROR(INDIRECT(CONCATENATE($B254,"!P21"))),"",INDIRECT(CONCATENATE($B254,"!P21"))) ->  | Y254: =IF(ISERROR(INDIRECT(CONCATENATE($B254,"!Q18"))),"",INDIRECT(CONCATENATE($B254,"!Q18"))) ->  | Z254: =IF(ISERROR(INDIRECT(CONCATENATE($B254,"!Q19"))),"",INDIRECT(CONCATENATE($B254,"!Q19"))) ->  | AA254: =IF(ISERROR(INDIRECT(CONCATENATE($B254,"!Q20"))),"",INDIRECT(CONCATENATE($B254,"!Q20"))) ->  | AB254: =IF(ISERROR(INDIRECT(CONCATENATE($B254,"!Q21"))),"",INDIRECT(CONCATENATE($B254,"!Q1"))) -> 
E255: =IF(ISERROR(INDIRECT(CONCATENATE($B255,"!M18"))),"",INDIRECT(CONCATENATE($B255,"!M18"))) ->  | F255: =IF(ISERROR(INDIRECT(CONCATENATE($B255,"!M19"))),"",INDIRECT(CONCATENATE($B255,"!M19"))) ->  | G255: =IF(ISERROR(INDIRECT(CONCATENATE($B255,"!M20"))),"",INDIRECT(CONCATENATE($B255,"!M20"))) ->  | H255: =IF(ISERROR(INDIRECT(CONCATENATE($B255,"!M21"))),"",INDIRECT(CONCATENATE($B255,"!M21"))) ->  | J255: =IF(ISERROR(INDIRECT(CONCATENATE($B255,"!N18"))),"",INDIRECT(CONCATENATE($B255,"!N18"))) ->  | K255: =IF(ISERROR(INDIRECT(CONCATENATE($B255,"!N19"))),"",INDIRECT(CONCATENATE($B255,"!N19"))) ->  | L255: =IF(ISERROR(INDIRECT(CONCATENATE($B255,"!N20"))),"",INDIRECT(CONCATENATE($B255,"!N20"))) ->  | M255: =IF(ISERROR(INDIRECT(CONCATENATE($B255,"!N21"))),"",INDIRECT(CONCATENATE($B255,"!N21"))) ->  | O255: =IF(ISERROR(INDIRECT(CONCATENATE($B255,"!O18"))),"",INDIRECT(CONCATENATE($B255,"!O18"))) ->  | P255: =IF(ISERROR(INDIRECT(CONCATENATE($B255,"!O19"))),"",INDIRECT(CONCATENATE($B255,"!O19"))) ->  | Q255: =IF(ISERROR(INDIRECT(CONCATENATE($B255,"!O20"))),"",INDIRECT(CONCATENATE($B255,"!O20"))) ->  | R255: =IF(ISERROR(INDIRECT(CONCATENATE($B255,"!O21"))),"",INDIRECT(CONCATENATE($B255,"!O21"))) ->  | T255: =IF(ISERROR(INDIRECT(CONCATENATE($B255,"!P18"))),"",INDIRECT(CONCATENATE($B255,"!P18"))) ->  | U255: =IF(ISERROR(INDIRECT(CONCATENATE($B255,"!P19"))),"",INDIRECT(CONCATENATE($B255,"!P19"))) ->  | V255: =IF(ISERROR(INDIRECT(CONCATENATE($B255,"!P20"))),"",INDIRECT(CONCATENATE($B255,"!P20"))) ->  | W255: =IF(ISERROR(INDIRECT(CONCATENATE($B255,"!P21"))),"",INDIRECT(CONCATENATE($B255,"!P21"))) ->  | Y255: =IF(ISERROR(INDIRECT(CONCATENATE($B255,"!Q18"))),"",INDIRECT(CONCATENATE($B255,"!Q18"))) ->  | Z255: =IF(ISERROR(INDIRECT(CONCATENATE($B255,"!Q19"))),"",INDIRECT(CONCATENATE($B255,"!Q19"))) ->  | AA255: =IF(ISERROR(INDIRECT(CONCATENATE($B255,"!Q20"))),"",INDIRECT(CONCATENATE($B255,"!Q20"))) ->  | AB255: =IF(ISERROR(INDIRECT(CONCATENATE($B255,"!Q21"))),"",INDIRECT(CONCATENATE($B255,"!Q1"))) -> 
E256: =IF(ISERROR(INDIRECT(CONCATENATE($B256,"!M18"))),"",INDIRECT(CONCATENATE($B256,"!M18"))) ->  | F256: =IF(ISERROR(INDIRECT(CONCATENATE($B256,"!M19"))),"",INDIRECT(CONCATENATE($B256,"!M19"))) ->  | G256: =IF(ISERROR(INDIRECT(CONCATENATE($B256,"!M20"))),"",INDIRECT(CONCATENATE($B256,"!M20"))) ->  | H256: =IF(ISERROR(INDIRECT(CONCATENATE($B256,"!M21"))),"",INDIRECT(CONCATENATE($B256,"!M21"))) ->  | J256: =IF(ISERROR(INDIRECT(CONCATENATE($B256,"!N18"))),"",INDIRECT(CONCATENATE($B256,"!N18"))) ->  | K256: =IF(ISERROR(INDIRECT(CONCATENATE($B256,"!N19"))),"",INDIRECT(CONCATENATE($B256,"!N19"))) ->  | L256: =IF(ISERROR(INDIRECT(CONCATENATE($B256,"!N20"))),"",INDIRECT(CONCATENATE($B256,"!N20"))) ->  | M256: =IF(ISERROR(INDIRECT(CONCATENATE($B256,"!N21"))),"",INDIRECT(CONCATENATE($B256,"!N21"))) ->  | O256: =IF(ISERROR(INDIRECT(CONCATENATE($B256,"!O18"))),"",INDIRECT(CONCATENATE($B256,"!O18"))) ->  | P256: =IF(ISERROR(INDIRECT(CONCATENATE($B256,"!O19"))),"",INDIRECT(CONCATENATE($B256,"!O19"))) ->  | Q256: =IF(ISERROR(INDIRECT(CONCATENATE($B256,"!O20"))),"",INDIRECT(CONCATENATE($B256,"!O20"))) ->  | R256: =IF(ISERROR(INDIRECT(CONCATENATE($B256,"!O21"))),"",INDIRECT(CONCATENATE($B256,"!O21"))) ->  | T256: =IF(ISERROR(INDIRECT(CONCATENATE($B256,"!P18"))),"",INDIRECT(CONCATENATE($B256,"!P18"))) ->  | U256: =IF(ISERROR(INDIRECT(CONCATENATE($B256,"!P19"))),"",INDIRECT(CONCATENATE($B256,"!P19"))) ->  | V256: =IF(ISERROR(INDIRECT(CONCATENATE($B256,"!P20"))),"",INDIRECT(CONCATENATE($B256,"!P20"))) ->  | W256: =IF(ISERROR(INDIRECT(CONCATENATE($B256,"!P21"))),"",INDIRECT(CONCATENATE($B256,"!P21"))) ->  | Y256: =IF(ISERROR(INDIRECT(CONCATENATE($B256,"!Q18"))),"",INDIRECT(CONCATENATE($B256,"!Q18"))) ->  | Z256: =IF(ISERROR(INDIRECT(CONCATENATE($B256,"!Q19"))),"",INDIRECT(CONCATENATE($B256,"!Q19"))) ->  | AA256: =IF(ISERROR(INDIRECT(CONCATENATE($B256,"!Q20"))),"",INDIRECT(CONCATENATE($B256,"!Q20"))) ->  | AB256: =IF(ISERROR(INDIRECT(CONCATENATE($B256,"!Q21"))),"",INDIRECT(CONCATENATE($B256,"!Q1"))) -> 
E257: =IF(ISERROR(INDIRECT(CONCATENATE($B257,"!M18"))),"",INDIRECT(CONCATENATE($B257,"!M18"))) ->  | F257: =IF(ISERROR(INDIRECT(CONCATENATE($B257,"!M19"))),"",INDIRECT(CONCATENATE($B257,"!M19"))) ->  | G257: =IF(ISERROR(INDIRECT(CONCATENATE($B257,"!M20"))),"",INDIRECT(CONCATENATE($B257,"!M20"))) ->  | H257: =IF(ISERROR(INDIRECT(CONCATENATE($B257,"!M21"))),"",INDIRECT(CONCATENATE($B257,"!M21"))) ->  | J257: =IF(ISERROR(INDIRECT(CONCATENATE($B257,"!N18"))),"",INDIRECT(CONCATENATE($B257,"!N18"))) ->  | K257: =IF(ISERROR(INDIRECT(CONCATENATE($B257,"!N19"))),"",INDIRECT(CONCATENATE($B257,"!N19"))) ->  | L257: =IF(ISERROR(INDIRECT(CONCATENATE($B257,"!N20"))),"",INDIRECT(CONCATENATE($B257,"!N20"))) ->  | M257: =IF(ISERROR(INDIRECT(CONCATENATE($B257,"!N21"))),"",INDIRECT(CONCATENATE($B257,"!N21"))) ->  | O257: =IF(ISERROR(INDIRECT(CONCATENATE($B257,"!O18"))),"",INDIRECT(CONCATENATE($B257,"!O18"))) ->  | P257: =IF(ISERROR(INDIRECT(CONCATENATE($B257,"!O19"))),"",INDIRECT(CONCATENATE($B257,"!O19"))) ->  | Q257: =IF(ISERROR(INDIRECT(CONCATENATE($B257,"!O20"))),"",INDIRECT(CONCATENATE($B257,"!O20"))) ->  | R257: =IF(ISERROR(INDIRECT(CONCATENATE($B257,"!O21"))),"",INDIRECT(CONCATENATE($B257,"!O21"))) ->  | T257: =IF(ISERROR(INDIRECT(CONCATENATE($B257,"!P18"))),"",INDIRECT(CONCATENATE($B257,"!P18"))) ->  | U257: =IF(ISERROR(INDIRECT(CONCATENATE($B257,"!P19"))),"",INDIRECT(CONCATENATE($B257,"!P19"))) ->  | V257: =IF(ISERROR(INDIRECT(CONCATENATE($B257,"!P20"))),"",INDIRECT(CONCATENATE($B257,"!P20"))) ->  | W257: =IF(ISERROR(INDIRECT(CONCATENATE($B257,"!P21"))),"",INDIRECT(CONCATENATE($B257,"!P21"))) ->  | Y257: =IF(ISERROR(INDIRECT(CONCATENATE($B257,"!Q18"))),"",INDIRECT(CONCATENATE($B257,"!Q18"))) ->  | Z257: =IF(ISERROR(INDIRECT(CONCATENATE($B257,"!Q19"))),"",INDIRECT(CONCATENATE($B257,"!Q19"))) ->  | AA257: =IF(ISERROR(INDIRECT(CONCATENATE($B257,"!Q20"))),"",INDIRECT(CONCATENATE($B257,"!Q20"))) ->  | AB257: =IF(ISERROR(INDIRECT(CONCATENATE($B257,"!Q21"))),"",INDIRECT(CONCATENATE($B257,"!Q1"))) -> 
A297: RURAL | D297: Poorest | I297: Poor | N297: Middle | S297: Rich | X297: Richest
D298: Improved | E298: Basic | F298: Limited | G298: Unimproved | H298: Surface water | I298: Improved | J298: Basic | K298: Limited | L298: Unimproved | M298: Surface water | N298: Improved | O298: Basic | P298: Limited | Q298: Unimproved | R298: Surface water | S298: Improved | T298: Basic | U298: Limited | V298: Unimproved | W298: Surface water | X298: Improved | Y298: Basic | Z298: Limited | AA298: Unimproved | AB298: Surface water
A299: Forecast period: | C299: =MinBase(C305:C316) -> 2000 | D299: =IF((D301+H301)>100,D301*100/(D301+H301),D301) -> 62.66392329 | E299: =D299*AVERAGEIF(E305:E316,">0")/100 -> 61.26401074 | F299: =D299*(100-AVERAGEIF(E305:E316,">0"))/100 -> 1.399912544 | G299: =100-(E299+F299+H299) -> 23.87370562 | H299: =IF((D301+H301)>100,H301*100/(D301+H301),H301) -> 13.46237109 | I299: =IF((I301+M301)>100,I301*100/(I301+M301),I301) -> 60.37255377 | J299: =I299*AVERAGEIF(J305:J316,">0")/100 -> 59.1622392 | K299: =I299*(100-AVERAGEIF(J305:J316,">0"))/100 -> 1.210314569 | L299: =100-(J299+K299+M299) -> 21.45157218 | M299: =IF((I301+M301)>100,M301*100/(I301+M301),M301) -> 18.17587406 | N299: =IF((N301+R301)>100,N301*100/(N301+R301),N301) -> 59.71804955 | O299: =N299*AVERAGEIF(O305:O316,">0")/100 -> 58.33500877 | P299: =N299*(100-AVERAGEIF(O305:O316,">0"))/100 -> 1.383040783 | Q299: =100-(O299+P299+R299) -> 21.57597607 | R299: =IF((N301+R301)>100,R301*100/(N301+R301),R301) -> 18.70597438 | S299: =IF((S301+W301)>100,S301*100/(S301+W301),S301) -> 61.69956068 | T299: =S299*AVERAGEIF(T305:T316,">0")/100 -> 60.23444665 | U299: =S299*(100-AVERAGEIF(T305:T316,">0"))/100 -> 1.465114031 | V299: =100-(T299+U299+W299) -> 17.99184285 | W299: =IF((S301+W301)>100,W301*100/(S301+W301),W301) -> 20.30859648 | X299: =IF((X301+AB301)>100,X301*100/(X301+AB301),X301) -> 74.29867054 | Y299: =X299*AVERAGEIF(Y305:Y316,">0")/100 -> 72.88461579 | Z299: =X299*(100-AVERAGEIF(Y305:Y316,">0"))/100 -> 1.414054754 | AA299: =100-(Y299+Z299+AB299) -> 13.60946605 | AB299: =IF((X301+AB301)>100,AB301*100/(X301+AB301),AB301) -> 12.09186341
C300: =MaxTarget(C305:C316) -> 2018 | D300: =IF((D302+H302)>100,D302*100/(D302+H302),D302) -> 65.67528794 | E300: =D300*AVERAGEIF(E305:E316,">0")/100 -> 64.20810149 | F300: =D300*(100-AVERAGEIF(E305:E316,">0"))/100 -> 1.467186454 | G300: =100-(E300+F300+H300) -> 14.9487517 | H300: =IF((D302+H302)>100,H302*100/(D302+H302),H302) -> 19.37596036 | I300: =IF((I302+M302)>100,I302*100/(I302+M302),I302) -> 77.08332074 | J300: =I300*AVERAGEIF(J305:J316,">0")/100 -> 75.53799823 | K300: =I300*(100-AVERAGEIF(J305:J316,">0"))/100 -> 1.545322506 | L300: =100-(J300+K300+M300) -> 12.60451024 | M300: =IF((I302+M302)>100,M302*100/(I302+M302),M302) -> 10.31216902 | N300: =IF((N302+R302)>100,N302*100/(N302+R302),N302) -> 80.74724677 | O300: =N300*AVERAGEIF(O305:O316,">0")/100 -> 78.87718008 | P300: =N300*(100-AVERAGEIF(O305:O316,">0"))/100 -> 1.870066692 | Q300: =100-(O300+P300+R300) -> 11.70517479 | R300: =IF((N302+R302)>100,R302*100/(N302+R302),R302) -> 7.547578441 | S300: =IF((S302+W302)>100,S302*100/(S302+W302),S302) -> 80.28680014 | T300: =S300*AVERAGEIF(T305:T316,">0")/100 -> 78.38031465 | U300: =S300*(100-AVERAGEIF(T305:T316,">0"))/100 -> 1.906485494 | V300: =100-(T300+U300+W300) -> 11.70141564 | W300: =IF((S302+W302)>100,W302*100/(S302+W302),W302) -> 8.011784215 | X300: =IF((X302+AB302)>100,X302*100/(X302+AB302),X302) -> 83.39760383 | Y300: =X300*AVERAGEIF(Y305:Y316,">0")/100 -> 81.81037787 | Z300: =X300*(100-AVERAGEIF(Y305:Y316,">0"))/100 -> 1.587225953 | AA300: =100-(Y300+Z300+AB300) -> 9.97763954 | AB300: =IF((X302+AB302)>100,AB302*100/(X302+AB302),AB302) -> 6.624756633
A301: Regression period: | C301: =MinRegYear(C299,C305:C316) -> 2000 | D301: =IF(MAX(C305:C316)-MIN(C305:C316)<5,AVERAGEIF(C305:C316,">0",D305:D316), IF(FORECAST($C301,D$305:D$316,$C$305:$C$316)<0,0, IF(FORECAST($C301,D$305:D$316,$C$305:$C$316)>100,100, FORECAST($C301,D$305:D$316,$C$305:$C$316)))) -> 62.66392329 | H301: =IF(MAX(C305:C316)-MIN(C305:C316)<5,AVERAGEIF(C305:C316,">0",H305:H316), IF(FORECAST($C301,H$305:H$316,$C$305:$C$316)<0,0, IF(FORECAST($C301,H$305:H$316,$C$305:$C$316)>100,100, FORECAST($C301,H$305:H$316,$C$305:$C$316)))) -> 13.46237109 | I301: =IF(MAX(C305:C316)-MIN(C305:C316)<5,AVERAGEIF(C305:C316,">0",I305:I316), IF(FORECAST($C301,I$305:I$316,$C$305:$C$316)<0,0, IF(FORECAST($C301,I$305:I$316,$C$305:$C$316)>100,100, FORECAST($C301,I$305:I$316,$C$305:$C$316)))) -> 60.37255377 | M301: =IF(MAX(C305:C316)-MIN(C305:C316)<5,AVERAGEIF(C305:C316,">0",M305:M316), IF(FORECAST($C301,M$305:M$316,$C$305:$C$316)<0,0, IF(FORECAST($C301,M$305:M$316,$C$305:$C$316)>100,100, FORECAST($C301,M$305:M$316,$C$305:$C$316)))) -> 18.17587406 | N301: =IF(MAX(C305:C316)-MIN(C305:C316)<5,AVERAGEIF(C305:C316,">0",N305:N316), IF(FORECAST($C301,N$305:N$316,$C$305:$C$316)<0,0, IF(FORECAST($C301,N$305:N$316,$C$305:$C$316)>100,100, FORECAST($C301,N$305:N$316,$C$305:$C$316)))) -> 59.71804955 | R301: =IF(MAX(C305:C316)-MIN(C305:C316)<5,AVERAGEIF(C305:C316,">0",R305:R316), IF(FORECAST($C301,R$305:R$316,$C$305:$C$316)<0,0, IF(FORECAST($C301,R$305:R$316,$C$305:$C$316)>100,100, FORECAST($C301,R$305:R$316,$C$305:$C$316)))) -> 18.70597438 | S301: =IF(MAX(C305:C316)-MIN(C305:C316)<5,AVERAGEIF(C305:C316,">0",S305:S316), IF(FORECAST($C301,S$305:S$316,$C$305:$C$316)<0,0, IF(FORECAST($C301,S$305:S$316,$C$305:$C$316)>100,100, FORECAST($C301,S$305:S$316,$C$305:$C$316)))) -> 61.69956068 | W301: =IF(MAX(C305:C316)-MIN(C305:C316)<5,AVERAGEIF(C305:C316,">0",W305:W316), IF(FORECAST($C301,W$305:W$316,$C$305:$C$316)<0,0, IF(FORECAST($C301,W$305:W$316,$C$305:$C$316)>100,100, FORECAST($C301,W$305:W$316,$C$305:$C$316)))) -> 20.30859648 | X301: =IF(MAX(C305:C316)-MIN(C305:C316)<5,AVERAGEIF(C305:C316,">0",X305:X316), IF(FORECAST($C301,X$305:X$316,$C$305:$C$316)<0,0, IF(FORECAST($C301,X$305:X$316,$C$305:$C$316)>100,100, FORECAST($C301,X$305:X$316,$C$305:$C$316)))) -> 74.29867054 | AB301: =IF(MAX(C305:C316)-MIN(C305:C316)<5,AVERAGEIF(C305:C316,">0",AB305:AB316), IF(FORECAST($C301,AB$305:AB$316,$C$305:$C$316)<0,0, IF(FORECAST($C301,AB$305:AB$316,$C$305:$C$316)>100,100, FORECAST($C301,AB$305:AB$316,$C$305:$C$316)))) -> 12.09186341
C302: =MaxRegYear(C300,C305:C316) -> 2014 | D302: =IF(MAX(C305:C316)-MIN(C305:C316)<5,AVERAGEIF(C305:C316,">0",D305:D316), IF(FORECAST($C302,D$305:D$316,$C$305:$C$316)<0,0, IF(FORECAST($C302,D$305:D$316,$C$305:$C$316)>100,100, FORECAST($C302,D$305:D$316,$C$305:$C$316)))) -> 65.67528794 | H302: =IF(MAX(C305:C316)-MIN(C305:C316)<5,AVERAGEIF(C305:C316,">0",H305:H316), IF(FORECAST($C302,H$305:H$316,$C$305:$C$316)<0,0, IF(FORECAST($C302,H$305:H$316,$C$305:$C$316)>100,100, FORECAST($C302,H$305:H$316,$C$305:$C$316)))) -> 19.37596036 | I302: =IF(MAX(C305:C316)-MIN(C305:C316)<5,AVERAGEIF(C305:C316,">0",I305:I316), IF(FORECAST($C302,I$305:I$316,$C$305:$C$316)<0,0, IF(FORECAST($C302,I$305:I$316,$C$305:$C$316)>100,100, FORECAST($C302,I$305:I$316,$C$305:$C$316)))) -> 77.08332074 | M302: =IF(MAX(C305:C316)-MIN(C305:C316)<5,AVERAGEIF(C305:C316,">0",M305:M316), IF(FORECAST($C302,M$305:M$316,$C$305:$C$316)<0,0, IF(FORECAST($C302,M$305:M$316,$C$305:$C$316)>100,100, FORECAST($C302,M$305:M$316,$C$305:$C$316)))) -> 10.31216902 | N302: =IF(MAX(C305:C316)-MIN(C305:C316)<5,AVERAGEIF(C305:C316,">0",N305:N316), IF(FORECAST($C302,N$305:N$316,$C$305:$C$316)<0,0, IF(FORECAST($C302,N$305:N$316,$C$305:$C$316)>100,100, FORECAST($C302,N$305:N$316,$C$305:$C$316)))) -> 80.74724677 | R302: =IF(MAX(C305:C316)-MIN(C305:C316)<5,AVERAGEIF(C305:C316,">0",R305:R316), IF(FORECAST($C302,R$305:R$316,$C$305:$C$316)<0,0, IF(FORECAST($C302,R$305:R$316,$C$305:$C$316)>100,100, FORECAST($C302,R$305:R$316,$C$305:$C$316)))) -> 7.547578441 | S302: =IF(MAX(C305:C316)-MIN(C305:C316)<5,AVERAGEIF(C305:C316,">0",S305:S316), IF(FORECAST($C302,S$305:S$316,$C$305:$C$316)<0,0, IF(FORECAST($C302,S$305:S$316,$C$305:$C$316)>100,100, FORECAST($C302,S$305:S$316,$C$305:$C$316)))) -> 80.28680014 | W302: =IF(MAX(C305:C316)-MIN(C305:C316)<5,AVERAGEIF(C305:C316,">0",W305:W316), IF(FORECAST($C302,W$305:W$316,$C$305:$C$316)<0,0, IF(FORECAST($C302,W$305:W$316,$C$305:$C$316)>100,100, FORECAST($C302,W$305:W$316,$C$305:$C$316)))) -> 8.011784215 | X302: =IF(MAX(C305:C316)-MIN(C305:C316)<5,AVERAGEIF(C305:C316,">0",X305:X316), IF(FORECAST($C302,X$305:X$316,$C$305:$C$316)<0,0, IF(FORECAST($C302,X$305:X$316,$C$305:$C$316)>100,100, FORECAST($C302,X$305:X$316,$C$305:$C$316)))) -> 83.39760383 | AB302: =IF(MAX(C305:C316)-MIN(C305:C316)<5,AVERAGEIF(C305:C316,">0",AB305:AB316), IF(FORECAST($C302,AB$305:AB$316,$C$305:$C$316)<0,0, IF(FORECAST($C302,AB$305:AB$316,$C$305:$C$316)>100,100, FORECAST($C302,AB$305:AB$316,$C$305:$C$316)))) -> 6.624756633
B304: Survey | C304: Year | D304: Improved | E304: % Improved < = 30min | H304: Surface water | I304: Improved | J304: % Improved < = 30min | M304: Surface water | N304: Improved | O304: % Improved < = 30min | R304: Surface water | S304: Improved | T304: % Improved < = 30min | W304: Surface water | X304: Improved | Y304: % Improved < = 30min | AB304: Surface water
B305: DHS00 | C305: 2000 | D305: =IF(ISERROR(INDIRECT(CONCATENATE($B305,"!M16"))),"",INDIRECT(CONCATENATE($B305,"!M16"))) -> 60.43045208 | E305: =IF(ISERROR(INDIRECT(CONCATENATE($B305,"!M23"))),"",INDIRECT(CONCATENATE($B305,"!M23"))) -> 98.23543593 | H305: =IF(ISERROR(INDIRECT(CONCATENATE($B305,"!M21"))),"",INDIRECT(CONCATENATE($B305,"!M21"))) -> 15.81965754 | I305: =IF(ISERROR(INDIRECT(CONCATENATE($B305,"!N16"))),"",INDIRECT(CONCATENATE($B305,"!N16"))) -> 59.0544686 | J305: =IF(ISERROR(INDIRECT(CONCATENATE($B305,"!N23"))),"",INDIRECT(CONCATENATE($B305,"!N23"))) -> 97.93694369 | M305: =IF(ISERROR(INDIRECT(CONCATENATE($B305,"!N21"))),"",INDIRECT(CONCATENATE($B305,"!N21"))) -> 20.4474173 | N305: =IF(ISERROR(INDIRECT(CONCATENATE($B305,"!O16"))),"",INDIRECT(CONCATENATE($B305,"!O16"))) -> 60.7768894 | O305: =IF(ISERROR(INDIRECT(CONCATENATE($B305,"!O23"))),"",INDIRECT(CONCATENATE($B305,"!O23"))) -> 97.01652214 | R305: =IF(ISERROR(INDIRECT(CONCATENATE($B305,"!O21"))),"",INDIRECT(CONCATENATE($B305,"!O21"))) -> 18.97156818 | S305: =IF(ISERROR(INDIRECT(CONCATENATE($B305,"!P16"))),"",INDIRECT(CONCATENATE($B305,"!P16"))) -> 66.82432657 | T305: =IF(ISERROR(INDIRECT(CONCATENATE($B305,"!P23"))),"",INDIRECT(CONCATENATE($B305,"!P23"))) -> 96.90288186 | W305: =IF(ISERROR(INDIRECT(CONCATENATE($B305,"!P21"))),"",INDIRECT(CONCATENATE($B305,"!P21"))) -> 15.39556999 | X305: =IF(ISERROR(INDIRECT(CONCATENATE($B305,"!Q16"))),"",INDIRECT(CONCATENATE($B305,"!Q16"))) -> 77.0249339 | Y305: =IF(ISERROR(INDIRECT(CONCATENATE($B305,"!Q23"))),"",INDIRECT(CONCATENATE($B305,"!Q23"))) -> 98.39272528 | AB305: =IF(ISERROR(INDIRECT(CONCATENATE($B305,"!Q221"))),"",INDIRECT(CONCATENATE($B305,"!Q21"))) -> 9.493782497
B306: DHS06 | C306: 2006 | D306: 68.53218605 | E306: 97.60280449 | H306: 11.10224937 | I306: 71.28798599 | J306: 97.57422669 | M306: 9.940695253 | N306: 69.76051019 | O306: 97.04785568 | R306: 10.88175034 | S306: 63.3131445 | T306: 97.80440514 | W306: 21.67937832 | X306: 73.97424325 | Y306: 98.82179361 | AB306: 14.41405679
B307: DHS08 | C307: 2008 | D307: 69.4879098 | E307: 97.49174102 | H307: 10.97144819 | I307: 70.02423421 | J307: 97.64770906 | M307: 11.00966494 | N307: 66.24475084 | O307: 96.80322228 | R307: 14.98250442 | S307: 63.08709141 | T307: 97.88288505 | W307: 21.249964 | X307: 77.70282758 | Y307: 99.02530955 | AB307: 10.11747211
B308: DHS09 | C308: 2009 | D308: 54.93030009 | E308: 98.38590612 | H308: 26.34288657 | I308: 68.10726056 | J308: 98.67278972 | M308: 15.70911492 | N308: 75.00250561 | O308: 98.62323831 | R308: 11.29578878 | S308: 76.6518133 | T308: 97.63460077 | W308: 10.25294121 | X308: 80.88324144 | Y308: 97.77334788 | AB308: 7.90296905
B309: DHS10 | C309: 2010 | D309: 69.41668011 | E309: 98.22134319 | H309: 14.54718438 | I309: 72.68698776 | J309: 97.8250475 | M309: 14.89368725 | N309: 73.42701206 | O309: 97.06316962 | R309: 13.09978207 | S309: 75.64139676 | T309: 97.21357861 | W309: 9.691130872 | X309: 80.32380583 | Y309: 97.03973136 | AB309: 7.934507396
B310: DHS11 | C310: 2011 | D310: 63.75769304 | E310: 98.5 | H310: 21.71048601 | I310: 74.65417501 | J310: 98.5 | M310: 12.18457012 | N310: 76.64188424 | O310: 97.9 | R310: 10.37545082 | S310: 79.51546926 | T310: 96.6 | W310: 8.005339882 | X310: 79.99986214 | Y310: 97.3 | AB310: 8.910673392
B311: DHS12 | C311: 2012 | D311: 64.13770047 | E311: 95.9 | H311: 17.39704264 | I311: 73.63583212 | J311: 97.4 | M311: 11.59114847 | N311: 80.28958341 | O311: 98.4 | R311: 6.701392286 | S311: 81.2126408 | T311: 98.3 | W311: 6.698602025 | X311: 86.57751279 | Y311: 98.6 | AB311: 4.001155527
B312: ENDES16 | D312: 81.34865114 | E312: 97.7907629 | H312: 7.392638761 | I312: 73.99692653 | J312: 98.40533903 | M312: 13.5425761 | N312: 74.969497 | O312: 98.61838374 | R312: 14.04383134 | S312: 79.72070571 | T312: 98.66489703 | W312: 9.133867779 | X312: 87.38961442 | Y312: 97.82146588 | AB312: 5.387451088
B318: =CONCATENATE("Rural use of drinking water sources, ",C299,"–",C300) -> Rural use of drinking water sources, 2000–2018 | S318: Data points used for regression

Sheet Sanitation
B4: Summary of trends in use of sanitation facilities by wealth quintile (%)
B5: =IF(ISERROR(INDIRECT(CONCATENATE($B105,"!A2"))),"",INDIRECT(CONCATENATE($B105,"!A2"))) -> Peru
B7: =B118 -> National use of sanitation facilities, 2000–2020 | J7: =B218 -> Urban use of sanitation facilities, 2000–2020 | R7: =B318 -> Rural use of sanitation facilities, 2000–2020
B31: =IF(ISERROR(INDIRECT(CONCATENATE($B105,"!A2"))),"",INDIRECT(CONCATENATE($B105,"!A2"))) -> Peru | F31: Poorest | J31: Poor | N31: Middle | R31: Rich | V31: Richest
F32: Basic | G32: Limited | H32: Unimproved | I32: Open defecation | J32: Basic | K32: Limited | L32: Unimproved | M32: Open defecation | N32: Basic | O32: Limited | P32: Unimproved | Q32: Open defecation | R32: Basic | S32: Limited | T32: Unimproved | U32: Open defecation | V32: Basic | W32: Limited | X32: Unimproved | Y32: Open defecation
B33: NATIONAL | D33: Estimate | E33: =C99 -> 2000 | F33: =E99 -> 21.62357467 | G33: =F99 -> 1.111665481 | H33: 20.47370016 | I33: 56.79105969 | J33: =J99 -> 31.95226462 | K33: =K99 -> 4.4193874 | L33: 27.80592277 | M33: 35.82242521 | N33: =O99 -> 59.23964269 | O33: =P99 -> 11.49341379 | P33: 18.47352391 | Q33: 10.79341961 | R33: =T99 -> 81.03501929 | S33: =U99 -> 9.540903689 | T33: 7.345868227 | U33: 2.078208791 | V33: =Y99 -> 95.37169559 | W33: =Z99 -> 2.733452237 | X33: 1.81619507 | Y33: 0.07865709999
E34: =C100 -> 2020 | F34: =E100 -> 55.78811627 | G34: 2.868060628 | H34: 25.55363471 | I34: 15.79018839 | J34: =J100 -> 70.84882033 | K34: 9.799254846 | L34: 14.75628636 | M34: 4.595638465 | N34: =O100 -> 78.32306677 | O34: 15.19589544 | P34: 4.326132127 | Q34: 2.154905667 | R34: =T100 -> 88.53012113 | S34: 10.42336223 | T34: 0.5874467741 | U34: 0.4590698618 | V34: =Y100 -> 97.14497287 | W34: 2.784276213 | X34: 0 | Y34: 0.07075091605
B36: URBAN | D36: Estimate | E36: =C199 -> 2000 | F36: =E199 -> 45.06899038 | G36: =F199 -> 8.775736027 | H36: 23.90808195 | I36: 22.24719165 | J36: =J199 -> 65.93236876 | K36: =K199 -> 13.9391665 | L36: 14.054814 | M36: 6.073650741 | N36: =O199 -> 79.45010598 | O36: =P199 -> 11.13768596 | P36: 7.351215738 | Q36: 2.060992323 | R36: =T199 -> 88.8262233 | S36: =U199 -> 6.808570173 | T36: 3.867443133 | U36: 0.497763391 | V36: =Y199 -> 97.42947836 | W36: =Z199 -> 1.59298217 | X36: 0.9761674602 | Y36: 0.001372010639
E37: =C200 -> 2020 | F37: =E200 -> 65.52590881 | G37: 12.7590628 | H37: 12.81976258 | I37: 8.895265808 | J37: =J200 -> 75.54107606 | K37: 15.97060224 | L37: 5.158035226 | M37: 3.330286468 | N37: =O200 -> 85.20963129 | O37: 11.94508305 | P37: 1.749356543 | Q37: 1.095929124 | R37: =T200 -> 92.79826572 | S37: 7.11302902 | T37: 0 | U37: 0.08870525525 | V37: =Y200 -> 98.31388197 | W37: 1.607442262 | X37: 0 | Y37: 0.07867576624
B39: RURAL | D39: Estimate | E39: =C299 -> 2000 | F39: =E299 -> 18.26455881 | G39: =F299 -> 0.6078583786 | H39: 17.27919434 | I39: 63.84838847 | J39: =J299 -> 23.66049345 | K39: =K299 -> 1.034490425 | L39: 20.28505286 | M39: 55.01996327 | N39: =O299 -> 26.27854166 | O39: =P299 -> 1.574965748 | P39: 22.22996245 | Q39: 49.91653014 | R39: =T299 -> 31.31238423 | S39: =U299 -> 2.367079385 | T39: 27.25986868 | U39: 39.0606677 | V39: =Y299 -> 43.39863047 | W39: =Z299 -> 4.138545903 | X39: 27.64741546 | Y39: 24.81540817
E40: =C300 -> 2020 | F40: =E300 -> 50.77358799 | G40: 1.689783541 | H40: 27.61452272 | I40: 19.92210575 | J40: =J300 -> 53.25581197 | K40: 2.328464858 | L40: 26.70988215 | M40: 17.70584103 | N40: =O300 -> 58.85655024 | O40: 3.527480781 | P40: 25.18996679 | Q40: 12.42600219 | R40: =T300 -> 61.46023624 | S40: 4.646125224 | T40: 22.10091451 | U40: 11.79272403 | V40: =Y300 -> 69.41936308 | W40: 6.619914443 | X40: 16.47679153 | Y40: 7.483930946
A97: NATIONAL | D97: Poorest | I97: Poor | N97: Middle | S97: Rich | X97: Richest
D98: Improved | E98: Basic | F98: Limited | G98: Unimproved | H98: Open defecation | I98: Improved | J98: Basic | K98: Limited | L98: Unimproved | M98: Open defecation | N98: Improved | O98: Basic | P98: Limited | Q98: Unimproved | R98: Open defecation | S98: Improved | T98: Basic | U98: Limited | V98: Unimproved | W98: Open defecation | X98: Improved | Y98: Basic | Z98: Limited | AA98: Unimproved | AB98: Open defecation
A99: Forecast period: | C99: 2000 | D99: =IF((D101+H101)>100,D101*100/(D101+H101),D101) -> 22.73524015 | E99: =D99*AVERAGEIF(E105:E116,">0")/100 -> 21.62357467 | F99: =D99*(100-AVERAGEIF(E105:E116,">0"))/100 -> 1.111665481 | G99: =100-(E99+F99+H99) -> 20.47370016 | H99: =IF((D101+H101)>100,H101*100/(D101+H101),H101) -> 56.79105969 | I99: =IF((I101+M101)>100,I101*100/(I101+M101),I101) -> 36.37165202 | J99: =I99*AVERAGEIF(J105:J116,">0")/100 -> 31.95226462 | K99: =I99*(100-AVERAGEIF(J105:J116,">0"))/100 -> 4.4193874 | L99: =100-(J99+K99+M99) -> 27.80592277 | M99: =IF((I101+M101)>100,M101*100/(I101+M101),M101) -> 35.82242521 | N99: =IF((N101+R101)>100,N101*100/(N101+R101),N101) -> 70.73305648 | O99: =N99*AVERAGEIF(O105:O116,">0")/100 -> 59.23964269 | P99: =N99*(100-AVERAGEIF(O105:O116,">0"))/100 -> 11.49341379 | Q99: =100-(O99+P99+R99) -> 18.47352391 | R99: =IF((N101+R101)>100,R101*100/(N101+R101),R101) -> 10.79341961 | S99: =IF((S101+W101)>100,S101*100/(S101+W101),S101) -> 90.57592298 | T99: =S99*AVERAGEIF(T105:T116,">0")/100 -> 81.03501929 | U99: =S99*(100-AVERAGEIF(T105:T116,">0"))/100 -> 9.540903689 | V99: =100-(T99+U99+W99) -> 7.345868227 | W99: =IF((S101+W101)>100,W101*100/(S101+W101),W101) -> 2.078208791 | X99: =IF((X101+AB101)>100,X101*100/(X101+AB101),X101) -> 98.10514783 | Y99: =X99*AVERAGEIF(Y105:Y116,">0")/100 -> 95.37169559 | Z99: =X99*(100-AVERAGEIF(Y105:Y116,">0"))/100 -> 2.733452237 | AA99: =100-(Y99+Z99+AB99) -> 1.81619507 | AB99: =IF((X101+AB101)>100,AB101*100/(X101+AB101),AB101) -> 0.07865709999
C100: 2020 | D100: =IF((D102+H102)>100,D102*100/(D102+H102),D102) -> 58.6561769 | E100: =D100*AVERAGEIF(E105:E116,">0")/100 -> 55.78811627 | F100: =D100*(100-AVERAGEIF(E105:E116,">0"))/100 -> 2.868060628 | G100: =100-(E100+F100+H100) -> 25.55363471 | H100: =IF((D102+H102)>100,H102*100/(D102+H102),H102) -> 15.79018839 | I100: =IF((I102+M102)>100,I102*100/(I102+M102),I102) -> 80.64807518 | J100: =I100*AVERAGEIF(J105:J116,">0")/100 -> 70.84882033 | K100: =I100*(100-AVERAGEIF(J105:J116,">0"))/100 -> 9.799254846 | L100: =100-(J100+K100+M100) -> 14.75628636 | M100: =IF((I102+M102)>100,M102*100/(I102+M102),M102) -> 4.595638465 | N100: =IF((N102+R102)>100,N102*100/(N102+R102),N102) -> 93.51896221 | O100: =N100*AVERAGEIF(O105:O116,">0")/100 -> 78.32306677 | P100: =N100*(100-AVERAGEIF(O105:O116,">0"))/100 -> 15.19589544 | Q100: =100-(O100+P100+R100) -> 4.326132127 | R100: =IF((N102+R102)>100,R102*100/(N102+R102),R102) -> 2.154905667 | S100: =IF((S102+W102)>100,S102*100/(S102+W102),S102) -> 98.95348336 | T100: =S100*AVERAGEIF(T105:T116,">0")/100 -> 88.53012113 | U100: =S100*(100-AVERAGEIF(T105:T116,">0"))/100 -> 10.42336223 | V100: =100-(T100+U100+W100) -> 0.5874467741 | W100: =IF((S102+W102)>100,W102*100/(S102+W102),W102) -> 0.4590698618 | X100: =IF((X102+AB102)>100,X102*100/(X102+AB102),X102) -> 99.92924908 | Y100: =X100*AVERAGEIF(Y105:Y116,">0")/100 -> 97.14497287 | Z100: =X100*(100-AVERAGEIF(Y105:Y116,">0"))/100 -> 2.784276213 | AA100: =100-(Y100+Z100+AB100) -> 0 | AB100: =IF((X102+AB102)>100,AB102*100/(X102+AB102),AB102) -> 0.07075091605
A101: Regression period: | C101: =MinRegYear(C99,C105:C116) -> 2000 | D101: =IF(MAX(C105:C116)-MIN(C105:C116)<5,AVERAGEIF(C105:C116,">0",D105:D116), IF(FORECAST($C101,D$105:D$116,$C$105:$C$116)<0,0, IF(FORECAST($C101,D$105:D$116,$C$105:$C$116)>100,100, FORECAST($C101,D$105:D$116,$C$105:$C$116)))) -> 22.73524015 | H101: =IF(MAX(C105:C116)-MIN(C105:C116)<5,AVERAGEIF(C105:C116,">0",H105:H116), IF(FORECAST($C101,H$105:H$116,$C$105:$C$116)<0,0, IF(FORECAST($C101,H$105:H$116,$C$105:$C$116)>100,100, FORECAST($C101,H$105:H$116,$C$105:$C$116)))) -> 56.79105969 | I101: =IF(MAX(C105:C116)-MIN(C105:C116)<5,AVERAGEIF(C105:C116,">0",I105:I116), IF(FORECAST($C101,I$105:I$116,$C$105:$C$116)<0,0, IF(FORECAST($C101,I$105:I$116,$C$105:$C$116)>100,100, FORECAST($C101,I$105:I$116,$C$105:$C$116)))) -> 36.37165202 | M101: =IF(MAX(C105:C116)-MIN(C105:C116)<5,AVERAGEIF(C105:C116,">0",M105:M116), IF(FORECAST($C101,M$105:M$116,$C$105:$C$116)<0,0, IF(FORECAST($C101,M$105:M$116,$C$105:$C$116)>100,100, FORECAST($C101,M$105:M$116,$C$105:$C$116)))) -> 35.82242521 | N101: =IF(MAX(C105:C116)-MIN(C105:C116)<5,AVERAGEIF(C105:C116,">0",N105:N116), IF(FORECAST($C101,N$105:N$116,$C$105:$C$116)<0,0, IF(FORECAST($C101,N$105:N$116,$C$105:$C$116)>100,100, FORECAST($C101,N$105:N$116,$C$105:$C$116)))) -> 70.73305648 | R101: =IF(MAX(C105:C116)-MIN(C105:C116)<5,AVERAGEIF(C105:C116,">0",R105:R116), IF(FORECAST($C101,R$105:R$116,$C$105:$C$116)<0,0, IF(FORECAST($C101,R$105:R$116,$C$105:$C$116)>100,100, FORECAST($C101,R$105:R$116,$C$105:$C$116)))) -> 10.79341961 | S101: =IF(MAX(C105:C116)-MIN(C105:C116)<5,AVERAGEIF(C105:C116,">0",S105:S116), IF(FORECAST($C101,S$105:S$116,$C$105:$C$116)<0,0, IF(FORECAST($C101,S$105:S$116,$C$105:$C$116)>100,100, FORECAST($C101,S$105:S$116,$C$105:$C$116)))) -> 90.57592298 | W101: =IF(MAX(C105:C116)-MIN(C105:C116)<5,AVERAGEIF(C105:C116,">0",W105:W116), IF(FORECAST($C101,W$105:W$116,$C$105:$C$116)<0,0, IF(FORECAST($C101,W$105:W$116,$C$105:$C$116)>100,100, FORECAST($C101,W$105:W$116,$C$105:$C$116)))) -> 2.078208791 | X101: =IF(MAX(C105:C116)-MIN(C105:C116)<5,AVERAGEIF(C105:C116,">0",X105:X116), IF(FORECAST($C101,X$105:X$116,$C$105:$C$116)<0,0, IF(FORECAST($C101,X$105:X$116,$C$105:$C$116)>100,100, FORECAST($C101,X$105:X$116,$C$105:$C$116)))) -> 98.10514783 | AB101: =IF(MAX(C105:C116)-MIN(C105:C116)<5,AVERAGEIF(C105:C116,">0",AB105:AB116), IF(FORECAST($C101,AB$105:AB$116,$C$105:$C$116)<0,0, IF(FORECAST($C101,AB$105:AB$116,$C$105:$C$116)>100,100, FORECAST($C101,AB$105:AB$116,$C$105:$C$116)))) -> 0.07865709999
C102: =MaxRegYear(C100,C105:C116) -> 2018 | D102: =IF(MAX(C105:C116)-MIN(C105:C116)<5,AVERAGEIF(C105:C116,">0",D105:D116), IF(FORECAST($C102,D$105:D$116,$C$105:$C$116)<0,0, IF(FORECAST($C102,D$105:D$116,$C$105:$C$116)>100,100, FORECAST($C102,D$105:D$116,$C$105:$C$116)))) -> 58.6561769 | H102: =IF(MAX(C105:C116)-MIN(C105:C116)<5,AVERAGEIF(C105:C116,">0",H105:H116), IF(FORECAST($C102,H$105:H$116,$C$105:$C$116)<0,0, IF(FORECAST($C102,H$105:H$116,$C$105:$C$116)>100,100, FORECAST($C102,H$105:H$116,$C$105:$C$116)))) -> 15.79018839 | I102: =IF(MAX(C105:C116)-MIN(C105:C116)<5,AVERAGEIF(C105:C116,">0",I105:I116), IF(FORECAST($C102,I$105:I$116,$C$105:$C$116)<0,0, IF(FORECAST($C102,I$105:I$116,$C$105:$C$116)>100,100, FORECAST($C102,I$105:I$116,$C$105:$C$116)))) -> 80.64807518 | M102: =IF(MAX(C105:C116)-MIN(C105:C116)<5,AVERAGEIF(C105:C116,">0",M105:M116), IF(FORECAST($C102,M$105:M$116,$C$105:$C$116)<0,0, IF(FORECAST($C102,M$105:M$116,$C$105:$C$116)>100,100, FORECAST($C102,M$105:M$116,$C$105:$C$116)))) -> 4.595638465 | N102: =IF(MAX(C105:C116)-MIN(C105:C116)<5,AVERAGEIF(C105:C116,">0",N105:N116), IF(FORECAST($C102,N$105:N$116,$C$105:$C$116)<0,0, IF(FORECAST($C102,N$105:N$116,$C$105:$C$116)>100,100, FORECAST($C102,N$105:N$116,$C$105:$C$116)))) -> 93.51896221 | R102: =IF(MAX(C105:C116)-MIN(C105:C116)<5,AVERAGEIF(C105:C116,">0",R105:R116), IF(FORECAST($C102,R$105:R$116,$C$105:$C$116)<0,0, IF(FORECAST($C102,R$105:R$116,$C$105:$C$116)>100,100, FORECAST($C102,R$105:R$116,$C$105:$C$116)))) -> 2.154905667 | S102: =IF(MAX(C105:C116)-MIN(C105:C116)<5,AVERAGEIF(C105:C116,">0",S105:S116), IF(FORECAST($C102,S$105:S$116,$C$105:$C$116)<0,0, IF(FORECAST($C102,S$105:S$116,$C$105:$C$116)>100,100, FORECAST($C102,S$105:S$116,$C$105:$C$116)))) -> 98.95348336 | W102: =IF(MAX(C105:C116)-MIN(C105:C116)<5,AVERAGEIF(C105:C116,">0",W105:W116), IF(FORECAST($C102,W$105:W$116,$C$105:$C$116)<0,0, IF(FORECAST($C102,W$105:W$116,$C$105:$C$116)>100,100, FORECAST($C102,W$105:W$116,$C$105:$C$116)))) -> 0.4590698618 | X102: =IF(MAX(C105:C116)-MIN(C105:C116)<5,AVERAGEIF(C105:C116,">0",X105:X116), IF(FORECAST($C102,X$105:X$116,$C$105:$C$116)<0,0, IF(FORECAST($C102,X$105:X$116,$C$105:$C$116)>100,100, FORECAST($C102,X$105:X$116,$C$105:$C$116)))) -> 100 | AB102: =IF(MAX(C105:C116)-MIN(C105:C116)<5,AVERAGEIF(C105:C116,">0",AB105:AB116), IF(FORECAST($C102,AB$105:AB$116,$C$105:$C$116)<0,0, IF(FORECAST($C102,AB$105:AB$116,$C$105:$C$116)>100,100, FORECAST($C102,AB$105:AB$116,$C$105:$C$116)))) -> 0.07080100841
B104: Survey | C104: Year | D104: Improved | E104: Not shared | H104: Open defecation | I104: Improved | J104: Not shared | M104: Open defecation | N104: Improved | O104: Not shared | R104: Open defecation | S104: Improved | T104: Not shared | W104: Open defecation | X104: Improved | Y104: Not shared | AB104: Open defecation
B105: DHS00 | C105: 2000 | D105: =IF(ISERROR(INDIRECT(CONCATENATE($B105,"!C122"))),"",INDIRECT(CONCATENATE($B105,"!C122"))) -> 21.17483277 | E105: =IF(ISERROR(INDIRECT(CONCATENATE($B105,"!C129"))),"",INDIRECT(CONCATENATE($B105,"!C129"))) -> 97.4525112 | H105: =IF(ISERROR(INDIRECT(CONCATENATE($B105,"!C127"))),"",INDIRECT(CONCATENATE($B105,"!C127"))) -> 58.37253167 | I105: =IF(ISERROR(INDIRECT(CONCATENATE($B105,"!D122"))),"",INDIRECT(CONCATENATE($B105,"!D122"))) -> 38.31960334 | J105: =IF(ISERROR(INDIRECT(CONCATENATE($B105,"!D129"))),"",INDIRECT(CONCATENATE($B105,"!D129"))) -> 92.88193407 | M105: =IF(ISERROR(INDIRECT(CONCATENATE($B105,"!D127"))),"",INDIRECT(CONCATENATE($B105,"!D127"))) -> 35.98348802 | N105: =IF(ISERROR(INDIRECT(CONCATENATE($B105,"!E122"))),"",INDIRECT(CONCATENATE($B105,"!E122"))) -> 71.3128318 | O105: =IF(ISERROR(INDIRECT(CONCATENATE($B105,"!E129"))),"",INDIRECT(CONCATENATE($B105,"!E129"))) -> 88.96938341 | R105: =IF(ISERROR(INDIRECT(CONCATENATE($B105,"!E127"))),"",INDIRECT(CONCATENATE($B105,"!E127"))) -> 11.11003232 | S105: =IF(ISERROR(INDIRECT(CONCATENATE($B105,"!F122"))),"",INDIRECT(CONCATENATE($B105,"!F122"))) -> 90.59021927 | T105: =IF(ISERROR(INDIRECT(CONCATENATE($B105,"!F129"))),"",INDIRECT(CONCATENATE($B105,"!F129"))) -> 90.54825982 | W105: =IF(ISERROR(INDIRECT(CONCATENATE($B105,"!F127"))),"",INDIRECT(CONCATENATE($B105,"!F127"))) -> 2.207761584 | X105: =IF(ISERROR(INDIRECT(CONCATENATE($B105,"!G122"))),"",INDIRECT(CONCATENATE($B105,"!G122"))) -> 97.90521723 | Y105: =IF(ISERROR(INDIRECT(CONCATENATE($B105,"!G129"))),"",INDIRECT(CONCATENATE($B105,"!G129"))) -> 97.72792873 | AB105: =IF(ISERROR(INDIRECT(CONCATENATE($B105,"!G2127"))),"",INDIRECT(CONCATENATE($B105,"!G127"))) -> 0.1139432149
B106: DHS06 | C106: 2006 | D106: 38.0460104 | E106: 95.31821204 | H106: 40.3900961 | I106: 52.63246987 | J106: 88.89834377 | M106: 23.59324801 | N106: 81.86545665 | O106: 83.90624806 | R106: 5.493520656 | S106: 93.55814595 | T106: 85.76749424 | W106: 1.183577635 | X106: 98.84732376 | Y106: 95.12147292 | AB106: 0.05293342281
B107: DHS08 | C107: 2008 | D107: 38.02250584 | E107: 94.95349298 | H107: 40.52340275 | I107: 52.54337157 | J107: 88.93132699 | M107: 23.25048476 | N107: 80.84973396 | O107: 82.33749642 | R107: 5.958918024 | S107: 94.54850466 | T107: 86.57362369 | W107: 0.8971379986 | X107: 98.95838123 | Y107: 95.92702088 | AB107: 0.09070712507
B108: DHS09 | C108: 2009 | D108: 39.57842299 | E108: 94.6256482 | H108: 37.11011286 | I108: 57.30127593 | J108: 86.77466979 | M108: 21.52235517 | N108: 78.86933975 | O108: 83.12865021 | R108: 8.131071161 | S108: 95.16704936 | T108: 88.99491132 | W108: 1.265914287 | X108: 99.38149648 | Y108: 96.94254008 | AB108: 0.07045866425
B109: DHS10 | C109: 2010 | D109: 43.71367417 | E109: 96.23352872 | H109: 33.30593684 | I109: 59.37820242 | J109: 89.16882901 | M109: 19.27119861 | N109: 80.96898505 | O109: 81.21094403 | R109: 8.140873467 | S109: 94.91918007 | T109: 89.68212186 | W109: 1.778931184 | X109: 99.37308779 | Y109: 97.74747388 | AB109: 0.02809296395
B110: DHS11 | C110: 2011 | D110: 43.9168202 | E110: 96.17253521 | H110: 30.35026301 | I110: 63.51531691 | J110: 87.03234872 | M110: 15.06009625 | N110: 83.46353561 | O110: 83.67009226 | R110: 5.561493167 | S110: 94.82101861 | T110: 91.77485328 | W110: 1.197615667 | X110: 99.08561182 | Y110: 97.72547404 | AB110: 0.05844531058
B111: DHS12 | C111: 2012 | D111: 47.32088134 | E111: 95.25375944 | H111: 27.41344069 | I111: 65.75072699 | J111: 86.87875638 | M111: 14.90299155 | N111: 85.60893184 | O111: 82.71857891 | R111: 5.630780262 | S111: 95.98654258 | T111: 90.56195549 | W111: 1.25907605 | X111: 99.60488959 | Y111: 98.58856193 | AB111: 0.05499065253
B112: ENDES16 | C112: 2016 | D112: 53.79252048 | E112: 90.87340033 | H112: 22.85920842 | I112: 78.63794175 | J112: 82.22869543 | M112: 8.088392343 | N112: 94.06926009 | O112: 84.06661297 | R112: 1.766612046 | S112: 98.52696488 | T112: 91.82799562 | W112: 0.3591002044 | X112: 99.60355045 | Y112: 97.92954748 | AB112: 0.1282610795
B118: =CONCATENATE("National use of sanitation facilities, ",C99,"–",C100) -> National use of sanitation facilities, 2000–2020 | S118: Data points used for regression
A197: URBAN | D197: Poorest | I197: Poor | N197: Middle | S197: Rich | X197: Richest
D198: Improved | E198: Basic | F198: Limited | G198: Unimproved | H198: Open defecation | I198: Improved | J198: Basic | K198: Limited | L198: Unimproved | M198: Open defecation | N198: Improved | O198: Basic | P198: Limited | Q198: Unimproved | R198: Open defecation | S198: Improved | T198: Basic | U198: Limited | V198: Unimproved | W198: Open defecation | X198: Improved | Y198: Basic | Z198: Limited | AA198: Unimproved | AB198: Open defecation
A199: Forecast period: | C199: 2000 | D199: =IF((D201+H201)>100,D201*100/(D201+H201),D201) -> 53.84472641 | E199: =D199*AVERAGEIF(E205:E216,">0")/100 -> 45.06899038 | F199: =D199*(100-AVERAGEIF(E205:E216,">0"))/100 -> 8.775736027 | G199: =100-(E199+F199+H199) -> 23.90808195 | H199: =IF((D201+H201)>100,H201*100/(D201+H201),H201) -> 22.24719165 | I199: =IF((I201+M201)>100,I201*100/(I201+M201),I201) -> 79.87153526 | J199: =I199*AVERAGEIF(J205:J216,">0")/100 -> 65.93236876 | K199: =I199*(100-AVERAGEIF(J205:J216,">0"))/100 -> 13.9391665 | L199: =100-(J199+K199+M199) -> 14.054814 | M199: =IF((I201+M201)>100,M201*100/(I201+M201),M201) -> 6.073650741 | N199: =IF((N201+R201)>100,N201*100/(N201+R201),N201) -> 90.58779194 | O199: =N199*AVERAGEIF(O205:O216,">0")/100 -> 79.45010598 | P199: =N199*(100-AVERAGEIF(O205:O216,">0"))/100 -> 11.13768596 | Q199: =100-(O199+P199+R199) -> 7.351215738 | R199: =IF((N201+R201)>100,R201*100/(N201+R201),R201) -> 2.060992323 | S199: =IF((S201+W201)>100,S201*100/(S201+W201),S201) -> 95.63479348 | T199: =S199*AVERAGEIF(T205:T216,">0")/100 -> 88.8262233 | U199: =S199*(100-AVERAGEIF(T205:T216,">0"))/100 -> 6.808570173 | V199: =100-(T199+U199+W199) -> 3.867443133 | W199: =IF((S201+W201)>100,W201*100/(S201+W201),W201) -> 0.497763391 | X199: =IF((X201+AB201)>100,X201*100/(X201+AB201),X201) -> 99.02246053 | Y199: =X199*AVERAGEIF(Y205:Y216,">0")/100 -> 97.42947836 | Z199: =X199*(100-AVERAGEIF(Y205:Y216,">0"))/100 -> 1.59298217 | AA199: =100-(Y199+Z199+AB199) -> 0.9761674602 | AB199: =IF((X201+AB201)>100,AB201*100/(X201+AB201),AB201) -> 0.001372010639
C200: 2020 | D200: =IF((D202+H202)>100,D202*100/(D202+H202),D202) -> 78.28497161 | E200: =D200*AVERAGEIF(E205:E216,">0")/100 -> 65.52590881 | F200: =D200*(100-AVERAGEIF(E205:E216,">0"))/100 -> 12.7590628 | G200: =100-(E200+F200+H200) -> 12.81976258 | H200: =IF((D202+H202)>100,H202*100/(D202+H202),H202) -> 8.895265808 | I200: =IF((I202+M202)>100,I202*100/(I202+M202),I202) -> 91.51167831 | J200: =I200*AVERAGEIF(J205:J216,">0")/100 -> 75.54107606 | K200: =I200*(100-AVERAGEIF(J205:J216,">0"))/100 -> 15.97060224 | L200: =100-(J200+K200+M200) -> 5.158035226 | M200: =IF((I202+M202)>100,M202*100/(I202+M202),M202) -> 3.330286468 | N200: =IF((N202+R202)>100,N202*100/(N202+R202),N202) -> 97.15471433 | O200: =N200*AVERAGEIF(O205:O216,">0")/100 -> 85.20963129 | P200: =N200*(100-AVERAGEIF(O205:O216,">0"))/100 -> 11.94508305 | Q200: =100-(O200+P200+R200) -> 1.749356543 | R200: =IF((N202+R202)>100,R202*100/(N202+R202),R202) -> 1.095929124 | S200: =IF((S202+W202)>100,S202*100/(S202+W202),S202) -> 99.91129474 | T200: =S200*AVERAGEIF(T205:T216,">0")/100 -> 92.79826572 | U200: =S200*(100-AVERAGEIF(T205:T216,">0"))/100 -> 7.11302902 | V200: =100-(T200+U200+W200) -> 0 | W200: =IF((S202+W202)>100,W202*100/(S202+W202),W202) -> 0.08870525525 | X200: =IF((X202+AB202)>100,X202*100/(X202+AB202),X202) -> 99.92132423 | Y200: =X200*AVERAGEIF(Y205:Y216,">0")/100 -> 98.31388197 | Z200: =X200*(100-AVERAGEIF(Y205:Y216,">0"))/100 -> 1.607442262 | AA200: =100-(Y200+Z200+AB200) -> 0 | AB200: =IF((X202+AB202)>100,AB202*100/(X202+AB202),AB202) -> 0.07867576624
A201: Regression period: | C201: =MinRegYear(C199,C205:C216) -> 2000 | D201: =IF(MAX(C205:C216)-MIN(C205:C216)<5,AVERAGEIF(C205:C216,">0",D205:D216), IF(FORECAST($C201,D$205:D$216,$C$205:$C$216)<0,0, IF(FORECAST($C201,D$205:D$216,$C$205:$C$216)>100,100, FORECAST($C201,D$205:D$216,$C$205:$C$216)))) -> 53.84472641 | H201: =IF(MAX(C205:C216)-MIN(C205:C216)<5,AVERAGEIF(C205:C216,">0",H205:H216), IF(FORECAST($C201,H$205:H$216,$C$205:$C$216)<0,0, IF(FORECAST($C201,H$205:H$216,$C$205:$C$216)>100,100, FORECAST($C201,H$205:H$216,$C$205:$C$216)))) -> 22.24719165 | I201: =IF(MAX(C205:C216)-MIN(C205:C216)<5,AVERAGEIF(C205:C216,">0",I205:I216), IF(FORECAST($C201,I$205:I$216,$C$205:$C$216)<0,0, IF(FORECAST($C201,I$205:I$216,$C$205:$C$216)>100,100, FORECAST($C201,I$205:I$216,$C$205:$C$216)))) -> 79.87153526 | M201: =IF(MAX(C205:C216)-MIN(C205:C216)<5,AVERAGEIF(C205:C216,">0",M205:M216), IF(FORECAST($C201,M$205:M$216,$C$205:$C$216)<0,0, IF(FORECAST($C201,M$205:M$216,$C$205:$C$216)>100,100, FORECAST($C201,M$205:M$216,$C$205:$C$216)))) -> 6.073650741 | N201: =IF(MAX(C205:C216)-MIN(C205:C216)<5,AVERAGEIF(C205:C216,">0",N205:N216), IF(FORECAST($C201,N$205:N$216,$C$205:$C$216)<0,0, IF(FORECAST($C201,N$205:N$216,$C$205:$C$216)>100,100, FORECAST($C201,N$205:N$216,$C$205:$C$216)))) -> 90.58779194 | R201: =IF(MAX(C205:C216)-MIN(C205:C216)<5,AVERAGEIF(C205:C216,">0",R205:R216), IF(FORECAST($C201,R$205:R$216,$C$205:$C$216)<0,0, IF(FORECAST($C201,R$205:R$216,$C$205:$C$216)>100,100, FORECAST($C201,R$205:R$216,$C$205:$C$216)))) -> 2.060992323 | S201: =IF(MAX(C205:C216)-MIN(C205:C216)<5,AVERAGEIF(C205:C216,">0",S205:S216), IF(FORECAST($C201,S$205:S$216,$C$205:$C$216)<0,0, IF(FORECAST($C201,S$205:S$216,$C$205:$C$216)>100,100, FORECAST($C201,S$205:S$216,$C$205:$C$216)))) -> 95.63479348 | W201: =IF(MAX(C205:C216)-MIN(C205:C216)<5,AVERAGEIF(C205:C216,">0",W205:W216), IF(FORECAST($C201,W$205:W$216,$C$205:$C$216)<0,0, IF(FORECAST($C201,W$205:W$216,$C$205:$C$216)>100,100, FORECAST($C201,W$205:W$216,$C$205:$C$216)))) -> 0.497763391 | X201: =IF(MAX(C205:C216)-MIN(C205:C216)<5,AVERAGEIF(C205:C216,">0",X205:X216), IF(FORECAST($C201,X$205:X$216,$C$205:$C$216)<0,0, IF(FORECAST($C201,X$205:X$216,$C$205:$C$216)>100,100, FORECAST($C201,X$205:X$216,$C$205:$C$216)))) -> 99.02246053 | AB201: =IF(MAX(C205:C216)-MIN(C205:C216)<5,AVERAGEIF(C205:C216,">0",AB205:AB216), IF(FORECAST($C201,AB$205:AB$216,$C$205:$C$216)<0,0, IF(FORECAST($C201,AB$205:AB$216,$C$205:$C$216)>100,100, FORECAST($C201,AB$205:AB$216,$C$205:$C$216)))) -> 0.001372010639
C202: =MaxRegYear(C200,C205:C216) -> 2018 | D202: =IF(MAX(C205:C216)-MIN(C205:C216)<5,AVERAGEIF(C205:C216,">0",D205:D216), IF(FORECAST($C202,D$205:D$216,$C$205:$C$216)<0,0, IF(FORECAST($C202,D$205:D$216,$C$205:$C$216)>100,100, FORECAST($C202,D$205:D$216,$C$205:$C$216)))) -> 78.28497161 | H202: =IF(MAX(C205:C216)-MIN(C205:C216)<5,AVERAGEIF(C205:C216,">0",H205:H216), IF(FORECAST($C202,H$205:H$216,$C$205:$C$216)<0,0, IF(FORECAST($C202,H$205:H$216,$C$205:$C$216)>100,100, FORECAST($C202,H$205:H$216,$C$205:$C$216)))) -> 8.895265808 | I202: =IF(MAX(C205:C216)-MIN(C205:C216)<5,AVERAGEIF(C205:C216,">0",I205:I216), IF(FORECAST($C202,I$205:I$216,$C$205:$C$216)<0,0, IF(FORECAST($C202,I$205:I$216,$C$205:$C$216)>100,100, FORECAST($C202,I$205:I$216,$C$205:$C$216)))) -> 91.51167831 | M202: =IF(MAX(C205:C216)-MIN(C205:C216)<5,AVERAGEIF(C205:C216,">0",M205:M216), IF(FORECAST($C202,M$205:M$216,$C$205:$C$216)<0,0, IF(FORECAST($C202,M$205:M$216,$C$205:$C$216)>100,100, FORECAST($C202,M$205:M$216,$C$205:$C$216)))) -> 3.330286468 | N202: =IF(MAX(C205:C216)-MIN(C205:C216)<5,AVERAGEIF(C205:C216,">0",N205:N216), IF(FORECAST($C202,N$205:N$216,$C$205:$C$216)<0,0, IF(FORECAST($C202,N$205:N$216,$C$205:$C$216)>100,100, FORECAST($C202,N$205:N$216,$C$205:$C$216)))) -> 97.15471433 | R202: =IF(MAX(C205:C216)-MIN(C205:C216)<5,AVERAGEIF(C205:C216,">0",R205:R216), IF(FORECAST($C202,R$205:R$216,$C$205:$C$216)<0,0, IF(FORECAST($C202,R$205:R$216,$C$205:$C$216)>100,100, FORECAST($C202,R$205:R$216,$C$205:$C$216)))) -> 1.095929124 | S202: =IF(MAX(C205:C216)-MIN(C205:C216)<5,AVERAGEIF(C205:C216,">0",S205:S216), IF(FORECAST($C202,S$205:S$216,$C$205:$C$216)<0,0, IF(FORECAST($C202,S$205:S$216,$C$205:$C$216)>100,100, FORECAST($C202,S$205:S$216,$C$205:$C$216)))) -> 100 | W202: =IF(MAX(C205:C216)-MIN(C205:C216)<5,AVERAGEIF(C205:C216,">0",W205:W216), IF(FORECAST($C202,W$205:W$216,$C$205:$C$216)<0,0, IF(FORECAST($C202,W$205:W$216,$C$205:$C$216)>100,100, FORECAST($C202,W$205:W$216,$C$205:$C$216)))) -> 0.08878401134 | X202: =IF(MAX(C205:C216)-MIN(C205:C216)<5,AVERAGEIF(C205:C216,">0",X205:X216), IF(FORECAST($C202,X$205:X$216,$C$205:$C$216)<0,0, IF(FORECAST($C202,X$205:X$216,$C$205:$C$216)>100,100, FORECAST($C202,X$205:X$216,$C$205:$C$216)))) -> 100 | AB202: =IF(MAX(C205:C216)-MIN(C205:C216)<5,AVERAGEIF(C205:C216,">0",AB205:AB216), IF(FORECAST($C202,AB$205:AB$216,$C$205:$C$216)<0,0, IF(FORECAST($C202,AB$205:AB$216,$C$205:$C$216)>100,100, FORECAST($C202,AB$205:AB$216,$C$205:$C$216)))) -> 0.07873771374
B204: Survey | C204: Year | D204: Improved | E204: Not shared | H204: Open defecation | I204: Improved | J204: Not shared | M204: Open defecation | N204: Improved | O204: Not shared | R204: Open defecation | S204: Improved | T204: Not shared | W204: Open defecation | X204: Improved | Y204: Not shared | AB204: Open defecation
B205: DHS00 | C205: 2000 | D205: =IF(ISERROR(INDIRECT(CONCATENATE($B205,"!H122"))),"",INDIRECT(CONCATENATE($B205,"!H122"))) -> 54.09029293 | E205: =IF(ISERROR(INDIRECT(CONCATENATE($B205,"!H129"))),"",INDIRECT(CONCATENATE($B205,"!H129"))) -> 89.01135841 | H205: =IF(ISERROR(INDIRECT(CONCATENATE($B205,"!H127"))),"",INDIRECT(CONCATENATE($B205,"!H127"))) -> 23.66919529 | I205: =IF(ISERROR(INDIRECT(CONCATENATE($B205,"!I122"))),"",INDIRECT(CONCATENATE($B205,"!I122"))) -> 79.9189481 | J205: =IF(ISERROR(INDIRECT(CONCATENATE($B205,"!I129"))),"",INDIRECT(CONCATENATE($B205,"!I129"))) -> 89.13667453 | M205: =IF(ISERROR(INDIRECT(CONCATENATE($B205,"!I127"))),"",INDIRECT(CONCATENATE($B205,"!I127"))) -> 6.210025596 | N205: =IF(ISERROR(INDIRECT(CONCATENATE($B205,"!J122"))),"",INDIRECT(CONCATENATE($B205,"!J122"))) -> 90.79552452 | O205: =IF(ISERROR(INDIRECT(CONCATENATE($B205,"!J129"))),"",INDIRECT(CONCATENATE($B205,"!J129"))) -> 89.5125438 | R205: =IF(ISERROR(INDIRECT(CONCATENATE($B205,"!J127"))),"",INDIRECT(CONCATENATE($B205,"!J127"))) -> 2.172038898 | S205: =IF(ISERROR(INDIRECT(CONCATENATE($B205,"!K122"))),"",INDIRECT(CONCATENATE($B205,"!K122"))) -> 95.69771572 | T205: =IF(ISERROR(INDIRECT(CONCATENATE($B205,"!K129"))),"",INDIRECT(CONCATENATE($B205,"!K129"))) -> 94.16830935 | W205: =IF(ISERROR(INDIRECT(CONCATENATE($B205,"!K127"))),"",INDIRECT(CONCATENATE($B205,"!K127"))) -> 0.4173347269 | X205: =IF(ISERROR(INDIRECT(CONCATENATE($B205,"!L122"))),"",INDIRECT(CONCATENATE($B205,"!L122"))) -> 98.93228873 | Y205: =IF(ISERROR(INDIRECT(CONCATENATE($B205,"!L129"))),"",INDIRECT(CONCATENATE($B205,"!L129"))) -> 98.83146262 | AB205: =IF(ISERROR(INDIRECT(CONCATENATE($B205,"!L2127"))),"",INDIRECT(CONCATENATE($B205,"!L127"))) -> 0.03038209254
B206: DHS06 | C206: 2006 | D206: 67.29177187 | E206: 83.69333817 | H206: 12.58240975 | I206: 87.54320828 | J206: 83.15677619 | M206: 3.303804598 | N206: 93.22918721 | O206: 84.71646636 | R206: 1.254368361 | S206: 96.92652821 | T206: 89.32500686 | W206: 0.4070135265 | X206: 99.25130813 | Y206: 97.34979853 | AB206: 0.02172838021
B207: DHS08 | C207: 2008 | D207: 66.39397787 | E207: 83.16600336 | H207: 12.76972269 | I207: 86.74615083 | J207: 81.34766692 | M207: 3.50410439 | N207: 94.2254194 | O207: 87.07042727 | R207: 1.013110473 | S207: 97.47651134 | T207: 89.25574665 | W207: 0.2495558165 | X207: 99.3883299 | Y207: 97.25451152 | AB207: 0.04038065664
B208: DHS09 | C208: 2009 | D208: 60.45390927 | E208: 84.1917557 | H208: 20.82183587 | I208: 82.13047736 | J208: 82.34100395 | M208: 6.263943257 | N208: 93.55628759 | O208: 86.28104975 | R208: 1.576866297 | S208: 98.02984738 | T208: 92.58253358 | W208: 0.3795872866 | X208: 99.82790299 | Y208: 98.68326328 | AB208: 0.07382555825
B209: DHS10 | C209: 2010 | D209: 63.22071479 | E209: 83.61298073 | H209: 18.10785139 | I209: 83.92279454 | J209: 79.74792162 | M209: 6.518411702 | N209: 93.69608991 | O209: 87.56712862 | R209: 2.544646195 | S209: 98.15495831 | T209: 93.61922512 | W209: 0.4533644454 | X209: 99.76353006 | Y209: 98.79701388 | AB209: 0.006324044649
B210: DHS11 | C210: 2011 | D210: 68.87107957 | E210: 83.17963336 | H210: 12.93896715 | I210: 84.86080663 | J210: 82.20325645 | M210: 4.541349499 | N210: 93.57166525 | O210: 89.17051543 | R210: 1.473378132 | S210: 97.97414484 | T210: 94.81876821 | W210: 0.1774824376 | X210: 99.71253293 | Y210: 98.54074036 | AB210: 0
B211: DHS12 | C211: 2012 | D211: 68.54009715 | E211: 82.26245019 | H211: 15.10953828 | I211: 87.07087208 | J211: 80.63138794 | M211: 5.171284042 | N211: 94.21350197 | O211: 88.60482749 | R211: 1.894107659 | S211: 98.86648973 | T211: 94.71478424 | W211: 0.2284314441 | X211: 99.93540112 | Y211: 99.43053154 | AB211: 0
B212: ENDES16 | C212: 2016 | D212: 79.65694859 | E212: 80.49665978 | H212: 8.57030939 | I212: 93.33959644 | J212: 81.819451 | M212: 2.102825753 | N212: 97.68234924 | O212: 88.71777478 | R212: 0.6991697704 | S212: 99.47237603 | T212: 94.56087197 | W212: 0.03341992592 | X212: 99.68002212 | Y212: 98.24301487 | AB212: 0.1477981652
B218: =CONCATENATE("Urban use of sanitation facilities, ",C199,"–",C200) -> Urban use of sanitation facilities, 2000–2020 | S218: Data points used for regression
A297: RURAL | D297: Poorest | I297: Poor | N297: Middle | S297: Rich | X297: Richest
D298: Improved | E298: Basic | F298: Limited | G298: Unimproved | H298: Open defecation | I298: Improved | J298: Basic | K298: Limited | L298: Unimproved | M298: Open defecation | N298: Improved | O298: Basic | P298: Limited | Q298: Unimproved | R298: Open defecation | S298: Improved | T298: Basic | U298: Limited | V298: Unimproved | W298: Open defecation | X298: Improved | Y298: Basic | Z298: Limited | AA298: Unimproved | AB298: Open defecation
A299: Forecast period: | C299: 2000 | D299: =IF((D301+H301)>100,D301*100/(D301+H301),D301) -> 18.87241719 | E299: =D299*AVERAGEIF(E305:E316,">0")/100 -> 18.26455881 | F299: =D299*(100-AVERAGEIF(E305:E316,">0"))/100 -> 0.6078583786 | G299: =100-(E299+F299+H299) -> 17.27919434 | H299: =IF((D301+H301)>100,H301*100/(D301+H301),H301) -> 63.84838847 | I299: =IF((I301+M301)>100,I301*100/(I301+M301),I301) -> 24.69498388 | J299: =I299*AVERAGEIF(J305:J316,">0")/100 -> 23.66049345 | K299: =I299*(100-AVERAGEIF(J305:J316,">0"))/100 -> 1.034490425 | L299: =100-(J299+K299+M299) -> 20.28505286 | M299: =IF((I301+M301)>100,M301*100/(I301+M301),M301) -> 55.01996327 | N299: =IF((N301+R301)>100,N301*100/(N301+R301),N301) -> 27.85350741 | O299: =N299*AVERAGEIF(O305:O316,">0")/100 -> 26.27854166 | P299: =N299*(100-AVERAGEIF(O305:O316,">0"))/100 -> 1.574965748 | Q299: =100-(O299+P299+R299) -> 22.22996245 | R299: =IF((N301+R301)>100,R301*100/(N301+R301),R301) -> 49.91653014 | S299: =IF((S301+W301)>100,S301*100/(S301+W301),S301) -> 33.67946362 | T299: =S299*AVERAGEIF(T305:T316,">0")/100 -> 31.31238423 | U299: =S299*(100-AVERAGEIF(T305:T316,">0"))/100 -> 2.367079385 | V299: =100-(T299+U299+W299) -> 27.25986868 | W299: =IF((S301+W301)>100,W301*100/(S301+W301),W301) -> 39.0606677 | X299: =IF((X301+AB301)>100,X301*100/(X301+AB301),X301) -> 47.53717637 | Y299: =X299*AVERAGEIF(Y305:Y316,">0")/100 -> 43.39863047 | Z299: =X299*(100-AVERAGEIF(Y305:Y316,">0"))/100 -> 4.138545903 | AA299: =100-(Y299+Z299+AB299) -> 27.64741546 | AB299: =IF((X301+AB301)>100,AB301*100/(X301+AB301),AB301) -> 24.81540817
C300: 2020 | D300: =IF((D302+H302)>100,D302*100/(D302+H302),D302) -> 52.46337153 | E300: =D300*AVERAGEIF(E305:E316,">0")/100 -> 50.77358799 | F300: =D300*(100-AVERAGEIF(E305:E316,">0"))/100 -> 1.689783541 | G300: =100-(E300+F300+H300) -> 27.61452272 | H300: =IF((D302+H302)>100,H302*100/(D302+H302),H302) -> 19.92210575 | I300: =IF((I302+M302)>100,I302*100/(I302+M302),I302) -> 55.58427682 | J300: =I300*AVERAGEIF(J305:J316,">0")/100 -> 53.25581197 | K300: =I300*(100-AVERAGEIF(J305:J316,">0"))/100 -> 2.328464858 | L300: =100-(J300+K300+M300) -> 26.70988215 | M300: =IF((I302+M302)>100,M302*100/(I302+M302),M302) -> 17.70584103 | N300: =IF((N302+R302)>100,N302*100/(N302+R302),N302) -> 62.38403102 | O300: =N300*AVERAGEIF(O305:O316,">0")/100 -> 58.85655024 | P300: =N300*(100-AVERAGEIF(O305:O316,">0"))/100 -> 3.527480781 | Q300: =100-(O300+P300+R300) -> 25.18996679 | R300: =IF((N302+R302)>100,R302*100/(N302+R302),R302) -> 12.42600219 | S300: =IF((S302+W302)>100,S302*100/(S302+W302),S302) -> 66.10636147 | T300: =S300*AVERAGEIF(T305:T316,">0")/100 -> 61.46023624 | U300: =S300*(100-AVERAGEIF(T305:T316,">0"))/100 -> 4.646125224 | V300: =100-(T300+U300+W300) -> 22.10091451 | W300: =IF((S302+W302)>100,W302*100/(S302+W302),W302) -> 11.79272403 | X300: =IF((X302+AB302)>100,X302*100/(X302+AB302),X302) -> 76.03927753 | Y300: =X300*AVERAGEIF(Y305:Y316,">0")/100 -> 69.41936308 | Z300: =X300*(100-AVERAGEIF(Y305:Y316,">0"))/100 -> 6.619914443 | AA300: =100-(Y300+Z300+AB300) -> 16.47679153 | AB300: =IF((X302+AB302)>100,AB302*100/(X302+AB302),AB302) -> 7.483930946
A301: Regression period: | C301: =MinRegYear(C299,C305:C316) -> 2000 | D301: =IF(MAX(C305:C316)-MIN(C305:C316)<5,AVERAGEIF(C305:C316,">0",D305:D316), IF(FORECAST($C301,D$305:D$316,$C$305:$C$316)<0,0, IF(FORECAST($C301,D$305:D$316,$C$305:$C$316)>100,100, FORECAST($C301,D$305:D$316,$C$305:$C$316)))) -> 18.87241719 | H301: =IF(MAX(C305:C316)-MIN(C305:C316)<5,AVERAGEIF(C305:C316,">0",H305:H316), IF(FORECAST($C301,H$305:H$316,$C$305:$C$316)<0,0, IF(FORECAST($C301,H$305:H$316,$C$305:$C$316)>100,100, FORECAST($C301,H$305:H$316,$C$305:$C$316)))) -> 63.84838847 | I301: =IF(MAX(C305:C316)-MIN(C305:C316)<5,AVERAGEIF(C305:C316,">0",I305:I316), IF(FORECAST($C301,I$305:I$316,$C$305:$C$316)<0,0, IF(FORECAST($C301,I$305:I$316,$C$305:$C$316)>100,100, FORECAST($C301,I$305:I$316,$C$305:$C$316)))) -> 24.69498388 | M301: =IF(MAX(C305:C316)-MIN(C305:C316)<5,AVERAGEIF(C305:C316,">0",M305:M316), IF(FORECAST($C301,M$305:M$316,$C$305:$C$316)<0,0, IF(FORECAST($C301,M$305:M$316,$C$305:$C$316)>100,100, FORECAST($C301,M$305:M$316,$C$305:$C$316)))) -> 55.01996327 | N301: =IF(MAX(C305:C316)-MIN(C305:C316)<5,AVERAGEIF(C305:C316,">0",N305:N316), IF(FORECAST($C301,N$305:N$316,$C$305:$C$316)<0,0, IF(FORECAST($C301,N$305:N$316,$C$305:$C$316)>100,100, FORECAST($C301,N$305:N$316,$C$305:$C$316)))) -> 27.85350741 | R301: =IF(MAX(C305:C316)-MIN(C305:C316)<5,AVERAGEIF(C305:C316,">0",R305:R316), IF(FORECAST($C301,R$305:R$316,$C$305:$C$316)<0,0, IF(FORECAST($C301,R$305:R$316,$C$305:$C$316)>100,100, FORECAST($C301,R$305:R$316,$C$305:$C$316)))) -> 49.91653014 | S301: =IF(MAX(C305:C316)-MIN(C305:C316)<5,AVERAGEIF(C305:C316,">0",S305:S316), IF(FORECAST($C301,S$305:S$316,$C$305:$C$316)<0,0, IF(FORECAST($C301,S$305:S$316,$C$305:$C$316)>100,100, FORECAST($C301,S$305:S$316,$C$305:$C$316)))) -> 33.67946362 | W301: =IF(MAX(C305:C316)-MIN(C305:C316)<5,AVERAGEIF(C305:C316,">0",W305:W316), IF(FORECAST($C301,W$305:W$316,$C$305:$C$316)<0,0, IF(FORECAST($C301,W$305:W$316,$C$305:$C$316)>100,100, FORECAST($C301,W$305:W$316,$C$305:$C$316)))) -> 39.0606677 | X301: =IF(MAX(C305:C316)-MIN(C305:C316)<5,AVERAGEIF(C305:C316,">0",X305:X316), IF(FORECAST($C301,X$305:X$316,$C$305:$C$316)<0,0, IF(FORECAST($C301,X$305:X$316,$C$305:$C$316)>100,100, FORECAST($C301,X$305:X$316,$C$305:$C$316)))) -> 47.53717637 | AB301: =IF(MAX(C305:C316)-MIN(C305:C316)<5,AVERAGEIF(C305:C316,">0",AB305:AB316), IF(FORECAST($C301,AB$305:AB$316,$C$305:$C$316)<0,0, IF(FORECAST($C301,AB$305:AB$316,$C$305:$C$316)>100,100, FORECAST($C301,AB$305:AB$316,$C$305:$C$316)))) -> 24.81540817
C302: =MaxRegYear(C300,C305:C316) -> 2018 | D302: =IF(MAX(C305:C316)-MIN(C305:C316)<5,AVERAGEIF(C305:C316,">0",D305:D316), IF(FORECAST($C302,D$305:D$316,$C$305:$C$316)<0,0, IF(FORECAST($C302,D$305:D$316,$C$305:$C$316)>100,100, FORECAST($C302,D$305:D$316,$C$305:$C$316)))) -> 52.46337153 | H302: =IF(MAX(C305:C316)-MIN(C305:C316)<5,AVERAGEIF(C305:C316,">0",H305:H316), IF(FORECAST($C302,H$305:H$316,$C$305:$C$316)<0,0, IF(FORECAST($C302,H$305:H$316,$C$305:$C$316)>100,100, FORECAST($C302,H$305:H$316,$C$305:$C$316)))) -> 19.92210575 | I302: =IF(MAX(C305:C316)-MIN(C305:C316)<5,AVERAGEIF(C305:C316,">0",I305:I316), IF(FORECAST($C302,I$305:I$316,$C$305:$C$316)<0,0, IF(FORECAST($C302,I$305:I$316,$C$305:$C$316)>100,100, FORECAST($C302,I$305:I$316,$C$305:$C$316)))) -> 55.58427682 | M302: =IF(MAX(C305:C316)-MIN(C305:C316)<5,AVERAGEIF(C305:C316,">0",M305:M316), IF(FORECAST($C302,M$305:M$316,$C$305:$C$316)<0,0, IF(FORECAST($C302,M$305:M$316,$C$305:$C$316)>100,100, FORECAST($C302,M$305:M$316,$C$305:$C$316)))) -> 17.70584103 | N302: =IF(MAX(C305:C316)-MIN(C305:C316)<5,AVERAGEIF(C305:C316,">0",N305:N316), IF(FORECAST($C302,N$305:N$316,$C$305:$C$316)<0,0, IF(FORECAST($C302,N$305:N$316,$C$305:$C$316)>100,100, FORECAST($C302,N$305:N$316,$C$305:$C$316)))) -> 62.38403102 | R302: =IF(MAX(C305:C316)-MIN(C305:C316)<5,AVERAGEIF(C305:C316,">0",R305:R316), IF(FORECAST($C302,R$305:R$316,$C$305:$C$316)<0,0, IF(FORECAST($C302,R$305:R$316,$C$305:$C$316)>100,100, FORECAST($C302,R$305:R$316,$C$305:$C$316)))) -> 12.42600219 | S302: =IF(MAX(C305:C316)-MIN(C305:C316)<5,AVERAGEIF(C305:C316,">0",S305:S316), IF(FORECAST($C302,S$305:S$316,$C$305:$C$316)<0,0, IF(FORECAST($C302,S$305:S$316,$C$305:$C$316)>100,100, FORECAST($C302,S$305:S$316,$C$305:$C$316)))) -> 66.10636147 | W302: =IF(MAX(C305:C316)-MIN(C305:C316)<5,AVERAGEIF(C305:C316,">0",W305:W316), IF(FORECAST($C302,W$305:W$316,$C$305:$C$316)<0,0, IF(FORECAST($C302,W$305:W$316,$C$305:$C$316)>100,100, FORECAST($C302,W$305:W$316,$C$305:$C$316)))) -> 11.79272403 | X302: =IF(MAX(C305:C316)-MIN(C305:C316)<5,AVERAGEIF(C305:C316,">0",X305:X316), IF(FORECAST($C302,X$305:X$316,$C$305:$C$316)<0,0, IF(FORECAST($C302,X$305:X$316,$C$305:$C$316)>100,100, FORECAST($C302,X$305:X$316,$C$305:$C$316)))) -> 76.03927753 | AB302: =IF(MAX(C305:C316)-MIN(C305:C316)<5,AVERAGEIF(C305:C316,">0",AB305:AB316), IF(FORECAST($C302,AB$305:AB$316,$C$305:$C$316)<0,0, IF(FORECAST($C302,AB$305:AB$316,$C$305:$C$316)>100,100, FORECAST($C302,AB$305:AB$316,$C$305:$C$316)))) -> 7.483930946
B304: Survey | C304: Year | D304: Improved | E304: Not shared | H304: Open defecation | I304: Improved | J304: Not shared | M304: Open defecation | N304: Improved | O304: Not shared | R304: Open defecation | S304: Improved | T304: Not shared | W304: Open defecation | X304: Improved | Y304: Not shared | AB304: Open defecation
B305: DHS00 | C305: 2000 | D305: =IF(ISERROR(INDIRECT(CONCATENATE($B305,"!M122"))),"",INDIRECT(CONCATENATE($B305,"!M122"))) -> 17.9826771 | E305: =IF(ISERROR(INDIRECT(CONCATENATE($B305,"!M129"))),"",INDIRECT(CONCATENATE($B305,"!M129"))) -> 98.44239916 | H305: =IF(ISERROR(INDIRECT(CONCATENATE($B305,"!M127"))),"",INDIRECT(CONCATENATE($B305,"!M127"))) -> 64.12341716 | I305: =IF(ISERROR(INDIRECT(CONCATENATE($B305,"!N122"))),"",INDIRECT(CONCATENATE($B305,"!N122"))) -> 21.98760775 | J305: =IF(ISERROR(INDIRECT(CONCATENATE($B305,"!N129"))),"",INDIRECT(CONCATENATE($B305,"!N129"))) -> 97.26217103 | M305: =IF(ISERROR(INDIRECT(CONCATENATE($B305,"!N127"))),"",INDIRECT(CONCATENATE($B305,"!N127"))) -> 57.25508294 | N305: =IF(ISERROR(INDIRECT(CONCATENATE($B305,"!O122"))),"",INDIRECT(CONCATENATE($B305,"!O122"))) -> 24.59118891 | O305: =IF(ISERROR(INDIRECT(CONCATENATE($B305,"!O129"))),"",INDIRECT(CONCATENATE($B305,"!O129"))) -> 96.25617376 | R305: =IF(ISERROR(INDIRECT(CONCATENATE($B305,"!O127"))),"",INDIRECT(CONCATENATE($B305,"!O127"))) -> 52.68357583 | S305: =IF(ISERROR(INDIRECT(CONCATENATE($B305,"!P122"))),"",INDIRECT(CONCATENATE($B305,"!P122"))) -> 32.73276922 | T305: =IF(ISERROR(INDIRECT(CONCATENATE($B305,"!P129"))),"",INDIRECT(CONCATENATE($B305,"!P129"))) -> 94.72774961 | W305: =IF(ISERROR(INDIRECT(CONCATENATE($B305,"!P127"))),"",INDIRECT(CONCATENATE($B305,"!P127"))) -> 39.67065296 | X305: =IF(ISERROR(INDIRECT(CONCATENATE($B305,"!Q122"))),"",INDIRECT(CONCATENATE($B305,"!Q122"))) -> 48.67542106 | Y305: =IF(ISERROR(INDIRECT(CONCATENATE($B305,"!Q129"))),"",INDIRECT(CONCATENATE($B305,"!Q129"))) -> 92.91737914 | AB305: =IF(ISERROR(INDIRECT(CONCATENATE($B305,"!Q2127"))),"",INDIRECT(CONCATENATE($B305,"!Q127"))) -> 24.36882024
B306: DHS06 | C306: 2006 | D306: 33.97406676 | E306: 97.08116033 | H306: 46.27918517 | I306: 37.28125226 | J306: 95.51544444 | M306: 41.19885686 | N306: 41.88206316 | O306: 93.27184996 | R306: 35.36153812 | S306: 45.29857099 | T306: 93.38340391 | W306: 30.05836464 | X306: 58.80591281 | Y306: 91.28325128 | AB306: 16.80396767
B307: DHS08 | C307: 2008 | D307: 34.3169272 | E307: 97.02070458 | H307: 45.89673688 | I307: 37.02983256 | J307: 95.24619582 | M307: 41.05606959 | N307: 41.17641896 | O307: 93.34271472 | R307: 36.43774147 | S307: 44.9604965 | T307: 93.49142842 | W307: 29.83191141 | X307: 59.7609542 | Y307: 91.36779162 | AB307: 16.47709973
B308: DHS09 | C308: 2009 | D308: 32.81330195 | E308: 95.94101506 | H308: 44.72558198 | I308: 40.92404586 | J308: 95.20901085 | M308: 35.01829318 | N308: 46.50540467 | O308: 94.05669724 | R308: 29.74464608 | S308: 49.652824 | T308: 91.3191362 | W308: 25.84093151 | X308: 59.51765537 | Y308: 88.41373274 | AB308: 18.99311415
B309: DHS10 | C309: 2010 | D309: 39.431371 | E309: 98.00916365 | H309: 37.825782 | I309: 44.68685219 | J309: 97.48244175 | M309: 32.5980204 | N309: 48.76056584 | O309: 95.51393437 | R309: 28.0220214 | S309: 54.134454 | T309: 94.99221856 | W309: 22.15256651 | X309: 59.64431323 | Y309: 91.73033458 | AB309: 18.00072876
B310: DHS11 | C310: 2011 | D310: 35.83758846 | E310: 96.32464763 | H310: 38.38460732 | I310: 43.51937103 | J310: 97.60637348 | M310: 30.11224723 | N310: 51.26283818 | O310: 96.10806722 | R310: 23.53644664 | S310: 54.13128642 | T310: 93.14242004 | W310: 20.45384124 | X310: 63.06578296 | Y310: 93.15647219 | AB310: 15.06573613
B311: DHS12 | C311: 2012 | D311: 40.63615189 | E311: 96.85023912 | H311: 33.37259162 | I311: 47.62626038 | J311: 95.50107531 | M311: 26.94242574 | N311: 53.77920961 | O311: 95.28828534 | R311: 21.06544739 | S311: 59.28651566 | T311: 94.17065861 | W311: 16.78671614 | X311: 70.37937968 | Y311: 90.89572929 | AB311: 11.65486515
B312: ENDES16 | C312: 2016 | D312: 50.35107054 | E312: 94.56361066 | H312: 24.47407474 | I312: 48.06182079 | J312: 92.66471879 | M312: 26.72222124 | N312: 52.99246439 | O312: 90.92658841 | R312: 22.51871239 | S312: 58.94638353 | T312: 88.54692566 | W312: 18.61858251 | X312: 74.45639627 | Y312: 90.58799363 | AB312: 7.833024604
B318: =CONCATENATE("Rural use of sanitation facilities, ",C299,"–",C300) -> Rural use of sanitation facilities, 2000–2020 | S318: Data points used for regression

Sheet Hygiene
B4: Access to hygiene facilities by wealth quintile (%)
B5: =IF(ISERROR(INDIRECT(CONCATENATE($E$32,"!A2"))),"",INDIRECT(CONCATENATE($E$32,"!A2"))) -> Peru
B7: =CONCATENATE("National ",IF(ISERROR(INDIRECT(CONCATENATE($E$32,"!A2"))),"",INDIRECT(CONCATENATE($E$32,"!A210")))) -> National Access to hygiene facilities | K7: =CONCATENATE("Urban ",IF(ISERROR(INDIRECT(CONCATENATE($E$32,"!A2"))),"",INDIRECT(CONCATENATE($E$32,"!A210")))) -> Urban Access to hygiene facilities | S7: =CONCATENATE("Rural ",IF(ISERROR(INDIRECT(CONCATENATE($E$32,"!A2"))),"",INDIRECT(CONCATENATE($E$32,"!A210")))) -> Rural Access to hygiene facilities
E32: =INDEX(B88:B100,A88) -> ENDES16 | G32: =IF(ISERROR(INDIRECT(CONCATENATE($E$32,"!A2"))),"",INDIRECT(CONCATENATE($E$32,"!A2"))) -> Peru | K32: Poorest | N32: Poor | Q32: Middle | T32: Rich | W32: Richest
K33: Basic | L33: Limited | M33: No facility | N33: Basic | O33: Limited | P33: No facility | Q33: Basic | R33: Limited | S33: No facility | T33: Basic | U33: Limited | V33: No facility | W33: Basic | X33: Limited | Y33: No facility
B34: >>> Select Survey : | G34: NATIONAL | J34: =IF(ISERROR(INDIRECT(CONCATENATE(#REF!,"!A2"))),"",INDIRECT(CONCATENATE(#REF!,"!A210"))) ->  | K34: =IF(ISERROR(INDIRECT(CONCATENATE($E$32,"!C222"))),"",INDIRECT(CONCATENATE($E$32,"!C222"))) -> N/A | L34: =IF(ISERROR(INDIRECT(CONCATENATE($E$32,"!C223"))),"",INDIRECT(CONCATENATE($E$32,"!C223"))) -> N/A | M34: =IF(ISERROR(INDIRECT(CONCATENATE($E$32,"!C224"))),"",INDIRECT(CONCATENATE($E$32,"!C224"))) -> N/A | N34: =IF(ISERROR(INDIRECT(CONCATENATE($E$32,"!D222"))),"",INDIRECT(CONCATENATE($E$32,"!D222"))) -> N/A | O34: =IF(ISERROR(INDIRECT(CONCATENATE($E$32,"!D223"))),"",INDIRECT(CONCATENATE($E$32,"!D223"))) -> N/A | P34: =IF(ISERROR(INDIRECT(CONCATENATE($E$32,"!D224"))),"",INDIRECT(CONCATENATE($E$32,"!D224"))) -> N/A | Q34: =IF(ISERROR(INDIRECT(CONCATENATE($E$32,"!E222"))),"",INDIRECT(CONCATENATE($E$32,"!E222"))) -> N/A | R34: =IF(ISERROR(INDIRECT(CONCATENATE($E$32,"!E223"))),"",INDIRECT(CONCATENATE($E$32,"!E223"))) -> N/A | S34: =IF(ISERROR(INDIRECT(CONCATENATE($E$32,"!E224"))),"",INDIRECT(CONCATENATE($E$32,"!E224"))) -> N/A | T34: =IF(ISERROR(INDIRECT(CONCATENATE($E$32,"!F222"))),"",INDIRECT(CONCATENATE($E$32,"!F222"))) -> N/A | U34: =IF(ISERROR(INDIRECT(CONCATENATE($E$32,"!F223"))),"",INDIRECT(CONCATENATE($E$32,"!F223"))) -> N/A | V34: =IF(ISERROR(INDIRECT(CONCATENATE($E$32,"!F224"))),"",INDIRECT(CONCATENATE($E$32,"!F224"))) -> N/A | W34: =IF(ISERROR(INDIRECT(CONCATENATE($E$32,"!G222"))),"",INDIRECT(CONCATENATE($E$32,"!G222"))) -> N/A | X34: =IF(ISERROR(INDIRECT(CONCATENATE($E$32,"!G223"))),"",INDIRECT(CONCATENATE($E$32,"!G223"))) -> N/A | Y34: =IF(ISERROR(INDIRECT(CONCATENATE($E$32,"!G224"))),"",INDIRECT(CONCATENATE($E$32,"!G224"))) -> N/A
G37: URBAN | J37: =IF(ISERROR(INDIRECT(CONCATENATE(#REF!,"!A2"))),"",INDIRECT(CONCATENATE(#REF!,"!A210"))) ->  | K37: =IF(ISERROR(INDIRECT(CONCATENATE($E$32,"!H222"))),"",INDIRECT(CONCATENATE($E$32,"!H222"))) -> N/A | L37: =IF(ISERROR(INDIRECT(CONCATENATE($E$32,"!H223"))),"",INDIRECT(CONCATENATE($E$32,"!H223"))) -> N/A | M37: =IF(ISERROR(INDIRECT(CONCATENATE($E$32,"!H224"))),"",INDIRECT(CONCATENATE($E$32,"!H224"))) -> N/A | N37: =IF(ISERROR(INDIRECT(CONCATENATE($E$32,"!I222"))),"",INDIRECT(CONCATENATE($E$32,"!I222"))) -> N/A | O37: =IF(ISERROR(INDIRECT(CONCATENATE($E$32,"!I223"))),"",INDIRECT(CONCATENATE($E$32,"!I223"))) -> N/A | P37: =IF(ISERROR(INDIRECT(CONCATENATE($E$32,"!I224"))),"",INDIRECT(CONCATENATE($E$32,"!I224"))) -> N/A | Q37: =IF(ISERROR(INDIRECT(CONCATENATE($E$32,"!J222"))),"",INDIRECT(CONCATENATE($E$32,"!J222"))) -> N/A | R37: =IF(ISERROR(INDIRECT(CONCATENATE($E$32,"!J223"))),"",INDIRECT(CONCATENATE($E$32,"!J223"))) -> N/A | S37: =IF(ISERROR(INDIRECT(CONCATENATE($E$32,"!J224"))),"",INDIRECT(CONCATENATE($E$32,"!J224"))) -> N/A | T37: =IF(ISERROR(INDIRECT(CONCATENATE($E$32,"!K222"))),"",INDIRECT(CONCATENATE($E$32,"!K222"))) -> N/A | U37: =IF(ISERROR(INDIRECT(CONCATENATE($E$32,"!K223"))),"",INDIRECT(CONCATENATE($E$32,"!K223"))) -> N/A | V37: =IF(ISERROR(INDIRECT(CONCATENATE($E$32,"!K224"))),"",INDIRECT(CONCATENATE($E$32,"!K224"))) -> N/A | W37: =IF(ISERROR(INDIRECT(CONCATENATE($E$32,"!L222"))),"",INDIRECT(CONCATENATE($E$32,"!L222"))) -> N/A | X37: =IF(ISERROR(INDIRECT(CONCATENATE($E$32,"!L223"))),"",INDIRECT(CONCATENATE($E$32,"!L223"))) -> N/A | Y37: =IF(ISERROR(INDIRECT(CONCATENATE($E$32,"!L224"))),"",INDIRECT(CONCATENATE($E$32,"!L224"))) -> N/A
G40: RURAL | J40: =IF(ISERROR(INDIRECT(CONCATENATE(#REF!,"!A2"))),"",INDIRECT(CONCATENATE(#REF!,"!A210"))) ->  | K40: =IF(ISERROR(INDIRECT(CONCATENATE($E$32,"!M222"))),"",INDIRECT(CONCATENATE($E$32,"!M222"))) -> N/A | L40: =IF(ISERROR(INDIRECT(CONCATENATE($E$32,"!M223"))),"",INDIRECT(CONCATENATE($E$32,"!M223"))) -> N/A | M40: =IF(ISERROR(INDIRECT(CONCATENATE($E$32,"!M224"))),"",INDIRECT(CONCATENATE($E$32,"!M224"))) -> N/A | N40: =IF(ISERROR(INDIRECT(CONCATENATE($E$32,"!N222"))),"",INDIRECT(CONCATENATE($E$32,"!N222"))) -> N/A | O40: =IF(ISERROR(INDIRECT(CONCATENATE($E$32,"!N223"))),"",INDIRECT(CONCATENATE($E$32,"!N223"))) -> N/A | P40: =IF(ISERROR(INDIRECT(CONCATENATE($E$32,"!N224"))),"",INDIRECT(CONCATENATE($E$32,"!N224"))) -> N/A | Q40: =IF(ISERROR(INDIRECT(CONCATENATE($E$32,"!O222"))),"",INDIRECT(CONCATENATE($E$32,"!O222"))) -> N/A | R40: =IF(ISERROR(INDIRECT(CONCATENATE($E$32,"!O223"))),"",INDIRECT(CONCATENATE($E$32,"!O223"))) -> N/A | S40: =IF(ISERROR(INDIRECT(CONCATENATE($E$32,"!O224"))),"",INDIRECT(CONCATENATE($E$32,"!O224"))) -> N/A | T40: =IF(ISERROR(INDIRECT(CONCATENATE($E$32,"!P222"))),"",INDIRECT(CONCATENATE($E$32,"!P222"))) -> N/A | U40: =IF(ISERROR(INDIRECT(CONCATENATE($E$32,"!P223"))),"",INDIRECT(CONCATENATE($E$32,"!P223"))) -> N/A | V40: =IF(ISERROR(INDIRECT(CONCATENATE($E$32,"!P224"))),"",INDIRECT(CONCATENATE($E$32,"!P224"))) -> N/A | W40: =IF(ISERROR(INDIRECT(CONCATENATE($E$32,"!Q222"))),"",INDIRECT(CONCATENATE($E$32,"!Q222"))) -> N/A | X40: =IF(ISERROR(INDIRECT(CONCATENATE($E$32,"!Q223"))),"",INDIRECT(CONCATENATE($E$32,"!Q223"))) -> N/A | Y40: =IF(ISERROR(INDIRECT(CONCATENATE($E$32,"!Q224"))),"",INDIRECT(CONCATENATE($E$32,"!Q224"))) -> N/A
A88: 8 | B88: DHS00
B89: DHS06
B90: DHS08
B91: DHS09
B92: DHS10
B93: DHS11
B94: DHS12
B95: ENDES16
B96: Template

Sheet DHS00
A2: =A1026 -> Peru
A3: =A1034 -> 2000
A4: Use of drinking water sources
A5: by wealth quintile and sub-national region
A6: Notes:
A7: WHO/UNICEF JMP customised wealth index excludes water,
A8: sanitation and hygiene assets.
A9: Survey used for analysis: | B9: =A1025 -> DHS00
A10: Improved water at >30min.based on: | B10: Water at > 30min.
A11: Improved wells & springs based on: | B11: 50% Rule
A14: Use of drinking water sources | C14: NATIONAL wealth index quintile | H14: URBAN wealth index quintile | M14: RURAL wealth index quintile | R14: SUB-REGIONS: | BA14: Raw numbers of respondents: | BB14: Use of drinking water sources | BC14: NATIONAL wealth index quintile | BH14: URBAN wealth index quintile | BM14: RURAL wealth index quintile | BR14: SUB-REGIONS:
A15: Weighted percentage (used in graphs) | C15: Poorest | D15: Poor | E15: Middle | F15: Rich | G15: Richest | H15: Poorest | I15: Poor | J15: Middle | K15: Rich | L15: Richest | M15: Poorest | N15: Poor | O15: Middle | P15: Rich | Q15: Richest | R15: Amazonas | S15: Ancash | T15: Apurimac | U15: Arequipa | V15: Ayacucho | W15: Cajamarca | X15: Cusco | Y15: Huancavelica | Z15: Huanuco | AA15: Ica | AB15: Junin | AC15: La Libertad | AD15: Lambayeque | AE15: Lima | AF15: Loreto | AG15: Madre de Dios | AH15: Moquegua | AI15: Pasco | AJ15: Piura | AK15: Puno | AL15: San Martin | AM15: Tacna | AN15: Tumbes | AO15: Ucayali | BA15: Water data, raw numbers (weighted) | BC15: Poorest | BD15: Poor | BE15: Middle | BF15: Rich | BG15: Richest | BH15: Poorest | BI15: Poor | BJ15: Middle | BK15: Rich | BL15: Richest | BM15: Poorest | BN15: Poor | BO15: Middle | BP15: Rich | BQ15: Richest | BR15: Amazonas | BS15: Ancash | BT15: Apurimac | BU15: Arequipa | BV15: Ayacucho | BW15: Cajamarca | BX15: Cusco | BY15: Huancavelica | BZ15: Huanuco | CA15: Ica | CB15: Junin | CC15: La Libertad | CD15: Lambayeque | CE15: Lima | CF15: Loreto | CG15: Madre de Dios | CH15: Moquegua | CI15: Pasco | CJ15: Piura | CK15: Puno | CL15: San Martin | CM15: Tacna | CN15: Tumbes | CO15: Ucayali
A16: Water | B16: Improved | C16: =C58+C59+C60+C65+C66+(C61+C62+C63)*0.5 -> 60.26376252 | D16: 72.94755797 | E16: 89.73136502 | F16: 96.82061852 | G16: 99.21687262 | H16: 85.49772755 | I16: 92.90028208 | J16: 97.11324185 | K16: 98.64561731 | L16: 99.6234548 | M16: 60.43045208 | N16: 59.0544686 | O16: 60.7768894 | P16: 66.82432657 | Q16: 77.0249339 | R16: 79.87599646 | S16: 81.40325572 | T16: 70.89235127 | U16: 91.86320755 | V16: 71.46939389 | W16: 72.31745325 | X16: 82.6344086 | Y16: 79.26783362 | Z16: 65.04672897 | AA16: 91.70124481 | AB16: 86.25374625 | AC16: 82.8845003 | AD16: 85.49211286 | AE16: 95.15546294 | AF16: 51.71345242 | AG16: 72.40856739 | AH16: 89.16996969 | AI16: 76.13845211 | AJ16: 82.63520679 | AK16: 75.21161705 | AL16: 69.14333824 | AM16: 94.22675026 | AN16: 90.58215059 | AO16: 58.83854499 | BA16: Water | BB16: Improved | BC16: N/A | BD16: N/A | BE16: N/A | BF16: N/A | BG16: N/A | BH16: N/A | BI16: N/A | BJ16: N/A | BK16: N/A | BL16: N/A | BM16: N/A | BN16: N/A | BO16: N/A | BP16: N/A | BQ16: N/A | BR16: N/A | BS16: N/A | BT16: N/A | BU16: N/A | BV16: N/A | BW16: N/A | BX16: N/A | BY16: N/A | BZ16: N/A | CA16: N/A | CB16: N/A | CC16: N/A | CD16: N/A | CE16: N/A | CF16: N/A | CG16: N/A | CH16: N/A | CI16: N/A | CJ16: N/A | CK16: N/A | CL16: N/A | CM16: N/A | CN16: N/A | CO16: N/A
B17: Not Improved | C17: =100-C16 -> 39.73623748 | D17: 27.05244203 | E17: 10.26863498 | F17: 3.179381483 | G17: 0.7831273767 | H17: 14.50227245 | I17: 7.099717916 | J17: 2.886758153 | K17: 1.354382691 | L17: 0.3765451964 | M17: 39.56954792 | N17: 40.9455314 | O17: 39.2231106 | P17: 33.17567343 | Q17: 22.9750661 | R17: 20.12400354 | S17: 18.59674428 | T17: 29.10764873 | U17: 8.136792453 | V17: 28.53060611 | W17: 27.68254675 | X17: 17.3655914 | Y17: 20.73216638 | Z17: 34.95327103 | AA17: 8.298755187 | AB17: 13.74625375 | AC17: 17.1154997 | AD17: 14.50788714 | AE17: 4.844537064 | AF17: 48.28654758 | AG17: 27.59143261 | AH17: 10.83003031 | AI17: 23.86154789 | AJ17: 17.36479321 | AK17: 24.78838295 | AL17: 30.85666176 | AM17: 5.773249739 | AN17: 9.417849411 | AO17: 41.16145501 | BB17: Not Improved | BC17: N/A | BD17: N/A | BE17: N/A | BF17: N/A | BG17: N/A | BH17: N/A | BI17: N/A | BJ17: N/A | BK17: N/A | BL17: N/A | BM17: N/A | BN17: N/A | BO17: N/A | BP17: N/A | BQ17: N/A | BR17: N/A | BS17: N/A | BT17: N/A | BU17: N/A | BV17: N/A | BW17: N/A | BX17: N/A | BY17: N/A | BZ17: N/A | CA17: N/A | CB17: N/A | CC17: N/A | CD17: N/A | CE17: N/A | CF17: N/A | CG17: N/A | CH17: N/A | CI17: N/A | CJ17: N/A | CK17: N/A | CL17: N/A | CM17: N/A | CN17: N/A | CO17: N/A
A18: Water ladder | B18: Basic | C18: =C16*C23/100 -> 58.84598804 | D18: 70.88058174 | E18: 88.17422154 | F18: 95.94638707 | G18: 99.01897007 | H18: 82.89598369 | I18: 91.60252041 | J18: 96.04946704 | K18: 98.26150694 | L18: 99.52056361 | M18: 59.36411803 | N18: 57.83614166 | O18: 58.96362436 | P18: 64.75469823 | Q18: 75.78693161 | R18: 78.31792852 | S18: 80.59243267 | T18: 70.21419592 | U18: 91.12132822 | V18: 70.83098447 | W18: 71.12279969 | X18: 81.83195966 | Y18: 77.20075859 | Z18: 62.79859876 | AA18: 90.25458048 | AB18: 85.39335976 | AC18: 82.32690058 | AD18: 82.1275584 | AE18: 94.02638493 | AF18: 50.76341962 | AG18: 72.19014034 | AH18: 87.9384556 | AI18: 74.5597242 | AJ18: 79.76399591 | AK18: 74.67810175 | AL18: 68.53548472 | AM18: 91.37665129 | AN18: 87.93980724 | AO18: 58.01022856 | BA18: Water ladder | BB18: Basic | BC18: N/A | BD18: N/A | BE18: N/A | BF18: N/A | BG18: N/A | BH18: N/A | BI18: N/A | BJ18: N/A | BK18: N/A | BL18: N/A | BM18: N/A | BN18: N/A | BO18: N/A | BP18: N/A | BQ18: N/A | BR18: N/A | BS18: N/A | BT18: N/A | BU18: N/A | BV18: N/A | BW18: N/A | BX18: N/A | BY18: N/A | BZ18: N/A | CA18: N/A | CB18: N/A | CC18: N/A | CD18: N/A | CE18: N/A | CF18: N/A | CG18: N/A | CH18: N/A | CI18: N/A | CJ18: N/A | CK18: N/A | CL18: N/A | CM18: N/A | CN18: N/A | CO18: N/A
B19: Limited | C19: =C16*C22/100 -> 1.417774481 | D19: 2.066976226 | E19: 1.557143474 | F19: 0.8742314417 | G19: 0.1979025575 | H19: 2.601743857 | I19: 1.297761675 | J19: 1.063774806 | K19: 0.3841103653 | L19: 0.1028911921 | M19: 1.066334044 | N19: 1.218326941 | O19: 1.813265038 | P19: 2.069628343 | Q19: 1.238002288 | R19: 1.558067934 | S19: 0.8108230493 | T19: 0.6781553532 | U19: 0.741879326 | V19: 0.6384094231 | W19: 1.194653561 | X19: 0.8024489398 | Y19: 2.067075026 | Z19: 2.248130217 | AA19: 1.446664328 | AB19: 0.8603864963 | AC19: 0.5575997199 | AD19: 3.364554465 | AE19: 1.129078002 | AF19: 0.9500328063 | AG19: 0.2184270509 | AH19: 1.231514095 | AI19: 1.578727913 | AJ19: 2.871210872 | AK19: 0.5335152973 | AL19: 0.607853523 | AM19: 2.850098969 | AN19: 2.642343351 | AO19: 0.8283164291 | BB19: Limited | BC19: N/A | BD19: N/A | BE19: N/A | BF19: N/A | BG19: N/A | BH19: N/A | BI19: N/A | BJ19: N/A | BK19: N/A | BL19: N/A | BM19: N/A | BN19: N/A | BO19: N/A | BP19: N/A | BQ19: N/A | BR19: N/A | BS19: N/A | BT19: N/A | BU19: N/A | BV19: N/A | BW19: N/A | BX19: N/A | BY19: N/A | BZ19: N/A | CA19: N/A | CB19: N/A | CC19: N/A | CD19: N/A | CE19: N/A | CF19: N/A | CG19: N/A | CH19: N/A | CI19: N/A | CJ19: N/A | CK19: N/A | CL19: N/A | CM19: N/A | CN19: N/A | CO19: N/A
B20: Unimproved | C20: =100-(C18+C19+C21) -> 21.71007405 | D20: 16.37510408 | E20: 8.42723623 | F20: 2.989453222 | G20: 0.7762956344 | H20: 12.72668175 | I20: 6.775720056 | J20: 2.770815631 | K20: 1.354382691 | L20: 0.3765451964 | M20: 23.74989039 | N20: 20.4981141 | O20: 20.25154243 | P20: 17.78010344 | Q20: 13.4812836 | R20: 11.55004429 | S20: 8.520502782 | T20: 22.04320113 | U20: 5.129716981 | V20: 21.6874718 | W20: 17.04140695 | X20: 11.70967742 | Y20: 14.80331263 | Z20: 16 | AA20: 6.385431074 | AB20: 7.612387612 | AC20: 14.32276082 | AD20: 12.37502777 | AE20: 3.113389236 | AF20: 16.89755742 | AG20: 14.23519903 | AH20: 2.459780835 | AI20: 16.67347356 | AJ20: 12.3630258 | AK20: 22.35113835 | AL20: 9.829509577 | AM20: 2.586206897 | AN20: 3.043059899 | AO20: 25.14358647 | BB20: Unimproved | BC20: N/A | BD20: N/A | BE20: N/A | BF20: N/A | BG20: N/A | BH20: N/A | BI20: N/A | BJ20: N/A | BK20: N/A | BL20: N/A | BM20: N/A | BN20: N/A | BO20: N/A | BP20: N/A | BQ20: N/A | BR20: N/A | BS20: N/A | BT20: N/A | BU20: N/A | BV20: N/A | BW20: N/A | BX20: N/A | BY20: N/A | BZ20: N/A | CA20: N/A | CB20: N/A | CC20: N/A | CD20: N/A | CE20: N/A | CF20: N/A | CG20: N/A | CH20: N/A | CI20: N/A | CJ20: N/A | CK20: N/A | CL20: N/A | CM20: N/A | CN20: N/A | CO20: N/A
B21: Surface water | C21: =C64 -> 18.02616343 | D21: 10.67733796 | E21: 1.841398753 | F21: 0.1899282618 | G21: 0.00683174228 | H21: 1.775590701 | I21: 0.32399786 | J21: 0.1159425221 | K21: 0 | L21: 0 | M21: 15.81965754 | N21: 20.4474173 | O21: 18.97156818 | P21: 15.39556999 | Q21: 9.493782497 | R21: 8.573959256 | S21: 10.0762415 | T21: 7.064447592 | U21: 3.007075472 | V21: 6.843134306 | W21: 10.6411398 | X21: 5.655913978 | Y21: 5.928853755 | Z21: 18.95327103 | AA21: 1.913324112 | AB21: 6.133866134 | AC21: 2.792738879 | AD21: 2.132859365 | AE21: 1.731147828 | AF21: 31.38899016 | AG21: 13.35623358 | AH21: 8.370249475 | AI21: 7.188074331 | AJ21: 5.001767409 | AK21: 2.4372446 | AL21: 21.02715218 | AM21: 3.187042842 | AN21: 6.374789512 | AO21: 16.01786854 | BB21: Surface water | BC21: N/A | BD21: N/A | BE21: N/A | BF21: N/A | BG21: N/A | BH21: N/A | BI21: N/A | BJ21: N/A | BK21: N/A | BL21: N/A | BM21: N/A | BN21: N/A | BO21: N/A | BP21: N/A | BQ21: N/A | BR21: N/A | BS21: N/A | BT21: N/A | BU21: N/A | BV21: N/A | BW21: N/A | BX21: N/A | BY21: N/A | BZ21: N/A | CA21: N/A | CB21: N/A | CC21: N/A | CD21: N/A | CE21: N/A | CF21: N/A | CG21: N/A | CH21: N/A | CI21: N/A | CJ21: N/A | CK21: N/A | CL21: N/A | CM21: N/A | CN21: N/A | CO21: N/A
A22: Improved water point at more than 30 minutes | B22: Yes | C22: =C41 -> 2.352615273 | D22: 2.83350983 | E22: 1.735339114 | F22: 0.9029393275 | G22: 0.1994646195 | H22: 3.043056151 | I22: 1.39694051 | J22: 1.095396247 | K22: 0.3893841164 | L22: 0.1032800884 | M22: 1.76456407 | N22: 2.06305631 | O22: 2.983477858 | P22: 3.097118144 | Q22: 1.607274717 | R22: 1.950608447 | S22: 0.9960572733 | T22: 0.95659876 | U22: 0.8075913588 | V22: 0.8932626798 | W22: 1.651957456 | X22: 0.9710832974 | Y22: 2.607709751 | Z22: 3.456177201 | AA22: 1.577584177 | AB22: 0.9975062344 | AC22: 0.6727430556 | AD22: 3.935514462 | AE22: 1.186561409 | AF22: 1.837109614 | AG22: 0.3016591252 | AH22: 1.381086142 | AI22: 2.073496202 | AJ22: 3.474561248 | AK22: 0.7093522494 | AL22: 0.8791208791 | AM22: 3.02472383 | AN22: 2.917068467 | AO22: 1.407778573 | BA22: Improved water point at more than 30 minutes | BB22: Yes | BC22: N/A | BD22: N/A | BE22: N/A | BF22: N/A | BG22: N/A | BH22: N/A | BI22: N/A | BJ22: N/A | BK22: N/A | BL22: N/A | BM22: N/A | BN22: N/A | BO22: N/A | BP22: N/A | BQ22: N/A | BR22: N/A | BS22: N/A | BT22: N/A | BU22: N/A | BV22: N/A | BW22: N/A | BX22: N/A | BY22: N/A | BZ22: N/A | CA22: N/A | CB22: N/A | CC22: N/A | CD22: N/A | CE22: N/A | CF22: N/A | CG22: N/A | CH22: N/A | CI22: N/A | CJ22: N/A | CK22: N/A | CL22: N/A | CM22: N/A | CN22: N/A | CO22: N/A
B23: No | C23: =C42 -> 97.64738473 | D23: 97.16649017 | E23: 98.26466089 | F23: 99.09706067 | G23: 99.80053538 | H23: 96.95694385 | I23: 98.60305949 | J23: 98.90460375 | K23: 99.61061588 | L23: 99.89671991 | M23: 98.23543593 | N23: 97.93694369 | O23: 97.01652214 | P23: 96.90288186 | Q23: 98.39272528 | R23: 98.04939155 | S23: 99.00394273 | T23: 99.04340124 | U23: 99.19240864 | V23: 99.10673732 | W23: 98.34804254 | X23: 99.0289167 | Y23: 97.39229025 | Z23: 96.5438228 | AA23: 98.42241582 | AB23: 99.00249377 | AC23: 99.32725694 | AD23: 96.06448554 | AE23: 98.81343859 | AF23: 98.16289039 | AG23: 99.69834087 | AH23: 98.61891386 | AI23: 97.9265038 | AJ23: 96.52543875 | AK23: 99.29064775 | AL23: 99.12087912 | AM23: 96.97527617 | AN23: 97.08293153 | AO23: 98.59222143 | BB23: No | BC23: N/A | BD23: N/A | BE23: N/A | BF23: N/A | BG23: N/A | BH23: N/A | BI23: N/A | BJ23: N/A | BK23: N/A | BL23: N/A | BM23: N/A | BN23: N/A | BO23: N/A | BP23: N/A | BQ23: N/A | BR23: N/A | BS23: N/A | BT23: N/A | BU23: N/A | BV23: N/A | BW23: N/A | BX23: N/A | BY23: N/A | BZ23: N/A | CA23: N/A | CB23: N/A | CC23: N/A | CD23: N/A | CE23: N/A | CF23: N/A | CG23: N/A | CH23: N/A | CI23: N/A | CJ23: N/A | CK23: N/A | CL23: N/A | CM23: N/A | CN23: N/A | CO23: N/A
A24: Manually calculated ratios | B24: Improved wells
B25: Improved springs
B26: Other
C27: NATIONAL wealth index quintile | H27: URBAN wealth index quintile | M27: RURAL wealth index quintile | R27: SUB-REGIONS: | BA27: Raw numbers of respondents: | BB27: Use of drinking water sources | BC27: NATIONAL wealth index quintile | BH27: URBAN wealth index quintile | BM27: RURAL wealth index quintile | BR27: SUB-REGIONS:
A28: Percentage based on weighted population | C28: Poorest | D28: Poor | E28: Middle | F28: Rich | G28: Richest | H28: Poorest | I28: Poor | J28: Middle | K28: Rich | L28: Richest | M28: Poorest | N28: Poor | O28: Middle | P28: Rich | Q28: Richest | R28: Amazonas | S28: Ancash | T28: Apurimac | U28: Arequipa | V28: Ayacucho | W28: Cajamarca | X28: Cusco | Y28: Huancavelica | Z28: Huanuco | AA28: Ica | AB28: Junin | AC28: La Libertad | AD28: Lambayeque | AE28: Lima | AF28: Loreto | AG28: Madre de Dios | AH28: Moquegua | AI28: Pasco | AJ28: Piura | AK28: Puno | AL28: San Martin | AM28: Tacna | AN28: Tumbes | AO28: Ucayali | BA28: Water data, raw numbers (weighted) | BC28: Poorest | BD28: Poor | BE28: Middle | BF28: Rich | BG28: Richest | BH28: Poorest | BI28: Poor | BJ28: Middle | BK28: Rich | BL28: Richest | BM28: Poorest | BN28: Poor | BO28: Middle | BP28: Rich | BQ28: Richest | BR28: Amazonas | BS28: Ancash | BT28: Apurimac | BU28: Arequipa | BV28: Ayacucho | BW28: Cajamarca | BX28: Cusco | BY28: Huancavelica | BZ28: Huanuco | CA28: Ica | CB28: Junin | CC28: La Libertad | CD28: Lambayeque | CE28: Lima | CF28: Loreto | CG28: Madre de Dios | CH28: Moquegua | CI28: Pasco | CJ28: Piura | CK28: Puno | CL28: San Martin | CM28: Tacna | CN28: Tumbes | CO28: Ucayali
A29: Piped water | B29: Yes | C29: 39.35512522 | D29: 55.99481057 | E29: 77.88314468 | F29: 91.37846219 | G29: 97.47372292 | H29: 71.30115332 | I29: 82.7891539 | J29: 91.57054763 | K29: 95.51975655 | L29: 98.70138402 | M29: 37.28418376 | N29: 39.36508551 | O29: 41.23610475 | P29: 49.28550557 | Q29: 60.23085191 | R29: 71.67404783 | S29: 77.02452091 | T29: 49.64614296 | U29: 86.94968553 | V29: 50.85714286 | W29: 56.30008905 | X29: 73.68421053 | Y29: 65.98908338 | Z29: 48.59813084 | AA29: 86.79114799 | AB29: 79.1008991 | AC29: 69.37961301 | AD29: 71.80626527 | AE29: 86.9961273 | AF29: 34.63361283 | AG29: 59.85047484 | AH29: 87.05992073 | AI29: 62.58934041 | AJ29: 65.58303887 | AK29: 53.36250912 | AL29: 60.9555883 | AM29: 91.92789969 | AN29: 87.46993747 | AO29: 31.37462877 | BA29: Piped water | BB29: Yes | BC29: N/A | BD29: N/A | BE29: N/A | BF29: N/A | BG29: N/A | BH29: N/A | BI29: N/A | BJ29: N/A | BK29: N/A | BL29: N/A | BM29: N/A | BN29: N/A | BO29: N/A | BP29: N/A | BQ29: N/A | BR29: N/A | BS29: N/A | BT29: N/A | BU29: N/A | BV29: N/A | BW29: N/A | BX29: N/A | BY29: N/A | BZ29: N/A | CA29: N/A | CB29: N/A | CC29: N/A | CD29: N/A | CE29: N/A | CF29: N/A | CG29: N/A | CH29: N/A | CI29: N/A | CJ29: N/A | CK29: N/A | CL29: N/A | CM29: N/A | CN29: N/A | CO29: N/A
B30: No | C30: 60.64487478 | D30: 44.00518943 | E30: 22.11685532 | F30: 8.621537806 | G30: 2.526277085 | H30: 28.69884668 | I30: 17.2108461 | J30: 8.429452369 | K30: 4.480243446 | L30: 1.298615982 | M30: 62.71581624 | N30: 60.63491449 | O30: 58.76389525 | P30: 50.71449443 | Q30: 39.76914809 | R30: 28.32595217 | S30: 22.97547909 | T30: 50.35385704 | U30: 13.05031447 | V30: 49.14285714 | W30: 43.69991095 | X30: 26.31578947 | Y30: 34.01091662 | Z30: 51.40186916 | AA30: 13.20885201 | AB30: 20.8991009 | AC30: 30.62038699 | AD30: 28.19373473 | AE30: 13.0038727 | AF30: 65.36638717 | AG30: 40.14952516 | AH30: 12.94007927 | AI30: 37.41065959 | AJ30: 34.41696113 | AK30: 46.63749088 | AL30: 39.0444117 | AM30: 8.072100313 | AN30: 12.53006253 | AO30: 68.62537123 | BB30: No | BC30: N/A | BD30: N/A | BE30: N/A | BF30: N/A | BG30: N/A | BH30: N/A | BI30: N/A | BJ30: N/A | BK30: N/A | BL30: N/A | BM30: N/A | BN30: N/A | BO30: N/A | BP30: N/A | BQ30: N/A | BR30: N/A | BS30: N/A | BT30: N/A | BU30: N/A | BV30: N/A | BW30: N/A | BX30: N/A | BY30: N/A | BZ30: N/A | CA30: N/A | CB30: N/A | CC30: N/A | CD30: N/A | CE30: N/A | CF30: N/A | CG30: N/A | CH30: N/A | CI30: N/A | CJ30: N/A | CK30: N/A | CL30: N/A | CM30: N/A | CN30: N/A | CO30: N/A
A31: Piped water on premises | B31: Yes | C31: 30.50924015 | D31: 45.85280913 | E31: 70.12383375 | F31: 87.73547955 | G31: 96.79536276 | H31: 57.60991457 | I31: 76.6850175 | J31: 87.31870319 | K31: 93.57182133 | L31: 98.29662707 | M31: 29.61205013 | N31: 31.17188969 | O31: 32.33631998 | P31: 41.28410397 | Q31: 53.84911826 | R31: 67.84765279 | S31: 73.74819699 | T31: 47.52300071 | U31: 77.31918239 | V31: 42.81203008 | W31: 51.04630454 | X31: 68.54994629 | Y31: 43.89233954 | Z31: 31.42056075 | AA31: 82.6187183 | AB31: 72.54745255 | AC31: 67.04568123 | AD31: 60.98644746 | AE31: 82.82091547 | AF31: 30.51403573 | AG31: 52.15194989 | AH31: 79.20261133 | AI31: 48.25403308 | AJ31: 57.84452297 | AK31: 47.95040117 | AL31: 54.24121238 | AM31: 80.95611285 | AN31: 74.17027417 | AO31: 26.79253288 | BA31: Piped water on premises | BB31: Yes | BC31: N/A | BD31: N/A | BE31: N/A | BF31: N/A | BG31: N/A | BH31: N/A | BI31: N/A | BJ31: N/A | BK31: N/A | BL31: N/A | BM31: N/A | BN31: N/A | BO31: N/A | BP31: N/A | BQ31: N/A | BR31: N/A | BS31: N/A | BT31: N/A | BU31: N/A | BV31: N/A | BW31: N/A | BX31: N/A | BY31: N/A | BZ31: N/A | CA31: N/A | CB31: N/A | CC31: N/A | CD31: N/A | CE31: N/A | CF31: N/A | CG31: N/A | CH31: N/A | CI31: N/A | CJ31: N/A | CK31: N/A | CL31: N/A | CM31: N/A | CN31: N/A | CO31: N/A
B32: No | C32: 69.49075985 | D32: 54.14719087 | E32: 29.87616625 | F32: 12.26452045 | G32: 3.204637243 | H32: 42.39008543 | I32: 23.3149825 | J32: 12.68129681 | K32: 6.42817867 | L32: 1.703372927 | M32: 70.38794987 | N32: 68.82811031 | O32: 67.66368002 | P32: 58.71589603 | Q32: 46.15088174 | R32: 32.15234721 | S32: 26.25180301 | T32: 52.47699929 | U32: 22.68081761 | V32: 57.18796992 | W32: 48.95369546 | X32: 31.45005371 | Y32: 56.10766046 | Z32: 68.57943925 | AA32: 17.3812817 | AB32: 27.45254745 | AC32: 32.95431877 | AD32: 39.01355254 | AE32: 17.17908453 | AF32: 69.48596427 | AG32: 47.84805011 | AH32: 20.79738867 | AI32: 51.74596692 | AJ32: 42.15547703 | AK32: 52.04959883 | AL32: 45.75878762 | AM32: 19.04388715 | AN32: 25.82972583 | AO32: 73.20746712 | BB32: No | BC32: N/A | BD32: N/A | BE32: N/A | BF32: N/A | BG32: N/A | BH32: N/A | BI32: N/A | BJ32: N/A | BK32: N/A | BL32: N/A | BM32: N/A | BN32: N/A | BO32: N/A | BP32: N/A | BQ32: N/A | BR32: N/A | BS32: N/A | BT32: N/A | BU32: N/A | BV32: N/A | BW32: N/A | BX32: N/A | BY32: N/A | BZ32: N/A | CA32: N/A | CB32: N/A | CC32: N/A | CD32: N/A | CE32: N/A | CF32: N/A | CG32: N/A | CH32: N/A | CI32: N/A | CJ32: N/A | CK32: N/A | CL32: N/A | CM32: N/A | CN32: N/A | CO32: N/A
A33: Piped water into dwelling | B33: Yes | C33: N/A | D33: N/A | E33: N/A | F33: N/A | G33: N/A | H33: N/A | I33: N/A | J33: N/A | K33: N/A | L33: N/A | M33: N/A | N33: N/A | O33: N/A | P33: N/A | Q33: N/A | R33: N/A | S33: N/A | T33: N/A | U33: N/A | V33: N/A | W33: N/A | X33: N/A | Y33: N/A | Z33: N/A | AA33: N/A | AB33: N/A | AC33: N/A | AD33: N/A | AE33: N/A | AF33: N/A | AG33: N/A | AH33: N/A | AI33: N/A | AJ33: N/A | AK33: N/A | AL33: N/A | AM33: N/A | AN33: N/A | AO33: N/A | BA33: Piped water into dwelling | BB33: Yes | BC33: N/A | BD33: N/A | BE33: N/A | BF33: N/A | BG33: N/A | BH33: N/A | BI33: N/A | BJ33: N/A | BK33: N/A | BL33: N/A | BM33: N/A | BN33: N/A | BO33: N/A | BP33: N/A | BQ33: N/A | BR33: N/A | BS33: N/A | BT33: N/A | BU33: N/A | BV33: N/A | BW33: N/A | BX33: N/A | BY33: N/A | BZ33: N/A | CA33: N/A | CB33: N/A | CC33: N/A | CD33: N/A | CE33: N/A | CF33: N/A | CG33: N/A | CH33: N/A | CI33: N/A | CJ33: N/A | CK33: N/A | CL33: N/A | CM33: N/A | CN33: N/A | CO33: N/A
B34: No | C34: N/A | D34: N/A | E34: N/A | F34: N/A | G34: N/A | H34: N/A | I34: N/A | J34: N/A | K34: N/A | L34: N/A | M34: N/A | N34: N/A | O34: N/A | P34: N/A | Q34: N/A | R34: N/A | S34: N/A | T34: N/A | U34: N/A | V34: N/A | W34: N/A | X34: N/A | Y34: N/A | Z34: N/A | AA34: N/A | AB34: N/A | AC34: N/A | AD34: N/A | AE34: N/A | AF34: N/A | AG34: N/A | AH34: N/A | AI34: N/A | AJ34: N/A | AK34: N/A | AL34: N/A | AM34: N/A | AN34: N/A | AO34: N/A | BB34: No | BC34: N/A | BD34: N/A | BE34: N/A | BF34: N/A | BG34: N/A | BH34: N/A | BI34: N/A | BJ34: N/A | BK34: N/A | BL34: N/A | BM34: N/A | BN34: N/A | BO34: N/A | BP34: N/A | BQ34: N/A | BR34: N/A | BS34: N/A | BT34: N/A | BU34: N/A | BV34: N/A | BW34: N/A | BX34: N/A | BY34: N/A | BZ34: N/A | CA34: N/A | CB34: N/A | CC34: N/A | CD34: N/A | CE34: N/A | CF34: N/A | CG34: N/A | CH34: N/A | CI34: N/A | CJ34: N/A | CK34: N/A | CL34: N/A | CM34: N/A | CN34: N/A | CO34: N/A
A35: Water source on premises | B35: Yes | C35: 38.19005809 | D35: 50.26840032 | E35: 74.393165 | F35: 89.64593163 | G35: 97.53227642 | H35: 60.64915265 | I35: 79.66466219 | J35: 89.47800976 | K35: 94.56163203 | L35: 98.67410588 | M35: 38.56696434 | N35: 38.99708954 | O35: 38.42186251 | P35: 45.3343251 | Q35: 62.33512052 | R35: 71.33746678 | S35: 75.04636307 | T35: 73.42533616 | U35: 80.22798742 | V35: 61.5037594 | W35: 57.41317898 | X35: 68.72180451 | Y35: 43.98644833 | Z35: 36.46728972 | AA35: 82.89534348 | AB35: 75.66433566 | AC35: 69.47935368 | AD35: 62.34170184 | AE35: 85.53391294 | AF35: 30.67808968 | AG35: 62.80056577 | AH35: 83.02634647 | AI35: 54.05350214 | AJ35: 70.24734982 | AK35: 48.00875274 | AL35: 54.53588718 | AM35: 81.19122257 | AN35: 74.72342472 | AO35: 30.82308019 | BA35: Water source on premises | BB35: Yes | BC35: N/A | BD35: N/A | BE35: N/A | BF35: N/A | BG35: N/A | BH35: N/A | BI35: N/A | BJ35: N/A | BK35: N/A | BL35: N/A | BM35: N/A | BN35: N/A | BO35: N/A | BP35: N/A | BQ35: N/A | BR35: N/A | BS35: N/A | BT35: N/A | BU35: N/A | BV35: N/A | BW35: N/A | BX35: N/A | BY35: N/A | BZ35: N/A | CA35: N/A | CB35: N/A | CC35: N/A | CD35: N/A | CE35: N/A | CF35: N/A | CG35: N/A | CH35: N/A | CI35: N/A | CJ35: N/A | CK35: N/A | CL35: N/A | CM35: N/A | CN35: N/A | CO35: N/A
B36: No | C36: 61.80994191 | D36: 49.73159968 | E36: 25.606835 | F36: 10.35406837 | G36: 2.467723577 | H36: 39.35084735 | I36: 20.33533781 | J36: 10.52199024 | K36: 5.438367972 | L36: 1.325894115 | M36: 61.43303566 | N36: 61.00291046 | O36: 61.57813749 | P36: 54.6656749 | Q36: 37.66487948 | R36: 28.66253322 | S36: 24.95363693 | T36: 26.57466384 | U36: 19.77201258 | V36: 38.4962406 | W36: 42.58682102 | X36: 31.27819549 | Y36: 56.01355167 | Z36: 63.53271028 | AA36: 17.10465652 | AB36: 24.33566434 | AC36: 30.52064632 | AD36: 37.65829816 | AE36: 14.46608706 | AF36: 69.32191032 | AG36: 37.19943423 | AH36: 16.97365353 | AI36: 45.94649786 | AJ36: 29.75265018 | AK36: 51.99124726 | AL36: 45.46411282 | AM36: 18.80877743 | AN36: 25.27657528 | AO36: 69.17691981 | BB36: No | BC36: N/A | BD36: N/A | BE36: N/A | BF36: N/A | BG36: N/A | BH36: N/A | BI36: N/A | BJ36: N/A | BK36: N/A | BL36: N/A | BM36: N/A | BN36: N/A | BO36: N/A | BP36: N/A | BQ36: N/A | BR36: N/A | BS36: N/A | BT36: N/A | BU36: N/A | BV36: N/A | BW36: N/A | BX36: N/A | BY36: N/A | BZ36: N/A | CA36: N/A | CB36: N/A | CC36: N/A | CD36: N/A | CE36: N/A | CF36: N/A | CG36: N/A | CH36: N/A | CI36: N/A | CJ36: N/A | CK36: N/A | CL36: N/A | CM36: N/A | CN36: N/A | CO36: N/A
A37: Improved Water source on premises | B37: Yes | C37: N/A | D37: N/A | E37: N/A | F37: N/A | G37: N/A | H37: N/A | I37: N/A | J37: N/A | K37: N/A | L37: N/A | M37: N/A | N37: N/A | O37: N/A | P37: N/A | Q37: N/A | R37: N/A | S37: N/A | T37: N/A | U37: N/A | V37: N/A | W37: N/A | X37: N/A | Y37: N/A | Z37: N/A | AA37: N/A | AB37: N/A | AC37: N/A | AD37: N/A | AE37: N/A | AF37: N/A | AG37: N/A | AH37: N/A | AI37: N/A | AJ37: N/A | AK37: N/A | AL37: N/A | AM37: N/A | AN37: N/A | AO37: N/A | BA37: Improved water source on premises | BB37: Yes | BC37: N/A | BD37: N/A | BE37: N/A | BF37: N/A | BG37: N/A | BH37: N/A | BI37: N/A | BJ37: N/A | BK37: N/A | BL37: N/A | BM37: N/A | BN37: N/A | BO37: N/A | BP37: N/A | BQ37: N/A | BR37: N/A | BS37: N/A | BT37: N/A | BU37: N/A | BV37: N/A | BW37: N/A | BX37: N/A | BY37: N/A | BZ37: N/A | CA37: N/A | CB37: N/A | CC37: N/A | CD37: N/A | CE37: N/A | CF37: N/A | CG37: N/A | CH37: N/A | CI37: N/A | CJ37: N/A | CK37: N/A | CL37: N/A | CM37: N/A | CN37: N/A | CO37: N/A
B38: No | C38: N/A | D38: N/A | E38: N/A | F38: N/A | G38: N/A | H38: N/A | I38: N/A | J38: N/A | K38: N/A | L38: N/A | M38: N/A | N38: N/A | O38: N/A | P38: N/A | Q38: N/A | R38: N/A | S38: N/A | T38: N/A | U38: N/A | V38: N/A | W38: N/A | X38: N/A | Y38: N/A | Z38: N/A | AA38: N/A | AB38: N/A | AC38: N/A | AD38: N/A | AE38: N/A | AF38: N/A | AG38: N/A | AH38: N/A | AI38: N/A | AJ38: N/A | AK38: N/A | AL38: N/A | AM38: N/A | AN38: N/A | AO38: N/A | BB38: No | BC38: N/A | BD38: N/A | BE38: N/A | BF38: N/A | BG38: N/A | BH38: N/A | BI38: N/A | BJ38: N/A | BK38: N/A | BL38: N/A | BM38: N/A | BN38: N/A | BO38: N/A | BP38: N/A | BQ38: N/A | BR38: N/A | BS38: N/A | BT38: N/A | BU38: N/A | BV38: N/A | BW38: N/A | BX38: N/A | BY38: N/A | BZ38: N/A | CA38: N/A | CB38: N/A | CC38: N/A | CD38: N/A | CE38: N/A | CF38: N/A | CG38: N/A | CH38: N/A | CI38: N/A | CJ38: N/A | CK38: N/A | CL38: N/A | CM38: N/A | CN38: N/A | CO38: N/A
A39: Piped water on premises available when needed | B39: Yes | C39: N/A | D39: N/A | E39: N/A | F39: N/A | G39: N/A | H39: N/A | I39: N/A | J39: N/A | K39: N/A | L39: N/A | M39: N/A | N39: N/A | O39: N/A | P39: N/A | Q39: N/A | R39: N/A | S39: N/A | T39: N/A | U39: N/A | V39: N/A | W39: N/A | X39: N/A | Y39: N/A | Z39: N/A | AA39: N/A | AB39: N/A | AC39: N/A | AD39: N/A | AE39: N/A | AF39: N/A | AG39: N/A | AH39: N/A | AI39: N/A | AJ39: N/A | AK39: N/A | AL39: N/A | AM39: N/A | AN39: N/A | AO39: N/A | BA39: Piped water on premises available when needed | BB39: Yes | BC39: N/A | BD39: N/A | BE39: N/A | BF39: N/A | BG39: N/A | BH39: N/A | BI39: N/A | BJ39: N/A | BK39: N/A | BL39: N/A | BM39: N/A | BN39: N/A | BO39: N/A | BP39: N/A | BQ39: N/A | BR39: N/A | BS39: N/A | BT39: N/A | BU39: N/A | BV39: N/A | BW39: N/A | BX39: N/A | BY39: N/A | BZ39: N/A | CA39: N/A | CB39: N/A | CC39: N/A | CD39: N/A | CE39: N/A | CF39: N/A | CG39: N/A | CH39: N/A | CI39: N/A | CJ39: N/A | CK39: N/A | CL39: N/A | CM39: N/A | CN39: N/A | CO39: N/A
B40: No | C40: N/A | D40: N/A | E40: N/A | F40: N/A | G40: N/A | H40: N/A | I40: N/A | J40: N/A | K40: N/A | L40: N/A | M40: N/A | N40: N/A | O40: N/A | P40: N/A | Q40: N/A | R40: N/A | S40: N/A | T40: N/A | U40: N/A | V40: N/A | W40: N/A | X40: N/A | Y40: N/A | Z40: N/A | AA40: N/A | AB40: N/A | AC40: N/A | AD40: N/A | AE40: N/A | AF40: N/A | AG40: N/A | AH40: N/A | AI40: N/A | AJ40: N/A | AK40: N/A | AL40: N/A | AM40: N/A | AN40: N/A | AO40: N/A | BB40: No | BC40: N/A | BD40: N/A | BE40: N/A | BF40: N/A | BG40: N/A | BH40: N/A | BI40: N/A | BJ40: N/A | BK40: N/A | BL40: N/A | BM40: N/A | BN40: N/A | BO40: N/A | BP40: N/A | BQ40: N/A | BR40: N/A | BS40: N/A | BT40: N/A | BU40: N/A | BV40: N/A | BW40: N/A | BX40: N/A | BY40: N/A | BZ40: N/A | CA40: N/A | CB40: N/A | CC40: N/A | CD40: N/A | CE40: N/A | CF40: N/A | CG40: N/A | CH40: N/A | CI40: N/A | CJ40: N/A | CK40: N/A | CL40: N/A | CM40: N/A | CN40: N/A | CO40: N/A
A41: Water point at more than 30 minutes | B41: Yes | C41: 2.352615273 | D41: 2.83350983 | E41: 1.735339114 | F41: 0.9029393275 | G41: 0.1994646195 | H41: 3.043056151 | I41: 1.39694051 | J41: 1.095396247 | K41: 0.3893841164 | L41: 0.1032800884 | M41: 1.76456407 | N41: 2.06305631 | O41: 2.983477858 | P41: 3.097118144 | Q41: 1.607274717 | R41: 1.950608447 | S41: 0.9960572733 | T41: 0.95659876 | U41: 0.8075913588 | V41: 0.8932626798 | W41: 1.651957456 | X41: 0.9710832974 | Y41: 2.607709751 | Z41: 3.456177201 | AA41: 1.577584177 | AB41: 0.9975062344 | AC41: 0.6727430556 | AD41: 3.935514462 | AE41: 1.186561409 | AF41: 1.837109614 | AG41: 0.3016591252 | AH41: 1.381086142 | AI41: 2.073496202 | AJ41: 3.474561248 | AK41: 0.7093522494 | AL41: 0.8791208791 | AM41: 3.02472383 | AN41: 2.917068467 | AO41: 1.407778573 | BA41: Water point at more than 30 minutes | BB41: Yes | BC41: N/A | BD41: N/A | BE41: N/A | BF41: N/A | BG41: N/A | BH41: N/A | BI41: N/A | BJ41: N/A | BK41: N/A | BL41: N/A | BM41: N/A | BN41: N/A | BO41: N/A | BP41: N/A | BQ41: N/A | BR41: N/A | BS41: N/A | BT41: N/A | BU41: N/A | BV41: N/A | BW41: N/A | BX41: N/A | BY41: N/A | BZ41: N/A | CA41: N/A | CB41: N/A | CC41: N/A | CD41: N/A | CE41: N/A | CF41: N/A | CG41: N/A | CH41: N/A | CI41: N/A | CJ41: N/A | CK41: N/A | CL41: N/A | CM41: N/A | CN41: N/A | CO41: N/A
B42: No | C42: 97.64738473 | D42: 97.16649017 | E42: 98.26466089 | F42: 99.09706067 | G42: 99.80053538 | H42: 96.95694385 | I42: 98.60305949 | J42: 98.90460375 | K42: 99.61061588 | L42: 99.89671991 | M42: 98.23543593 | N42: 97.93694369 | O42: 97.01652214 | P42: 96.90288186 | Q42: 98.39272528 | R42: 98.04939155 | S42: 99.00394273 | T42: 99.04340124 | U42: 99.19240864 | V42: 99.10673732 | W42: 98.34804254 | X42: 99.0289167 | Y42: 97.39229025 | Z42: 96.5438228 | AA42: 98.42241582 | AB42: 99.00249377 | AC42: 99.32725694 | AD42: 96.06448554 | AE42: 98.81343859 | AF42: 98.16289039 | AG42: 99.69834087 | AH42: 98.61891386 | AI42: 97.9265038 | AJ42: 96.52543875 | AK42: 99.29064775 | AL42: 99.12087912 | AM42: 96.97527617 | AN42: 97.08293153 | AO42: 98.59222143 | BB42: No | BC42: N/A | BD42: N/A | BE42: N/A | BF42: N/A | BG42: N/A | BH42: N/A | BI42: N/A | BJ42: N/A | BK42: N/A | BL42: N/A | BM42: N/A | BN42: N/A | BO42: N/A | BP42: N/A | BQ42: N/A | BR42: N/A | BS42: N/A | BT42: N/A | BU42: N/A | BV42: N/A | BW42: N/A | BX42: N/A | BY42: N/A | BZ42: N/A | CA42: N/A | CB42: N/A | CC42: N/A | CD42: N/A | CE42: N/A | CF42: N/A | CG42: N/A | CH42: N/A | CI42: N/A | CJ42: N/A | CK42: N/A | CL42: N/A | CM42: N/A | CN42: N/A | CO42: N/A
A43: Water source available when needed | B43: Yes | C43: N/A | D43: N/A | E43: N/A | F43: N/A | G43: N/A | H43: N/A | I43: N/A | J43: N/A | K43: N/A | L43: N/A | M43: N/A | N43: N/A | O43: N/A | P43: N/A | Q43: N/A | R43: N/A | S43: N/A | T43: N/A | U43: N/A | V43: N/A | W43: N/A | X43: N/A | Y43: N/A | Z43: N/A | AA43: N/A | AB43: N/A | AC43: N/A | AD43: N/A | AE43: N/A | AF43: N/A | AG43: N/A | AH43: N/A | AI43: N/A | AJ43: N/A | AK43: N/A | AL43: N/A | AM43: N/A | AN43: N/A | AO43: N/A | BA43: Water source available when needed | BB43: Yes | BC43: N/A | BD43: N/A | BE43: N/A | BF43: N/A | BG43: N/A | BH43: N/A | BI43: N/A | BJ43: N/A | BK43: N/A | BL43: N/A | BM43: N/A | BN43: N/A | BO43: N/A | BP43: N/A | BQ43: N/A | BR43: N/A | BS43: N/A | BT43: N/A | BU43: N/A | BV43: N/A | BW43: N/A | BX43: N/A | BY43: N/A | BZ43: N/A | CA43: N/A | CB43: N/A | CC43: N/A | CD43: N/A | CE43: N/A | CF43: N/A | CG43: N/A | CH43: N/A | CI43: N/A | CJ43: N/A | CK43: N/A | CL43: N/A | CM43: N/A | CN43: N/A | CO43: N/A
B44: No | C44: N/A | D44: N/A | E44: N/A | F44: N/A | G44: N/A | H44: N/A | I44: N/A | J44: N/A | K44: N/A | L44: N/A | M44: N/A | N44: N/A | O44: N/A | P44: N/A | Q44: N/A | R44: N/A | S44: N/A | T44: N/A | U44: N/A | V44: N/A | W44: N/A | X44: N/A | Y44: N/A | Z44: N/A | AA44: N/A | AB44: N/A | AC44: N/A | AD44: N/A | AE44: N/A | AF44: N/A | AG44: N/A | AH44: N/A | AI44: N/A | AJ44: N/A | AK44: N/A | AL44: N/A | AM44: N/A | AN44: N/A | AO44: N/A | BB44: No | BC44: N/A | BD44: N/A | BE44: N/A | BF44: N/A | BG44: N/A | BH44: N/A | BI44: N/A | BJ44: N/A | BK44: N/A | BL44: N/A | BM44: N/A | BN44: N/A | BO44: N/A | BP44: N/A | BQ44: N/A | BR44: N/A | BS44: N/A | BT44: N/A | BU44: N/A | BV44: N/A | BW44: N/A | BX44: N/A | BY44: N/A | BZ44: N/A | CA44: N/A | CB44: N/A | CC44: N/A | CD44: N/A | CE44: N/A | CF44: N/A | CG44: N/A | CH44: N/A | CI44: N/A | CJ44: N/A | CK44: N/A | CL44: N/A | CM44: N/A | CN44: N/A | CO44: N/A
A45: Improved water source available when needed | B45: Yes | C45: N/A | D45: N/A | E45: N/A | F45: N/A | G45: N/A | H45: N/A | I45: N/A | J45: N/A | K45: N/A | L45: N/A | M45: N/A | N45: N/A | O45: N/A | P45: N/A | Q45: N/A | R45: N/A | S45: N/A | T45: N/A | U45: N/A | V45: N/A | W45: N/A | X45: N/A | Y45: N/A | Z45: N/A | AA45: N/A | AB45: N/A | AC45: N/A | AD45: N/A | AE45: N/A | AF45: N/A | AG45: N/A | AH45: N/A | AI45: N/A | AJ45: N/A | AK45: N/A | AL45: N/A | AM45: N/A | AN45: N/A | AO45: N/A | BA45: Improved water source available when needed | BB45: Yes | BC45: N/A | BD45: N/A | BE45: N/A | BF45: N/A | BG45: N/A | BH45: N/A | BI45: N/A | BJ45: N/A | BK45: N/A | BL45: N/A | BM45: N/A | BN45: N/A | BO45: N/A | BP45: N/A | BQ45: N/A | BR45: N/A | BS45: N/A | BT45: N/A | BU45: N/A | BV45: N/A | BW45: N/A | BX45: N/A | BY45: N/A | BZ45: N/A | CA45: N/A | CB45: N/A | CC45: N/A | CD45: N/A | CE45: N/A | CF45: N/A | CG45: N/A | CH45: N/A | CI45: N/A | CJ45: N/A | CK45: N/A | CL45: N/A | CM45: N/A | CN45: N/A | CO45: N/A
B46: No | C46: N/A | D46: N/A | E46: N/A | F46: N/A | G46: N/A | H46: N/A | I46: N/A | J46: N/A | K46: N/A | L46: N/A | M46: N/A | N46: N/A | O46: N/A | P46: N/A | Q46: N/A | R46: N/A | S46: N/A | T46: N/A | U46: N/A | V46: N/A | W46: N/A | X46: N/A | Y46: N/A | Z46: N/A | AA46: N/A | AB46: N/A | AC46: N/A | AD46: N/A | AE46: N/A | AF46: N/A | AG46: N/A | AH46: N/A | AI46: N/A | AJ46: N/A | AK46: N/A | AL46: N/A | AM46: N/A | AN46: N/A | AO46: N/A | BB46: No | BC46: N/A | BD46: N/A | BE46: N/A | BF46: N/A | BG46: N/A | BH46: N/A | BI46: N/A | BJ46: N/A | BK46: N/A | BL46: N/A | BM46: N/A | BN46: N/A | BO46: N/A | BP46: N/A | BQ46: N/A | BR46: N/A | BS46: N/A | BT46: N/A | BU46: N/A | BV46: N/A | BW46: N/A | BX46: N/A | BY46: N/A | BZ46: N/A | CA46: N/A | CB46: N/A | CC46: N/A | CD46: N/A | CE46: N/A | CF46: N/A | CG46: N/A | CH46: N/A | CI46: N/A | CJ46: N/A | CK46: N/A | CL46: N/A | CM46: N/A | CN46: N/A | CO46: N/A
A47: Microbiological quality at point of collection | B47: Not contaminated (No E. coli in 100 mL) | C47: N/A | D47: N/A | E47: N/A | F47: N/A | G47: N/A | H47: N/A | I47: N/A | J47: N/A | K47: N/A | L47: N/A | M47: N/A | N47: N/A | O47: N/A | P47: N/A | Q47: N/A | R47: N/A | S47: N/A | T47: N/A | U47: N/A | V47: N/A | W47: N/A | X47: N/A | Y47: N/A | Z47: N/A | AA47: N/A | AB47: N/A | AC47: N/A | AD47: N/A | AE47: N/A | AF47: N/A | AG47: N/A | AH47: N/A | AI47: N/A | AJ47: N/A | AK47: N/A | AL47: N/A | AM47: N/A | AN47: N/A | AO47: N/A | BA47: Microbiological quality at point of collection | BB47: Not contaminated (No E. coli in 100 mL) | BC47: N/A | BD47: N/A | BE47: N/A | BF47: N/A | BG47: N/A | BH47: N/A | BI47: N/A | BJ47: N/A | BK47: N/A | BL47: N/A | BM47: N/A | BN47: N/A | BO47: N/A | BP47: N/A | BQ47: N/A | BR47: N/A | BS47: N/A | BT47: N/A | BU47: N/A | BV47: N/A | BW47: N/A | BX47: N/A | BY47: N/A | BZ47: N/A | CA47: N/A | CB47: N/A | CC47: N/A | CD47: N/A | CE47: N/A | CF47: N/A | CG47: N/A | CH47: N/A | CI47: N/A | CJ47: N/A | CK47: N/A | CL47: N/A | CM47: N/A | CN47: N/A | CO47: N/A
B48: Contaminated (E. coli detected in 100 mL) | C48: N/A | D48: N/A | E48: N/A | F48: N/A | G48: N/A | H48: N/A | I48: N/A | J48: N/A | K48: N/A | L48: N/A | M48: N/A | N48: N/A | O48: N/A | P48: N/A | Q48: N/A | R48: N/A | S48: N/A | T48: N/A | U48: N/A | V48: N/A | W48: N/A | X48: N/A | Y48: N/A | Z48: N/A | AA48: N/A | AB48: N/A | AC48: N/A | AD48: N/A | AE48: N/A | AF48: N/A | AG48: N/A | AH48: N/A | AI48: N/A | AJ48: N/A | AK48: N/A | AL48: N/A | AM48: N/A | AN48: N/A | AO48: N/A | BB48: Contaminated (E. coli detected in 100 mL) | BC48: N/A | BD48: N/A | BE48: N/A | BF48: N/A | BG48: N/A | BH48: N/A | BI48: N/A | BJ48: N/A | BK48: N/A | BL48: N/A | BM48: N/A | BN48: N/A | BO48: N/A | BP48: N/A | BQ48: N/A | BR48: N/A | BS48: N/A | BT48: N/A | BU48: N/A | BV48: N/A | BW48: N/A | BX48: N/A | BY48: N/A | BZ48: N/A | CA48: N/A | CB48: N/A | CC48: N/A | CD48: N/A | CE48: N/A | CF48: N/A | CG48: N/A | CH48: N/A | CI48: N/A | CJ48: N/A | CK48: N/A | CL48: N/A | CM48: N/A | CN48: N/A | CO48: N/A
B49: Highly contaminated (>100 CFU/100 mL) | C49: N/A | D49: N/A | E49: N/A | F49: N/A | G49: N/A | H49: N/A | I49: N/A | J49: N/A | K49: N/A | L49: N/A | M49: N/A | N49: N/A | O49: N/A | P49: N/A | Q49: N/A | R49: N/A | S49: N/A | T49: N/A | U49: N/A | V49: N/A | W49: N/A | X49: N/A | Y49: N/A | Z49: N/A | AA49: N/A | AB49: N/A | AC49: N/A | AD49: N/A | AE49: N/A | AF49: N/A | AG49: N/A | AH49: N/A | AI49: N/A | AJ49: N/A | AK49: N/A | AL49: N/A | AM49: N/A | AN49: N/A | AO49: N/A | BB49: Highly contaminated (>100 CFU/100 mL) | BC49: N/A | BD49: N/A | BE49: N/A | BF49: N/A | BG49: N/A | BH49: N/A | BI49: N/A | BJ49: N/A | BK49: N/A | BL49: N/A | BM49: N/A | BN49: N/A | BO49: N/A | BP49: N/A | BQ49: N/A | BR49: N/A | BS49: N/A | BT49: N/A | BU49: N/A | BV49: N/A | BW49: N/A | BX49: N/A | BY49: N/A | BZ49: N/A | CA49: N/A | CB49: N/A | CC49: N/A | CD49: N/A | CE49: N/A | CF49: N/A | CG49: N/A | CH49: N/A | CI49: N/A | CJ49: N/A | CK49: N/A | CL49: N/A | CM49: N/A | CN49: N/A | CO49: N/A
A50: Microbiological quality of improved water sources at point of collection | B50: Not contaminated (No E. coli in 100 mL) | C50: N/A | D50: N/A | E50: N/A | F50: N/A | G50: N/A | H50: N/A | I50: N/A | J50: N/A | K50: N/A | L50: N/A | M50: N/A | N50: N/A | O50: N/A | P50: N/A | Q50: N/A | R50: N/A | S50: N/A | T50: N/A | U50: N/A | V50: N/A | W50: N/A | X50: N/A | Y50: N/A | Z50: N/A | AA50: N/A | AB50: N/A | AC50: N/A | AD50: N/A | AE50: N/A | AF50: N/A | AG50: N/A | AH50: N/A | AI50: N/A | AJ50: N/A | AK50: N/A | AL50: N/A | AM50: N/A | AN50: N/A | AO50: N/A | BA50: Microbiological quality of improved water sources at point of collection | BB50: Not contaminated (No E. coli in 100 mL) | BC50: N/A | BD50: N/A | BE50: N/A | BF50: N/A | BG50: N/A | BH50: N/A | BI50: N/A | BJ50: N/A | BK50: N/A | BL50: N/A | BM50: N/A | BN50: N/A | BO50: N/A | BP50: N/A | BQ50: N/A | BR50: N/A | BS50: N/A | BT50: N/A | BU50: N/A | BV50: N/A | BW50: N/A | BX50: N/A | BY50: N/A | BZ50: N/A | CA50: N/A | CB50: N/A | CC50: N/A | CD50: N/A | CE50: N/A | CF50: N/A | CG50: N/A | CH50: N/A | CI50: N/A | CJ50: N/A | CK50: N/A | CL50: N/A | CM50: N/A | CN50: N/A | CO50: N/A
B51: Contaminated (E. coli detected in 100 mL) | C51: N/A | D51: N/A | E51: N/A | F51: N/A | G51: N/A | H51: N/A | I51: N/A | J51: N/A | K51: N/A | L51: N/A | M51: N/A | N51: N/A | O51: N/A | P51: N/A | Q51: N/A | R51: N/A | S51: N/A | T51: N/A | U51: N/A | V51: N/A | W51: N/A | X51: N/A | Y51: N/A | Z51: N/A | AA51: N/A | AB51: N/A | AC51: N/A | AD51: N/A | AE51: N/A | AF51: N/A | AG51: N/A | AH51: N/A | AI51: N/A | AJ51: N/A | AK51: N/A | AL51: N/A | AM51: N/A | AN51: N/A | AO51: N/A | BB51: Contaminated (E. coli detected in 100 mL) | BC51: N/A | BD51: N/A | BE51: N/A | BF51: N/A | BG51: N/A | BH51: N/A | BI51: N/A | BJ51: N/A | BK51: N/A | BL51: N/A | BM51: N/A | BN51: N/A | BO51: N/A | BP51: N/A | BQ51: N/A | BR51: N/A | BS51: N/A | BT51: N/A | BU51: N/A | BV51: N/A | BW51: N/A | BX51: N/A | BY51: N/A | BZ51: N/A | CA51: N/A | CB51: N/A | CC51: N/A | CD51: N/A | CE51: N/A | CF51: N/A | CG51: N/A | CH51: N/A | CI51: N/A | CJ51: N/A | CK51: N/A | CL51: N/A | CM51: N/A | CN51: N/A | CO51: N/A
B52: Highly contaminated (>100 CFU/100 mL) | C52: N/A | D52: N/A | E52: N/A | F52: N/A | G52: N/A | H52: N/A | I52: N/A | J52: N/A | K52: N/A | L52: N/A | M52: N/A | N52: N/A | O52: N/A | P52: N/A | Q52: N/A | R52: N/A | S52: N/A | T52: N/A | U52: N/A | V52: N/A | W52: N/A | X52: N/A | Y52: N/A | Z52: N/A | AA52: N/A | AB52: N/A | AC52: N/A | AD52: N/A | AE52: N/A | AF52: N/A | AG52: N/A | AH52: N/A | AI52: N/A | AJ52: N/A | AK52: N/A | AL52: N/A | AM52: N/A | AN52: N/A | AO52: N/A | BB52: Highly contaminated (>100 CFU/100 mL) | BC52: N/A | BD52: N/A | BE52: N/A | BF52: N/A | BG52: N/A | BH52: N/A | BI52: N/A | BJ52: N/A | BK52: N/A | BL52: N/A | BM52: N/A | BN52: N/A | BO52: N/A | BP52: N/A | BQ52: N/A | BR52: N/A | BS52: N/A | BT52: N/A | BU52: N/A | BV52: N/A | BW52: N/A | BX52: N/A | BY52: N/A | BZ52: N/A | CA52: N/A | CB52: N/A | CC52: N/A | CD52: N/A | CE52: N/A | CF52: N/A | CG52: N/A | CH52: N/A | CI52: N/A | CJ52: N/A | CK52: N/A | CL52: N/A | CM52: N/A | CN52: N/A | CO52: N/A
A53: Microbiological quality of piped on premises at point of collection | B53: Not contaminated (No E. coli in 100 mL) | C53: N/A | D53: N/A | E53: N/A | F53: N/A | G53: N/A | H53: N/A | I53: N/A | J53: N/A | K53: N/A | L53: N/A | M53: N/A | N53: N/A | O53: N/A | P53: N/A | Q53: N/A | R53: N/A | S53: N/A | T53: N/A | U53: N/A | V53: N/A | W53: N/A | X53: N/A | Y53: N/A | Z53: N/A | AA53: N/A | AB53: N/A | AC53: N/A | AD53: N/A | AE53: N/A | AF53: N/A | AG53: N/A | AH53: N/A | AI53: N/A | AJ53: N/A | AK53: N/A | AL53: N/A | AM53: N/A | AN53: N/A | AO53: N/A | BA53: Microbiological quality of piped on premises at point of collection | BB53: Not contaminated (No E. coli in 100 mL) | BC53: N/A | BD53: N/A | BE53: N/A | BF53: N/A | BG53: N/A | BH53: N/A | BI53: N/A | BJ53: N/A | BK53: N/A | BL53: N/A | BM53: N/A | BN53: N/A | BO53: N/A | BP53: N/A | BQ53: N/A | BR53: N/A | BS53: N/A | BT53: N/A | BU53: N/A | BV53: N/A | BW53: N/A | BX53: N/A | BY53: N/A | BZ53: N/A | CA53: N/A | CB53: N/A | CC53: N/A | CD53: N/A | CE53: N/A | CF53: N/A | CG53: N/A | CH53: N/A | CI53: N/A | CJ53: N/A | CK53: N/A | CL53: N/A | CM53: N/A | CN53: N/A | CO53: N/A
B54: Contaminated (E. coli detected in 100 mL) | C54: N/A | D54: N/A | E54: N/A | F54: N/A | G54: N/A | H54: N/A | I54: N/A | J54: N/A | K54: N/A | L54: N/A | M54: N/A | N54: N/A | O54: N/A | P54: N/A | Q54: N/A | R54: N/A | S54: N/A | T54: N/A | U54: N/A | V54: N/A | W54: N/A | X54: N/A | Y54: N/A | Z54: N/A | AA54: N/A | AB54: N/A | AC54: N/A | AD54: N/A | AE54: N/A | AF54: N/A | AG54: N/A | AH54: N/A | AI54: N/A | AJ54: N/A | AK54: N/A | AL54: N/A | AM54: N/A | AN54: N/A | AO54: N/A | BB54: Contaminated (E. coli detected in 100 mL) | BC54: N/A | BD54: N/A | BE54: N/A | BF54: N/A | BG54: N/A | BH54: N/A | BI54: N/A | BJ54: N/A | BK54: N/A | BL54: N/A | BM54: N/A | BN54: N/A | BO54: N/A | BP54: N/A | BQ54: N/A | BR54: N/A | BS54: N/A | BT54: N/A | BU54: N/A | BV54: N/A | BW54: N/A | BX54: N/A | BY54: N/A | BZ54: N/A | CA54: N/A | CB54: N/A | CC54: N/A | CD54: N/A | CE54: N/A | CF54: N/A | CG54: N/A | CH54: N/A | CI54: N/A | CJ54: N/A | CK54: N/A | CL54: N/A | CM54: N/A | CN54: N/A | CO54: N/A
B55: Highly contaminated (>100 CFU/100 mL) | C55: N/A | D55: N/A | E55: N/A | F55: N/A | G55: N/A | H55: N/A | I55: N/A | J55: N/A | K55: N/A | L55: N/A | M55: N/A | N55: N/A | O55: N/A | P55: N/A | Q55: N/A | R55: N/A | S55: N/A | T55: N/A | U55: N/A | V55: N/A | W55: N/A | X55: N/A | Y55: N/A | Z55: N/A | AA55: N/A | AB55: N/A | AC55: N/A | AD55: N/A | AE55: N/A | AF55: N/A | AG55: N/A | AH55: N/A | AI55: N/A | AJ55: N/A | AK55: N/A | AL55: N/A | AM55: N/A | AN55: N/A | AO55: N/A | BB55: Highly contaminated (>100 CFU/100 mL) | BC55: N/A | BD55: N/A | BE55: N/A | BF55: N/A | BG55: N/A | BH55: N/A | BI55: N/A | BJ55: N/A | BK55: N/A | BL55: N/A | BM55: N/A | BN55: N/A | BO55: N/A | BP55: N/A | BQ55: N/A | BR55: N/A | BS55: N/A | BT55: N/A | BU55: N/A | BV55: N/A | BW55: N/A | BX55: N/A | BY55: N/A | BZ55: N/A | CA55: N/A | CB55: N/A | CC55: N/A | CD55: N/A | CE55: N/A | CF55: N/A | CG55: N/A | CH55: N/A | CI55: N/A | CJ55: N/A | CK55: N/A | CL55: N/A | CM55: N/A | CN55: N/A | CO55: N/A
C56: NATIONAL wealth index quintile | H56: URBAN wealth index quintile | M56: RURAL wealth index quintile | R56: SUB-REGIONS: | BA56: Raw numbers of respondents: | BB56: Use of drinking water sources | BC56: NATIONAL wealth index quintile | BH56: URBAN wealth index quintile | BM56: RURAL wealth index quintile | BR56: SUB-REGIONS:
A57: Percentage based on weighted population | C57: Poorest | D57: Poor | E57: Middle | F57: Rich | G57: Richest | H57: Poorest | I57: Poor | J57: Middle | K57: Rich | L57: Richest | M57: Poorest | N57: Poor | O57: Middle | P57: Rich | Q57: Richest | R57: Amazonas | S57: Ancash | T57: Apurimac | U57: Arequipa | V57: Ayacucho | W57: Cajamarca | X57: Cusco | Y57: Huancavelica | Z57: Huanuco | AA57: Ica | AB57: Junin | AC57: La Libertad | AD57: Lambayeque | AE57: Lima | AF57: Loreto | AG57: Madre de Dios | AH57: Moquegua | AI57: Pasco | AJ57: Piura | AK57: Puno | AL57: San Martin | AM57: Tacna | AN57: Tumbes | AO57: Ucayali | BA57: Water data, raw numbers (weighted) | BC57: Poorest | BD57: Poor | BE57: Middle | BF57: Rich | BG57: Richest | BH57: Poorest | BI57: Poor | BJ57: Middle | BK57: Rich | BL57: Richest | BM57: Poorest | BN57: Poor | BO57: Middle | BP57: Rich | BQ57: Richest | BR57: Amazonas | BS57: Ancash | BT57: Apurimac | BU57: Arequipa | BV57: Ayacucho | BW57: Cajamarca | BX57: Cusco | BY57: Huancavelica | BZ57: Huanuco | CA57: Ica | CB57: Junin | CC57: La Libertad | CD57: Lambayeque | CE57: Lima | CF57: Loreto | CG57: Madre de Dios | CH57: Moquegua | CI57: Pasco | CJ57: Piura | CK57: Puno | CL57: San Martin | CM57: Tacna | CN57: Tumbes | CO57: Ucayali
A58: Source of drinking water | B58: Piped into dwelling | C58: 28.6436488 | D58: 41.99476888 | E58: 64.32700342 | F58: 83.51874331 | G58: 96.17304263 | H58: 50.88641014 | I58: 70.90183121 | J58: 82.40321497 | K58: 91.5927534 | L58: 97.93230702 | M58: 27.66609008 | N58: 29.30479324 | O58: 30.54751408 | P58: 38.89566945 | Q58: 51.40535236 | R58: 64.09211692 | S58: 70.59550793 | T58: 45.04249292 | U58: 74.11556604 | V58: 39.3442623 | W58: 47.41763134 | X58: 56.96774194 | Y58: 39.7515528 | Z58: 29.3271028 | AA58: 79.85246657 | AB58: 64.27572428 | AC58: 64.29283862 | AD58: 60.11997334 | AE58: 79.6835519 | AF58: 28.92818082 | AG58: 44.19074561 | AH58: 77.05758918 | AI58: 42.33204002 | AJ58: 57.86496995 | AK58: 46.71628722 | AL58: 52.87307935 | AM58: 77.29885057 | AN58: 68.75150349 | AO58: 24.86704956
B59: Piped into yard/plot/building | C59: 1.869107042 | D59: 3.872203632 | E59: 5.820382508 | F59: 4.274380334 | G59: 0.6538751018 | H59: 6.747553054 | I59: 5.813143669 | J59: 5.005556041 | K59: 1.979067933 | L59: 0.4150169615 | M59: 1.945960046 | N59: 1.872145905 | O59: 1.793749723 | P59: 2.391772391 | Q59: 2.459011154 | R59: 3.755535872 | S59: 3.152689058 | T59: 2.514164306 | U59: 3.203616352 | V59: 3.474206648 | W59: 3.628673197 | X59: 11.65591398 | Y59: 4.140786749 | Z59: 2.093457944 | AA59: 2.766251729 | AB59: 8.271728272 | AC59: 2.752842609 | AD59: 0.8664741169 | AE59: 3.190206731 | AF59: 1.585854903 | AG59: 7.961204284 | AH59: 2.14502215 | AI59: 5.921993057 | AJ59: 0 | AK59: 1.255107998 | AL59: 1.368133025 | AM59: 3.657262278 | AN59: 5.436612942 | AO59: 1.999574559
B60: Public tap | C60: 8.846904404 | D60: 10.14513417 | E60: 7.761917022 | F60: 3.645376164 | G60: 0.6785813013 | H60: 13.69695401 | I60: 6.106521005 | J60: 4.256230146 | K60: 1.947935224 | L60: 0.4049657005 | M60: 7.67213363 | N60: 8.19452301 | O60: 8.901145437 | P60: 8.00204852 | Q60: 6.383540383 | R60: 3.82639504 | S60: 3.276323923 | T60: 2.124645892 | U60: 9.630503145 | V60: 8.046322755 | W60: 5.253784506 | X60: 5.139784946 | Y60: 22.09674384 | Z60: 17.17757009 | AA60: 4.172429691 | AB60: 6.553446553 | AC60: 2.333931777 | AD60: 10.81981782 | AE60: 4.177875794 | AF60: 4.119577105 | AG60: 7.698524955 | AH60: 7.857309396 | AI60: 14.33530733 | AJ60: 7.741251326 | AK60: 5.414477525 | AL60: 6.714375921 | AM60: 10.97178683 | AN60: 13.30286264 | AO60: 4.594767071
B61: Well into dwelling/yard/plot | C61: 2.644082077 | D61: 6.680135458 | E61: 4.398379628 | F61: 2.257203916 | G61: 0.6680841921 | H61: 4.546183569 | I61: 3.47427475 | J61: 1.845888898 | K61: 1.065361935 | L61: 0.3503399951 | M61: 1.639165165 | N61: 2.130808845 | O61: 5.753785739 | P61: 7.771220497 | Q61: 8.640501289 | R61: 1.009743136 | S61: 0.5563568926 | T61: 0 | U61: 2.279874214 | V61: 0.5564746578 | W61: 1.42475512 | X61: 0.2365591398 | Y61: 0.2446828534 | Z61: 1.943925234 | AA61: 1.890272015 | AB61: 3.776223776 | AC61: 7.97925394 | AD61: 6.287491669 | AE61: 1.250999289 | AF61: 10.00729129 | AG61: 5.051525561 | AH61: 0.2797854978 | AI61: 0.5105166428 | AJ61: 0.08837044892 | AK61: 21.73088149 | AL61: 3.788676068 | AM61: 0.6792058516 | AN61: 0.2165022853 | AO61: 10.29568177
B62: Public well | C62: 4.537443068 | D62: 10.15347083 | E62: 3.547523971 | F62: 1.506360783 | G62: 0.2514563711 | H62: 6.187638723 | I62: 2.926070426 | J62: 1.281884036 | K62: 0.4138493674 | L62: 0 | M62: 2.838544194 | N62: 3.971382666 | O62: 8.372054841 | P62: 11.54886937 | Q62: 9.170994727 | R62: 4.995571302 | S62: 0.4533278385 | T62: 0.9915014164 | U62: 2.751572327 | V62: 0.5715145135 | W62: 1.580587711 | X62: 1.010752688 | Y62: 1.430453604 | Z62: 0.9345794393 | AA62: 2.489626556 | AB62: 0.3596403596 | AC62: 2.952323958 | AD62: 14.64119085 | AE62: 1.598899258 | AF62: 14.50966096 | AG62: 9.0119216 | AH62: 0.02331545815 | AI62: 1.184398611 | AJ62: 5.072463768 | AK62: 13.35376532 | AL62: 3.388760261 | AM62: 0.3396029258 | AN62: 1.250902093 | AO62: 36.5241438
B63: Spring | C63: 33.70169509 | D63: 10.45411446 | E63: 1.598621064 | F63: 0.3439199223 | G63: 0.1237668634 | H63: 3.069875764 | I63: 0.799861462 | J63: 0.3733510607 | K63: 0.1491671042 | L63: 0.08541273864 | M63: 41.42581924 | N63: 32.76457959 | O63: 24.53759166 | P63: 13.68100417 | Q63: 6.05449854 | R63: 10.2214349 | S63: 6.841129198 | T63: 41.28895184 | U63: 2.083333333 | V63: 40.08121522 | W63: 28.94033838 | X63: 16.49462366 | Y63: 24.88236401 | Z63: 28.41121495 | AA63: 0.7837713232 | AB63: 10.16983017 | AC63: 13.76421305 | AD63: 0.7998222617 | AE63: 0.6536463303 | AF63: 6.616842873 | AG63: 10.24449384 | AH63: 3.637211471 | AI63: 21.36001634 | AJ63: 12.53092966 | AK63: 8.53765324 | AL63: 8.777099558 | AM63: 0.8620689655 | AN63: 0.1924464758 | AO63: 2.531376303
B64: River | C64: 18.02616343 | D64: 10.67733796 | E64: 1.841398753 | F64: 0.1899282618 | G64: 0.00683174228 | H64: 1.775590701 | I64: 0.32399786 | J64: 0.1159425221 | K64: 0 | L64: 0 | M64: 15.81965754 | N64: 20.4474173 | O64: 18.97156818 | P64: 15.39556999 | Q64: 9.493782497 | R64: 8.573959256 | S64: 10.0762415 | T64: 7.064447592 | U64: 3.007075472 | V64: 6.843134306 | W64: 10.6411398 | X64: 5.655913978 | Y64: 5.928853755 | Z64: 18.95327103 | AA64: 1.913324112 | AB64: 6.133866134 | AC64: 2.792738879 | AD64: 2.132859365 | AE64: 1.731147828 | AF64: 31.38899016 | AG64: 13.35623358 | AH64: 8.370249475 | AI64: 7.188074331 | AJ64: 5.001767409 | AK64: 2.4372446 | AL64: 21.02715218 | AM64: 3.187042842 | AN64: 6.374789512 | AO64: 16.01786854
B65: Rainwater | C65: 0.08771294493 | D65: 0.03563571954 | E65: 0.001478290018 | F65: 0 | G65: 0 | H65: 0.01854864647 | I65: 0 | J65: 0 | K65: 0 | L65: 0 | M65: 0.07036696663 | N65: 0.08809504934 | O65: 0.06049665968 | P65: 0.07400260446 | Q65: 0.01584071862 | R65: 0 | S65: 0 | T65: 0.07082152975 | U65: 0 | V65: 0 | W65: 0 | X65: 0 | Y65: 0 | Z65: 0.1682242991 | AA65: 0 | AB65: 0 | AC65: 0 | AD65: 0 | AE65: 0 | AF65: 0.3098796938 | AG65: 0.3839159426 | AH65: 0 | AI65: 0.02042066571 | AJ65: 0 | AK65: 0.01459427904 | AL65: 0.2104820038 | AM65: 0 | AN65: 0 | AO65: 0.06381620932
B66: Tanker truck | C66: 0.3747792165 | D66: 3.255955185 | E66: 7.048321443 | F66: 3.328376394 | G66: 1.189719881 | H66: 7.246412668 | I66: 6.47868288 | J66: 3.697678688 | K66: 2.311671551 | L66: 0.6532887574 | M66: 0.1241370539 | N66: 0.1615258411 | O66: 0.1422673744 | P66: 0.9602865825 | Q66: 4.828192008 | R66: 0.08857395926 | S66: 0.4533278385 | T66: 0 | U66: 1.356132075 | V66: 0 | W66: 0.04452359751 | X66: 0 | Y66: 0 | Z66: 0.6355140187 | AA66: 2.328261872 | AB66: 0 | AC66: 1.156991821 | AD66: 2.821595201 | AE66: 6.352056068 | AF66: 1.203062341 | AG66: 0.02020610224 | AH66: 0.1398927489 | AI66: 2.00122524 | AJ66: 8.18310357 | AK66: 0 | AL66: 0 | AM66: 1.358411703 | AN66: 2.261246091 | AO66: 2.637736652
B67: Other | C67: 1.26846393 | D67: 2.731243702 | E67: 3.654973899 | F67: 0.9357109107 | G67: 0.2546419211 | H67: 5.824832724 | I67: 3.175616737 | J67: 1.020253634 | K67: 0.5401934875 | L67: 0.1586688295 | M67: 0.7981260875 | N67: 1.064728545 | O67: 0.9198263062 | P67: 1.279556425 | Q67: 1.548286327 | R67: 3.436669619 | S67: 4.595095817 | T67: 0.9029745042 | U67: 1.572327044 | V67: 1.082869604 | W67: 1.06856634 | X67: 2.838709677 | Y67: 1.524562394 | Z67: 0.3551401869 | AA67: 3.803596127 | AB67: 0.4595404595 | AC67: 1.97486535 | AD67: 1.510775383 | AE67: 1.361616797 | AF67: 1.330659861 | AG67: 2.081228531 | AH67: 0.4896246211 | AI67: 5.14600776 | AJ67: 3.517143867 | AK67: 0.5399883246 | AL67: 1.852241633 | AM67: 1.645768025 | AN67: 2.213134472 | AO67: 0.467985535
A108: =A1026 -> Peru
A109: =A1034 -> 2000
A110: Use of sanitation facilities
A111: by wealth quintile and sub-national region
A112: Notes:
A113: WHO/UNICEF JMP customised wealth index excludes water,
A114: sanitation and hygiene assets.
A115: Survey used for analysis: | B115: =A1025 -> DHS00
A116: Shared improved facilities based on: | B116: Shared facilities
A117: Improved latrines based on: | B117: 50% Rule
A120: Use of sanitation facilities | C120: NATIONAL wealth index quintile | H120: URBAN wealth index quintile | M120: RURAL wealth index quintile | R120: SUB-REGIONS: | BA120: Raw numbers of respondents: | BB120: Use of sanitation facilities | BC120: NATIONAL wealth index quintile | BH120: URBAN wealth index quintile | BM120: RURAL wealth index quintile | BR120: SUB-REGIONS:
A121: Weighted percentage (used in graphs) | C121: Poorest | D121: Poor | E121: Middle | F121: Rich | G121: Richest | H121: Poorest | I121: Poor | J121: Middle | K121: Rich | L121: Richest | M121: Poorest | N121: Poor | O121: Middle | P121: Rich | Q121: Richest | R121: Amazonas | S121: Ancash | T121: Apurimac | U121: Arequipa | V121: Ayacucho | W121: Cajamarca | X121: Cusco | Y121: Huancavelica | Z121: Huanuco | AA121: Ica | AB121: Junin | AC121: La Libertad | AD121: Lambayeque | AE121: Lima | AF121: Loreto | AG121: Madre de Dios | AH121: Moquegua | AI121: Pasco | AJ121: Piura | AK121: Puno | AL121: San Martin | AM121: Tacna | AN121: Tumbes | AO121: Ucayali | BA121: Sanitation data, raw numbers (weighted) | BC121: Poorest | BD121: Poor | BE121: Middle | BF121: Rich | BG121: Richest | BH121: Poorest | BI121: Poor | BJ121: Middle | BK121: Rich | BL121: Richest | BM121: Poorest | BN121: Poor | BO121: Middle | BP121: Rich | BQ121: Richest | BR121: Amazonas | BS121: Ancash | BT121: Apurimac | BU121: Arequipa | BV121: Ayacucho | BW121: Cajamarca | BX121: Cusco | BY121: Huancavelica | BZ121: Huanuco | CA121: Ica | CB121: Junin | CC121: La Libertad | CD121: Lambayeque | CE121: Lima | CF121: Loreto | CG121: Madre de Dios | CH121: Moquegua | CI121: Pasco | CJ121: Piura | CK121: Puno | CL121: San Martin | CM121: Tacna | CN121: Tumbes | CO121: Ucayali
A122: Sanitation | B122: Improved | C122: =C153+C154+C155+C156+(C157+C158)*0.5 -> 21.17483277 | D122: 38.31960334 | E122: 71.3128318 | F122: 90.59021927 | G122: 97.90521723 | H122: 54.09029293 | I122: 79.9189481 | J122: 90.79552452 | K122: 95.69771572 | L122: 98.93228873 | M122: 17.9826771 | N122: 21.98760775 | O122: 24.59118891 | P122: 32.73276922 | Q122: 48.67542106 | R122: 50.31886625 | S122: 49.72182155 | T122: 35.57147912 | U122: 79.87421384 | V122: 40.37215609 | W122: 47.60685663 | X122: 42.39784946 | Y122: 18.25710521 | Z122: 35.30841121 | AA122: 73.45550945 | AB122: 56.85314685 | AC122: 59.50528626 | AD122: 67.82937125 | AE122: 87.4599847 | AF122: 44.85052862 | AG122: 55.83232078 | AH122: 75.2622989 | AI122: 38.5644272 | AJ122: 57.8180212 | AK122: 40.2830464 | AL122: 58.32278481 | AM122: 83.95658996 | AN122: 72.22222222 | AO122: 51.35481118 | BA122: Sanitation | BB122: Improved | BC122: N/A | BD122: N/A | BE122: N/A | BF122: N/A | BG122: N/A | BH122: N/A | BI122: N/A | BJ122: N/A | BK122: N/A | BL122: N/A | BM122: N/A | BN122: N/A | BO122: N/A | BP122: N/A | BQ122: N/A | BR122: N/A | BS122: N/A | BT122: N/A | BU122: N/A | BV122: N/A | BW122: N/A | BX122: N/A | BY122: N/A | BZ122: N/A | CA122: N/A | CB122: N/A | CC122: N/A | CD122: N/A | CE122: N/A | CF122: N/A | CG122: N/A | CH122: N/A | CI122: N/A | CJ122: N/A | CK122: N/A | CL122: N/A | CM122: N/A | CN122: N/A | CO122: N/A
B123: Not Improved | C123: =100-C122 -> 78.82516723 | D123: 61.68039666 | E123: 28.6871682 | F123: 9.409780733 | G123: 2.094782775 | H123: 45.90970707 | I123: 20.0810519 | J123: 9.204475484 | K123: 4.302284279 | L123: 1.067711268 | M123: 82.0173229 | N123: 78.01239225 | O123: 75.40881109 | P123: 67.26723078 | Q123: 51.32457894 | R123: 49.68113375 | S123: 50.27817845 | T123: 64.42852088 | U123: 20.12578616 | V123: 59.62784391 | W123: 52.39314337 | X123: 57.60215054 | Y123: 81.74289479 | Z123: 64.69158879 | AA123: 26.54449055 | AB123: 43.14685315 | AC123: 40.49471374 | AD123: 32.17062875 | AE123: 12.5400153 | AF123: 55.14947138 | AG123: 44.16767922 | AH123: 24.7377011 | AI123: 61.4355728 | AJ123: 42.1819788 | AK123: 59.7169536 | AL123: 41.67721519 | AM123: 16.04341004 | AN123: 27.77777778 | AO123: 48.64518882 | BB123: Not Improved | BC123: N/A | BD123: N/A | BE123: N/A | BF123: N/A | BG123: N/A | BH123: N/A | BI123: N/A | BJ123: N/A | BK123: N/A | BL123: N/A | BM123: N/A | BN123: N/A | BO123: N/A | BP123: N/A | BQ123: N/A | BR123: N/A | BS123: N/A | BT123: N/A | BU123: N/A | BV123: N/A | BW123: N/A | BX123: N/A | BY123: N/A | BZ123: N/A | CA123: N/A | CB123: N/A | CC123: N/A | CD123: N/A | CE123: N/A | CF123: N/A | CG123: N/A | CH123: N/A | CI123: N/A | CJ123: N/A | CK123: N/A | CL123: N/A | CM123: N/A | CN123: N/A | CO123: N/A
A124: Sanitation ladder | B124: Basic | C124: =C122*C129/100 -> 20.63540628 | D124: 35.59198871 | E124: 63.44658674 | F124: 82.02786711 | G124: 95.68074091 | H124: 48.14650451 | I124: 71.23709266 | J124: 81.27338365 | K124: 90.11692098 | L124: 97.77622796 | M124: 17.70257877 | N124: 21.38562465 | O124: 23.67053753 | P124: 31.00701567 | Q124: 45.22792554 | R124: 47.27031847 | S124: 47.41656504 | T124: 34.03583848 | U124: 73.79887564 | V124: 36.86311756 | W124: 46.11251853 | X124: 36.27725766 | Y124: 17.20903123 | Z124: 33.9620718 | AA124: 69.0359871 | AB124: 52.05953487 | AC124: 57.57044451 | AD124: 61.24384909 | AE124: 80.80001572 | AF124: 42.70038479 | AG124: 51.31970645 | AH124: 72.38446794 | AI124: 34.13073871 | AJ124: 57.67500843 | AK124: 37.39183431 | AL124: 55.41339731 | AM124: 77.06986863 | AN124: 71.31901021 | AO124: 46.20189949 | BA124: Sanitation ladder | BB124: Basic | BC124: N/A | BD124: N/A | BE124: N/A | BF124: N/A | BG124: N/A | BH124: N/A | BI124: N/A | BJ124: N/A | BK124: N/A | BL124: N/A | BM124: N/A | BN124: N/A | BO124: N/A | BP124: N/A | BQ124: N/A | BR124: N/A | BS124: N/A | BT124: N/A | BU124: N/A | BV124: N/A | BW124: N/A | BX124: N/A | BY124: N/A | BZ124: N/A | CA124: N/A | CB124: N/A | CC124: N/A | CD124: N/A | CE124: N/A | CF124: N/A | CG124: N/A | CH124: N/A | CI124: N/A | CJ124: N/A | CK124: N/A | CL124: N/A | CM124: N/A | CN124: N/A | CO124: N/A
B125: Limited | C125: =C122*C128/100 -> 0.5394264924 | D125: 2.72761463 | E125: 7.866245059 | F125: 8.562352155 | G125: 2.224476317 | H125: 5.943788426 | I125: 8.681855441 | J125: 9.522140865 | K125: 5.580794744 | L125: 1.156060774 | M125: 0.2800983302 | N125: 0.6019830943 | O125: 0.9206513828 | P125: 1.725753552 | Q125: 3.447495526 | R125: 3.048547787 | S125: 2.305256511 | T125: 1.535640642 | U125: 6.075338199 | V125: 3.50903853 | W125: 1.494338109 | X125: 6.120591802 | Y125: 1.048073986 | Z125: 1.346339418 | AA125: 4.419522353 | AB125: 4.793611982 | AC125: 1.934841743 | AD125: 6.585522159 | AE125: 6.659968972 | AF125: 2.150143825 | AG125: 4.512614328 | AH125: 2.877830968 | AI125: 4.433688486 | AJ125: 0.1430127733 | AK125: 2.891212083 | AL125: 2.909387497 | AM125: 6.886721329 | AN125: 0.9032120143 | AO125: 5.152911686 | BB125: Limited | BC125: N/A | BD125: N/A | BE125: N/A | BF125: N/A | BG125: N/A | BH125: N/A | BI125: N/A | BJ125: N/A | BK125: N/A | BL125: N/A | BM125: N/A | BN125: N/A | BO125: N/A | BP125: N/A | BQ125: N/A | BR125: N/A | BS125: N/A | BT125: N/A | BU125: N/A | BV125: N/A | BW125: N/A | BX125: N/A | BY125: N/A | BZ125: N/A | CA125: N/A | CB125: N/A | CC125: N/A | CD125: N/A | CE125: N/A | CF125: N/A | CG125: N/A | CH125: N/A | CI125: N/A | CJ125: N/A | CK125: N/A | CL125: N/A | CM125: N/A | CN125: N/A | CO125: N/A
B126: Unimproved | C126: =100-(C124+C125+C127) -> 20.45263556 | D126: 25.69690863 | E126: 17.57713588 | F126: 7.202019148 | G126: 1.98083956 | H126: 22.24051178 | I126: 13.8710263 | J126: 7.032436586 | K126: 3.884949552 | L126: 1.037329175 | M126: 17.89390574 | N126: 20.75730932 | O126: 22.72523526 | P126: 27.59657781 | Q126: 26.95575869 | R126: 26.84676705 | S126: 12.48712137 | T126: 16.07395612 | U126: 11.36006289 | V126: 17.7565165 | W126: 24.27649154 | X126: 17.96774194 | Y126: 13.58930924 | Z126: 17.17757009 | AA126: 15.64084832 | AB126: 17.81218781 | AC126: 12.42768801 | AD126: 20.32881582 | AE126: 7.253324725 | AF126: 26.73168064 | AG126: 29.22235723 | AH126: 10.51527163 | AI126: 18.38880948 | AJ126: 11.65194346 | AK126: 22.10388095 | AL126: 25.11603376 | AM126: 8.224372385 | AN126: 14.45406445 | AO126: 34.90505654 | BB126: Unimproved | BC126: N/A | BD126: N/A | BE126: N/A | BF126: N/A | BG126: N/A | BH126: N/A | BI126: N/A | BJ126: N/A | BK126: N/A | BL126: N/A | BM126: N/A | BN126: N/A | BO126: N/A | BP126: N/A | BQ126: N/A | BR126: N/A | BS126: N/A | BT126: N/A | BU126: N/A | BV126: N/A | BW126: N/A | BX126: N/A | BY126: N/A | BZ126: N/A | CA126: N/A | CB126: N/A | CC126: N/A | CD126: N/A | CE126: N/A | CF126: N/A | CG126: N/A | CH126: N/A | CI126: N/A | CJ126: N/A | CK126: N/A | CL126: N/A | CM126: N/A | CN126: N/A | CO126: N/A
B127: Open defecation | C127: =C159 -> 58.37253167 | D127: 35.98348802 | E127: 11.11003232 | F127: 2.207761584 | G127: 0.1139432149 | H127: 23.66919529 | I127: 6.210025596 | J127: 2.172038898 | K127: 0.4173347269 | L127: 0.03038209254 | M127: 64.12341716 | N127: 57.25508294 | O127: 52.68357583 | P127: 39.67065296 | Q127: 24.36882024 | R127: 22.8343667 | S127: 37.79105708 | T127: 48.35456476 | U127: 8.76572327 | V127: 41.87132741 | W127: 28.11665183 | X127: 39.6344086 | Y127: 68.15358554 | Z127: 47.51401869 | AA127: 10.90364223 | AB127: 25.33466533 | AC127: 28.06702573 | AD127: 11.84181293 | AE127: 5.286690579 | AF127: 28.41779074 | AG127: 14.94532199 | AH127: 14.22242947 | AI127: 43.04676332 | AJ127: 30.53003534 | AK127: 37.61307266 | AL127: 16.56118143 | AM127: 7.819037657 | AN127: 13.32371332 | AO127: 13.74013228 | BB127: Open defecation | BC127: N/A | BD127: N/A | BE127: N/A | BF127: N/A | BG127: N/A | BH127: N/A | BI127: N/A | BJ127: N/A | BK127: N/A | BL127: N/A | BM127: N/A | BN127: N/A | BO127: N/A | BP127: N/A | BQ127: N/A | BR127: N/A | BS127: N/A | BT127: N/A | BU127: N/A | BV127: N/A | BW127: N/A | BX127: N/A | BY127: N/A | BZ127: N/A | CA127: N/A | CB127: N/A | CC127: N/A | CD127: N/A | CE127: N/A | CF127: N/A | CG127: N/A | CH127: N/A | CI127: N/A | CJ127: N/A | CK127: N/A | CL127: N/A | CM127: N/A | CN127: N/A | CO127: N/A
A128: Shared among Improved Sanitation | B128: Yes | C128: =C151 -> 2.547488796 | D128: =D151 -> 7.118065929 | E128: 11.03061659 | F128: 9.451740182 | G128: 2.272071275 | H128: 10.98864159 | I128: 10.86332547 | J128: 10.4874562 | K128: 5.831690655 | L128: 1.16853738 | M128: 1.557600844 | N128: 2.737828968 | O128: 3.743826239 | P128: 5.272250386 | Q128: 7.082620859 | R128: 6.058458813 | S128: 4.636307439 | T128: 4.317055909 | U128: 7.606132075 | V128: 8.691729323 | W128: 3.138913624 | X128: 14.43609023 | Y128: 5.740636175 | Z128: 3.813084112 | AA128: 6.01659751 | AB128: 8.431568432 | AC128: 3.25154598 | AD128: 9.708953566 | AE128: 7.614875529 | AF128: 4.794021145 | AG128: 8.082440897 | AH128: 3.823735136 | AI128: 11.4968348 | AJ128: 0.2473498233 | AK128: 7.177242888 | AL128: 4.98842349 | AM128: 8.202716823 | AN128: 1.250601251 | AO128: 10.03394145 | BA128: Shared among improved sanitation facilities | BB128: Yes | BC128: N/A | BD128: N/A | BE128: N/A | BF128: N/A | BG128: N/A | BH128: N/A | BI128: N/A | BJ128: N/A | BK128: N/A | BL128: N/A | BM128: N/A | BN128: N/A | BO128: N/A | BP128: N/A | BQ128: N/A | BR128: N/A | BS128: N/A | BT128: N/A | BU128: N/A | BV128: N/A | BW128: N/A | BX128: N/A | BY128: N/A | BZ128: N/A | CA128: N/A | CB128: N/A | CC128: N/A | CD128: N/A | CE128: N/A | CF128: N/A | CG128: N/A | CH128: N/A | CI128: N/A | CJ128: N/A | CK128: N/A | CL128: N/A | CM128: N/A | CN128: N/A | CO128: N/A
B129: No | C129: =C152 -> 97.4525112 | D129: =D152 -> 92.88193407 | E129: 88.96938341 | F129: 90.54825982 | G129: 97.72792873 | H129: 89.01135841 | I129: 89.13667453 | J129: 89.5125438 | K129: 94.16830935 | L129: 98.83146262 | M129: 98.44239916 | N129: 97.26217103 | O129: 96.25617376 | P129: 94.72774961 | Q129: 92.91737914 | R129: 93.94154119 | S129: 95.36369256 | T129: 95.68294409 | U129: 92.39386792 | V129: 91.30827068 | W129: 96.86108638 | X129: 85.56390977 | Y129: 94.25936382 | Z129: 96.18691589 | AA129: 93.98340249 | AB129: 91.56843157 | AC129: 96.74845402 | AD129: 90.29104643 | AE129: 92.38512447 | AF129: 95.20597886 | AG129: 91.9175591 | AH129: 96.17626486 | AI129: 88.5031652 | AJ129: 99.75265018 | AK129: 92.82275711 | AL129: 95.01157651 | AM129: 91.79728318 | AN129: 98.74939875 | AO129: 89.96605855 | BB129: No | BC129: N/A | BD129: N/A | BE129: N/A | BF129: N/A | BG129: N/A | BH129: N/A | BI129: N/A | BJ129: N/A | BK129: N/A | BL129: N/A | BM129: N/A | BN129: N/A | BO129: N/A | BP129: N/A | BQ129: N/A | BR129: N/A | BS129: N/A | BT129: N/A | BU129: N/A | BV129: N/A | BW129: N/A | BX129: N/A | BY129: N/A | BZ129: N/A | CA129: N/A | CB129: N/A | CC129: N/A | CD129: N/A | CE129: N/A | CF129: N/A | CG129: N/A | CH129: N/A | CI129: N/A | CJ129: N/A | CK129: N/A | CL129: N/A | CM129: N/A | CN129: N/A | CO129: N/A
A130: Manually calculated ratios | B130: Improved latrines
B131: Other
B132: Other
C133: NATIONAL wealth index quintile | H133: URBAN wealth index quintile | M133: RURAL wealth index quintile | R133: SUB-REGIONS: | BA133: Raw numbers of respondents: | BB133: Use of sanitation facilities | BC133: NATIONAL wealth index quintile | BH133: URBAN wealth index quintile | BM133: RURAL wealth index quintile | BR133: SUB-REGIONS:
A134: Percentage based on weighted population | C134: Poorest | D134: Poor | E134: Middle | F134: Rich | G134: Richest | H134: Poorest | I134: Poor | J134: Middle | K134: Rich | L134: Richest | M134: Poorest | N134: Poor | O134: Middle | P134: Rich | Q134: Richest | R134: Amazonas | S134: Ancash | T134: Apurimac | U134: Arequipa | V134: Ayacucho | W134: Cajamarca | X134: Cusco | Y134: Huancavelica | Z134: Huanuco | AA134: Ica | AB134: Junin | AC134: La Libertad | AD134: Lambayeque | AE134: Lima | AF134: Loreto | AG134: Madre de Dios | AH134: Moquegua | AI134: Pasco | AJ134: Piura | AK134: Puno | AL134: San Martin | AM134: Tacna | AN134: Tumbes | AO134: Ucayali | BA134: Sanitation data, raw numbers (weighted) | BC134: Poorest | BD134: Poor | BE134: Middle | BF134: Rich | BG134: Richest | BH134: Poorest | BI134: Poor | BJ134: Middle | BK134: Rich | BL134: Richest | BM134: Poorest | BN134: Poor | BO134: Middle | BP134: Rich | BQ134: Richest | BR134: Amazonas | BS134: Ancash | BT134: Apurimac | BU134: Arequipa | BV134: Ayacucho | BW134: Cajamarca | BX134: Cusco | BY134: Huancavelica | BZ134: Huanuco | CA134: Ica | CB134: Junin | CC134: La Libertad | CD134: Lambayeque | CE134: Lima | CF134: Loreto | CG134: Madre de Dios | CH134: Moquegua | CI134: Pasco | CJ134: Piura | CK134: Puno | CL134: San Martin | CM134: Tacna | CN134: Tumbes | CO134: Ucayali
A135: Sanitation type | B135: Sewer connection | C135: N/A | D135: N/A | E135: N/A | F135: N/A | G135: N/A | H135: N/A | I135: N/A | J135: N/A | K135: N/A | L135: N/A | M135: N/A | N135: N/A | O135: N/A | P135: N/A | Q135: N/A | R135: N/A | S135: N/A | T135: N/A | U135: N/A | V135: N/A | W135: N/A | X135: N/A | Y135: N/A | Z135: N/A | AA135: N/A | AB135: N/A | AC135: N/A | AD135: N/A | AE135: N/A | AF135: N/A | AG135: N/A | AH135: N/A | AI135: N/A | AJ135: N/A | AK135: N/A | AL135: N/A | AM135: N/A | AN135: N/A | AO135: N/A | BA135: Sanitation type | BB135: Sewer connection | BC135: N/A | BD135: N/A | BE135: N/A | BF135: N/A | BG135: N/A | BH135: N/A | BI135: N/A | BJ135: N/A | BK135: N/A | BL135: N/A | BM135: N/A | BN135: N/A | BO135: N/A | BP135: N/A | BQ135: N/A | BR135: N/A | BS135: N/A | BT135: N/A | BU135: N/A | BV135: N/A | BW135: N/A | BX135: N/A | BY135: N/A | BZ135: N/A | CA135: N/A | CB135: N/A | CC135: N/A | CD135: N/A | CE135: N/A | CF135: N/A | CG135: N/A | CH135: N/A | CI135: N/A | CJ135: N/A | CK135: N/A | CL135: N/A | CM135: N/A | CN135: N/A | CO135: N/A
B136: Septic tank connection | C136: N/A | D136: N/A | E136: N/A | F136: N/A | G136: N/A | H136: N/A | I136: N/A | J136: N/A | K136: N/A | L136: N/A | M136: N/A | N136: N/A | O136: N/A | P136: N/A | Q136: N/A | R136: N/A | S136: N/A | T136: N/A | U136: N/A | V136: N/A | W136: N/A | X136: N/A | Y136: N/A | Z136: N/A | AA136: N/A | AB136: N/A | AC136: N/A | AD136: N/A | AE136: N/A | AF136: N/A | AG136: N/A | AH136: N/A | AI136: N/A | AJ136: N/A | AK136: N/A | AL136: N/A | AM136: N/A | AN136: N/A | AO136: N/A | BB136: Septic tank connection | BC136: N/A | BD136: N/A | BE136: N/A | BF136: N/A | BG136: N/A | BH136: N/A | BI136: N/A | BJ136: N/A | BK136: N/A | BL136: N/A | BM136: N/A | BN136: N/A | BO136: N/A | BP136: N/A | BQ136: N/A | BR136: N/A | BS136: N/A | BT136: N/A | BU136: N/A | BV136: N/A | BW136: N/A | BX136: N/A | BY136: N/A | BZ136: N/A | CA136: N/A | CB136: N/A | CC136: N/A | CD136: N/A | CE136: N/A | CF136: N/A | CG136: N/A | CH136: N/A | CI136: N/A | CJ136: N/A | CK136: N/A | CL136: N/A | CM136: N/A | CN136: N/A | CO136: N/A
B137: Improved latrines | C137: N/A | D137: N/A | E137: N/A | F137: N/A | G137: N/A | H137: N/A | I137: N/A | J137: N/A | K137: N/A | L137: N/A | M137: N/A | N137: N/A | O137: N/A | P137: N/A | Q137: N/A | R137: N/A | S137: N/A | T137: N/A | U137: N/A | V137: N/A | W137: N/A | X137: N/A | Y137: N/A | Z137: N/A | AA137: N/A | AB137: N/A | AC137: N/A | AD137: N/A | AE137: N/A | AF137: N/A | AG137: N/A | AH137: N/A | AI137: N/A | AJ137: N/A | AK137: N/A | AL137: N/A | AM137: N/A | AN137: N/A | AO137: N/A | BB137: Improved latrines | BC137: N/A | BD137: N/A | BE137: N/A | BF137: N/A | BG137: N/A | BH137: N/A | BI137: N/A | BJ137: N/A | BK137: N/A | BL137: N/A | BM137: N/A | BN137: N/A | BO137: N/A | BP137: N/A | BQ137: N/A | BR137: N/A | BS137: N/A | BT137: N/A | BU137: N/A | BV137: N/A | BW137: N/A | BX137: N/A | BY137: N/A | BZ137: N/A | CA137: N/A | CB137: N/A | CC137: N/A | CD137: N/A | CE137: N/A | CF137: N/A | CG137: N/A | CH137: N/A | CI137: N/A | CJ137: N/A | CK137: N/A | CL137: N/A | CM137: N/A | CN137: N/A | CO137: N/A
B138: Unimproved facilities | C138: N/A | D138: N/A | E138: N/A | F138: N/A | G138: N/A | H138: N/A | I138: N/A | J138: N/A | K138: N/A | L138: N/A | M138: N/A | N138: N/A | O138: N/A | P138: N/A | Q138: N/A | R138: N/A | S138: N/A | T138: N/A | U138: N/A | V138: N/A | W138: N/A | X138: N/A | Y138: N/A | Z138: N/A | AA138: N/A | AB138: N/A | AC138: N/A | AD138: N/A | AE138: N/A | AF138: N/A | AG138: N/A | AH138: N/A | AI138: N/A | AJ138: N/A | AK138: N/A | AL138: N/A | AM138: N/A | AN138: N/A | AO138: N/A | BB138: Unimproved facilities | BC138: N/A | BD138: N/A | BE138: N/A | BF138: N/A | BG138: N/A | BH138: N/A | BI138: N/A | BJ138: N/A | BK138: N/A | BL138: N/A | BM138: N/A | BN138: N/A | BO138: N/A | BP138: N/A | BQ138: N/A | BR138: N/A | BS138: N/A | BT138: N/A | BU138: N/A | BV138: N/A | BW138: N/A | BX138: N/A | BY138: N/A | BZ138: N/A | CA138: N/A | CB138: N/A | CC138: N/A | CD138: N/A | CE138: N/A | CF138: N/A | CG138: N/A | CH138: N/A | CI138: N/A | CJ138: N/A | CK138: N/A | CL138: N/A | CM138: N/A | CN138: N/A | CO138: N/A
B139: Open defecation | C139: =C159 -> 58.37253167 | D139: 35.98348802 | E139: 11.11003232 | F139: 2.207761584 | G139: 0.1139432149 | H139: 23.66919529 | I139: 6.210025596 | J139: 2.172038898 | K139: 0.4173347269 | L139: 0.03038209254 | M139: 64.12341716 | N139: 57.25508294 | O139: 52.68357583 | P139: 39.67065296 | Q139: 24.36882024 | R139: 22.8343667 | S139: 37.79105708 | T139: 48.35456476 | U139: 8.76572327 | V139: 41.87132741 | W139: 28.11665183 | X139: 39.6344086 | Y139: 68.15358554 | Z139: 47.51401869 | AA139: 10.90364223 | AB139: 25.33466533 | AC139: 28.06702573 | AD139: 11.84181293 | AE139: 5.286690579 | AF139: 28.41779074 | AG139: 14.94532199 | AH139: 14.22242947 | AI139: 43.04676332 | AJ139: 30.53003534 | AK139: 37.61307266 | AL139: 16.56118143 | AM139: 7.819037657 | AN139: 13.32371332 | AO139: 13.74013228 | BB139: Open defecation | BC139: N/A | BD139: N/A | BE139: N/A | BF139: N/A | BG139: N/A | BH139: N/A | BI139: N/A | BJ139: N/A | BK139: N/A | BL139: N/A | BM139: N/A | BN139: N/A | BO139: N/A | BP139: N/A | BQ139: N/A | BR139: N/A | BS139: N/A | BT139: N/A | BU139: N/A | BV139: N/A | BW139: N/A | BX139: N/A | BY139: N/A | BZ139: N/A | CA139: N/A | CB139: N/A | CC139: N/A | CD139: N/A | CE139: N/A | CF139: N/A | CG139: N/A | CH139: N/A | CI139: N/A | CJ139: N/A | CK139: N/A | CL139: N/A | CM139: N/A | CN139: N/A | CO139: N/A
A140: Septic tank emptying practices | B140: Not emptied/treated and disposed in situ | C140: N/A | D140: N/A | E140: N/A | F140: N/A | G140: N/A | H140: N/A | I140: N/A | J140: N/A | K140: N/A | L140: N/A | M140: N/A | N140: N/A | O140: N/A | P140: N/A | Q140: N/A | R140: N/A | S140: N/A | T140: N/A | U140: N/A | V140: N/A | W140: N/A | X140: N/A | Y140: N/A | Z140: N/A | AA140: N/A | AB140: N/A | AC140: N/A | AD140: N/A | AE140: N/A | AF140: N/A | AG140: N/A | AH140: N/A | AI140: N/A | AJ140: N/A | AK140: N/A | AL140: N/A | AM140: N/A | AN140: N/A | AO140: N/A | BA140: Septic tank emptying practices | BB140: Not emptied/treated and disposed in situ | BC140: N/A | BD140: N/A | BE140: N/A | BF140: N/A | BG140: N/A | BH140: N/A | BI140: N/A | BJ140: N/A | BK140: N/A | BL140: N/A | BM140: N/A | BN140: N/A | BO140: N/A | BP140: N/A | BQ140: N/A | BR140: N/A | BS140: N/A | BT140: N/A | BU140: N/A | BV140: N/A | BW140: N/A | BX140: N/A | BY140: N/A | BZ140: N/A | CA140: N/A | CB140: N/A | CC140: N/A | CD140: N/A | CE140: N/A | CF140: N/A | CG140: N/A | CH140: N/A | CI140: N/A | CJ140: N/A | CK140: N/A | CL140: N/A | CM140: N/A | CN140: N/A | CO140: N/A
B141: Emptied and buried on site | C141: N/A | D141: N/A | E141: N/A | F141: N/A | G141: N/A | H141: N/A | I141: N/A | J141: N/A | K141: N/A | L141: N/A | M141: N/A | N141: N/A | O141: N/A | P141: N/A | Q141: N/A | R141: N/A | S141: N/A | T141: N/A | U141: N/A | V141: N/A | W141: N/A | X141: N/A | Y141: N/A | Z141: N/A | AA141: N/A | AB141: N/A | AC141: N/A | AD141: N/A | AE141: N/A | AF141: N/A | AG141: N/A | AH141: N/A | AI141: N/A | AJ141: N/A | AK141: N/A | AL141: N/A | AM141: N/A | AN141: N/A | AO141: N/A | BB141: Emptied and buried on site | BC141: N/A | BD141: N/A | BE141: N/A | BF141: N/A | BG141: N/A | BH141: N/A | BI141: N/A | BJ141: N/A | BK141: N/A | BL141: N/A | BM141: N/A | BN141: N/A | BO141: N/A | BP141: N/A | BQ141: N/A | BR141: N/A | BS141: N/A | BT141: N/A | BU141: N/A | BV141: N/A | BW141: N/A | BX141: N/A | BY141: N/A | BZ141: N/A | CA141: N/A | CB141: N/A | CC141: N/A | CD141: N/A | CE141: N/A | CF141: N/A | CG141: N/A | CH141: N/A | CI141: N/A | CJ141: N/A | CK141: N/A | CL141: N/A | CM141: N/A | CN141: N/A | CO141: N/A
B142: Emptied and discharged locally | C142: N/A | D142: N/A | E142: N/A | F142: N/A | G142: N/A | H142: N/A | I142: N/A | J142: N/A | K142: N/A | L142: N/A | M142: N/A | N142: N/A | O142: N/A | P142: N/A | Q142: N/A | R142: N/A | S142: N/A | T142: N/A | U142: N/A | V142: N/A | W142: N/A | X142: N/A | Y142: N/A | Z142: N/A | AA142: N/A | AB142: N/A | AC142: N/A | AD142: N/A | AE142: N/A | AF142: N/A | AG142: N/A | AH142: N/A | AI142: N/A | AJ142: N/A | AK142: N/A | AL142: N/A | AM142: N/A | AN142: N/A | AO142: N/A | BB142: Emptied and discharged locally | BC142: N/A | BD142: N/A | BE142: N/A | BF142: N/A | BG142: N/A | BH142: N/A | BI142: N/A | BJ142: N/A | BK142: N/A | BL142: N/A | BM142: N/A | BN142: N/A | BO142: N/A | BP142: N/A | BQ142: N/A | BR142: N/A | BS142: N/A | BT142: N/A | BU142: N/A | BV142: N/A | BW142: N/A | BX142: N/A | BY142: N/A | BZ142: N/A | CA142: N/A | CB142: N/A | CC142: N/A | CD142: N/A | CE142: N/A | CF142: N/A | CG142: N/A | CH142: N/A | CI142: N/A | CJ142: N/A | CK142: N/A | CL142: N/A | CM142: N/A | CN142: N/A | CO142: N/A
B143: Emptied and removed offsite | C143: N/A | D143: N/A | E143: N/A | F143: N/A | G143: N/A | H143: N/A | I143: N/A | J143: N/A | K143: N/A | L143: N/A | M143: N/A | N143: N/A | O143: N/A | P143: N/A | Q143: N/A | R143: N/A | S143: N/A | T143: N/A | U143: N/A | V143: N/A | W143: N/A | X143: N/A | Y143: N/A | Z143: N/A | AA143: N/A | AB143: N/A | AC143: N/A | AD143: N/A | AE143: N/A | AF143: N/A | AG143: N/A | AH143: N/A | AI143: N/A | AJ143: N/A | AK143: N/A | AL143: N/A | AM143: N/A | AN143: N/A | AO143: N/A | BB143: Emptied and removed offsite | BC143: N/A | BD143: N/A | BE143: N/A | BF143: N/A | BG143: N/A | BH143: N/A | BI143: N/A | BJ143: N/A | BK143: N/A | BL143: N/A | BM143: N/A | BN143: N/A | BO143: N/A | BP143: N/A | BQ143: N/A | BR143: N/A | BS143: N/A | BT143: N/A | BU143: N/A | BV143: N/A | BW143: N/A | BX143: N/A | BY143: N/A | BZ143: N/A | CA143: N/A | CB143: N/A | CC143: N/A | CD143: N/A | CE143: N/A | CF143: N/A | CG143: N/A | CH143: N/A | CI143: N/A | CJ143: N/A | CK143: N/A | CL143: N/A | CM143: N/A | CN143: N/A | CO143: N/A
A144: Latrine emptying practices | B144: Not emptied/treated and disposed in situ | C144: N/A | D144: N/A | E144: N/A | F144: N/A | G144: N/A | H144: N/A | I144: N/A | J144: N/A | K144: N/A | L144: N/A | M144: N/A | N144: N/A | O144: N/A | P144: N/A | Q144: N/A | R144: N/A | S144: N/A | T144: N/A | U144: N/A | V144: N/A | W144: N/A | X144: N/A | Y144: N/A | Z144: N/A | AA144: N/A | AB144: N/A | AC144: N/A | AD144: N/A | AE144: N/A | AF144: N/A | AG144: N/A | AH144: N/A | AI144: N/A | AJ144: N/A | AK144: N/A | AL144: N/A | AM144: N/A | AN144: N/A | AO144: N/A | BA144: Latrine emptying practices | BB144: Not emptied/treated and disposed in situ | BC144: N/A | BD144: N/A | BE144: N/A | BF144: N/A | BG144: N/A | BH144: N/A | BI144: N/A | BJ144: N/A | BK144: N/A | BL144: N/A | BM144: N/A | BN144: N/A | BO144: N/A | BP144: N/A | BQ144: N/A | BR144: N/A | BS144: N/A | BT144: N/A | BU144: N/A | BV144: N/A | BW144: N/A | BX144: N/A | BY144: N/A | BZ144: N/A | CA144: N/A | CB144: N/A | CC144: N/A | CD144: N/A | CE144: N/A | CF144: N/A | CG144: N/A | CH144: N/A | CI144: N/A | CJ144: N/A | CK144: N/A | CL144: N/A | CM144: N/A | CN144: N/A | CO144: N/A
B145: Emptied and buried on site | C145: N/A | D145: N/A | E145: N/A | F145: N/A | G145: N/A | H145: N/A | I145: N/A | J145: N/A | K145: N/A | L145: N/A | M145: N/A | N145: N/A | O145: N/A | P145: N/A | Q145: N/A | R145: N/A | S145: N/A | T145: N/A | U145: N/A | V145: N/A | W145: N/A | X145: N/A | Y145: N/A | Z145: N/A | AA145: N/A | AB145: N/A | AC145: N/A | AD145: N/A | AE145: N/A | AF145: N/A | AG145: N/A | AH145: N/A | AI145: N/A | AJ145: N/A | AK145: N/A | AL145: N/A | AM145: N/A | AN145: N/A | AO145: N/A | BB145: Emptied and buried on site | BC145: N/A | BD145: N/A | BE145: N/A | BF145: N/A | BG145: N/A | BH145: N/A | BI145: N/A | BJ145: N/A | BK145: N/A | BL145: N/A | BM145: N/A | BN145: N/A | BO145: N/A | BP145: N/A | BQ145: N/A | BR145: N/A | BS145: N/A | BT145: N/A | BU145: N/A | BV145: N/A | BW145: N/A | BX145: N/A | BY145: N/A | BZ145: N/A | CA145: N/A | CB145: N/A | CC145: N/A | CD145: N/A | CE145: N/A | CF145: N/A | CG145: N/A | CH145: N/A | CI145: N/A | CJ145: N/A | CK145: N/A | CL145: N/A | CM145: N/A | CN145: N/A | CO145: N/A
B146: Emptied and discharged locally | C146: N/A | D146: N/A | E146: N/A | F146: N/A | G146: N/A | H146: N/A | I146: N/A | J146: N/A | K146: N/A | L146: N/A | M146: N/A | N146: N/A | O146: N/A | P146: N/A | Q146: N/A | R146: N/A | S146: N/A | T146: N/A | U146: N/A | V146: N/A | W146: N/A | X146: N/A | Y146: N/A | Z146: N/A | AA146: N/A | AB146: N/A | AC146: N/A | AD146: N/A | AE146: N/A | AF146: N/A | AG146: N/A | AH146: N/A | AI146: N/A | AJ146: N/A | AK146: N/A | AL146: N/A | AM146: N/A | AN146: N/A | AO146: N/A | BB146: Emptied and discharged locally | BC146: N/A | BD146: N/A | BE146: N/A | BF146: N/A | BG146: N/A | BH146: N/A | BI146: N/A | BJ146: N/A | BK146: N/A | BL146: N/A | BM146: N/A | BN146: N/A | BO146: N/A | BP146: N/A | BQ146: N/A | BR146: N/A | BS146: N/A | BT146: N/A | BU146: N/A | BV146: N/A | BW146: N/A | BX146: N/A | BY146: N/A | BZ146: N/A | CA146: N/A | CB146: N/A | CC146: N/A | CD146: N/A | CE146: N/A | CF146: N/A | CG146: N/A | CH146: N/A | CI146: N/A | CJ146: N/A | CK146: N/A | CL146: N/A | CM146: N/A | CN146: N/A | CO146: N/A
B147: Emptied and removed offsite | C147: N/A | D147: N/A | E147: N/A | F147: N/A | G147: N/A | H147: N/A | I147: N/A | J147: N/A | K147: N/A | L147: N/A | M147: N/A | N147: N/A | O147: N/A | P147: N/A | Q147: N/A | R147: N/A | S147: N/A | T147: N/A | U147: N/A | V147: N/A | W147: N/A | X147: N/A | Y147: N/A | Z147: N/A | AA147: N/A | AB147: N/A | AC147: N/A | AD147: N/A | AE147: N/A | AF147: N/A | AG147: N/A | AH147: N/A | AI147: N/A | AJ147: N/A | AK147: N/A | AL147: N/A | AM147: N/A | AN147: N/A | AO147: N/A | BB147: Emptied and removed offsite | BC147: N/A | BD147: N/A | BE147: N/A | BF147: N/A | BG147: N/A | BH147: N/A | BI147: N/A | BJ147: N/A | BK147: N/A | BL147: N/A | BM147: N/A | BN147: N/A | BO147: N/A | BP147: N/A | BQ147: N/A | BR147: N/A | BS147: N/A | BT147: N/A | BU147: N/A | BV147: N/A | BW147: N/A | BX147: N/A | BY147: N/A | BZ147: N/A | CA147: N/A | CB147: N/A | CC147: N/A | CD147: N/A | CE147: N/A | CF147: N/A | CG147: N/A | CH147: N/A | CI147: N/A | CJ147: N/A | CK147: N/A | CL147: N/A | CM147: N/A | CN147: N/A | CO147: N/A
A148: Shared among improved sanitation facilities | B148: Yes | C148: N/A | D148: N/A | E148: N/A | F148: N/A | G148: N/A | H148: N/A | I148: N/A | J148: N/A | K148: N/A | L148: N/A | M148: N/A | N148: N/A | O148: N/A | P148: N/A | Q148: N/A | R148: N/A | S148: N/A | T148: N/A | U148: N/A | V148: N/A | W148: N/A | X148: N/A | Y148: N/A | Z148: N/A | AA148: N/A | AB148: N/A | AC148: N/A | AD148: N/A | AE148: N/A | AF148: N/A | AG148: N/A | AH148: N/A | AI148: N/A | AJ148: N/A | AK148: N/A | AL148: N/A | AM148: N/A | AN148: N/A | AO148: N/A | BA148: Shared among improved sanitation facilities | BB148: Yes | BC148: N/A | BD148: N/A | BE148: N/A | BF148: N/A | BG148: N/A | BH148: N/A | BI148: N/A | BJ148: N/A | BK148: N/A | BL148: N/A | BM148: N/A | BN148: N/A | BO148: N/A | BP148: N/A | BQ148: N/A | BR148: N/A | BS148: N/A | BT148: N/A | BU148: N/A | BV148: N/A | BW148: N/A | BX148: N/A | BY148: N/A | BZ148: N/A | CA148: N/A | CB148: N/A | CC148: N/A | CD148: N/A | CE148: N/A | CF148: N/A | CG148: N/A | CH148: N/A | CI148: N/A | CJ148: N/A | CK148: N/A | CL148: N/A | CM148: N/A | CN148: N/A | CO148: N/A
B149: No | C149: N/A | D149: N/A | E149: N/A | F149: N/A | G149: N/A | H149: N/A | I149: N/A | J149: N/A | K149: N/A | L149: N/A | M149: N/A | N149: N/A | O149: N/A | P149: N/A | Q149: N/A | R149: N/A | S149: N/A | T149: N/A | U149: N/A | V149: N/A | W149: N/A | X149: N/A | Y149: N/A | Z149: N/A | AA149: N/A | AB149: N/A | AC149: N/A | AD149: N/A | AE149: N/A | AF149: N/A | AG149: N/A | AH149: N/A | AI149: N/A | AJ149: N/A | AK149: N/A | AL149: N/A | AM149: N/A | AN149: N/A | AO149: N/A | BB149: No | BC149: N/A | BD149: N/A | BE149: N/A | BF149: N/A | BG149: N/A | BH149: N/A | BI149: N/A | BJ149: N/A | BK149: N/A | BL149: N/A | BM149: N/A | BN149: N/A | BO149: N/A | BP149: N/A | BQ149: N/A | BR149: N/A | BS149: N/A | BT149: N/A | BU149: N/A | BV149: N/A | BW149: N/A | BX149: N/A | BY149: N/A | BZ149: N/A | CA149: N/A | CB149: N/A | CC149: N/A | CD149: N/A | CE149: N/A | CF149: N/A | CG149: N/A | CH149: N/A | CI149: N/A | CJ149: N/A | CK149: N/A | CL149: N/A | CM149: N/A | CN149: N/A | CO149: N/A
B150: DK/missing | C150: N/A | D150: N/A | E150: N/A | F150: N/A | G150: N/A | H150: N/A | I150: N/A | J150: N/A | K150: N/A | L150: N/A | M150: N/A | N150: N/A | O150: N/A | P150: N/A | Q150: N/A | R150: N/A | S150: N/A | T150: N/A | U150: N/A | V150: N/A | W150: N/A | X150: N/A | Y150: N/A | Z150: N/A | AA150: N/A | AB150: N/A | AC150: N/A | AD150: N/A | AE150: N/A | AF150: N/A | AG150: N/A | AH150: N/A | AI150: N/A | AJ150: N/A | AK150: N/A | AL150: N/A | AM150: N/A | AN150: N/A | AO150: N/A | BB150: DK/missing | BC150: N/A | BD150: N/A | BE150: N/A | BF150: N/A | BG150: N/A | BH150: N/A | BI150: N/A | BJ150: N/A | BK150: N/A | BL150: N/A | BM150: N/A | BN150: N/A | BO150: N/A | BP150: N/A | BQ150: N/A | BR150: N/A | BS150: N/A | BT150: N/A | BU150: N/A | BV150: N/A | BW150: N/A | BX150: N/A | BY150: N/A | BZ150: N/A | CA150: N/A | CB150: N/A | CC150: N/A | CD150: N/A | CE150: N/A | CF150: N/A | CG150: N/A | CH150: N/A | CI150: N/A | CJ150: N/A | CK150: N/A | CL150: N/A | CM150: N/A | CN150: N/A | CO150: N/A
A151: Shared among all sanitation facilities | B151: Yes | C151: 2.547488796 | D151: 7.118065929 | E151: 11.03061659 | F151: 9.451740182 | G151: 2.272071275 | H151: 10.98864159 | I151: 10.86332547 | J151: 10.4874562 | K151: 5.831690655 | L151: 1.16853738 | M151: 1.557600844 | N151: 2.737828968 | O151: 3.743826239 | P151: 5.272250386 | Q151: 7.082620859 | R151: 6.058458813 | S151: 4.636307439 | T151: 4.317055909 | U151: 7.606132075 | V151: 8.691729323 | W151: 3.138913624 | X151: 14.43609023 | Y151: 5.740636175 | Z151: 3.813084112 | AA151: 6.01659751 | AB151: 8.431568432 | AC151: 3.25154598 | AD151: 9.708953566 | AE151: 7.614875529 | AF151: 4.794021145 | AG151: 8.082440897 | AH151: 3.823735136 | AI151: 11.4968348 | AJ151: 0.2473498233 | AK151: 7.177242888 | AL151: 4.98842349 | AM151: 8.202716823 | AN151: 1.250601251 | AO151: 10.03394145 | BA151: Shared among all sanitation facilities | BB151: Yes | BC151: N/A | BD151: N/A | BE151: N/A | BF151: N/A | BG151: N/A | BH151: N/A | BI151: N/A | BJ151: N/A | BK151: N/A | BL151: N/A | BM151: N/A | BN151: N/A | BO151: N/A | BP151: N/A | BQ151: N/A | BR151: N/A | BS151: N/A | BT151: N/A | BU151: N/A | BV151: N/A | BW151: N/A | BX151: N/A | BY151: N/A | BZ151: N/A | CA151: N/A | CB151: N/A | CC151: N/A | CD151: N/A | CE151: N/A | CF151: N/A | CG151: N/A | CH151: N/A | CI151: N/A | CJ151: N/A | CK151: N/A | CL151: N/A | CM151: N/A | CN151: N/A | CO151: N/A
B152: No | C152: 97.4525112 | D152: 92.88193407 | E152: 88.96938341 | F152: 90.54825982 | G152: 97.72792873 | H152: 89.01135841 | I152: 89.13667453 | J152: 89.5125438 | K152: 94.16830935 | L152: 98.83146262 | M152: 98.44239916 | N152: 97.26217103 | O152: 96.25617376 | P152: 94.72774961 | Q152: 92.91737914 | R152: 93.94154119 | S152: 95.36369256 | T152: 95.68294409 | U152: 92.39386792 | V152: 91.30827068 | W152: 96.86108638 | X152: 85.56390977 | Y152: 94.25936382 | Z152: 96.18691589 | AA152: 93.98340249 | AB152: 91.56843157 | AC152: 96.74845402 | AD152: 90.29104643 | AE152: 92.38512447 | AF152: 95.20597886 | AG152: 91.9175591 | AH152: 96.17626486 | AI152: 88.5031652 | AJ152: 99.75265018 | AK152: 92.82275711 | AL152: 95.01157651 | AM152: 91.79728318 | AN152: 98.74939875 | AO152: 89.96605855 | BB152: No | BC152: N/A | BD152: N/A | BE152: N/A | BF152: N/A | BG152: N/A | BH152: N/A | BI152: N/A | BJ152: N/A | BK152: N/A | BL152: N/A | BM152: N/A | BN152: N/A | BO152: N/A | BP152: N/A | BQ152: N/A | BR152: N/A | BS152: N/A | BT152: N/A | BU152: N/A | BV152: N/A | BW152: N/A | BX152: N/A | BY152: N/A | BZ152: N/A | CA152: N/A | CB152: N/A | CC152: N/A | CD152: N/A | CE152: N/A | CF152: N/A | CG152: N/A | CH152: N/A | CI152: N/A | CJ152: N/A | CK152: N/A | CL152: N/A | CM152: N/A | CN152: N/A | CO152: N/A
A153: Type of toilet facility | B153: Own flust toilet into residence | C153: 1.286171954 | D153: 11.1538212 | E153: 46.79462014 | F153: 75.40457113 | G153: 93.81701172 | H153: 26.82714496 | I153: 58.15552182 | J153: 74.41282322 | K153: 86.95386319 | L153: 96.79804865 | M153: 0.7777985801 | N153: 0.8540098709 | O153: 2.259165025 | P153: 4.516740631 | Q153: 21.54833747 | R153: 21.80690877 | S153: 34.45291572 | T153: 16.82590234 | U153: 61.75314465 | V153: 18.74340817 | W153: 20.03561888 | X153: 17.56989247 | Y153: 5.044231131 | Z153: 14.74766355 | AA153: 55.25587828 | AB153: 34.08591409 | AC153: 45.52164373 | AD153: 43.96800711 | AE153: 74.21712182 | AF153: 25.44659132 | AG153: 20.93965168 | AH153: 60.6668221 | AI153: 20.0735144 | AJ153: 45.9540636 | AK153: 15.87394222 | AL153: 31.83544304 | AM153: 68.33158996 | AN153: 56.37325637 | AO153: 16.66311073 | BA153: Type of toilet facility | BB153: Own flust toilet into residence | BC153: 342.278492 | BD153: 2969.416446 | BE153: 12465.36979 | BF153: 19983.40235 | BG153: 25037.04328 | BH153: 4524.74656 | BI153: 9797.414704 | BJ153: 12565.25603 | BK153: 14663.44979 | BL153: 16328.0466 | BM153: 75.919542 | BN153: 83.126429 | BO153: 220.245228 | BP153: 440.212676 | BQ153: 2099.092809 | BR153: 427.091757 | BS153: 1935.697808 | BT153: 354.379689 | BU153: 3482.793888 | BV153: 465.142796 | BW153: 1522.6011 | BX153: 1076.743908 | BY153: 119.427232 | BZ153: 602.129295 | CA153: 1925.478939 | CB153: 2187.15171 | CC153: 3203.063122 | CD153: 2672.206099 | CE153: 30362.03602 | CF153: 1119.078272 | CG153: 68.814768 | CH153: 453.37248 | CI153: 258.670552 | CJ153: 4543.031448 | CK153: 1062.211136 | CL153: 1139.892564 | CM153: 934.181469 | CN153: 574.507368 | CO153: 307.806939
B154: Share flush toilet into residence | C154: 0.1296309181 | D154: 1.182177965 | E154: 4.284476755 | F154: 5.646169705 | G154: 1.918908059 | H154: 3.55594657 | I154: 4.970980162 | J154: 6.150344962 | K154: 4.245716365 | L154: 1.100829388 | M154: 0.05403748279 | N154: 0.1942195979 | O154: 0.07526264912 | P154: 0.2405943661 | Q154: 0.6835017271 | R154: 1.399468556 | S154: 2.266639192 | T154: 2.618542109 | U154: 3.085691824 | V154: 2.546331174 | W154: 2.025823687 | X154: 5.698924731 | Y154: 0.9034443817 | Z154: 1.476635514 | AA154: 2.028584601 | AB154: 1.238761239 | AC154: 1.476161979 | AD154: 2.599422351 | AE154: 4.083754127 | AF154: 0.7291286912 | AG154: 0.9518023491 | AH154: 2.821170436 | AI154: 1.082295283 | AJ154: 0 | AK154: 2.553253575 | AL154: 1.160337553 | AM154: 4.942468619 | AN154: 0.0962000962 | AO154: 1.792191167 | BB154: Share flush toilet into residence | BC154: 34.497623 | BD154: 314.724311 | BE154: 1141.318958 | BF154: 1496.324152 | BG154: 512.100985 | BH154: 599.756591 | BI154: 837.457091 | BJ154: 1038.539539 | BK154: 715.97565 | BL154: 185.689627 | BM154: 5.274503 | BN154: 18.904678 | BO154: 7.33733 | BP154: 23.44892 | BQ154: 66.5821 | BR154: 27.408813 | BS154: 127.34854 | BT154: 55.150572 | BU154: 174.028848 | BV154: 63.190621 | BW154: 153.951889 | BX154: 349.24986 | BY154: 21.389952 | BZ154: 60.289245 | CA154: 70.689256 | CB154: 79.48617 | CC154: 103.867954 | CD154: 157.982877 | CE154: 1670.65344 | CF154: 32.06528 | CG154: 3.127944 | CH154: 21.08304 | CI154: 13.946632 | CJ154: 0 | CK154: 170.851975 | CL154: 41.54678 | CM154: 67.569957 | CN154: 0.980388 | CO154: 33.105996
B155: Own flush toilet outsite/yard | C155: 0.8421195287 | D155: 0.6295077171 | E155: 0.9568693797 | F155: 0.8251553616 | G155: 0.09550711914 | H155: 1.056903782 | I155: 0.7942710455 | J155: 0.7629172128 | K155: 0.5556317753 | L155: 0.01354364932 | M155: 0.7283243396 | N155: 1.136808182 | O155: 0.5523837455 | P155: 0.7396436868 | Q155: 0.4742380536 | R155: 0.6908768822 | S155: 0.5975685143 | T155: 0.4423213022 | U155: 0.5699685535 | V155: 0.6328160313 | W155: 1.691896705 | X155: 0.5161290323 | Y155: 0.1317523057 | Z155: 1.23364486 | AA155: 0.2074688797 | AB155: 1.078921079 | AC155: 0.2992220227 | AD155: 0.1777382804 | AE155: 0.8610051749 | AF155: 0.1822821728 | AG155: 1.822600243 | AH155: 0.8160410352 | AI155: 0.6534613028 | AJ155: 0.2826855124 | AK155: 0.2918004085 | AL155: 0.1898734177 | AM155: 0.1569037657 | AN155: 0.7455507456 | AO155: 1.066780457 | BB155: Own flush toilet outsite/yard | BC155: 224.106428 | BD155: 167.59015 | BE155: 254.895341 | BF155: 218.679204 | BG155: 25.488084 | BH155: 178.260555 | BI155: 133.810214 | BJ155: 128.825244 | BK155: 93.698869 | BL155: 2.284564 | BM155: 71.090449 | BN155: 110.653059 | BO155: 53.851703 | BP155: 72.087497 | BQ155: 46.197053 | BR155: 13.530933 | BS155: 33.573706 | BT155: 9.315975 | BU155: 32.145456 | BV155: 15.704178 | BW155: 128.575204 | BX155: 31.630176 | BY155: 3.119368 | BZ155: 50.36823 | CA155: 7.229583 | CB155: 69.22989 | CC155: 21.054315 | CD155: 10.802248 | CE155: 352.23503 | CF155: 8.01632 | CG155: 5.98968 | CH155: 6.0984 | CI155: 8.420608 | CJ155: 27.946368 | CK155: 19.52594 | CL155: 6.798564 | CM155: 2.145078 | CN155: 7.598007 | CO155: 19.70595
B156: Share flush toilet outside/yard | C156: 0.1679401101 | D156: 2.02114081 | E156: 3.837654508 | F156: 2.946025381 | G156: 0.2356613836 | H156: 3.914418769 | I156: 3.964312908 | J156: 3.553994274 | K156: 1.143733462 | L156: 0.06851170023 | M156: 0.02488139599 | N156: 0.3686365551 | O156: 0.3181179759 | P156: 1.223647759 | Q156: 1.308623335 | R156: 0.8857395926 | S156: 0.5769627035 | T156: 0.5307855626 | U156: 3.183962264 | V156: 1.280699111 | W156: 0.4452359751 | X156: 5.849462366 | Y156: 1.072840203 | Z156: 1.140186916 | AA156: 1.244813278 | AB156: 5.974025974 | AC156: 0.9974067425 | AD156: 0.7553876916 | AE156: 2.252594272 | AF156: 0.455705432 | AG156: 2.997164844 | AH156: 0.5595709956 | AI156: 6.493771697 | AJ156: 0 | AK156: 0.6711409396 | AL156: 0.4852320675 | AM156: 2.379707113 | AN156: 0.6734006734 | AO156: 1.536163857 | BB156: Share flush toilet outside/yard | BC156: 44.692537 | BD156: 538.076472 | BE156: 1022.292358 | BF156: 780.743258 | BG156: 62.891198 | BH156: 660.217585 | BI156: 667.864656 | BJ156: 600.123017 | BK156: 192.873296 | BL156: 11.556661 | BM156: 2.428629 | BN156: 35.881834 | BO156: 31.013213 | BP156: 119.259727 | BQ156: 127.477205 | BR156: 17.34735 | BS156: 32.415992 | BT156: 11.17917 | BU156: 179.571168 | BV156: 31.782265 | BW156: 33.83558 | BX156: 358.475328 | BY156: 25.400568 | BZ156: 46.552455 | CA156: 43.377498 | CB156: 383.328465 | CC156: 70.18105 | CD156: 45.909554 | CE156: 921.530595 | CF156: 20.0408 | CG156: 9.849696 | CH156: 4.18176 | CI156: 83.679792 | CJ156: 0 | CK156: 44.909662 | CL156: 17.374108 | CM156: 32.533683 | CN156: 6.862716 | CO156: 28.376568
B157: Own pit toilet/latrine | C157: 35.24738443 | D157: 42.7487844 | E157: 27.95711987 | F157: 10.67598345 | G157: 3.557646569 | H157: 33.94804831 | I157: 22.12176221 | J157: 11.04591492 | K157: 5.155301037 | L157: 1.902710696 | M157: 31.31658863 | N157: 36.69289426 | O157: 39.42135547 | P157: 48.21423414 | Q157: 44.22646679 | R157: 47.29849424 | S157: 21.8627653 | T157: 29.14012739 | U157: 21.22641509 | V157: 29.45607955 | W157: 46.14870882 | X157: 22.62365591 | Y157: 18.44532279 | Z157: 32.22429907 | AA157: 26.69432918 | AB157: 27.73226773 | AC157: 21.64372631 | AD157: 34.30348811 | AE157: 10.80709263 | AF157: 32.46445498 | AG157: 54.09072499 | AH157: 20.35439496 | AI157: 16.60200123 | AJ157: 22.91519435 | AK157: 37.83192296 | AL157: 45.94936709 | AM157: 15.40271967 | AN157: 28.18662819 | AO157: 53.82974184 | BB157: Own pit toilet/latrine | BC157: 9380.100036 | BD157: 11380.75832 | BE157: 7447.348356 | BF157: 2829.30424 | BG157: 949.432832 | BH157: 5725.77943 | BI157: 3726.83576 | BJ157: 1865.199344 | BK157: 869.363305 | BL157: 320.952223 | BM157: 3056.756758 | BN157: 3571.562079 | BO157: 3843.174503 | BP157: 4699.078111 | BQ157: 4308.242273 | BR157: 926.34849 | BS157: 1228.334554 | BT157: 613.736433 | BU157: 1197.14112 | BV157: 730.992095 | BW157: 3507.057867 | BX157: 1386.456048 | BY157: 436.71152 | BZ157: 1315.67922 | CA157: 930.206346 | CB157: 1779.46458 | CC157: 1522.928785 | CD157: 2084.833864 | CE157: 4421.154145 | CF157: 1427.706592 | CG157: 177.760392 | CH157: 152.11152 | CI157: 213.936072 | CJ157: 2265.402456 | CK157: 2531.538121 | CL157: 1645.252488 | CM157: 210.575157 | CN157: 287.253684 | CO157: 994.362237
B158: Share pit toilet/letrine | C158: 2.250556084 | D158: 3.917126898 | E158: 2.921302158 | F158: 0.8606119275 | G158: 0.1186113273 | H158: 3.523709397 | I158: 1.945962119 | J158: 0.7849747792 | K158: 0.4422408275 | L158: 0 | M158: 1.478681965 | N158: 2.174972815 | O158: 3.351163562 | P158: 3.810051425 | Q158: 5.094974169 | R158: 3.773250664 | S158: 1.792705543 | T158: 1.167728238 | U158: 1.336477987 | V158: 4.88172367 | W158: 0.6678539626 | X158: 2.903225806 | Y158: 3.76435159 | Z158: 1.196261682 | AA158: 2.743199631 | AB158: 1.218781219 | AC158: 0.7779772591 | AD158: 6.354143524 | AE158: 1.283925963 | AF158: 3.609187022 | AG158: 4.151478331 | AH158: 0.4429937048 | AI158: 3.920767817 | AJ158: 0.2473498233 | AK158: 3.953895535 | AL158: 3.35443038 | AM158: 0.8891213389 | AN158: 0.481000481 | AO158: 6.763388095 | BB158: Share pit toilet/letrine | BC158: 598.922205 | BD158: 1042.833736 | BE158: 778.190133 | BF158: 228.075754 | BG158: 31.653928 | BH158: 594.319373 | BI158: 327.834697 | BJ158: 132.549857 | BK158: 74.577206 | BL158: 0 | BM158: 144.331528 | BN158: 211.704489 | BO158: 326.703793 | BP158: 371.337004 | BQ158: 496.317809 | BR158: 73.899711 | BS158: 100.721118 | BT158: 24.594174 | BU158: 75.375552 | BV158: 121.146516 | BW158: 50.75337 | BX158: 177.91974 | BY158: 89.1248 | BZ158: 48.84192 | CA158: 95.591153 | CB158: 78.204135 | CC158: 54.741219 | CD158: 386.180366 | CE158: 525.25085 | CF158: 158.723136 | CG158: 13.64316 | CH158: 3.31056 | CI158: 50.523648 | CJ158: 24.453072 | CK158: 264.576487 | CL158: 120.107964 | CM158: 12.155442 | CN158: 4.90194 | CO158: 124.935723
B159: NO FACILITY | C159: 58.37253167 | D159: 35.98348802 | E159: 11.11003232 | F159: 2.207761584 | G159: 0.1139432149 | H159: 23.66919529 | I159: 6.210025596 | J159: 2.172038898 | K159: 0.4173347269 | L159: 0.03038209254 | M159: 64.12341716 | N159: 57.25508294 | O159: 52.68357583 | P159: 39.67065296 | Q159: 24.36882024 | R159: 22.8343667 | S159: 37.79105708 | T159: 48.35456476 | U159: 8.76572327 | V159: 41.87132741 | W159: 28.11665183 | X159: 39.6344086 | Y159: 68.15358554 | Z159: 47.51401869 | AA159: 10.90364223 | AB159: 25.33466533 | AC159: 28.06702573 | AD159: 11.84181293 | AE159: 5.286690579 | AF159: 28.41779074 | AG159: 14.94532199 | AH159: 14.22242947 | AI159: 43.04676332 | AJ159: 30.53003534 | AK159: 37.61307266 | AL159: 16.56118143 | AM159: 7.819037657 | AN159: 13.32371332 | AO159: 13.74013228 | BB159: NO FACILITY | BC159: 15534.20758 | BD159: 9579.673119 | BE159: 2959.542375 | BF159: 585.091691 | BG159: 30.408144 | BH159: 3992.117317 | BI159: 1046.198094 | BJ159: 366.767765 | BK159: 70.37717 | BL159: 5.124899 | BM159: 6258.973193 | BN159: 5573.015897 | BO159: 5136.103844 | BP159: 3866.399629 | BQ159: 2373.845101 | BR159: 447.214683 | BS159: 2123.247476 | BT159: 1018.422387 | BU159: 494.374944 | BV159: 1039.093111 | BW159: 2136.716877 | BX159: 2428.933932 | BY159: 1613.604504 | BZ159: 1939.94001 | CA159: 379.954751 | CB159: 1625.62038 | CC159: 1974.894747 | CD159: 719.699773 | CE159: 2162.771687 | CF159: 1249.744288 | CG159: 49.115376 | CH159: 106.2864 | CI159: 554.707552 | CJ159: 3018.207744 | CK159: 2516.893666 | CL159: 592.98586 | CM159: 106.896387 | CN159: 135.783738 | CO159: 253.812636
B160: River/canal | C160: 1.607557665 | D160: 2.303768645 | E160: 1.949180254 | F160: 1.409636653 | G160: 0.1427106115 | H160: 3.396555594 | I160: 1.621884267 | J160: 1.079191775 | K160: 1.08617862 | L160: 0.08597382748 | M160: 1.496270441 | N160: 1.060613966 | O160: 1.338975747 | P160: 1.584435032 | Q160: 2.173858323 | R160: 1.310894597 | S160: 0.6593859468 | T160: 0.9200283086 | U160: 0.0786163522 | V160: 0.5876148862 | W160: 0.8236865539 | X160: 5.053763441 | Y160: 2.409185018 | Z160: 0.4485981308 | AA160: 0.8068234209 | AB160: 3.076923077 | AC160: 1.117095552 | AD160: 0 | AE160: 1.172366172 | AF160: 8.403208166 | AG160: 0.02025111381 | AH160: 0.1165772907 | AI160: 8.045742291 | AJ160: 0 | AK160: 0.9191712868 | AL160: 0.4641350211 | AM160: 0.07845188285 | AN160: 0.0962000962 | AO160: 4.608491572 | BB160: River/canal | BC160: 427.80626 | BD160: 613.318824 | BE160: 519.231753 | BF160: 373.575978 | BG160: 38.085329 | BH160: 572.873232 | BI160: 273.237558 | BJ160: 182.23097 | BK160: 183.167545 | BL160: 14.5022 | BM160: 146.048308 | BN160: 103.236572 | BO160: 130.536289 | BP160: 154.422944 | BQ160: 211.762526 | BR160: 25.674078 | BS160: 37.046848 | BT160: 19.377228 | BU160: 4.433856 | BV160: 14.582451 | BW160: 62.595823 | BX160: 309.71214 | BY160: 57.039872 | BZ160: 18.31572 | CA160: 28.115045 | CB160: 197.43339 | CC160: 78.602776 | CD160: 0 | CE160: 479.612023 | CF160: 369.552352 | CG160: 0.066552 | CH160: 0.8712 | CI160: 103.678736 | CJ160: 0 | CK160: 61.506711 | CL160: 16.618712 | CM160: 1.072539 | CN160: 0.980388 | CO160: 85.129704
B161: OTHER | C161: 0.09610763863 | D161: 0.06018433962 | E161: 0.1887446174 | F161: 0.02408480598 | G161: 0 | H161: 0.1080773303 | I161: 0.2152798688 | J161: 0.03779996088 | K161: 0 | L161: 0 | M161: 0 | N161: 0.2627618118 | O161: 0 | P161: 0 | Q161: 0.1211798946 | R161: 0 | S161: 0 | T161: 0 | U161: 0 | V161: 0 | W161: 0.04452359751 | X161: 0.1505376344 | Y161: 0.07528703181 | Z161: 0.01869158879 | AA161: 0.1152604887 | AB161: 0.2597402597 | AC161: 0.09974067425 | AD161: 0 | AE161: 0.03544925457 | AF161: 0.2916514765 | AG161: 0.08100445525 | AH161: 0 | AI161: 0.08168266285 | AJ161: 0.07067137809 | AK161: 0.2918004085 | AL161: 0 | AM161: 0 | AN161: 0.02405002405 | AO161: 0 | BB161: OTHER | BC161: 25.576345 | BD161: 16.022524 | BE161: 50.278674 | BF161: 6.382854 | BG161: 0 | BH161: 18.228646 | BI161: 36.268029 | BJ161: 6.382854 | BK161: 0 | BL161: 0 | BM161: 0 | BN161: 25.576345 | BO161: 0 | BP161: 0 | BQ161: 11.804523 | BR161: 0 | BS161: 0 | BT161: 0 | BU161: 0 | BV161: 0 | BW161: 3.383558 | BX161: 9.225468 | BY161: 1.782496 | BZ161: 0.763155 | CA161: 4.016435 | CB161: 16.666455 | CC161: 7.018105 | CD161: 0 | CE161: 14.5022 | CF161: 12.826112 | CG161: 0.266208 | CH161: 0 | CI161: 1.052576 | CJ161: 6.986592 | CK161: 19.52594 | CL161: 0 | CM161: 0 | CN161: 0.245097 | CO161: 0
BB162: Total | BC162: 26612.18751 | BD162: 26622.4139 | BE162: 26638.46774 | BF162: 26501.57948 | BG162: 26687.10378 | BH162: 16866.29929 | BI162: 16846.9208 | BJ162: 16885.87462 | BK162: 16863.48283 | BL162: 16868.15677 | BM162: 9760.82291 | BN162: 9733.661382 | BO162: 9748.965903 | BP162: 9746.246508 | BQ162: 9741.321399 | BR162: 1958.515815 | BS162: 5618.386042 | BT162: 2106.155628 | BU162: 5639.864832 | BV162: 2481.634033 | BW162: 7599.471268 | BX162: 6128.3466 | BY162: 2367.600312 | BZ162: 4082.87925 | CA162: 3484.659006 | CB162: 6416.585175 | CC162: 7036.352073 | CD162: 6077.614781 | CE162: 40909.74599 | CF162: 4397.753152 | CG162: 328.633776 | CH162: 747.31536 | CI162: 1288.616168 | CJ162: 9886.02768 | CK162: 6691.539638 | CL162: 3580.57704 | CM162: 1367.129712 | CN162: 1019.113326 | CO162: 1847.235753
A208: =A1026 -> Peru
A209: =A1034 -> 2000
A210: Access to hygiene facilities
A211: by wealth quintile and sub-national region
A212: Notes:
A213: WHO/UNICEF JMP customised wealth index excludes water,
A214: sanitation and hygiene assets.
A215: Survey used for analysis: | B215: =A1025 -> DHS00
A220: Access to handwashing | C220: NATIONAL wealth index quintile | H220: URBAN wealth index quintile | M220: RURAL wealth index quintile | R220: SUB-REGIONS: | BA220: Raw numbers of respondents: | BB220: Access to handwashing | BC220: NATIONAL wealth index quintile | BH220: URBAN wealth index quintile | BM220: RURAL wealth index quintile | BR220: SUB-REGIONS:
A221: Weighted percentage (used in graphs) | C221: Poorest | D221: Poor | E221: Middle | F221: Rich | G221: Richest | H221: Poorest | I221: Poor | J221: Middle | K221: Rich | L221: Richest | M221: Poorest | N221: Poor | O221: Middle | P221: Rich | Q221: Richest | R221: Amazonas | S221: Ancash | T221: Apurimac | U221: Arequipa | V221: Ayacucho | W221: Cajamarca | X221: Cusco | Y221: Huancavelica | Z221: Huanuco | AA221: Ica | AB221: Junin | AC221: La Libertad | AD221: Lambayeque | AE221: Lima | AF221: Loreto | AG221: Madre de Dios | AH221: Moquegua | AI221: Pasco | AJ221: Piura | AK221: Puno | AL221: San Martin | AM221: Tacna | AN221: Tumbes | AO221: Ucayali | BA221: Hygiene data, raw numbers (weighted) | BC221: Poorest | BD221: Poor | BE221: Middle | BF221: Rich | BG221: Richest | BH221: Poorest | BI221: Poor | BJ221: Middle | BK221: Rich | BL221: Richest | BM221: Poorest | BN221: Poor | BO221: Middle | BP221: Rich | BQ221: Richest | BR221: Amazonas | BS221: Ancash | BT221: Apurimac | BU221: Arequipa | BV221: Ayacucho | BW221: Cajamarca | BX221: Cusco | BY221: Huancavelica | BZ221: Huanuco | CA221: Ica | CB221: Junin | CC221: La Libertad | CD221: Lambayeque | CE221: Lima | CF221: Loreto | CG221: Madre de Dios | CH221: Moquegua | CI221: Pasco | CJ221: Piura | CK221: Puno | CL221: San Martin | CM221: Tacna | CN221: Tumbes | CO221: Ucayali
A222: Hygiene ladder | B222: Basic | C222: N/A | D222: N/A | E222: N/A | F222: N/A | G222: N/A | H222: N/A | I222: N/A | J222: N/A | K222: N/A | L222: N/A | M222: N/A | N222: N/A | O222: N/A | P222: N/A | Q222: N/A | R222: N/A | S222: N/A | T222: N/A | U222: N/A | V222: N/A | W222: N/A | X222: N/A | Y222: N/A | Z222: N/A | AA222: N/A | AB222: N/A | AC222: N/A | AD222: N/A | AE222: N/A | AF222: N/A | AG222: N/A | AH222: N/A | AI222: N/A | AJ222: N/A | AK222: N/A | AL222: N/A | AM222: N/A | AN222: N/A | AO222: N/A | BA222: Hygiene ladder | BB222: Basic | BC222: N/A | BD222: N/A | BE222: N/A | BF222: N/A | BG222: N/A | BH222: N/A | BI222: N/A | BJ222: N/A | BK222: N/A | BL222: N/A | BM222: N/A | BN222: N/A | BO222: N/A | BP222: N/A | BQ222: N/A | BR222: N/A | BS222: N/A | BT222: N/A | BU222: N/A | BV222: N/A | BW222: N/A | BX222: N/A | BY222: N/A | BZ222: N/A | CA222: N/A | CB222: N/A | CC222: N/A | CD222: N/A | CE222: N/A | CF222: N/A | CG222: N/A | CH222: N/A | CI222: N/A | CJ222: N/A | CK222: N/A | CL222: N/A | CM222: N/A | CN222: N/A | CO222: N/A
B223: Limited | C223: N/A | D223: N/A | E223: N/A | F223: N/A | G223: N/A | H223: N/A | I223: N/A | J223: N/A | K223: N/A | L223: N/A | M223: N/A | N223: N/A | O223: N/A | P223: N/A | Q223: N/A | R223: N/A | S223: N/A | T223: N/A | U223: N/A | V223: N/A | W223: N/A | X223: N/A | Y223: N/A | Z223: N/A | AA223: N/A | AB223: N/A | AC223: N/A | AD223: N/A | AE223: N/A | AF223: N/A | AG223: N/A | AH223: N/A | AI223: N/A | AJ223: N/A | AK223: N/A | AL223: N/A | AM223: N/A | AN223: N/A | AO223: N/A | BB223: Limited | BC223: N/A | BD223: N/A | BE223: N/A | BF223: N/A | BG223: N/A | BH223: N/A | BI223: N/A | BJ223: N/A | BK223: N/A | BL223: N/A | BM223: N/A | BN223: N/A | BO223: N/A | BP223: N/A | BQ223: N/A | BR223: N/A | BS223: N/A | BT223: N/A | BU223: N/A | BV223: N/A | BW223: N/A | BX223: N/A | BY223: N/A | BZ223: N/A | CA223: N/A | CB223: N/A | CC223: N/A | CD223: N/A | CE223: N/A | CF223: N/A | CG223: N/A | CH223: N/A | CI223: N/A | CJ223: N/A | CK223: N/A | CL223: N/A | CM223: N/A | CN223: N/A | CO223: N/A
B224: No facility | C224: N/A | D224: N/A | E224: N/A | F224: N/A | G224: N/A | H224: N/A | I224: N/A | J224: N/A | K224: N/A | L224: N/A | M224: N/A | N224: N/A | O224: N/A | P224: N/A | Q224: N/A | R224: N/A | S224: N/A | T224: N/A | U224: N/A | V224: N/A | W224: N/A | X224: N/A | Y224: N/A | Z224: N/A | AA224: N/A | AB224: N/A | AC224: N/A | AD224: N/A | AE224: N/A | AF224: N/A | AG224: N/A | AH224: N/A | AI224: N/A | AJ224: N/A | AK224: N/A | AL224: N/A | AM224: N/A | AN224: N/A | AO224: N/A | BB224: No facility | BC224: N/A | BD224: N/A | BE224: N/A | BF224: N/A | BG224: N/A | BH224: N/A | BI224: N/A | BJ224: N/A | BK224: N/A | BL224: N/A | BM224: N/A | BN224: N/A | BO224: N/A | BP224: N/A | BQ224: N/A | BR224: N/A | BS224: N/A | BT224: N/A | BU224: N/A | BV224: N/A | BW224: N/A | BX224: N/A | BY224: N/A | BZ224: N/A | CA224: N/A | CB224: N/A | CC224: N/A | CD224: N/A | CE224: N/A | CF224: N/A | CG224: N/A | CH224: N/A | CI224: N/A | CJ224: N/A | CK224: N/A | CL224: N/A | CM224: N/A | CN224: N/A | CO224: N/A
BA225: Observed handwashing place | BB225: Fixed | BC225: N/A | BD225: N/A | BE225: N/A | BF225: N/A | BG225: N/A | BH225: N/A | BI225: N/A | BJ225: N/A | BK225: N/A | BL225: N/A | BM225: N/A | BN225: N/A | BO225: N/A | BP225: N/A | BQ225: N/A | BR225: N/A | BS225: N/A | BT225: N/A | BU225: N/A | BV225: N/A | BW225: N/A | BX225: N/A | BY225: N/A | BZ225: N/A | CA225: N/A | CB225: N/A | CC225: N/A | CD225: N/A | CE225: N/A | CF225: N/A | CG225: N/A | CH225: N/A | CI225: N/A | CJ225: N/A | CK225: N/A | CL225: N/A | CM225: N/A | CN225: N/A | CO225: N/A
BB226: Mobile | BC226: N/A | BD226: N/A | BE226: N/A | BF226: N/A | BG226: N/A | BH226: N/A | BI226: N/A | BJ226: N/A | BK226: N/A | BL226: N/A | BM226: N/A | BN226: N/A | BO226: N/A | BP226: N/A | BQ226: N/A | BR226: N/A | BS226: N/A | BT226: N/A | BU226: N/A | BV226: N/A | BW226: N/A | BX226: N/A | BY226: N/A | BZ226: N/A | CA226: N/A | CB226: N/A | CC226: N/A | CD226: N/A | CE226: N/A | CF226: N/A | CG226: N/A | CH226: N/A | CI226: N/A | CJ226: N/A | CK226: N/A | CL226: N/A | CM226: N/A | CN226: N/A | CO226: N/A
BA227: Water / Soap | BB227: Water and soap | BC227: N/A | BD227: N/A | BE227: N/A | BF227: N/A | BG227: N/A | BH227: N/A | BI227: N/A | BJ227: N/A | BK227: N/A | BL227: N/A | BM227: N/A | BN227: N/A | BO227: N/A | BP227: N/A | BQ227: N/A | BR227: N/A | BS227: N/A | BT227: N/A | BU227: N/A | BV227: N/A | BW227: N/A | BX227: N/A | BY227: N/A | BZ227: N/A | CA227: N/A | CB227: N/A | CC227: N/A | CD227: N/A | CE227: N/A | CF227: N/A | CG227: N/A | CH227: N/A | CI227: N/A | CJ227: N/A | CK227: N/A | CL227: N/A | CM227: N/A | CN227: N/A | CO227: N/A
BB228: Water only | BC228: N/A | BD228: N/A | BE228: N/A | BF228: N/A | BG228: N/A | BH228: N/A | BI228: N/A | BJ228: N/A | BK228: N/A | BL228: N/A | BM228: N/A | BN228: N/A | BO228: N/A | BP228: N/A | BQ228: N/A | BR228: N/A | BS228: N/A | BT228: N/A | BU228: N/A | BV228: N/A | BW228: N/A | BX228: N/A | BY228: N/A | BZ228: N/A | CA228: N/A | CB228: N/A | CC228: N/A | CD228: N/A | CE228: N/A | CF228: N/A | CG228: N/A | CH228: N/A | CI228: N/A | CJ228: N/A | CK228: N/A | CL228: N/A | CM228: N/A | CN228: N/A | CO228: N/A
BB229: Soap only | BC229: N/A | BD229: N/A | BE229: N/A | BF229: N/A | BG229: N/A | BH229: N/A | BI229: N/A | BJ229: N/A | BK229: N/A | BL229: N/A | BM229: N/A | BN229: N/A | BO229: N/A | BP229: N/A | BQ229: N/A | BR229: N/A | BS229: N/A | BT229: N/A | BU229: N/A | BV229: N/A | BW229: N/A | BX229: N/A | BY229: N/A | BZ229: N/A | CA229: N/A | CB229: N/A | CC229: N/A | CD229: N/A | CE229: N/A | CF229: N/A | CG229: N/A | CH229: N/A | CI229: N/A | CJ229: N/A | CK229: N/A | CL229: N/A | CM229: N/A | CN229: N/A | CO229: N/A
BB230: Neither | BC230: N/A | BD230: N/A | BE230: N/A | BF230: N/A | BG230: N/A | BH230: N/A | BI230: N/A | BJ230: N/A | BK230: N/A | BL230: N/A | BM230: N/A | BN230: N/A | BO230: N/A | BP230: N/A | BQ230: N/A | BR230: N/A | BS230: N/A | BT230: N/A | BU230: N/A | BV230: N/A | BW230: N/A | BX230: N/A | BY230: N/A | BZ230: N/A | CA230: N/A | CB230: N/A | CC230: N/A | CD230: N/A | CE230: N/A | CF230: N/A | CG230: N/A | CH230: N/A | CI230: N/A | CJ230: N/A | CK230: N/A | CL230: N/A | CM230: N/A | CN230: N/A | CO230: N/A
BA259: Raw numbers of respondents: | BB259: Menstrual health and hygiene | BC259: NATIONAL wealth index quintile | BH259: URBAN wealth index quintile | BM259: RURAL wealth index quintile | BR259: SUB-REGIONS:
BA260: MHH data, raw numbers (weighted) | BC260: Poorest | BD260: Poor | BE260: Middle | BF260: Rich | BG260: Richest | BH260: Poorest | BI260: Poor | BJ260: Middle | BK260: Rich | BL260: Richest | BM260: Poorest | BN260: Poor | BO260: Middle | BP260: Rich | BQ260: Richest | BR260: Amazonas | BS260: Ancash | BT260: Apurimac | BU260: Arequipa | BV260: Ayacucho | BW260: Cajamarca | BX260: Cusco | BY260: Huancavelica | BZ260: Huanuco | CA260: Ica | CB260: Junin | CC260: La Libertad | CD260: Lambayeque | CE260: Lima | CF260: Loreto | CG260: Madre de Dios | CH260: Moquegua | CI260: Pasco | CJ260: Piura | CK260: Puno | CL260: San Martin | CM260: Tacna | CN260: Tumbes | CO260: Ucayali
BA261: Private place to wash and change | BB261: Yes | BC261: N/A | BD261: N/A | BE261: N/A | BF261: N/A | BG261: N/A | BH261: N/A | BI261: N/A | BJ261: N/A | BK261: N/A | BL261: N/A | BM261: N/A | BN261: N/A | BO261: N/A | BP261: N/A | BQ261: N/A | BR261: N/A | BS261: N/A | BT261: N/A | BU261: N/A | BV261: N/A | BW261: N/A | BX261: N/A | BY261: N/A | BZ261: N/A | CA261: N/A | CB261: N/A | CC261: N/A | CD261: N/A | CE261: N/A | CF261: N/A | CG261: N/A | CH261: N/A | CI261: N/A | CJ261: N/A | CK261: N/A | CL261: N/A | CM261: N/A | CN261: N/A | CO261: N/A
BB262: No | BC262: N/A | BD262: N/A | BE262: N/A | BF262: N/A | BG262: N/A | BH262: N/A | BI262: N/A | BJ262: N/A | BK262: N/A | BL262: N/A | BM262: N/A | BN262: N/A | BO262: N/A | BP262: N/A | BQ262: N/A | BR262: N/A | BS262: N/A | BT262: N/A | BU262: N/A | BV262: N/A | BW262: N/A | BX262: N/A | BY262: N/A | BZ262: N/A | CA262: N/A | CB262: N/A | CC262: N/A | CD262: N/A | CE262: N/A | CF262: N/A | CG262: N/A | CH262: N/A | CI262: N/A | CJ262: N/A | CK262: N/A | CL262: N/A | CM262: N/A | CN262: N/A | CO262: N/A
BB263: DK/not sure/missing | BC263: N/A | BD263: N/A | BE263: N/A | BF263: N/A | BG263: N/A | BH263: N/A | BI263: N/A | BJ263: N/A | BK263: N/A | BL263: N/A | BM263: N/A | BN263: N/A | BO263: N/A | BP263: N/A | BQ263: N/A | BR263: N/A | BS263: N/A | BT263: N/A | BU263: N/A | BV263: N/A | BW263: N/A | BX263: N/A | BY263: N/A | BZ263: N/A | CA263: N/A | CB263: N/A | CC263: N/A | CD263: N/A | CE263: N/A | CF263: N/A | CG263: N/A | CH263: N/A | CI263: N/A | CJ263: N/A | CK263: N/A | CL263: N/A | CM263: N/A | CN263: N/A | CO263: N/A
BA264: Use of menstrual materials | BB264: Materials reusable | BC264: N/A | BD264: N/A | BE264: N/A | BF264: N/A | BG264: N/A | BH264: N/A | BI264: N/A | BJ264: N/A | BK264: N/A | BL264: N/A | BM264: N/A | BN264: N/A | BO264: N/A | BP264: N/A | BQ264: N/A | BR264: N/A | BS264: N/A | BT264: N/A | BU264: N/A | BV264: N/A | BW264: N/A | BX264: N/A | BY264: N/A | BZ264: N/A | CA264: N/A | CB264: N/A | CC264: N/A | CD264: N/A | CE264: N/A | CF264: N/A | CG264: N/A | CH264: N/A | CI264: N/A | CJ264: N/A | CK264: N/A | CL264: N/A | CM264: N/A | CN264: N/A | CO264: N/A
BB265: Materials not reusable | BC265: N/A | BD265: N/A | BE265: N/A | BF265: N/A | BG265: N/A | BH265: N/A | BI265: N/A | BJ265: N/A | BK265: N/A | BL265: N/A | BM265: N/A | BN265: N/A | BO265: N/A | BP265: N/A | BQ265: N/A | BR265: N/A | BS265: N/A | BT265: N/A | BU265: N/A | BV265: N/A | BW265: N/A | BX265: N/A | BY265: N/A | BZ265: N/A | CA265: N/A | CB265: N/A | CC265: N/A | CD265: N/A | CE265: N/A | CF265: N/A | CG265: N/A | CH265: N/A | CI265: N/A | CJ265: N/A | CK265: N/A | CL265: N/A | CM265: N/A | CN265: N/A | CO265: N/A
BB266: No materials used | BC266: N/A | BD266: N/A | BE266: N/A | BF266: N/A | BG266: N/A | BH266: N/A | BI266: N/A | BJ266: N/A | BK266: N/A | BL266: N/A | BM266: N/A | BN266: N/A | BO266: N/A | BP266: N/A | BQ266: N/A | BR266: N/A | BS266: N/A | BT266: N/A | BU266: N/A | BV266: N/A | BW266: N/A | BX266: N/A | BY266: N/A | BZ266: N/A | CA266: N/A | CB266: N/A | CC266: N/A | CD266: N/A | CE266: N/A | CF266: N/A | CG266: N/A | CH266: N/A | CI266: N/A | CJ266: N/A | CK266: N/A | CL266: N/A | CM266: N/A | CN266: N/A | CO266: N/A
BB267: DK/not sure/missing | BC267: N/A | BD267: N/A | BE267: N/A | BF267: N/A | BG267: N/A | BH267: N/A | BI267: N/A | BJ267: N/A | BK267: N/A | BL267: N/A | BM267: N/A | BN267: N/A | BO267: N/A | BP267: N/A | BQ267: N/A | BR267: N/A | BS267: N/A | BT267: N/A | BU267: N/A | BV267: N/A | BW267: N/A | BX267: N/A | BY267: N/A | BZ267: N/A | CA267: N/A | CB267: N/A | CC267: N/A | CD267: N/A | CE267: N/A | CF267: N/A | CG267: N/A | CH267: N/A | CI267: N/A | CJ267: N/A | CK267: N/A | CL267: N/A | CM267: N/A | CN267: N/A | CO267: N/A
BA268: Use of menstrual materials with private place to wash and change | BB268: Materials reusable | BC268: N/A | BD268: N/A | BE268: N/A | BF268: N/A | BG268: N/A | BH268: N/A | BI268: N/A | BJ268: N/A | BK268: N/A | BL268: N/A | BM268: N/A | BN268: N/A | BO268: N/A | BP268: N/A | BQ268: N/A | BR268: N/A | BS268: N/A | BT268: N/A | BU268: N/A | BV268: N/A | BW268: N/A | BX268: N/A | BY268: N/A | BZ268: N/A | CA268: N/A | CB268: N/A | CC268: N/A | CD268: N/A | CE268: N/A | CF268: N/A | CG268: N/A | CH268: N/A | CI268: N/A | CJ268: N/A | CK268: N/A | CL268: N/A | CM268: N/A | CN268: N/A | CO268: N/A
BB269: Materials not reusable | BC269: N/A | BD269: N/A | BE269: N/A | BF269: N/A | BG269: N/A | BH269: N/A | BI269: N/A | BJ269: N/A | BK269: N/A | BL269: N/A | BM269: N/A | BN269: N/A | BO269: N/A | BP269: N/A | BQ269: N/A | BR269: N/A | BS269: N/A | BT269: N/A | BU269: N/A | BV269: N/A | BW269: N/A | BX269: N/A | BY269: N/A | BZ269: N/A | CA269: N/A | CB269: N/A | CC269: N/A | CD269: N/A | CE269: N/A | CF269: N/A | CG269: N/A | CH269: N/A | CI269: N/A | CJ269: N/A | CK269: N/A | CL269: N/A | CM269: N/A | CN269: N/A | CO269: N/A
BB270: No materials used | BC270: N/A | BD270: N/A | BE270: N/A | BF270: N/A | BG270: N/A | BH270: N/A | BI270: N/A | BJ270: N/A | BK270: N/A | BL270: N/A | BM270: N/A | BN270: N/A | BO270: N/A | BP270: N/A | BQ270: N/A | BR270: N/A | BS270: N/A | BT270: N/A | BU270: N/A | BV270: N/A | BW270: N/A | BX270: N/A | BY270: N/A | BZ270: N/A | CA270: N/A | CB270: N/A | CC270: N/A | CD270: N/A | CE270: N/A | CF270: N/A | CG270: N/A | CH270: N/A | CI270: N/A | CJ270: N/A | CK270: N/A | CL270: N/A | CM270: N/A | CN270: N/A | CO270: N/A
BA271: Awareness of menstruation before menarche | BB271: Yes | BC271: N/A | BD271: N/A | BE271: N/A | BF271: N/A | BG271: N/A | BH271: N/A | BI271: N/A | BJ271: N/A | BK271: N/A | BL271: N/A | BM271: N/A | BN271: N/A | BO271: N/A | BP271: N/A | BQ271: N/A | BR271: N/A | BS271: N/A | BT271: N/A | BU271: N/A | BV271: N/A | BW271: N/A | BX271: N/A | BY271: N/A | BZ271: N/A | CA271: N/A | CB271: N/A | CC271: N/A | CD271: N/A | CE271: N/A | CF271: N/A | CG271: N/A | CH271: N/A | CI271: N/A | CJ271: N/A | CK271: N/A | CL271: N/A | CM271: N/A | CN271: N/A | CO271: N/A
BB272: No | BC272: N/A | BD272: N/A | BE272: N/A | BF272: N/A | BG272: N/A | BH272: N/A | BI272: N/A | BJ272: N/A | BK272: N/A | BL272: N/A | BM272: N/A | BN272: N/A | BO272: N/A | BP272: N/A | BQ272: N/A | BR272: N/A | BS272: N/A | BT272: N/A | BU272: N/A | BV272: N/A | BW272: N/A | BX272: N/A | BY272: N/A | BZ272: N/A | CA272: N/A | CB272: N/A | CC272: N/A | CD272: N/A | CE272: N/A | CF272: N/A | CG272: N/A | CH272: N/A | CI272: N/A | CJ272: N/A | CK272: N/A | CL272: N/A | CM272: N/A | CN272: N/A | CO272: N/A
BB273: DK/not sure/missing | BC273: N/A | BD273: N/A | BE273: N/A | BF273: N/A | BG273: N/A | BH273: N/A | BI273: N/A | BJ273: N/A | BK273: N/A | BL273: N/A | BM273: N/A | BN273: N/A | BO273: N/A | BP273: N/A | BQ273: N/A | BR273: N/A | BS273: N/A | BT273: N/A | BU273: N/A | BV273: N/A | BW273: N/A | BX273: N/A | BY273: N/A | BZ273: N/A | CA273: N/A | CB273: N/A | CC273: N/A | CD273: N/A | CE273: N/A | CF273: N/A | CG273: N/A | CH273: N/A | CI273: N/A | CJ273: N/A | CK273: N/A | CL273: N/A | CM273: N/A | CN273: N/A | CO273: N/A
BA274: Participation in (all) activities during menstruation | BB274: Yes | BC274: N/A | BD274: N/A | BE274: N/A | BF274: N/A | BG274: N/A | BH274: N/A | BI274: N/A | BJ274: N/A | BK274: N/A | BL274: N/A | BM274: N/A | BN274: N/A | BO274: N/A | BP274: N/A | BQ274: N/A | BR274: N/A | BS274: N/A | BT274: N/A | BU274: N/A | BV274: N/A | BW274: N/A | BX274: N/A | BY274: N/A | BZ274: N/A | CA274: N/A | CB274: N/A | CC274: N/A | CD274: N/A | CE274: N/A | CF274: N/A | CG274: N/A | CH274: N/A | CI274: N/A | CJ274: N/A | CK274: N/A | CL274: N/A | CM274: N/A | CN274: N/A | CO274: N/A
BB275: No | BC275: N/A | BD275: N/A | BE275: N/A | BF275: N/A | BG275: N/A | BH275: N/A | BI275: N/A | BJ275: N/A | BK275: N/A | BL275: N/A | BM275: N/A | BN275: N/A | BO275: N/A | BP275: N/A | BQ275: N/A | BR275: N/A | BS275: N/A | BT275: N/A | BU275: N/A | BV275: N/A | BW275: N/A | BX275: N/A | BY275: N/A | BZ275: N/A | CA275: N/A | CB275: N/A | CC275: N/A | CD275: N/A | CE275: N/A | CF275: N/A | CG275: N/A | CH275: N/A | CI275: N/A | CJ275: N/A | CK275: N/A | CL275: N/A | CM275: N/A | CN275: N/A | CO275: N/A
BB276: DK/not sure/missing/no such activity | BC276: N/A | BD276: N/A | BE276: N/A | BF276: N/A | BG276: N/A | BH276: N/A | BI276: N/A | BJ276: N/A | BK276: N/A | BL276: N/A | BM276: N/A | BN276: N/A | BO276: N/A | BP276: N/A | BQ276: N/A | BR276: N/A | BS276: N/A | BT276: N/A | BU276: N/A | BV276: N/A | BW276: N/A | BX276: N/A | BY276: N/A | BZ276: N/A | CA276: N/A | CB276: N/A | CC276: N/A | CD276: N/A | CE276: N/A | CF276: N/A | CG276: N/A | CH276: N/A | CI276: N/A | CJ276: N/A | CK276: N/A | CL276: N/A | CM276: N/A | CN276: N/A | CO276: N/A
BA277: Participation in specific activities during menstruation | BB277: Did not go to school (amongst those usually attending school) | BC277: N/A | BD277: N/A | BE277: N/A | BF277: N/A | BG277: N/A | BH277: N/A | BI277: N/A | BJ277: N/A | BK277: N/A | BL277: N/A | BM277: N/A | BN277: N/A | BO277: N/A | BP277: N/A | BQ277: N/A | BR277: N/A | BS277: N/A | BT277: N/A | BU277: N/A | BV277: N/A | BW277: N/A | BX277: N/A | BY277: N/A | BZ277: N/A | CA277: N/A | CB277: N/A | CC277: N/A | CD277: N/A | CE277: N/A | CF277: N/A | CG277: N/A | CH277: N/A | CI277: N/A | CJ277: N/A | CK277: N/A | CL277: N/A | CM277: N/A | CN277: N/A | CO277: N/A
BB278: Did not go to work (amongst those who usually work) | BC278: N/A | BD278: N/A | BE278: N/A | BF278: N/A | BG278: N/A | BH278: N/A | BI278: N/A | BJ278: N/A | BK278: N/A | BL278: N/A | BM278: N/A | BN278: N/A | BO278: N/A | BP278: N/A | BQ278: N/A | BR278: N/A | BS278: N/A | BT278: N/A | BU278: N/A | BV278: N/A | BW278: N/A | BX278: N/A | BY278: N/A | BZ278: N/A | CA278: N/A | CB278: N/A | CC278: N/A | CD278: N/A | CE278: N/A | CF278: N/A | CG278: N/A | CH278: N/A | CI278: N/A | CJ278: N/A | CK278: N/A | CL278: N/A | CM278: N/A | CN278: N/A | CO278: N/A
BB279: Did not participate in social activities | BC279: N/A | BD279: N/A | BE279: N/A | BF279: N/A | BG279: N/A | BH279: N/A | BI279: N/A | BJ279: N/A | BK279: N/A | BL279: N/A | BM279: N/A | BN279: N/A | BO279: N/A | BP279: N/A | BQ279: N/A | BR279: N/A | BS279: N/A | BT279: N/A | BU279: N/A | BV279: N/A | BW279: N/A | BX279: N/A | BY279: N/A | BZ279: N/A | CA279: N/A | CB279: N/A | CC279: N/A | CD279: N/A | CE279: N/A | CF279: N/A | CG279: N/A | CH279: N/A | CI279: N/A | CJ279: N/A | CK279: N/A | CL279: N/A | CM279: N/A | CN279: N/A | CO279: N/A
BB280: Did not cook food | BC280: N/A | BD280: N/A | BE280: N/A | BF280: N/A | BG280: N/A | BH280: N/A | BI280: N/A | BJ280: N/A | BK280: N/A | BL280: N/A | BM280: N/A | BN280: N/A | BO280: N/A | BP280: N/A | BQ280: N/A | BR280: N/A | BS280: N/A | BT280: N/A | BU280: N/A | BV280: N/A | BW280: N/A | BX280: N/A | BY280: N/A | BZ280: N/A | CA280: N/A | CB280: N/A | CC280: N/A | CD280: N/A | CE280: N/A | CF280: N/A | CG280: N/A | CH280: N/A | CI280: N/A | CJ280: N/A | CK280: N/A | CL280: N/A | CM280: N/A | CN280: N/A | CO280: N/A
BB281: Did not eat with others | BC281: N/A | BD281: N/A | BE281: N/A | BF281: N/A | BG281: N/A | BH281: N/A | BI281: N/A | BJ281: N/A | BK281: N/A | BL281: N/A | BM281: N/A | BN281: N/A | BO281: N/A | BP281: N/A | BQ281: N/A | BR281: N/A | BS281: N/A | BT281: N/A | BU281: N/A | BV281: N/A | BW281: N/A | BX281: N/A | BY281: N/A | BZ281: N/A | CA281: N/A | CB281: N/A | CC281: N/A | CD281: N/A | CE281: N/A | CF281: N/A | CG281: N/A | CH281: N/A | CI281: N/A | CJ281: N/A | CK281: N/A | CL281: N/A | CM281: N/A | CN281: N/A | CO281: N/A
BB282: Did not bathe in regular place | BC282: N/A | BD282: N/A | BE282: N/A | BF282: N/A | BG282: N/A | BH282: N/A | BI282: N/A | BJ282: N/A | BK282: N/A | BL282: N/A | BM282: N/A | BN282: N/A | BO282: N/A | BP282: N/A | BQ282: N/A | BR282: N/A | BS282: N/A | BT282: N/A | BU282: N/A | BV282: N/A | BW282: N/A | BX282: N/A | BY282: N/A | BZ282: N/A | CA282: N/A | CB282: N/A | CC282: N/A | CD282: N/A | CE282: N/A | CF282: N/A | CG282: N/A | CH282: N/A | CI282: N/A | CJ282: N/A | CK282: N/A | CL282: N/A | CM282: N/A | CN282: N/A | CO282: N/A
BB283: Did not participate in other activities | BC283: N/A | BD283: N/A | BE283: N/A | BF283: N/A | BG283: N/A | BH283: N/A | BI283: N/A | BJ283: N/A | BK283: N/A | BL283: N/A | BM283: N/A | BN283: N/A | BO283: N/A | BP283: N/A | BQ283: N/A | BR283: N/A | BS283: N/A | BT283: N/A | BU283: N/A | BV283: N/A | BW283: N/A | BX283: N/A | BY283: N/A | BZ283: N/A | CA283: N/A | CB283: N/A | CC283: N/A | CD283: N/A | CE283: N/A | CF283: N/A | CG283: N/A | CH283: N/A | CI283: N/A | CJ283: N/A | CK283: N/A | CL283: N/A | CM283: N/A | CN283: N/A | CO283: N/A
BB284: DK/not sure/missing/no such activity | BC284: N/A | BD284: N/A | BE284: N/A | BF284: N/A | BG284: N/A | BH284: N/A | BI284: N/A | BJ284: N/A | BK284: N/A | BL284: N/A | BM284: N/A | BN284: N/A | BO284: N/A | BP284: N/A | BQ284: N/A | BR284: N/A | BS284: N/A | BT284: N/A | BU284: N/A | BV284: N/A | BW284: N/A | BX284: N/A | BY284: N/A | BZ284: N/A | CA284: N/A | CB284: N/A | CC284: N/A | CD284: N/A | CE284: N/A | CF284: N/A | CG284: N/A | CH284: N/A | CI284: N/A | CJ284: N/A | CK284: N/A | CL284: N/A | CM284: N/A | CN284: N/A | CO284: N/A
BA339: Raw numbers of respondents: | BB339: Basic water, sanitation and hygiene | BC339: NATIONAL wealth index quintile | BH339: URBAN wealth index quintile | BM339: RURAL wealth index quintile | BR339: SUB-REGIONS:
BA340: WatSan data, raw numbers (weighted) | BC340: Poorest | BD340: Poor | BE340: Middle | BF340: Rich | BG340: Richest | BH340: Poorest | BI340: Poor | BJ340: Middle | BK340: Rich | BL340: Richest | BM340: Poorest | BN340: Poor | BO340: Middle | BP340: Rich | BQ340: Richest | BR340: Amazonas | BS340: Ancash | BT340: Apurimac | BU340: Arequipa | BV340: Ayacucho | BW340: Cajamarca | BX340: Cusco | BY340: Huancavelica | BZ340: Huanuco | CA340: Ica | CB340: Junin | CC340: La Libertad | CD340: Lambayeque | CE340: Lima | CF340: Loreto | CG340: Madre de Dios | CH340: Moquegua | CI340: Pasco | CJ340: Piura | CK340: Puno | CL340: San Martin | CM340: Tacna | CN340: Tumbes | CO340: Ucayali
BA341: Use of Basic Water Sanitation and Hygiene | BB341: Yes | BC341: N/A | BD341: N/A | BE341: N/A | BF341: N/A | BG341: N/A | BH341: N/A | BI341: N/A | BJ341: N/A | BK341: N/A | BL341: N/A | BM341: N/A | BN341: N/A | BO341: N/A | BP341: N/A | BQ341: N/A | BR341: N/A | BS341: N/A | BT341: N/A | BU341: N/A | BV341: N/A | BW341: N/A | BX341: N/A | BY341: N/A | BZ341: N/A | CA341: N/A | CB341: N/A | CC341: N/A | CD341: N/A | CE341: N/A | CF341: N/A | CG341: N/A | CH341: N/A | CI341: N/A | CJ341: N/A | CK341: N/A | CL341: N/A | CM341: N/A | CN341: N/A | CO341: N/A
BB342: No | BC342: N/A | BD342: N/A | BE342: N/A | BF342: N/A | BG342: N/A | BH342: N/A | BI342: N/A | BJ342: N/A | BK342: N/A | BL342: N/A | BM342: N/A | BN342: N/A | BO342: N/A | BP342: N/A | BQ342: N/A | BR342: N/A | BS342: N/A | BT342: N/A | BU342: N/A | BV342: N/A | BW342: N/A | BX342: N/A | BY342: N/A | BZ342: N/A | CA342: N/A | CB342: N/A | CC342: N/A | CD342: N/A | CE342: N/A | CF342: N/A | CG342: N/A | CH342: N/A | CI342: N/A | CJ342: N/A | CK342: N/A | CL342: N/A | CM342: N/A | CN342: N/A | CO342: N/A
BA343: Use of Basic Water and Sanitation | BB343: Yes | BC343: N/A | BD343: N/A | BE343: N/A | BF343: N/A | BG343: N/A | BH343: N/A | BI343: N/A | BJ343: N/A | BK343: N/A | BL343: N/A | BM343: N/A | BN343: N/A | BO343: N/A | BP343: N/A | BQ343: N/A | BR343: N/A | BS343: N/A | BT343: N/A | BU343: N/A | BV343: N/A | BW343: N/A | BX343: N/A | BY343: N/A | BZ343: N/A | CA343: N/A | CB343: N/A | CC343: N/A | CD343: N/A | CE343: N/A | CF343: N/A | CG343: N/A | CH343: N/A | CI343: N/A | CJ343: N/A | CK343: N/A | CL343: N/A | CM343: N/A | CN343: N/A | CO343: N/A
BB344: No | BC344: N/A | BD344: N/A | BE344: N/A | BF344: N/A | BG344: N/A | BH344: N/A | BI344: N/A | BJ344: N/A | BK344: N/A | BL344: N/A | BM344: N/A | BN344: N/A | BO344: N/A | BP344: N/A | BQ344: N/A | BR344: N/A | BS344: N/A | BT344: N/A | BU344: N/A | BV344: N/A | BW344: N/A | BX344: N/A | BY344: N/A | BZ344: N/A | CA344: N/A | CB344: N/A | CC344: N/A | CD344: N/A | CE344: N/A | CF344: N/A | CG344: N/A | CH344: N/A | CI344: N/A | CJ344: N/A | CK344: N/A | CL344: N/A | CM344: N/A | CN344: N/A | CO344: N/A
BA345: Use of Basic Water and Hygiene | BB345: Yes | BC345: N/A | BD345: N/A | BE345: N/A | BF345: N/A | BG345: N/A | BH345: N/A | BI345: N/A | BJ345: N/A | BK345: N/A | BL345: N/A | BM345: N/A | BN345: N/A | BO345: N/A | BP345: N/A | BQ345: N/A | BR345: N/A | BS345: N/A | BT345: N/A | BU345: N/A | BV345: N/A | BW345: N/A | BX345: N/A | BY345: N/A | BZ345: N/A | CA345: N/A | CB345: N/A | CC345: N/A | CD345: N/A | CE345: N/A | CF345: N/A | CG345: N/A | CH345: N/A | CI345: N/A | CJ345: N/A | CK345: N/A | CL345: N/A | CM345: N/A | CN345: N/A | CO345: N/A
BB346: No | BC346: N/A | BD346: N/A | BE346: N/A | BF346: N/A | BG346: N/A | BH346: N/A | BI346: N/A | BJ346: N/A | BK346: N/A | BL346: N/A | BM346: N/A | BN346: N/A | BO346: N/A | BP346: N/A | BQ346: N/A | BR346: N/A | BS346: N/A | BT346: N/A | BU346: N/A | BV346: N/A | BW346: N/A | BX346: N/A | BY346: N/A | BZ346: N/A | CA346: N/A | CB346: N/A | CC346: N/A | CD346: N/A | CE346: N/A | CF346: N/A | CG346: N/A | CH346: N/A | CI346: N/A | CJ346: N/A | CK346: N/A | CL346: N/A | CM346: N/A | CN346: N/A | CO346: N/A
BA347: Use of Basic Sanitation and Hygiene | BB347: Yes | BC347: N/A | BD347: N/A | BE347: N/A | BF347: N/A | BG347: N/A | BH347: N/A | BI347: N/A | BJ347: N/A | BK347: N/A | BL347: N/A | BM347: N/A | BN347: N/A | BO347: N/A | BP347: N/A | BQ347: N/A | BR347: N/A | BS347: N/A | BT347: N/A | BU347: N/A | BV347: N/A | BW347: N/A | BX347: N/A | BY347: N/A | BZ347: N/A | CA347: N/A | CB347: N/A | CC347: N/A | CD347: N/A | CE347: N/A | CF347: N/A | CG347: N/A | CH347: N/A | CI347: N/A | CJ347: N/A | CK347: N/A | CL347: N/A | CM347: N/A | CN347: N/A | CO347: N/A
BB348: No | BC348: N/A | BD348: N/A | BE348: N/A | BF348: N/A | BG348: N/A | BH348: N/A | BI348: N/A | BJ348: N/A | BK348: N/A | BL348: N/A | BM348: N/A | BN348: N/A | BO348: N/A | BP348: N/A | BQ348: N/A | BR348: N/A | BS348: N/A | BT348: N/A | BU348: N/A | BV348: N/A | BW348: N/A | BX348: N/A | BY348: N/A | BZ348: N/A | CA348: N/A | CB348: N/A | CC348: N/A | CD348: N/A | CE348: N/A | CF348: N/A | CG348: N/A | CH348: N/A | CI348: N/A | CJ348: N/A | CK348: N/A | CL348: N/A | CM348: N/A | CN348: N/A | CO348: N/A
BA349: Use of Basic Water | BB349: Yes | BC349: N/A | BD349: N/A | BE349: N/A | BF349: N/A | BG349: N/A | BH349: N/A | BI349: N/A | BJ349: N/A | BK349: N/A | BL349: N/A | BM349: N/A | BN349: N/A | BO349: N/A | BP349: N/A | BQ349: N/A | BR349: N/A | BS349: N/A | BT349: N/A | BU349: N/A | BV349: N/A | BW349: N/A | BX349: N/A | BY349: N/A | BZ349: N/A | CA349: N/A | CB349: N/A | CC349: N/A | CD349: N/A | CE349: N/A | CF349: N/A | CG349: N/A | CH349: N/A | CI349: N/A | CJ349: N/A | CK349: N/A | CL349: N/A | CM349: N/A | CN349: N/A | CO349: N/A
BB350: No | BC350: N/A | BD350: N/A | BE350: N/A | BF350: N/A | BG350: N/A | BH350: N/A | BI350: N/A | BJ350: N/A | BK350: N/A | BL350: N/A | BM350: N/A | BN350: N/A | BO350: N/A | BP350: N/A | BQ350: N/A | BR350: N/A | BS350: N/A | BT350: N/A | BU350: N/A | BV350: N/A | BW350: N/A | BX350: N/A | BY350: N/A | BZ350: N/A | CA350: N/A | CB350: N/A | CC350: N/A | CD350: N/A | CE350: N/A | CF350: N/A | CG350: N/A | CH350: N/A | CI350: N/A | CJ350: N/A | CK350: N/A | CL350: N/A | CM350: N/A | CN350: N/A | CO350: N/A
BA351: Use of Basic Sanitation | BB351: Yes | BC351: N/A | BD351: N/A | BE351: N/A | BF351: N/A | BG351: N/A | BH351: N/A | BI351: N/A | BJ351: N/A | BK351: N/A | BL351: N/A | BM351: N/A | BN351: N/A | BO351: N/A | BP351: N/A | BQ351: N/A | BR351: N/A | BS351: N/A | BT351: N/A | BU351: N/A | BV351: N/A | BW351: N/A | BX351: N/A | BY351: N/A | BZ351: N/A | CA351: N/A | CB351: N/A | CC351: N/A | CD351: N/A | CE351: N/A | CF351: N/A | CG351: N/A | CH351: N/A | CI351: N/A | CJ351: N/A | CK351: N/A | CL351: N/A | CM351: N/A | CN351: N/A | CO351: N/A
BB352: No | BC352: N/A | BD352: N/A | BE352: N/A | BF352: N/A | BG352: N/A | BH352: N/A | BI352: N/A | BJ352: N/A | BK352: N/A | BL352: N/A | BM352: N/A | BN352: N/A | BO352: N/A | BP352: N/A | BQ352: N/A | BR352: N/A | BS352: N/A | BT352: N/A | BU352: N/A | BV352: N/A | BW352: N/A | BX352: N/A | BY352: N/A | BZ352: N/A | CA352: N/A | CB352: N/A | CC352: N/A | CD352: N/A | CE352: N/A | CF352: N/A | CG352: N/A | CH352: N/A | CI352: N/A | CJ352: N/A | CK352: N/A | CL352: N/A | CM352: N/A | CN352: N/A | CO352: N/A
BA353: Access to Basic Hygiene | BB353: Yes | BC353: N/A | BD353: N/A | BE353: N/A | BF353: N/A | BG353: N/A | BH353: N/A | BI353: N/A | BJ353: N/A | BK353: N/A | BL353: N/A | BM353: N/A | BN353: N/A | BO353: N/A | BP353: N/A | BQ353: N/A | BR353: N/A | BS353: N/A | BT353: N/A | BU353: N/A | BV353: N/A | BW353: N/A | BX353: N/A | BY353: N/A | BZ353: N/A | CA353: N/A | CB353: N/A | CC353: N/A | CD353: N/A | CE353: N/A | CF353: N/A | CG353: N/A | CH353: N/A | CI353: N/A | CJ353: N/A | CK353: N/A | CL353: N/A | CM353: N/A | CN353: N/A | CO353: N/A
BB354: No | BC354: N/A | BD354: N/A | BE354: N/A | BF354: N/A | BG354: N/A | BH354: N/A | BI354: N/A | BJ354: N/A | BK354: N/A | BL354: N/A | BM354: N/A | BN354: N/A | BO354: N/A | BP354: N/A | BQ354: N/A | BR354: N/A | BS354: N/A | BT354: N/A | BU354: N/A | BV354: N/A | BW354: N/A | BX354: N/A | BY354: N/A | BZ354: N/A | CA354: N/A | CB354: N/A | CC354: N/A | CD354: N/A | CE354: N/A | CF354: N/A | CG354: N/A | CH354: N/A | CI354: N/A | CJ354: N/A | CK354: N/A | CL354: N/A | CM354: N/A | CN354: N/A | CO354: N/A
C399: INITIAL (national) Wealth Index | H399: URBAN Wealth Index | M399: RURAL Wealth Index
C400: Component Matrix | H400: Component Matrix | M400: Component Matrix
E401: Component | J401: Component | O401: Component
B402: Note: The INITIAL (national) Wealth Index is based on the first component of the Principal Component Analysis (PCA) which has been obtained at national level. The final national-level (NATIONAL) Wealth Index is based on the URBAN and RURAL specific wealth indexes. Regression procedures are used to establish the relationships between the two sets of scores (urban and rural) and the initial (national) wealth factors. This allows best use of the available information for each area and a better precision of the FINAL (NATIONAL) Wealth Index. For dependency reasons, all WASH variables (contained in the generic MICS and DHS scripts) have been excluded from the sets of asset variables used in the PCAs. The PCA can extracts as many components as there are asset variables in the input. Only the first of the components is used to represent the Wealth Index. The scores represent the weights of the asset variables on the Wealth Index (correlations between the variables and the component). The communalities are the proportion of each variable's variance that can be explained by the component. Proportion of explained variance is the part of the model's total variance that is explained by the component. For more information on the procedure used: The DHS Wealth Index, DHS Comparative Reports No. 6, Shea Oscar Rutstein, Kiersten Johnson, ORC Macro International Inc., 2004. The DHS Wealth Index: Approaches for Rural and Urban Areas, Shea O. Rutstein, ORC Macro International Inc., 2008. MICS Methodological Paper No. 4, Review of options for reporting water, sanitation and hygiene coverage by wealth quintile, UNICEF, 2016. | E402: 1 | J402: 1 | O402: 1
C403: Has bricks wall | E403: 0.795769247 | H403: Has bricks wall | J403: 0.7376225921 | M403: Has cement floor | O403: 0.6798937822
C404: Has earth/sand floor | E404: -0.7579689197 | H404: Has cement/concrete roof | J404: 0.7274118388 | M404: Has earth/sand floor | O404: -0.6778702048
C405: Has refrigerator | E405: 0.7331395767 | H405: Has earth/sand floor | J405: -0.6666684771 | M405: Has bricks wall | O405: 0.607746819
C406: Has electricity | E406: 0.7267669172 | H406: Has refrigerator | J406: 0.6586963432 | M406: Has television | O406: 0.607110927
C407: Household fuel type: wood, straw | E407: -0.7246698621 | H407: Has telephone | J407: 0.6101921808 | M407: Has refrigerator | O407: 0.592362384
C408: Has television | E408: 0.7221801254 | H408: Household fuel type: LPG, natural gas | J408: 0.5710254483 | M408: Has electricity | O408: 0.5706320675
C409: Has cement/concrete roof | E409: 0.7210877411 | H409: Household fuel type: wood, straw | J409: -0.5199967357 | M409: Household fuel type: LPG, natural gas | O409: 0.558605738
C410: Household fuel type: LPG, natural gas | E410: 0.6918098253 | H410: Has television | J410: 0.510794358 | M410: Has cement/concrete roof | O410: 0.4987416892
C411: Has telephone | E411: 0.6309619979 | H411: Has uncovered adobe wall | J411: -0.4865694504 | M411: Household fuel type: wood, straw | O411: -0.483471282
C412: Has cement floor | E412: 0.5940017141 | H412: Has electricity | J412: 0.4836163203 | M412: Has telephone | O412: 0.3511127224
C413: Has uncovered adobe wall | E413: -0.5763248694 | H413: Has calamine roof | J413: -0.4422674062 | M413: Household fuel type: kerosene | O413: 0.3378062116
C414: Other means of transport | E414: -0.4649858448 | H414: Number of members per sleeping room | J414: -0.4094170519 | M414: Has car | O414: 0.331319926
C415: Has palm/bamboo roof | E415: -0.3865857953 | H415: Has radio | J415: 0.398873949 | M415: Has uncovered adobe wall | O415: -0.3112377555
C416: Has car | E416: 0.3833355189 | H416: Has car | J416: 0.3866801351 | M416: Has bicycle | O416: 0.3015665912
C417: Has radio | E417: 0.3802539375 | H417: Computer | J417: 0.3669770992 | M417: Other means of transport | O417: -0.2995977119
C418: Number of members per sleeping room | E418: -0.3742994721 | H418: Has cement floor | J418: 0.3504363485 | M418: Has palm/bamboo roof | O418: -0.2862064547
C419: Computer | E419: 0.352342733 | H419: Has reused wood wall | J419: -0.3148271891 | M419: Has radio | O419: 0.2753593992
C420: Has tiles roof | E420: -0.3175274335 | H420: Has ceramic tile floor | J420: 0.2849742583 | M420: Has tiles roof | O420: -0.2566762234
... 151 more rows

Sheet DHS06
A2: =A1026 -> Peru
A3: =A1034 -> 2006
A4: Use of drinking water sources
A5: by wealth quintile and sub-national region
A6: Notes:
A7: WHO/UNICEF JMP customised wealth index excludes water,
A8: sanitation and hygiene assets.
A9: Survey used for analysis: | B9: =A1025 -> DHS06
A10: Improved water at >30min.based on: | B10: Water at > 30min.
A11: Improved wells & springs based on: | B11: 50% Rule
A14: Use of drinking water sources | C14: NATIONAL wealth index quintile | H14: URBAN wealth index quintile | M14: RURAL wealth index quintile | R14: SUB-REGIONS: | BA14: Raw numbers of respondents: | BB14: Use of drinking water sources | BC14: NATIONAL wealth index quintile | BH14: URBAN wealth index quintile | BM14: RURAL wealth index quintile | BR14: SUB-REGIONS:
A15: Weighted percentage (used in graphs) | C15: Poorest | D15: Poor | E15: Middle | F15: Rich | G15: Richest | H15: Poorest | I15: Poor | J15: Middle | K15: Rich | L15: Richest | M15: Poorest | N15: Poor | O15: Middle | P15: Rich | Q15: Richest | R15: Amazonas | S15: Ancash | T15: Apurimac | U15: Arequipa | V15: Ayacucho | W15: Cajamarca | X15: Callao | Y15: Cusco | Z15: Huancavelica | AA15: Huanuco | AB15: Ica | AC15: Junin | AD15: La Libertad | AE15: Lambayeque | AF15: Lima | AG15: Loreto | AH15: Madre de Dios | AI15: Moquegua | AJ15: Pasco | AK15: Piura | AL15: Puno | AM15: San Martin | AN15: Tacna | AO15: Tumbes | AP15: Ucayali | BA15: Water data, raw numbers (weighted) | BC15: Poorest | BD15: Poor | BE15: Middle | BF15: Rich | BG15: Richest | BH15: Poorest | BI15: Poor | BJ15: Middle | BK15: Rich | BL15: Richest | BM15: Poorest | BN15: Poor | BO15: Middle | BP15: Rich | BQ15: Richest | BR15: Amazonas | BS15: Ancash | BT15: Apurimac | BU15: Arequipa | BV15: Ayacucho | BW15: Cajamarca | BX15: Callao | BY15: Cusco | BZ15: Huancavelica | CA15: Huanuco | CB15: Ica | CC15: Junin | CD15: La Libertad | CE15: Lambayeque | CF15: Lima | CG15: Loreto | CH15: Madre de Dios | CI15: Moquegua | CJ15: Pasco | CK15: Piura | CL15: Puno | CM15: San Martin | CN15: Tacna | CO15: Tumbes | CP15: Ucayali
A16: Water | B16: Improved | C16: =C58+C59+C60+C65+C66+C67+(C61+C62+C63)*0.5 -> 70.67252787 | D16: 69.96657646 | E16: 89.05708508 | F16: 96.11202999 | G16: 99.35116138 | H16: 83.61718178 | I16: 91.26381044 | J16: 95.74672867 | K16: 98.45745476 | L16: 99.45880939 | M16: 68.53218605 | N16: 71.28798599 | O16: 69.76051019 | P16: 63.3131445 | Q16: 73.97424325 | R16: 81.62555198 | S16: 90.40133475 | T16: 85.82721443 | U16: 94.85394847 | V16: 83.86553109 | W16: 81.29260482 | X16: 97.48602636 | Y16: 86.78413946 | Z16: 76.16440477 | AA16: 71.21739358 | AB16: 88.11328516 | AC16: 85.25438665 | AD16: 84.41804971 | AE16: 82.4908263 | AF16: 96.91009371 | AG16: 50.48183607 | AH16: 82.18421097 | AI16: 94.87530357 | AJ16: 79.99424779 | AK16: 79.68920766 | AL16: 73.59587228 | AM16: 72.31602489 | AN16: 94.95987104 | AO16: 80.3434953 | AP16: 65.05947857 | BA16: Water | BB16: Improved | BC16: N/A | BD16: N/A | BE16: N/A | BF16: N/A | BG16: N/A | BH16: N/A | BI16: N/A | BJ16: N/A | BK16: N/A | BL16: N/A | BM16: N/A | BN16: N/A | BO16: N/A | BP16: N/A | BQ16: N/A | BR16: N/A | BS16: N/A | BT16: N/A | BU16: N/A | BV16: N/A | BW16: N/A | BX16: N/A | BY16: N/A | BZ16: N/A | CA16: N/A | CB16: N/A | CC16: N/A | CD16: N/A | CE16: N/A | CF16: N/A | CG16: N/A | CH16: N/A | CI16: N/A | CJ16: N/A | CK16: N/A | CL16: N/A | CM16: N/A | CN16: N/A | CO16: N/A | CP16: N/A
B17: Not Improved | C17: =100-C16 -> 29.32747213 | D17: =100-D16 -> 30.03342354 | E17: 10.94291492 | F17: 3.887970012 | G17: 0.6488386227 | H17: 16.38281822 | I17: 8.736189556 | J17: 4.253271329 | K17: 1.54254524 | L17: 0.541190606 | M17: 31.46781395 | N17: 28.71201401 | O17: 30.23948981 | P17: 36.6868555 | Q17: 26.02575675 | R17: 18.37444802 | S17: 9.59866525 | T17: 14.17278557 | U17: 5.146051529 | V17: 16.13446891 | W17: 18.70739518 | X17: 2.513973637 | Y17: 13.21586054 | Z17: 23.83559523 | AA17: 28.78260642 | AB17: 11.88671484 | AC17: 14.74561335 | AD17: 15.58195029 | AE17: 17.5091737 | AF17: 3.089906287 | AG17: 49.51816393 | AH17: 17.81578903 | AI17: 5.124696431 | AJ17: 20.00575221 | AK17: 20.31079234 | AL17: 26.40412772 | AM17: 27.68397511 | AN17: 5.040128957 | AO17: 19.6565047 | AP17: 34.94052143 | BB17: Not Improved | BC17: N/A | BD17: N/A | BE17: N/A | BF17: N/A | BG17: N/A | BH17: N/A | BI17: N/A | BJ17: N/A | BK17: N/A | BL17: N/A | BM17: N/A | BN17: N/A | BO17: N/A | BP17: N/A | BQ17: N/A | BR17: N/A | BS17: N/A | BT17: N/A | BU17: N/A | BV17: N/A | BW17: N/A | BX17: N/A | BY17: N/A | BZ17: N/A | CA17: N/A | CB17: N/A | CC17: N/A | CD17: N/A | CE17: N/A | CF17: N/A | CG17: N/A | CH17: N/A | CI17: N/A | CJ17: N/A | CK17: N/A | CL17: N/A | CM17: N/A | CN17: N/A | CO17: N/A | CP17: N/A
A18: Water ladder | B18: Basic | C18: =C16*C23/100 -> 69.00795499 | D18: =D16*D23/100 -> 68.28463022 | E18: 87.83856188 | F18: 95.68059022 | G18: 99.32045565 | H18: 81.62441742 | I18: 90.26785116 | J18: 95.33457247 | K18: 98.20889368 | L18: 99.44634519 | M18: 66.88933556 | N18: 69.55870106 | O18: 67.70107925 | P18: 61.92304435 | Q18: 73.10267399 | R18: 80.679451 | S18: 90.05517645 | T18: 85.30819103 | U18: 93.95849339 | V18: 83.46940461 | W18: 79.94088083 | X18: 97.48602636 | Y18: 86.30261785 | Z18: 74.9851404 | AA18: 70.1808625 | AB18: 86.99051535 | AC18: 84.92943076 | AD18: 83.64464641 | AE18: 77.6002421 | AF18: 96.6819245 | AG18: 49.42436679 | AH18: 81.87983651 | AI18: 94.66456907 | AJ18: 79.0589886 | AK18: 74.11452055 | AL18: 73.07433089 | AM18: 72.07646679 | AN18: 94.54105566 | AO18: 78.10671919 | AP18: 64.83849109 | BA18: Water ladder | BB18: Basic | BC18: N/A | BD18: N/A | BE18: N/A | BF18: N/A | BG18: N/A | BH18: N/A | BI18: N/A | BJ18: N/A | BK18: N/A | BL18: N/A | BM18: N/A | BN18: N/A | BO18: N/A | BP18: N/A | BQ18: N/A | BR18: N/A | BS18: N/A | BT18: N/A | BU18: N/A | BV18: N/A | BW18: N/A | BX18: N/A | BY18: N/A | BZ18: N/A | CA18: N/A | CB18: N/A | CC18: N/A | CD18: N/A | CE18: N/A | CF18: N/A | CG18: N/A | CH18: N/A | CI18: N/A | CJ18: N/A | CK18: N/A | CL18: N/A | CM18: N/A | CN18: N/A | CO18: N/A | CP18: N/A
B19: Limited | C19: =C16*C22/100 -> 1.664572877 | D19: =D16*D22/100 -> 1.681946237 | E19: 1.218523199 | F19: 0.431439769 | G19: 0.03070572656 | H19: 1.992764357 | I19: 0.9959592803 | J19: 0.4121562052 | K19: 0.2485610762 | L19: 0.01246420023 | M19: 1.642850486 | N19: 1.729284936 | O19: 2.059430941 | P19: 1.390100149 | Q19: 0.8715692589 | R19: 0.9461009825 | S19: 0.3461582953 | T19: 0.5190233948 | U19: 0.8954550772 | V19: 0.3961264756 | W19: 1.351723985 | X19: 0 | Y19: 0.4815216071 | Z19: 1.179264371 | AA19: 1.03653108 | AB19: 1.12276981 | AC19: 0.3249558875 | AD19: 0.7734032952 | AE19: 4.890584197 | AF19: 0.2281692106 | AG19: 1.057469274 | AH19: 0.3043744543 | AI19: 0.2107344948 | AJ19: 0.9352591922 | AK19: 5.574687113 | AL19: 0.5215413947 | AM19: 0.2395580985 | AN19: 0.4188153863 | AO19: 2.23677611 | AP19: 0.2209874829 | BB19: Limited | BC19: N/A | BD19: N/A | BE19: N/A | BF19: N/A | BG19: N/A | BH19: N/A | BI19: N/A | BJ19: N/A | BK19: N/A | BL19: N/A | BM19: N/A | BN19: N/A | BO19: N/A | BP19: N/A | BQ19: N/A | BR19: N/A | BS19: N/A | BT19: N/A | BU19: N/A | BV19: N/A | BW19: N/A | BX19: N/A | BY19: N/A | BZ19: N/A | CA19: N/A | CB19: N/A | CC19: N/A | CD19: N/A | CE19: N/A | CF19: N/A | CG19: N/A | CH19: N/A | CI19: N/A | CJ19: N/A | CK19: N/A | CL19: N/A | CM19: N/A | CN19: N/A | CO19: N/A | CP19: N/A
B20: Unimproved | C20: =100-(C18+C19+C21) -> 19.45846904 | D20: =100-(D18+D19+D21) -> 15.73215147 | E20: 9.697120408 | F20: 3.778898066 | G20: 0.6488386227 | H20: 15.23189107 | I20: 8.705763002 | J20: 4.253271329 | K20: 1.535608261 | L20: 0.541190606 | M20: 20.36556458 | N20: 18.77131876 | O20: 19.35773947 | P20: 15.00747718 | Q20: 11.61169997 | R20: 8.600479838 | S20: 5.407116058 | T20: 10.9601886 | U20: 2.436235701 | V20: 10.62996322 | W20: 14.24470316 | X20: 2.513973637 | Y20: 9.190531328 | Z20: 19.03940264 | AA20: 17.07609297 | AB20: 10.25001995 | AC20: 8.878050629 | AD20: 14.17925374 | AE20: 14.09331738 | AF20: 2.381273489 | AG20: 15.13728073 | AH20: 7.859234483 | AI20: 2.226112326 | AJ20: 12.24490933 | AK20: 11.80387125 | AL20: 23.30820797 | AM20: 10.43528848 | AN20: 3.331667132 | AO20: 16.23056669 | AP20: 21.93766145 | BB20: Unimproved | BC20: N/A | BD20: N/A | BE20: N/A | BF20: N/A | BG20: N/A | BH20: N/A | BI20: N/A | BJ20: N/A | BK20: N/A | BL20: N/A | BM20: N/A | BN20: N/A | BO20: N/A | BP20: N/A | BQ20: N/A | BR20: N/A | BS20: N/A | BT20: N/A | BU20: N/A | BV20: N/A | BW20: N/A | BX20: N/A | BY20: N/A | BZ20: N/A | CA20: N/A | CB20: N/A | CC20: N/A | CD20: N/A | CE20: N/A | CF20: N/A | CG20: N/A | CH20: N/A | CI20: N/A | CJ20: N/A | CK20: N/A | CL20: N/A | CM20: N/A | CN20: N/A | CO20: N/A | CP20: N/A
B21: Surface water | C21: =C64 -> 9.869003084 | D21: 14.30127207 | E21: 1.245794512 | F21: 0.1090719458 | G21: 0 | H21: 1.150927158 | I21: 0.03042655409 | J21: 0 | K21: 0.006936978884 | L21: 0 | M21: 11.10224937 | N21: 9.940695253 | O21: 10.88175034 | P21: 21.67937832 | Q21: 14.41405679 | R21: 9.773968181 | S21: 4.191549192 | T21: 3.21259697 | U21: 2.709815828 | V21: 5.504505695 | W21: 4.462692021 | X21: 0 | Y21: 4.025329216 | Z21: 4.796192591 | AA21: 11.70651345 | AB21: 1.636694891 | AC21: 5.867562725 | AD21: 1.402696548 | AE21: 3.415856318 | AF21: 0.7086327985 | AG21: 34.38088321 | AH21: 9.956554551 | AI21: 2.898584105 | AJ21: 7.760842874 | AK21: 8.506921093 | AL21: 3.095919748 | AM21: 17.24868663 | AN21: 1.708461824 | AO21: 3.425938004 | AP21: 13.00285997 | BB21: Surface water | BC21: N/A | BD21: N/A | BE21: N/A | BF21: N/A | BG21: N/A | BH21: N/A | BI21: N/A | BJ21: N/A | BK21: N/A | BL21: N/A | BM21: N/A | BN21: N/A | BO21: N/A | BP21: N/A | BQ21: N/A | BR21: N/A | BS21: N/A | BT21: N/A | BU21: N/A | BV21: N/A | BW21: N/A | BX21: N/A | BY21: N/A | BZ21: N/A | CA21: N/A | CB21: N/A | CC21: N/A | CD21: N/A | CE21: N/A | CF21: N/A | CG21: N/A | CH21: N/A | CI21: N/A | CJ21: N/A | CK21: N/A | CL21: N/A | CM21: N/A | CN21: N/A | CO21: N/A | CP21: N/A
A22: Improved water point at more than 30 minutes | B22: Yes | C22: =C41 -> 2.355332302 | D22: 2.403928165 | E22: 1.368249587 | F22: 0.4488925778 | G22: 0.0309062583 | H22: 2.383199618 | I22: 1.09129706 | J22: 0.4304650519 | K22: 0.2524553136 | L22: 0.01253202236 | M22: 2.397195509 | N22: 2.425773308 | O22: 2.952144322 | P22: 2.195594865 | Q22: 1.178206387 | R22: 1.159074529 | S22: 0.3829128146 | T22: 0.6047305605 | U22: 0.9440356376 | V22: 0.4723352615 | W22: 1.662788378 | X22: 0 | Y22: 0.5548497804 | Z22: 1.5483143 | AA22: 1.455446525 | AB22: 1.274234422 | AC22: 0.3811603136 | AD22: 0.9161586863 | AE22: 5.928640089 | AF22: 0.2354442162 | AG22: 2.094752007 | AH22: 0.3703563625 | AI22: 0.2221173339 | AJ22: 1.169158056 | AK22: 6.995535879 | AL22: 0.708655769 | AM22: 0.3312655789 | AN22: 0.4410446031 | AO22: 2.784016431 | AP22: 0.3396699263 | BA22: Improved water point at more than 30 minutes | BB22: Yes | BC22: N/A | BD22: N/A | BE22: N/A | BF22: N/A | BG22: N/A | BH22: N/A | BI22: N/A | BJ22: N/A | BK22: N/A | BL22: N/A | BM22: N/A | BN22: N/A | BO22: N/A | BP22: N/A | BQ22: N/A | BR22: N/A | BS22: N/A | BT22: N/A | BU22: N/A | BV22: N/A | BW22: N/A | BX22: N/A | BY22: N/A | BZ22: N/A | CA22: N/A | CB22: N/A | CC22: N/A | CD22: N/A | CE22: N/A | CF22: N/A | CG22: N/A | CH22: N/A | CI22: N/A | CJ22: N/A | CK22: N/A | CL22: N/A | CM22: N/A | CN22: N/A | CO22: N/A | CP22: N/A
B23: No | C23: =C42 -> 97.6446677 | D23: 97.59607184 | E23: 98.63175041 | F23: 99.55110742 | G23: 99.96909374 | H23: 97.61680038 | I23: 98.90870294 | J23: 99.56953495 | K23: 99.74754469 | L23: 99.98746798 | M23: 97.60280449 | N23: 97.57422669 | O23: 97.04785568 | P23: 97.80440514 | Q23: 98.82179361 | R23: 98.84092547 | S23: 99.61708719 | T23: 99.39526944 | U23: 99.05596436 | V23: 99.52766474 | W23: 98.33721162 | X23: 100 | Y23: 99.44515022 | Z23: 98.4516857 | AA23: 98.54455348 | AB23: 98.72576558 | AC23: 99.61883969 | AD23: 99.08384131 | AE23: 94.07135991 | AF23: 99.76455578 | AG23: 97.90524799 | AH23: 99.62964364 | AI23: 99.77788267 | AJ23: 98.83084194 | AK23: 93.00446412 | AL23: 99.29134423 | AM23: 99.66873442 | AN23: 99.5589554 | AO23: 97.21598357 | AP23: 99.66033007 | BB23: No | BC23: N/A | BD23: N/A | BE23: N/A | BF23: N/A | BG23: N/A | BH23: N/A | BI23: N/A | BJ23: N/A | BK23: N/A | BL23: N/A | BM23: N/A | BN23: N/A | BO23: N/A | BP23: N/A | BQ23: N/A | BR23: N/A | BS23: N/A | BT23: N/A | BU23: N/A | BV23: N/A | BW23: N/A | BX23: N/A | BY23: N/A | BZ23: N/A | CA23: N/A | CB23: N/A | CC23: N/A | CD23: N/A | CE23: N/A | CF23: N/A | CG23: N/A | CH23: N/A | CI23: N/A | CJ23: N/A | CK23: N/A | CL23: N/A | CM23: N/A | CN23: N/A | CO23: N/A | CP23: N/A
A24: Manually calculated ratios | B24: Improved wells
B25: Improved springs
B26: Other
C27: NATIONAL wealth index quintile | H27: URBAN wealth index quintile | M27: RURAL wealth index quintile | R27: SUB-REGIONS: | BA27: Raw numbers of respondents: | BB27: Use of drinking water sources | BC27: NATIONAL wealth index quintile | BH27: URBAN wealth index quintile | BM27: RURAL wealth index quintile | BR27: SUB-REGIONS:
A28: Percentage based on weighted population | C28: Poorest | D28: Poor | E28: Middle | F28: Rich | G28: Richest | H28: Poorest | I28: Poor | J28: Middle | K28: Rich | L28: Richest | M28: Poorest | N28: Poor | O28: Middle | P28: Rich | Q28: Richest | R28: Amazonas | S28: Ancash | T28: Apurimac | U28: Arequipa | V28: Ayacucho | W28: Cajamarca | X28: Callao | Y28: Cusco | Z28: Huancavelica | AA28: Huanuco | AB28: Ica | AC28: Junin | AD28: La Libertad | AE28: Lambayeque | AF28: Lima | AG28: Loreto | AH28: Madre de Dios | AI28: Moquegua | AJ28: Pasco | AK28: Piura | AL28: Puno | AM28: San Martin | AN28: Tacna | AO28: Tumbes | AP28: Ucayali | BA28: Water data, raw numbers (weighted) | BC28: Poorest | BD28: Poor | BE28: Middle | BF28: Rich | BG28: Richest | BH28: Poorest | BI28: Poor | BJ28: Middle | BK28: Rich | BL28: Richest | BM28: Poorest | BN28: Poor | BO28: Middle | BP28: Rich | BQ28: Richest | BR28: Amazonas | BS28: Ancash | BT28: Apurimac | BU28: Arequipa | BV28: Ayacucho | BW28: Cajamarca | BX28: Callao | BY28: Cusco | BZ28: Huancavelica | CA28: Huanuco | CB28: Ica | CC28: Junin | CD28: La Libertad | CE28: Lambayeque | CF28: Lima | CG28: Loreto | CH28: Madre de Dios | CI28: Moquegua | CJ28: Pasco | CK28: Piura | CL28: Puno | CM28: San Martin | CN28: Tacna | CO28: Tumbes | CP28: Ucayali
A29: Piped water | B29: Yes | C29: 44.64724634 | D29: 51.43289626 | E29: 57.21245271 | F29: 86.76385506 | G29: 98.59227211 | H29: 57.60479938 | I29: 55.50636861 | J29: 83.67539131 | K29: 96.92437393 | L29: 99.06935428 | M29: 45.35835602 | N29: 39.2614234 | O29: 47.02902319 | P29: 47.77137365 | Q29: 58.33990402 | R29: 67.03621778 | S29: 74.98059758 | T29: 69.20490478 | U29: 76.04260108 | V29: 68.81960445 | W29: 62.59798106 | X29: 83.35531425 | Y29: 69.52540121 | Z29: 55.6062157 | AA29: 47.36120594 | AB29: 74.50128817 | AC29: 68.90018738 | AD29: 65.35953307 | AE29: 63.13252693 | AF29: 79.83027724 | AG29: 30.89309416 | AH29: 68.19519509 | AI29: 83.4268994 | AJ29: 59.75303425 | AK29: 59.73820106 | AL29: 47.75063718 | AM29: 56.77559677 | AN29: 81.10276754 | AO29: 62.19013313 | AP29: 47.6563175 | BA29: Piped water | BB29: Yes | BC29: N/A | BD29: N/A | BE29: N/A | BF29: N/A | BG29: N/A | BH29: N/A | BI29: N/A | BJ29: N/A | BK29: N/A | BL29: N/A | BM29: N/A | BN29: N/A | BO29: N/A | BP29: N/A | BQ29: N/A | BR29: N/A | BS29: N/A | BT29: N/A | BU29: N/A | BV29: N/A | BW29: N/A | BX29: N/A | BY29: N/A | BZ29: N/A | CA29: N/A | CB29: N/A | CC29: N/A | CD29: N/A | CE29: N/A | CF29: N/A | CG29: N/A | CH29: N/A | CI29: N/A | CJ29: N/A | CK29: N/A | CL29: N/A | CM29: N/A | CN29: N/A | CO29: N/A | CP29: N/A
B30: No | C30: 55.35275366 | D30: 48.56710374 | E30: 42.78754729 | F30: 13.23614494 | G30: 1.407727892 | H30: 42.39520062 | I30: 44.49363139 | J30: 16.32460869 | K30: 3.075626072 | L30: 0.930645722 | M30: 54.64164398 | N30: 60.7385766 | O30: 52.97097681 | P30: 52.22862635 | Q30: 41.66009598 | R30: 32.96378222 | S30: 25.01940242 | T30: 30.79509522 | U30: 23.95739892 | V30: 31.18039555 | W30: 37.40201894 | X30: 16.64468575 | Y30: 30.47459879 | Z30: 44.3937843 | AA30: 52.63879406 | AB30: 25.49871183 | AC30: 31.09981262 | AD30: 34.64046693 | AE30: 36.86747307 | AF30: 20.16972276 | AG30: 69.10690584 | AH30: 31.80480491 | AI30: 16.5731006 | AJ30: 40.24696575 | AK30: 40.26179894 | AL30: 52.24936282 | AM30: 43.22440323 | AN30: 18.89723246 | AO30: 37.80986687 | AP30: 52.3436825 | BB30: No | BC30: N/A | BD30: N/A | BE30: N/A | BF30: N/A | BG30: N/A | BH30: N/A | BI30: N/A | BJ30: N/A | BK30: N/A | BL30: N/A | BM30: N/A | BN30: N/A | BO30: N/A | BP30: N/A | BQ30: N/A | BR30: N/A | BS30: N/A | BT30: N/A | BU30: N/A | BV30: N/A | BW30: N/A | BX30: N/A | BY30: N/A | BZ30: N/A | CA30: N/A | CB30: N/A | CC30: N/A | CD30: N/A | CE30: N/A | CF30: N/A | CG30: N/A | CH30: N/A | CI30: N/A | CJ30: N/A | CK30: N/A | CL30: N/A | CM30: N/A | CN30: N/A | CO30: N/A | CP30: N/A
A31: Piped water on premises | B31: Yes | C31: 40.90178611 | D31: 47.61518433 | E31: 53.62051591 | F31: 84.50081098 | G31: 97.85177973 | H31: 53.78650172 | I31: 52.02222544 | J31: 81.04011927 | K31: 95.50069297 | L31: 98.57140016 | M31: 41.33100642 | N31: 35.44712407 | O31: 43.48205279 | P31: 43.76050261 | Q31: 55.2876335 | R31: 66.2629355 | S31: 74.56980492 | T31: 68.08431833 | U31: 71.17511701 | V31: 67.31468864 | W31: 61.73612241 | X31: 83.1574174 | Y31: 67.72342737 | Z31: 48.45314655 | AA31: 40.55526397 | AB31: 72.12674413 | AC31: 66.05041954 | AD31: 62.5279951 | AE31: 58.33708881 | AF31: 76.52528645 | AG31: 28.34383357 | AH31: 65.74924846 | AI31: 81.83395992 | AJ31: 52.74078468 | AK31: 55.97289483 | AL31: 46.68508397 | AM31: 55.55291782 | AN31: 78.79127944 | AO31: 61.47300973 | AP31: 43.92442623 | BA31: Piped water on premises | BB31: Yes | BC31: N/A | BD31: N/A | BE31: N/A | BF31: N/A | BG31: N/A | BH31: N/A | BI31: N/A | BJ31: N/A | BK31: N/A | BL31: N/A | BM31: N/A | BN31: N/A | BO31: N/A | BP31: N/A | BQ31: N/A | BR31: N/A | BS31: N/A | BT31: N/A | BU31: N/A | BV31: N/A | BW31: N/A | BX31: N/A | BY31: N/A | BZ31: N/A | CA31: N/A | CB31: N/A | CC31: N/A | CD31: N/A | CE31: N/A | CF31: N/A | CG31: N/A | CH31: N/A | CI31: N/A | CJ31: N/A | CK31: N/A | CL31: N/A | CM31: N/A | CN31: N/A | CO31: N/A | CP31: N/A
B32: No | C32: 59.09821389 | D32: 52.38481567 | E32: 46.37948409 | F32: 15.49918902 | G32: 2.148220275 | H32: 46.21349828 | I32: 47.97777456 | J32: 18.95988073 | K32: 4.499307033 | L32: 1.428599838 | M32: 58.66899358 | N32: 64.55287593 | O32: 56.51794721 | P32: 56.23949739 | Q32: 44.7123665 | R32: 33.7370645 | S32: 25.43019508 | T32: 31.91568167 | U32: 28.82488299 | V32: 32.68531136 | W32: 38.26387759 | X32: 16.8425826 | Y32: 32.27657263 | Z32: 51.54685345 | AA32: 59.44473603 | AB32: 27.87325587 | AC32: 33.94958046 | AD32: 37.4720049 | AE32: 41.66291119 | AF32: 23.47471355 | AG32: 71.65616643 | AH32: 34.25075154 | AI32: 18.16604008 | AJ32: 47.25921532 | AK32: 44.02710517 | AL32: 53.31491603 | AM32: 44.44708218 | AN32: 21.20872056 | AO32: 38.52699027 | AP32: 56.07557377 | BB32: No | BC32: N/A | BD32: N/A | BE32: N/A | BF32: N/A | BG32: N/A | BH32: N/A | BI32: N/A | BJ32: N/A | BK32: N/A | BL32: N/A | BM32: N/A | BN32: N/A | BO32: N/A | BP32: N/A | BQ32: N/A | BR32: N/A | BS32: N/A | BT32: N/A | BU32: N/A | BV32: N/A | BW32: N/A | BX32: N/A | BY32: N/A | BZ32: N/A | CA32: N/A | CB32: N/A | CC32: N/A | CD32: N/A | CE32: N/A | CF32: N/A | CG32: N/A | CH32: N/A | CI32: N/A | CJ32: N/A | CK32: N/A | CL32: N/A | CM32: N/A | CN32: N/A | CO32: N/A | CP32: N/A
A33: Piped water into dwelling | B33: Yes | C33: N/A | D33: N/A | E33: N/A | F33: N/A | G33: N/A | H33: N/A | I33: N/A | J33: N/A | K33: N/A | L33: N/A | M33: N/A | N33: N/A | O33: N/A | P33: N/A | Q33: N/A | R33: N/A | S33: N/A | T33: N/A | U33: N/A | V33: N/A | W33: N/A | X33: N/A | Y33: N/A | Z33: N/A | AA33: N/A | AB33: N/A | AC33: N/A | AD33: N/A | AE33: N/A | AF33: N/A | AG33: N/A | AH33: N/A | AI33: N/A | AJ33: N/A | AK33: N/A | AL33: N/A | AM33: N/A | AN33: N/A | AO33: N/A | AP33: N/A | BA33: Piped water into dwelling | BB33: Yes | BC33: N/A | BD33: N/A | BE33: N/A | BF33: N/A | BG33: N/A | BH33: N/A | BI33: N/A | BJ33: N/A | BK33: N/A | BL33: N/A | BM33: N/A | BN33: N/A | BO33: N/A | BP33: N/A | BQ33: N/A | BR33: N/A | BS33: N/A | BT33: N/A | BU33: N/A | BV33: N/A | BW33: N/A | BX33: N/A | BY33: N/A | BZ33: N/A | CA33: N/A | CB33: N/A | CC33: N/A | CD33: N/A | CE33: N/A | CF33: N/A | CG33: N/A | CH33: N/A | CI33: N/A | CJ33: N/A | CK33: N/A | CL33: N/A | CM33: N/A | CN33: N/A | CO33: N/A | CP33: N/A
B34: No | C34: N/A | D34: N/A | E34: N/A | F34: N/A | G34: N/A | H34: N/A | I34: N/A | J34: N/A | K34: N/A | L34: N/A | M34: N/A | N34: N/A | O34: N/A | P34: N/A | Q34: N/A | R34: N/A | S34: N/A | T34: N/A | U34: N/A | V34: N/A | W34: N/A | X34: N/A | Y34: N/A | Z34: N/A | AA34: N/A | AB34: N/A | AC34: N/A | AD34: N/A | AE34: N/A | AF34: N/A | AG34: N/A | AH34: N/A | AI34: N/A | AJ34: N/A | AK34: N/A | AL34: N/A | AM34: N/A | AN34: N/A | AO34: N/A | AP34: N/A | BB34: No | BC34: N/A | BD34: N/A | BE34: N/A | BF34: N/A | BG34: N/A | BH34: N/A | BI34: N/A | BJ34: N/A | BK34: N/A | BL34: N/A | BM34: N/A | BN34: N/A | BO34: N/A | BP34: N/A | BQ34: N/A | BR34: N/A | BS34: N/A | BT34: N/A | BU34: N/A | BV34: N/A | BW34: N/A | BX34: N/A | BY34: N/A | BZ34: N/A | CA34: N/A | CB34: N/A | CC34: N/A | CD34: N/A | CE34: N/A | CF34: N/A | CG34: N/A | CH34: N/A | CI34: N/A | CJ34: N/A | CK34: N/A | CL34: N/A | CM34: N/A | CN34: N/A | CO34: N/A | CP34: N/A
A35: Water source on premises | B35: Yes | C35: 55.1244752 | D35: 66.45879861 | E35: 89.53883527 | F35: 96.15730832 | G35: 99.46561798 | H35: 80.32591238 | I35: 91.75264514 | J35: 95.8456912 | K35: 97.88506778 | L35: 99.83323124 | M35: 51.31814875 | N35: 53.80978419 | O35: 57.99542388 | P35: 58.20701518 | Q35: 75.68229634 | R35: 81.41045315 | S35: 84.86081478 | T35: 82.88563124 | U35: 87.56271252 | V35: 80.1700798 | W35: 73.4140931 | X35: 98.19739001 | Y35: 82.71022149 | Z35: 59.38136881 | AA35: 53.86463696 | AB35: 88.1137972 | AC35: 83.05313232 | AD35: 79.85268828 | AE35: 71.65633095 | AF35: 95.42194907 | AG35: 45.64834627 | AH35: 78.29712873 | AI35: 92.50526059 | AJ35: 68.19071952 | AK35: 72.21983608 | AL35: 69.10263975 | AM35: 71.45684748 | AN35: 91.33978351 | AO35: 82.69659242 | AP35: 69.95115972 | BA35: Water source on premises | BB35: Yes | BC35: N/A | BD35: N/A | BE35: N/A | BF35: N/A | BG35: N/A | BH35: N/A | BI35: N/A | BJ35: N/A | BK35: N/A | BL35: N/A | BM35: N/A | BN35: N/A | BO35: N/A | BP35: N/A | BQ35: N/A | BR35: N/A | BS35: N/A | BT35: N/A | BU35: N/A | BV35: N/A | BW35: N/A | BX35: N/A | BY35: N/A | BZ35: N/A | CA35: N/A | CB35: N/A | CC35: N/A | CD35: N/A | CE35: N/A | CF35: N/A | CG35: N/A | CH35: N/A | CI35: N/A | CJ35: N/A | CK35: N/A | CL35: N/A | CM35: N/A | CN35: N/A | CO35: N/A | CP35: N/A
B36: No | C36: 44.8755248 | D36: 33.54120139 | E36: 10.46116473 | F36: 3.842691683 | G36: 0.5343820206 | H36: 19.67408762 | I36: 8.247354861 | J36: 4.154308801 | K36: 2.114932217 | L36: 0.1667687579 | M36: 48.68185125 | N36: 46.19021581 | O36: 42.00457612 | P36: 41.79298482 | Q36: 24.31770366 | R36: 18.58954685 | S36: 15.13918522 | T36: 17.11436876 | U36: 12.43728748 | V36: 19.8299202 | W36: 26.5859069 | X36: 1.802609994 | Y36: 17.28977851 | Z36: 40.61863119 | AA36: 46.13536304 | AB36: 11.8862028 | AC36: 16.94686768 | AD36: 20.14731172 | AE36: 28.34366905 | AF36: 4.578050926 | AG36: 54.35165373 | AH36: 21.70287127 | AI36: 7.494739413 | AJ36: 31.80928048 | AK36: 27.78016392 | AL36: 30.89736025 | AM36: 28.54315252 | AN36: 8.660216488 | AO36: 17.30340758 | AP36: 30.04884028 | BB36: No | BC36: N/A | BD36: N/A | BE36: N/A | BF36: N/A | BG36: N/A | BH36: N/A | BI36: N/A | BJ36: N/A | BK36: N/A | BL36: N/A | BM36: N/A | BN36: N/A | BO36: N/A | BP36: N/A | BQ36: N/A | BR36: N/A | BS36: N/A | BT36: N/A | BU36: N/A | BV36: N/A | BW36: N/A | BX36: N/A | BY36: N/A | BZ36: N/A | CA36: N/A | CB36: N/A | CC36: N/A | CD36: N/A | CE36: N/A | CF36: N/A | CG36: N/A | CH36: N/A | CI36: N/A | CJ36: N/A | CK36: N/A | CL36: N/A | CM36: N/A | CN36: N/A | CO36: N/A | CP36: N/A
A37: Improved Water source on premises | B37: Yes | C37: N/A | D37: N/A | E37: N/A | F37: N/A | G37: N/A | H37: N/A | I37: N/A | J37: N/A | K37: N/A | L37: N/A | M37: N/A | N37: N/A | O37: N/A | P37: N/A | Q37: N/A | R37: N/A | S37: N/A | T37: N/A | U37: N/A | V37: N/A | W37: N/A | X37: N/A | Y37: N/A | Z37: N/A | AA37: N/A | AB37: N/A | AC37: N/A | AD37: N/A | AE37: N/A | AF37: N/A | AG37: N/A | AH37: N/A | AI37: N/A | AJ37: N/A | AK37: N/A | AL37: N/A | AM37: N/A | AN37: N/A | AO37: N/A | AP37: N/A | BA37: Improved water source on premises | BB37: Yes | BC37: N/A | BD37: N/A | BE37: N/A | BF37: N/A | BG37: N/A | BH37: N/A | BI37: N/A | BJ37: N/A | BK37: N/A | BL37: N/A | BM37: N/A | BN37: N/A | BO37: N/A | BP37: N/A | BQ37: N/A | BR37: N/A | BS37: N/A | BT37: N/A | BU37: N/A | BV37: N/A | BW37: N/A | BX37: N/A | BY37: N/A | BZ37: N/A | CA37: N/A | CB37: N/A | CC37: N/A | CD37: N/A | CE37: N/A | CF37: N/A | CG37: N/A | CH37: N/A | CI37: N/A | CJ37: N/A | CK37: N/A | CL37: N/A | CM37: N/A | CN37: N/A | CO37: N/A | CP37: N/A
B38: No | C38: N/A | D38: N/A | E38: N/A | F38: N/A | G38: N/A | H38: N/A | I38: N/A | J38: N/A | K38: N/A | L38: N/A | M38: N/A | N38: N/A | O38: N/A | P38: N/A | Q38: N/A | R38: N/A | S38: N/A | T38: N/A | U38: N/A | V38: N/A | W38: N/A | X38: N/A | Y38: N/A | Z38: N/A | AA38: N/A | AB38: N/A | AC38: N/A | AD38: N/A | AE38: N/A | AF38: N/A | AG38: N/A | AH38: N/A | AI38: N/A | AJ38: N/A | AK38: N/A | AL38: N/A | AM38: N/A | AN38: N/A | AO38: N/A | AP38: N/A | BB38: No | BC38: N/A | BD38: N/A | BE38: N/A | BF38: N/A | BG38: N/A | BH38: N/A | BI38: N/A | BJ38: N/A | BK38: N/A | BL38: N/A | BM38: N/A | BN38: N/A | BO38: N/A | BP38: N/A | BQ38: N/A | BR38: N/A | BS38: N/A | BT38: N/A | BU38: N/A | BV38: N/A | BW38: N/A | BX38: N/A | BY38: N/A | BZ38: N/A | CA38: N/A | CB38: N/A | CC38: N/A | CD38: N/A | CE38: N/A | CF38: N/A | CG38: N/A | CH38: N/A | CI38: N/A | CJ38: N/A | CK38: N/A | CL38: N/A | CM38: N/A | CN38: N/A | CO38: N/A | CP38: N/A
A39: Piped water on premises available when needed | B39: Yes | C39: N/A | D39: N/A | E39: N/A | F39: N/A | G39: N/A | H39: N/A | I39: N/A | J39: N/A | K39: N/A | L39: N/A | M39: N/A | N39: N/A | O39: N/A | P39: N/A | Q39: N/A | R39: N/A | S39: N/A | T39: N/A | U39: N/A | V39: N/A | W39: N/A | X39: N/A | Y39: N/A | Z39: N/A | AA39: N/A | AB39: N/A | AC39: N/A | AD39: N/A | AE39: N/A | AF39: N/A | AG39: N/A | AH39: N/A | AI39: N/A | AJ39: N/A | AK39: N/A | AL39: N/A | AM39: N/A | AN39: N/A | AO39: N/A | AP39: N/A | BA39: Piped water on premises available when needed | BB39: Yes | BC39: N/A | BD39: N/A | BE39: N/A | BF39: N/A | BG39: N/A | BH39: N/A | BI39: N/A | BJ39: N/A | BK39: N/A | BL39: N/A | BM39: N/A | BN39: N/A | BO39: N/A | BP39: N/A | BQ39: N/A | BR39: N/A | BS39: N/A | BT39: N/A | BU39: N/A | BV39: N/A | BW39: N/A | BX39: N/A | BY39: N/A | BZ39: N/A | CA39: N/A | CB39: N/A | CC39: N/A | CD39: N/A | CE39: N/A | CF39: N/A | CG39: N/A | CH39: N/A | CI39: N/A | CJ39: N/A | CK39: N/A | CL39: N/A | CM39: N/A | CN39: N/A | CO39: N/A | CP39: N/A
B40: No | C40: N/A | D40: N/A | E40: N/A | F40: N/A | G40: N/A | H40: N/A | I40: N/A | J40: N/A | K40: N/A | L40: N/A | M40: N/A | N40: N/A | O40: N/A | P40: N/A | Q40: N/A | R40: N/A | S40: N/A | T40: N/A | U40: N/A | V40: N/A | W40: N/A | X40: N/A | Y40: N/A | Z40: N/A | AA40: N/A | AB40: N/A | AC40: N/A | AD40: N/A | AE40: N/A | AF40: N/A | AG40: N/A | AH40: N/A | AI40: N/A | AJ40: N/A | AK40: N/A | AL40: N/A | AM40: N/A | AN40: N/A | AO40: N/A | AP40: N/A | BB40: No | BC40: N/A | BD40: N/A | BE40: N/A | BF40: N/A | BG40: N/A | BH40: N/A | BI40: N/A | BJ40: N/A | BK40: N/A | BL40: N/A | BM40: N/A | BN40: N/A | BO40: N/A | BP40: N/A | BQ40: N/A | BR40: N/A | BS40: N/A | BT40: N/A | BU40: N/A | BV40: N/A | BW40: N/A | BX40: N/A | BY40: N/A | BZ40: N/A | CA40: N/A | CB40: N/A | CC40: N/A | CD40: N/A | CE40: N/A | CF40: N/A | CG40: N/A | CH40: N/A | CI40: N/A | CJ40: N/A | CK40: N/A | CL40: N/A | CM40: N/A | CN40: N/A | CO40: N/A | CP40: N/A
A41: Water point at more than 30 minutes | B41: Yes | C41: 2.355332302 | D41: 2.403928165 | E41: 1.368249587 | F41: 0.4488925778 | G41: 0.0309062583 | H41: 2.383199618 | I41: 1.09129706 | J41: 0.4304650519 | K41: 0.2524553136 | L41: 0.01253202236 | M41: 2.397195509 | N41: 2.425773308 | O41: 2.952144322 | P41: 2.195594865 | Q41: 1.178206387 | R41: 1.159074529 | S41: 0.3829128146 | T41: 0.6047305605 | U41: 0.9440356376 | V41: 0.4723352615 | W41: 1.662788378 | X41: 0 | Y41: 0.5548497804 | Z41: 1.5483143 | AA41: 1.455446525 | AB41: 1.274234422 | AC41: 0.3811603136 | AD41: 0.9161586863 | AE41: 5.928640089 | AF41: 0.2354442162 | AG41: 2.094752007 | AH41: 0.3703563625 | AI41: 0.2221173339 | AJ41: 1.169158056 | AK41: 6.995535879 | AL41: 0.708655769 | AM41: 0.3312655789 | AN41: 0.4410446031 | AO41: 2.784016431 | AP41: 0.3396699263 | BA41: Water point at more than 30 minutes | BB41: Yes | BC41: N/A | BD41: N/A | BE41: N/A | BF41: N/A | BG41: N/A | BH41: N/A | BI41: N/A | BJ41: N/A | BK41: N/A | BL41: N/A | BM41: N/A | BN41: N/A | BO41: N/A | BP41: N/A | BQ41: N/A | BR41: N/A | BS41: N/A | BT41: N/A | BU41: N/A | BV41: N/A | BW41: N/A | BX41: N/A | BY41: N/A | BZ41: N/A | CA41: N/A | CB41: N/A | CC41: N/A | CD41: N/A | CE41: N/A | CF41: N/A | CG41: N/A | CH41: N/A | CI41: N/A | CJ41: N/A | CK41: N/A | CL41: N/A | CM41: N/A | CN41: N/A | CO41: N/A | CP41: N/A
B42: No | C42: 97.6446677 | D42: 97.59607184 | E42: 98.63175041 | F42: 99.55110742 | G42: 99.96909374 | H42: 97.61680038 | I42: 98.90870294 | J42: 99.56953495 | K42: 99.74754469 | L42: 99.98746798 | M42: 97.60280449 | N42: 97.57422669 | O42: 97.04785568 | P42: 97.80440514 | Q42: 98.82179361 | R42: 98.84092547 | S42: 99.61708719 | T42: 99.39526944 | U42: 99.05596436 | V42: 99.52766474 | W42: 98.33721162 | X42: 100 | Y42: 99.44515022 | Z42: 98.4516857 | AA42: 98.54455348 | AB42: 98.72576558 | AC42: 99.61883969 | AD42: 99.08384131 | AE42: 94.07135991 | AF42: 99.76455578 | AG42: 97.90524799 | AH42: 99.62964364 | AI42: 99.77788267 | AJ42: 98.83084194 | AK42: 93.00446412 | AL42: 99.29134423 | AM42: 99.66873442 | AN42: 99.5589554 | AO42: 97.21598357 | AP42: 99.66033007 | BB42: No | BC42: N/A | BD42: N/A | BE42: N/A | BF42: N/A | BG42: N/A | BH42: N/A | BI42: N/A | BJ42: N/A | BK42: N/A | BL42: N/A | BM42: N/A | BN42: N/A | BO42: N/A | BP42: N/A | BQ42: N/A | BR42: N/A | BS42: N/A | BT42: N/A | BU42: N/A | BV42: N/A | BW42: N/A | BX42: N/A | BY42: N/A | BZ42: N/A | CA42: N/A | CB42: N/A | CC42: N/A | CD42: N/A | CE42: N/A | CF42: N/A | CG42: N/A | CH42: N/A | CI42: N/A | CJ42: N/A | CK42: N/A | CL42: N/A | CM42: N/A | CN42: N/A | CO42: N/A | CP42: N/A
A43: Water source available when needed | B43: Yes | C43: N/A | D43: N/A | E43: N/A | F43: N/A | G43: N/A | H43: N/A | I43: N/A | J43: N/A | K43: N/A | L43: N/A | M43: N/A | N43: N/A | O43: N/A | P43: N/A | Q43: N/A | R43: N/A | S43: N/A | T43: N/A | U43: N/A | V43: N/A | W43: N/A | X43: N/A | Y43: N/A | Z43: N/A | AA43: N/A | AB43: N/A | AC43: N/A | AD43: N/A | AE43: N/A | AF43: N/A | AG43: N/A | AH43: N/A | AI43: N/A | AJ43: N/A | AK43: N/A | AL43: N/A | AM43: N/A | AN43: N/A | AO43: N/A | AP43: N/A | BA43: Water source available when needed | BB43: Yes | BC43: N/A | BD43: N/A | BE43: N/A | BF43: N/A | BG43: N/A | BH43: N/A | BI43: N/A | BJ43: N/A | BK43: N/A | BL43: N/A | BM43: N/A | BN43: N/A | BO43: N/A | BP43: N/A | BQ43: N/A | BR43: N/A | BS43: N/A | BT43: N/A | BU43: N/A | BV43: N/A | BW43: N/A | BX43: N/A | BY43: N/A | BZ43: N/A | CA43: N/A | CB43: N/A | CC43: N/A | CD43: N/A | CE43: N/A | CF43: N/A | CG43: N/A | CH43: N/A | CI43: N/A | CJ43: N/A | CK43: N/A | CL43: N/A | CM43: N/A | CN43: N/A | CO43: N/A | CP43: N/A
B44: No | C44: N/A | D44: N/A | E44: N/A | F44: N/A | G44: N/A | H44: N/A | I44: N/A | J44: N/A | K44: N/A | L44: N/A | M44: N/A | N44: N/A | O44: N/A | P44: N/A | Q44: N/A | R44: N/A | S44: N/A | T44: N/A | U44: N/A | V44: N/A | W44: N/A | X44: N/A | Y44: N/A | Z44: N/A | AA44: N/A | AB44: N/A | AC44: N/A | AD44: N/A | AE44: N/A | AF44: N/A | AG44: N/A | AH44: N/A | AI44: N/A | AJ44: N/A | AK44: N/A | AL44: N/A | AM44: N/A | AN44: N/A | AO44: N/A | AP44: N/A | BB44: No | BC44: N/A | BD44: N/A | BE44: N/A | BF44: N/A | BG44: N/A | BH44: N/A | BI44: N/A | BJ44: N/A | BK44: N/A | BL44: N/A | BM44: N/A | BN44: N/A | BO44: N/A | BP44: N/A | BQ44: N/A | BR44: N/A | BS44: N/A | BT44: N/A | BU44: N/A | BV44: N/A | BW44: N/A | BX44: N/A | BY44: N/A | BZ44: N/A | CA44: N/A | CB44: N/A | CC44: N/A | CD44: N/A | CE44: N/A | CF44: N/A | CG44: N/A | CH44: N/A | CI44: N/A | CJ44: N/A | CK44: N/A | CL44: N/A | CM44: N/A | CN44: N/A | CO44: N/A | CP44: N/A
A45: Improved water source available when needed | B45: Yes | C45: N/A | D45: N/A | E45: N/A | F45: N/A | G45: N/A | H45: N/A | I45: N/A | J45: N/A | K45: N/A | L45: N/A | M45: N/A | N45: N/A | O45: N/A | P45: N/A | Q45: N/A | R45: N/A | S45: N/A | T45: N/A | U45: N/A | V45: N/A | W45: N/A | X45: N/A | Y45: N/A | Z45: N/A | AA45: N/A | AB45: N/A | AC45: N/A | AD45: N/A | AE45: N/A | AF45: N/A | AG45: N/A | AH45: N/A | AI45: N/A | AJ45: N/A | AK45: N/A | AL45: N/A | AM45: N/A | AN45: N/A | AO45: N/A | AP45: N/A | BA45: Improved water source available when needed | BB45: Yes | BC45: N/A | BD45: N/A | BE45: N/A | BF45: N/A | BG45: N/A | BH45: N/A | BI45: N/A | BJ45: N/A | BK45: N/A | BL45: N/A | BM45: N/A | BN45: N/A | BO45: N/A | BP45: N/A | BQ45: N/A | BR45: N/A | BS45: N/A | BT45: N/A | BU45: N/A | BV45: N/A | BW45: N/A | BX45: N/A | BY45: N/A | BZ45: N/A | CA45: N/A | CB45: N/A | CC45: N/A | CD45: N/A | CE45: N/A | CF45: N/A | CG45: N/A | CH45: N/A | CI45: N/A | CJ45: N/A | CK45: N/A | CL45: N/A | CM45: N/A | CN45: N/A | CO45: N/A | CP45: N/A
B46: No | C46: N/A | D46: N/A | E46: N/A | F46: N/A | G46: N/A | H46: N/A | I46: N/A | J46: N/A | K46: N/A | L46: N/A | M46: N/A | N46: N/A | O46: N/A | P46: N/A | Q46: N/A | R46: N/A | S46: N/A | T46: N/A | U46: N/A | V46: N/A | W46: N/A | X46: N/A | Y46: N/A | Z46: N/A | AA46: N/A | AB46: N/A | AC46: N/A | AD46: N/A | AE46: N/A | AF46: N/A | AG46: N/A | AH46: N/A | AI46: N/A | AJ46: N/A | AK46: N/A | AL46: N/A | AM46: N/A | AN46: N/A | AO46: N/A | AP46: N/A | BB46: No | BC46: N/A | BD46: N/A | BE46: N/A | BF46: N/A | BG46: N/A | BH46: N/A | BI46: N/A | BJ46: N/A | BK46: N/A | BL46: N/A | BM46: N/A | BN46: N/A | BO46: N/A | BP46: N/A | BQ46: N/A | BR46: N/A | BS46: N/A | BT46: N/A | BU46: N/A | BV46: N/A | BW46: N/A | BX46: N/A | BY46: N/A | BZ46: N/A | CA46: N/A | CB46: N/A | CC46: N/A | CD46: N/A | CE46: N/A | CF46: N/A | CG46: N/A | CH46: N/A | CI46: N/A | CJ46: N/A | CK46: N/A | CL46: N/A | CM46: N/A | CN46: N/A | CO46: N/A | CP46: N/A
A47: Microbiological quality at point of collection | B47: Not contaminated (No E. coli in 100 mL) | C47: N/A | D47: N/A | E47: N/A | F47: N/A | G47: N/A | H47: N/A | I47: N/A | J47: N/A | K47: N/A | L47: N/A | M47: N/A | N47: N/A | O47: N/A | P47: N/A | Q47: N/A | R47: N/A | S47: N/A | T47: N/A | U47: N/A | V47: N/A | W47: N/A | X47: N/A | Y47: N/A | Z47: N/A | AA47: N/A | AB47: N/A | AC47: N/A | AD47: N/A | AE47: N/A | AF47: N/A | AG47: N/A | AH47: N/A | AI47: N/A | AJ47: N/A | AK47: N/A | AL47: N/A | AM47: N/A | AN47: N/A | AO47: N/A | AP47: N/A | BA47: Microbiological quality at point of collection | BB47: Not contaminated (No E. coli in 100 mL) | BC47: N/A | BD47: N/A | BE47: N/A | BF47: N/A | BG47: N/A | BH47: N/A | BI47: N/A | BJ47: N/A | BK47: N/A | BL47: N/A | BM47: N/A | BN47: N/A | BO47: N/A | BP47: N/A | BQ47: N/A | BR47: N/A | BS47: N/A | BT47: N/A | BU47: N/A | BV47: N/A | BW47: N/A | BX47: N/A | BY47: N/A | BZ47: N/A | CA47: N/A | CB47: N/A | CC47: N/A | CD47: N/A | CE47: N/A | CF47: N/A | CG47: N/A | CH47: N/A | CI47: N/A | CJ47: N/A | CK47: N/A | CL47: N/A | CM47: N/A | CN47: N/A | CO47: N/A | CP47: N/A
B48: Contaminated (E. coli detected in 100 mL) | C48: N/A | D48: N/A | E48: N/A | F48: N/A | G48: N/A | H48: N/A | I48: N/A | J48: N/A | K48: N/A | L48: N/A | M48: N/A | N48: N/A | O48: N/A | P48: N/A | Q48: N/A | R48: N/A | S48: N/A | T48: N/A | U48: N/A | V48: N/A | W48: N/A | X48: N/A | Y48: N/A | Z48: N/A | AA48: N/A | AB48: N/A | AC48: N/A | AD48: N/A | AE48: N/A | AF48: N/A | AG48: N/A | AH48: N/A | AI48: N/A | AJ48: N/A | AK48: N/A | AL48: N/A | AM48: N/A | AN48: N/A | AO48: N/A | AP48: N/A | BB48: Contaminated (E. coli detected in 100 mL) | BC48: N/A | BD48: N/A | BE48: N/A | BF48: N/A | BG48: N/A | BH48: N/A | BI48: N/A | BJ48: N/A | BK48: N/A | BL48: N/A | BM48: N/A | BN48: N/A | BO48: N/A | BP48: N/A | BQ48: N/A | BR48: N/A | BS48: N/A | BT48: N/A | BU48: N/A | BV48: N/A | BW48: N/A | BX48: N/A | BY48: N/A | BZ48: N/A | CA48: N/A | CB48: N/A | CC48: N/A | CD48: N/A | CE48: N/A | CF48: N/A | CG48: N/A | CH48: N/A | CI48: N/A | CJ48: N/A | CK48: N/A | CL48: N/A | CM48: N/A | CN48: N/A | CO48: N/A | CP48: N/A
B49: Highly contaminated (>100 CFU/100 mL) | C49: N/A | D49: N/A | E49: N/A | F49: N/A | G49: N/A | H49: N/A | I49: N/A | J49: N/A | K49: N/A | L49: N/A | M49: N/A | N49: N/A | O49: N/A | P49: N/A | Q49: N/A | R49: N/A | S49: N/A | T49: N/A | U49: N/A | V49: N/A | W49: N/A | X49: N/A | Y49: N/A | Z49: N/A | AA49: N/A | AB49: N/A | AC49: N/A | AD49: N/A | AE49: N/A | AF49: N/A | AG49: N/A | AH49: N/A | AI49: N/A | AJ49: N/A | AK49: N/A | AL49: N/A | AM49: N/A | AN49: N/A | AO49: N/A | AP49: N/A | BB49: Highly contaminated (>100 CFU/100 mL) | BC49: N/A | BD49: N/A | BE49: N/A | BF49: N/A | BG49: N/A | BH49: N/A | BI49: N/A | BJ49: N/A | BK49: N/A | BL49: N/A | BM49: N/A | BN49: N/A | BO49: N/A | BP49: N/A | BQ49: N/A | BR49: N/A | BS49: N/A | BT49: N/A | BU49: N/A | BV49: N/A | BW49: N/A | BX49: N/A | BY49: N/A | BZ49: N/A | CA49: N/A | CB49: N/A | CC49: N/A | CD49: N/A | CE49: N/A | CF49: N/A | CG49: N/A | CH49: N/A | CI49: N/A | CJ49: N/A | CK49: N/A | CL49: N/A | CM49: N/A | CN49: N/A | CO49: N/A | CP49: N/A
A50: Microbiological quality of improved water sources at point of collection | B50: Not contaminated (No E. coli in 100 mL) | C50: N/A | D50: N/A | E50: N/A | F50: N/A | G50: N/A | H50: N/A | I50: N/A | J50: N/A | K50: N/A | L50: N/A | M50: N/A | N50: N/A | O50: N/A | P50: N/A | Q50: N/A | R50: N/A | S50: N/A | T50: N/A | U50: N/A | V50: N/A | W50: N/A | X50: N/A | Y50: N/A | Z50: N/A | AA50: N/A | AB50: N/A | AC50: N/A | AD50: N/A | AE50: N/A | AF50: N/A | AG50: N/A | AH50: N/A | AI50: N/A | AJ50: N/A | AK50: N/A | AL50: N/A | AM50: N/A | AN50: N/A | AO50: N/A | AP50: N/A | BA50: Microbiological quality of improved water sources at point of collection | BB50: Not contaminated (No E. coli in 100 mL) | BC50: N/A | BD50: N/A | BE50: N/A | BF50: N/A | BG50: N/A | BH50: N/A | BI50: N/A | BJ50: N/A | BK50: N/A | BL50: N/A | BM50: N/A | BN50: N/A | BO50: N/A | BP50: N/A | BQ50: N/A | BR50: N/A | BS50: N/A | BT50: N/A | BU50: N/A | BV50: N/A | BW50: N/A | BX50: N/A | BY50: N/A | BZ50: N/A | CA50: N/A | CB50: N/A | CC50: N/A | CD50: N/A | CE50: N/A | CF50: N/A | CG50: N/A | CH50: N/A | CI50: N/A | CJ50: N/A | CK50: N/A | CL50: N/A | CM50: N/A | CN50: N/A | CO50: N/A | CP50: N/A
B51: Contaminated (E. coli detected in 100 mL) | C51: N/A | D51: N/A | E51: N/A | F51: N/A | G51: N/A | H51: N/A | I51: N/A | J51: N/A | K51: N/A | L51: N/A | M51: N/A | N51: N/A | O51: N/A | P51: N/A | Q51: N/A | R51: N/A | S51: N/A | T51: N/A | U51: N/A | V51: N/A | W51: N/A | X51: N/A | Y51: N/A | Z51: N/A | AA51: N/A | AB51: N/A | AC51: N/A | AD51: N/A | AE51: N/A | AF51: N/A | AG51: N/A | AH51: N/A | AI51: N/A | AJ51: N/A | AK51: N/A | AL51: N/A | AM51: N/A | AN51: N/A | AO51: N/A | AP51: N/A | BB51: Contaminated (E. coli detected in 100 mL) | BC51: N/A | BD51: N/A | BE51: N/A | BF51: N/A | BG51: N/A | BH51: N/A | BI51: N/A | BJ51: N/A | BK51: N/A | BL51: N/A | BM51: N/A | BN51: N/A | BO51: N/A | BP51: N/A | BQ51: N/A | BR51: N/A | BS51: N/A | BT51: N/A | BU51: N/A | BV51: N/A | BW51: N/A | BX51: N/A | BY51: N/A | BZ51: N/A | CA51: N/A | CB51: N/A | CC51: N/A | CD51: N/A | CE51: N/A | CF51: N/A | CG51: N/A | CH51: N/A | CI51: N/A | CJ51: N/A | CK51: N/A | CL51: N/A | CM51: N/A | CN51: N/A | CO51: N/A | CP51: N/A
B52: Highly contaminated (>100 CFU/100 mL) | C52: N/A | D52: N/A | E52: N/A | F52: N/A | G52: N/A | H52: N/A | I52: N/A | J52: N/A | K52: N/A | L52: N/A | M52: N/A | N52: N/A | O52: N/A | P52: N/A | Q52: N/A | R52: N/A | S52: N/A | T52: N/A | U52: N/A | V52: N/A | W52: N/A | X52: N/A | Y52: N/A | Z52: N/A | AA52: N/A | AB52: N/A | AC52: N/A | AD52: N/A | AE52: N/A | AF52: N/A | AG52: N/A | AH52: N/A | AI52: N/A | AJ52: N/A | AK52: N/A | AL52: N/A | AM52: N/A | AN52: N/A | AO52: N/A | AP52: N/A | BB52: Highly contaminated (>100 CFU/100 mL) | BC52: N/A | BD52: N/A | BE52: N/A | BF52: N/A | BG52: N/A | BH52: N/A | BI52: N/A | BJ52: N/A | BK52: N/A | BL52: N/A | BM52: N/A | BN52: N/A | BO52: N/A | BP52: N/A | BQ52: N/A | BR52: N/A | BS52: N/A | BT52: N/A | BU52: N/A | BV52: N/A | BW52: N/A | BX52: N/A | BY52: N/A | BZ52: N/A | CA52: N/A | CB52: N/A | CC52: N/A | CD52: N/A | CE52: N/A | CF52: N/A | CG52: N/A | CH52: N/A | CI52: N/A | CJ52: N/A | CK52: N/A | CL52: N/A | CM52: N/A | CN52: N/A | CO52: N/A | CP52: N/A
A53: Microbiological quality of piped on premises at point of collection | B53: Not contaminated (No E. coli in 100 mL) | C53: N/A | D53: N/A | E53: N/A | F53: N/A | G53: N/A | H53: N/A | I53: N/A | J53: N/A | K53: N/A | L53: N/A | M53: N/A | N53: N/A | O53: N/A | P53: N/A | Q53: N/A | R53: N/A | S53: N/A | T53: N/A | U53: N/A | V53: N/A | W53: N/A | X53: N/A | Y53: N/A | Z53: N/A | AA53: N/A | AB53: N/A | AC53: N/A | AD53: N/A | AE53: N/A | AF53: N/A | AG53: N/A | AH53: N/A | AI53: N/A | AJ53: N/A | AK53: N/A | AL53: N/A | AM53: N/A | AN53: N/A | AO53: N/A | AP53: N/A | BA53: Microbiological quality of piped on premises at point of collection | BB53: Not contaminated (No E. coli in 100 mL) | BC53: N/A | BD53: N/A | BE53: N/A | BF53: N/A | BG53: N/A | BH53: N/A | BI53: N/A | BJ53: N/A | BK53: N/A | BL53: N/A | BM53: N/A | BN53: N/A | BO53: N/A | BP53: N/A | BQ53: N/A | BR53: N/A | BS53: N/A | BT53: N/A | BU53: N/A | BV53: N/A | BW53: N/A | BX53: N/A | BY53: N/A | BZ53: N/A | CA53: N/A | CB53: N/A | CC53: N/A | CD53: N/A | CE53: N/A | CF53: N/A | CG53: N/A | CH53: N/A | CI53: N/A | CJ53: N/A | CK53: N/A | CL53: N/A | CM53: N/A | CN53: N/A | CO53: N/A | CP53: N/A
B54: Contaminated (E. coli detected in 100 mL) | C54: N/A | D54: N/A | E54: N/A | F54: N/A | G54: N/A | H54: N/A | I54: N/A | J54: N/A | K54: N/A | L54: N/A | M54: N/A | N54: N/A | O54: N/A | P54: N/A | Q54: N/A | R54: N/A | S54: N/A | T54: N/A | U54: N/A | V54: N/A | W54: N/A | X54: N/A | Y54: N/A | Z54: N/A | AA54: N/A | AB54: N/A | AC54: N/A | AD54: N/A | AE54: N/A | AF54: N/A | AG54: N/A | AH54: N/A | AI54: N/A | AJ54: N/A | AK54: N/A | AL54: N/A | AM54: N/A | AN54: N/A | AO54: N/A | AP54: N/A | BB54: Contaminated (E. coli detected in 100 mL) | BC54: N/A | BD54: N/A | BE54: N/A | BF54: N/A | BG54: N/A | BH54: N/A | BI54: N/A | BJ54: N/A | BK54: N/A | BL54: N/A | BM54: N/A | BN54: N/A | BO54: N/A | BP54: N/A | BQ54: N/A | BR54: N/A | BS54: N/A | BT54: N/A | BU54: N/A | BV54: N/A | BW54: N/A | BX54: N/A | BY54: N/A | BZ54: N/A | CA54: N/A | CB54: N/A | CC54: N/A | CD54: N/A | CE54: N/A | CF54: N/A | CG54: N/A | CH54: N/A | CI54: N/A | CJ54: N/A | CK54: N/A | CL54: N/A | CM54: N/A | CN54: N/A | CO54: N/A | CP54: N/A
B55: Highly contaminated (>100 CFU/100 mL) | C55: N/A | D55: N/A | E55: N/A | F55: N/A | G55: N/A | H55: N/A | I55: N/A | J55: N/A | K55: N/A | L55: N/A | M55: N/A | N55: N/A | O55: N/A | P55: N/A | Q55: N/A | R55: N/A | S55: N/A | T55: N/A | U55: N/A | V55: N/A | W55: N/A | X55: N/A | Y55: N/A | Z55: N/A | AA55: N/A | AB55: N/A | AC55: N/A | AD55: N/A | AE55: N/A | AF55: N/A | AG55: N/A | AH55: N/A | AI55: N/A | AJ55: N/A | AK55: N/A | AL55: N/A | AM55: N/A | AN55: N/A | AO55: N/A | AP55: N/A | BB55: Highly contaminated (>100 CFU/100 mL) | BC55: N/A | BD55: N/A | BE55: N/A | BF55: N/A | BG55: N/A | BH55: N/A | BI55: N/A | BJ55: N/A | BK55: N/A | BL55: N/A | BM55: N/A | BN55: N/A | BO55: N/A | BP55: N/A | BQ55: N/A | BR55: N/A | BS55: N/A | BT55: N/A | BU55: N/A | BV55: N/A | BW55: N/A | BX55: N/A | BY55: N/A | BZ55: N/A | CA55: N/A | CB55: N/A | CC55: N/A | CD55: N/A | CE55: N/A | CF55: N/A | CG55: N/A | CH55: N/A | CI55: N/A | CJ55: N/A | CK55: N/A | CL55: N/A | CM55: N/A | CN55: N/A | CO55: N/A | CP55: N/A
C56: NATIONAL wealth index quintile | H56: URBAN wealth index quintile | M56: RURAL wealth index quintile | R56: SUB-REGIONS: | BA56: Raw numbers of respondents: | BB56: Use of drinking water sources | BC56: NATIONAL wealth index quintile | BH56: URBAN wealth index quintile | BM56: RURAL wealth index quintile | BR56: SUB-REGIONS:
A57: Percentage based on weighted population | C57: Poorest | D57: Poor | E57: Middle | F57: Rich | G57: Richest | H57: Poorest | I57: Poor | J57: Middle | K57: Rich | L57: Richest | M57: Poorest | N57: Poor | O57: Middle | P57: Rich | Q57: Richest | R57: Amazonas | S57: Ancash | T57: Apurimac | U57: Arequipa | V57: Ayacucho | W57: Cajamarca | X57: Callao | Y57: Cusco | Z57: Huancavelica | AA57: Huanuco | AB57: Ica | AC57: Junin | AD57: La Libertad | AE57: Lambayeque | AF57: Lima | AG57: Loreto | AH57: Madre de Dios | AI57: Moquegua | AJ57: Pasco | AK57: Piura | AL57: Puno | AM57: San Martin | AN57: Tacna | AO57: Tumbes | AP57: Ucayali | BA57: Water data, raw numbers (weighted) | BC57: Poorest | BD57: Poor | BE57: Middle | BF57: Rich | BG57: Richest | BH57: Poorest | BI57: Poor | BJ57: Middle | BK57: Rich | BL57: Richest | BM57: Poorest | BN57: Poor | BO57: Middle | BP57: Rich | BQ57: Richest | BR57: Amazonas | BS57: Ancash | BT57: Apurimac | BU57: Arequipa | BV57: Ayacucho | BW57: Cajamarca | BX57: Callao | BY57: Cusco | BZ57: Huancavelica | CA57: Huanuco | CB57: Ica | CC57: Junin | CD57: La Libertad | CE57: Lambayeque | CF57: Lima | CG57: Loreto | CH57: Madre de Dios | CI57: Moquegua | CJ57: Pasco | CK57: Piura | CL57: Puno | CM57: San Martin | CN57: Tacna | CO57: Tumbes | CP57: Ucayali
A58: Source of drinking water | B58: Piped into dwelling | C58: 46.9700927 | D58: 52.07583702 | E58: 68.23860831 | F58: 81.90405431 | G58: 91.94370823 | H58: 65.18987075 | I58: 69.21624682 | J58: 79.43763978 | K58: 89.84901043 | L58: 92.10561214 | M58: 42.62852294 | N58: 46.99702679 | O58: 48.19349659 | P58: 46.01306187 | Q58: 56.97639559 | R58: 67.67502228 | S58: 78.09668988 | T58: 71.3584567 | U58: 78.47827565 | V58: 66.8432053 | W58: 67.59050395 | X58: 89.74622427 | Y58: 65.93425471 | Z58: 49.66697703 | AA58: 44.75330866 | AB58: 78.62030323 | AC58: 72.58200482 | AD58: 68.91627625 | AE58: 68.02638078 | AF58: 83.48348902 | AG58: 26.18346058 | AH58: 58.98200194 | AI58: 89.94900349 | AJ58: 53.21095874 | AK58: 60.97069919 | AL58: 46.48233056 | AM58: 55.42391252 | AN58: 82.66323338 | AO58: 69.66620333 | AP58: 44.57890392
B59: Piped outside dwelling but within buikding | C59: 3.533357024 | D59: 3.29065508 | E59: 8.071788747 | F59: 7.363183271 | G59: 1.491434696 | H59: 5.629899955 | I59: 10.36115595 | J59: 8.518523788 | K59: 4.035538142 | L59: 0.5814383482 | M59: 4.220490563 | N59: 2.921239033 | O59: 3.185067249 | P59: 1.880905279 | Q59: 2.970646292 | R59: 9.253790239 | S59: 8.507989008 | T59: 7.701137284 | U59: 6.038731024 | V59: 9.318398298 | W59: 2.687566674 | X59: 4.111297797 | Y59: 12.57201083 | Z59: 6.010360715 | AA59: 2.621551482 | AB59: 4.29995713 | AC59: 4.227119313 | AD59: 1.121966365 | AE59: 1.105286009 | AF59: 4.629677567 | AG59: 0.4306750446 | AH59: 14.2319975 | AI59: 1.044342994 | AJ59: 9.009065038 | AK59: 0.3482296879 | AL59: 6.337957851 | AM59: 3.797791438 | AN59: 6.332247027 | AO59: 0.5286052882 | AP59: 1.830998094
B60: Public tap/standpipe | C60: 4.627943403 | D60: 4.446170829 | E60: 5.101647209 | F60: 2.430083075 | G60: 0.740492383 | H60: 5.056737887 | I60: 5.333686117 | J60: 2.910381143 | K60: 1.423680961 | L60: 0.4979541157 | M60: 4.565031734 | N60: 5.371471256 | O60: 4.191114115 | P60: 4.389723936 | Q60: 3.267585784 | R60: 0.9003933635 | S60: 0.4784566057 | T60: 1.301226355 | U60: 5.81494914 | V60: 1.703450829 | W60: 0.9875042686 | X60: 0.2262462677 | Y60: 2.075206508 | Z60: 8.219566234 | AA60: 7.958128369 | AB60: 2.747600286 | AC60: 3.317375644 | AD60: 3.210813412 | AE60: 5.726481241 | AF60: 3.885663315 | AG60: 2.970292632 | AH60: 2.745406436 | AI60: 1.799954695 | AJ60: 8.221885785 | AK60: 4.423169814 | AL60: 1.205982168 | AM60: 1.276265534 | AN60: 2.631590762 | AO60: 0.8453122695 | AP60: 4.343050907
B61: Well inside dwelling | C61: 2.289439939 | D61: 4.456775869 | E61: 2.488873812 | F61: 1.143634169 | G61: 0.3858698362 | H61: 2.350559052 | I61: 1.631741071 | J61: 1.25829964 | K61: 0.5925036071 | L61: 0.287991976 | M61: 0.9004855586 | N61: 3.042983436 | O61: 4.400043675 | P61: 4.807125303 | Q61: 5.729491583 | R61: 0.8565036575 | S61: 0.544369685 | T61: 0.08212069954 | U61: 0.4071035364 | V61: 0.02486333372 | W61: 0.8203288848 | X61: 0 | Y61: 0.18168592 | Z61: 0.05888945142 | AA61: 2.193841133 | AB61: 1.995579505 | AC61: 2.16356642 | AD61: 4.697069767 | AE61: 1.766127007 | AF61: 0.653318681 | AG61: 4.700395937 | AH61: 3.560568831 | AI61: 0 | AJ61: 0.6854046377 | AK61: 0.289242476 | AL61: 13.87739935 | AM61: 5.447345065 | AN61: 0.1286956488 | AO61: 0.05301778755 | AP61: 6.432979003
B62: Public well | C62: 4.022330304 | D62: 4.286462615 | E62: 0.9125300479 | F62: 0.07399512096 | G62: 0.005374117692 | H62: 2.525510483 | I62: 0.4186637018 | J62: 0.07817447923 | K62: 0.005159594107 | L62: 0.003086358933 | M62: 2.051202771 | N62: 3.866611567 | O62: 5.81259919 | P62: 5.134728384 | Q62: 3.821679437 | R62: 0.2741848768 | S62: 0 | T62: 0.07856722038 | U62: 0.2487143537 | V62: 0.1461523016 | W62: 1.156244618 | X62: 0 | Y62: 0.03028098667 | Z62: 0 | AA62: 0.383046998 | AB62: 0.1474937761 | AC62: 0.2141349282 | AD62: 0.8937988871 | AE62: 11.00519696 | AF62: 0.01549066474 | AG62: 5.050052856 | AH62: 3.322791501 | AI62: 0.06186116715 | AJ62: 1.425325202 | AK62: 2.381993729 | AL62: 9.123798723 | AM62: 6.911207437 | AN62: 2.028795942 | AO62: 0 | AP62: 6.956175309
B63: Spring | C63: 23.71241108 | D63: 7.669987677 | E63: 0.7139906945 | F63: 0.1001270553 | G63: 0.08524401826 | H63: 1.671718328 | I63: 0.3004692963 | J63: 0.09485776654 | K63: 0.1102259357 | L63: 0.07623258952 | M63: 30.81368567 | N63: 23.71678103 | O63: 17.54804991 | P63: 10.91456745 | Q63: 3.978828735 | R63: 5.628900707 | S63: 4.067652561 | T63: 10.77210026 | U63: 1.020331318 | V63: 11.76287616 | W63: 17.02291909 | X63: 0 | Y63: 11.74492948 | Z63: 24.1652837 | AA63: 26.66436364 | AB63: 0.3841798339 | AC63: 7.719546665 | AD63: 12.72124468 | AE63: 0.1243385901 | AF63: 0.2108358612 | AG63: 2.876930565 | AH63: 2.360936377 | AI63: 0.9425886929 | AJ63: 13.33724542 | AK63: 3.898281287 | AL63: 13.77938158 | AM63: 2.990765627 | AN63: 0.757506848 | AO63: 0 | AP63: 0.8191695712
B64: River/dam/lake/ponds/stream/canal/irirgation channel | C64: 9.869003084 | D64: 14.30127207 | E64: 1.245794512 | F64: 0.1090719458 | G64: 0 | H64: 1.150927158 | I64: 0.03042655409 | J64: 0 | K64: 0.006936978884 | L64: 0 | M64: 11.10224937 | N64: 9.940695253 | O64: 10.88175034 | P64: 21.67937832 | Q64: 14.41405679 | R64: 9.773968181 | S64: 4.191549192 | T64: 3.21259697 | U64: 2.709815828 | V64: 5.504505695 | W64: 4.462692021 | X64: 0 | Y64: 4.025329216 | Z64: 4.796192591 | AA64: 11.70651345 | AB64: 1.636694891 | AC64: 5.867562725 | AD64: 1.402696548 | AE64: 3.415856318 | AF64: 0.7086327985 | AG64: 34.38088321 | AH64: 9.956554551 | AI64: 2.898584105 | AJ64: 7.760842874 | AK64: 8.506921093 | AL64: 3.095919748 | AM64: 17.24868663 | AN64: 1.708461824 | AO64: 3.425938004 | AP64: 13.00285997
